Workbook

Sheet IMP-RESUMEN
B1: ENSA
B3: INGRESO MÁXIMO PERMITIDO = IMP
B5: En miles de Balboas
B7: INGRESO MÁXIMO PERMITIDO | C7: JUL26/ JUN27 | D7: JUL27 / JUN28 | E7: JUL28/ JUN29 | F7: JUL29/ JUN30
B9: IPSD - Ingreso Máximo Permitido por Distribución | C9: =+IMPD!D15 -> 148169.6901 | D9: =+IMPD!E15 -> 150026.6005 | E9: =+IMPD!F15 -> 151060.0984 | F9: =+IMPD!G15 -> 152854.2495
B10: IMPCO - Ingreso Máximo Permitido por Comercialización | C10: =+IMPCO!D14 -> 63558.74094 | D10: =+IMPCO!E14 -> 64099.07062 | E10: =+IMPCO!F14 -> 64658.61186 | F10: =+IMPCO!G14 -> 65193.46286
B11: ALUMPU - Ingreso Máximo Permitido por Alumbrado Público | C11: =+ALUMPU!D14 -> 7956.745039 | D11: =+ALUMPU!E14 -> 8300.32799 | E11: =+ALUMPU!F14 -> 8619.695963 | F11: =+ALUMPU!G14 -> 8790.668776
B12: IPPD - Ingreso Máximo Permitido por Pérdidas en Distribución | C12: =+IMPD!D20 -> 61577.9938 | D12: =+IMPD!E20 -> 62558.0494 | E12: =+IMPD!F20 -> 63289.25446 | F12: =+IMPD!G20 -> 63893.96189
B13: INVNE - Descuento por Inversiones no Ejecutadas en periodo anterior | C13: 1179.899214
B16: IMP - Ingreso Máximo Permitido | C16: =+C9+C12+C10+C11+C13+C14 -> 282443.0691 | D16: =+D9+D12+D10+D11+D13+D14 -> 284984.0486 | E16: 287627.6607 | F16: 290732.343
B18: Factor de Descuento | C18: =1/(1+RETORNO!D40) -> 0.9029888932 | D18: =1/(1+RETORNO!D40)*1/(1+RETORNO!D40) -> 0.8153889413 | E18: =1/(1+RETORNO!D40)*1/(1+RETORNO!D40)*1/(1+RETORNO!D40) -> 0.7362871577 | F18: =1/(1+RETORNO!D40)*1/(1+RETORNO!D40)*1/(1+RETORNO!D40)*1/(1+RETORNO!D40) -> 0.6648591256
B19: Factor de Descuento Aplicado | C19: =+(1+C18)/2 -> 0.9514944466 | D19: =+(C18+D18)/2 -> 0.8591889173 | E19: =+(D18+E18)/2 -> 0.7758380495 | F19: =+(E18+F18)/2 -> 0.7005731416
B21: VPN DEL INGRESO MÁXIMO PERMITIDO | C21: =C7 -> JUL26/ JUN27 | D21: =D7 -> JUL27 / JUN28 | E21: JUL28/ JUN29 | F21: JUL29/ JUN30
B23: IPSD | C23: =+(C9+$C$13/SUM($C$9:$C$12)*C9+$C$14/SUM($C$9:$C$11)*C9)*C$19 -> 141574.0596 | D23: =+D9*D$19 -> 128901.1925 | E23: 117198.1721 | F23: 107085.5818
B24: IMPCO | C24: =+(C10+$C$13/SUM($C$9:$C$12)*C10+$C$14/SUM($C$9:$C$11)*C10)*C$19 -> 60729.48502 | D24: 55073.21109 | E24: 50164.61131 | F24: 45672.78909
B25: ALUMPU | C25: =+(C11+$C$13/SUM($C$9:$C$12)*C11+$C$14/SUM($C$9:$C$11)*C11)*C$19 -> 7602.558224 | D25: 7131.549819 | E25: 6687.488103 | F25: 6158.506442
B26: IPPD | C26: =+(C12+$C$13/SUM($C$9:$C$12)*C12)*C$19 -> 58836.90893 | D26: 53749.18273 | E26: 49102.21174 | F26: 44762.39361
B28: IMP | C28: =SUM(C23:C27) -> 268743.0118 | D28: =SUM(D23:D27) -> 244855.1361 | E28: =SUM(E23:E27) -> 223152.4833 | F28: =SUM(F23:F27) -> 203679.2709
B30: Energía Facturada (MWh) sin incluir AP | C30: =C19*DEMANDA!E13 -> 4247430.278 | D30: =D19*DEMANDA!F13 -> 3899184.518 | E30: =E19*DEMANDA!G13 -> 3563915.338 | F30: =F19*DEMANDA!H13 -> 3250289.868
B33: VALOR PRESENTE NETO - INGRESO MÁXIMO PERMITIDO
B34: Expresado a diciembre 2025 | C34: UNIDADES | D34: JULIO/26-JUNIO/30
B36: VP-IPSD - DISTRIBUCIÓN | C36: Miles de B/. | D36: =+C23+D23+E23+F23 -> 494759.006
B37: VP-IMPCO - COMERCIALIZACIÓN | C37: Miles de B/. | D37: =+C24+D24+E24+F24 -> 211640.0965
B38: VP-ALUMPU - ALUMBRADO PÚBLICO | C38: Miles de B/. | D38: =+C25+D25+E25+F25 -> 27580.10259
B39: SUB-TOTAL | C39: Miles de B/. | D39: =SUM(D36:D38) -> 733979.2051
B40: VP-IPPD - PÉRDIDAS DE DISTRIBUCIÓN | C40: Miles de B/. | D40: =+C26+D26+E26+F26 -> 206450.697
B41: IMP TOTAL | C41: Miles de B/. | D41: =SUM(D36:D38)+D40 -> 940429.9021
B42: ENERGIA FACTURADA (sin AP) | C42: MWh | D42: =+C30+D30+E30+F30 -> 14960820
B43: IMP | C43: B/./MWh | D43: =+D41/D42*1000 -> 62.85951585
B44: IMP S/Pérdidas | C44: B/./MWh | D44: =D43-(D40*1000/D42) -> 49.06009196
B46: (1) Las pérdidas estándar de energía se han fijado conforme a las ecuaciones de eficiencia, no obstante, el monto (en B/.) es un valor de referencia.
B47: El mismo se revisa semestralmente, según varía el costo real de la energía.
C49: Considerando Inversiones para Soterramiento
C50: SI

Sheet IMPD
B2: ENSA
B4: INGRESO MÁXIMO PERMITIDO POR DISTRIBUCIÓN = IMPD
B5: En miles de Balboas
B7: DISTRIBUCIÓN | D7: ='IMP-RESUMEN'!C7:C8 -> JUL26/ JUN27 | E7: ='IMP-RESUMEN'!D7:D8 -> JUL27 / JUN28 | F7: ='IMP-RESUMEN'!E7:E8 -> JUL28/ JUN29 | G7: ='IMP-RESUMEN'!F7:F8 -> JUL29/ JUN30
B10: Rentabilidad sobre Activos | C10: BCDN * RR | D10: =+ACTIVOS!H14*RETORNO!$D$40 -> 49923.23345 | E10: =+ACTIVOS!I14*RETORNO!$D$40 -> 49797.28962 | F10: =+ACTIVOS!J14*RETORNO!$D$40 -> 49922.03752 | G10: =+ACTIVOS!K14*RETORNO!$D$40 -> 50405.10075
B11: Depreciación | C11: Depo+INVi * DEP% | D11: ='BC y Dep'!D80/1000+((ACTIVOS!H9-ACTIVOS!G9)/2)*'PERDIDAS y OTROS'!E$12+((ACTIVOS!G9-ACTIVOS!F9))*'BC y Dep'!C84 -> 30175.07729 | E11: ='BC y Dep'!E80/1000+(ACTIVOS!H9-ACTIVOS!G9)*'PERDIDAS y OTROS'!E$12+((ACTIVOS!I9-ACTIVOS!H9)/2)*'PERDIDAS y OTROS'!F$12+((ACTIVOS!G9-ACTIVOS!F9))*'BC y Dep'!C84 -> 30444.40133 | F11: ='BC y Dep'!F80/1000+(ACTIVOS!H9-ACTIVOS!G9)*'PERDIDAS y OTROS'!E$12+(ACTIVOS!I9-ACTIVOS!H9)*'PERDIDAS y OTROS'!F$12+((ACTIVOS!J9-ACTIVOS!I9)/2)*'PERDIDAS y OTROS'!G$12+((ACTIVOS!G9-ACTIVOS!F9))*'BC y Dep'!C84 -> 29613.44469 | G11: ='BC y Dep'!G80/1000+(ACTIVOS!H9-ACTIVOS!G9)*'PERDIDAS y OTROS'!E$12+(ACTIVOS!I9-ACTIVOS!H9)*'PERDIDAS y OTROS'!F$12+(ACTIVOS!J9-ACTIVOS!I9)*'PERDIDAS y OTROS'!G$12+((ACTIVOS!K9-ACTIVOS!J9))/2*'PERDIDAS y OTROS'!H$12+((ACTIVOS!G9-ACTIVOS!F9))*'BC y Dep'!C84 -> 29150.14908
B12: Operación y Mantenimiento | C12: OM | D12: ='Costos y Pérdidas Eficientes'!D84/1000 -> 49738.16692 | E12: ='Costos y Pérdidas Eficientes'!E84/1000 -> 50985.11517 | F12: ='Costos y Pérdidas Eficientes'!F84/1000 -> 52248.94132 | G12: ='Costos y Pérdidas Eficientes'!G84/1000 -> 53536.65741
B13: Administración | C13: ADM | D13: ='Costos y Pérdidas Eficientes'!D86/1000 -> 18333.21248 | E13: ='Costos y Pérdidas Eficientes'!E86/1000 -> 18799.79443 | F13: ='Costos y Pérdidas Eficientes'!F86/1000 -> 19275.67488 | G13: ='Costos y Pérdidas Eficientes'!G86/1000 -> 19762.34225
B15: IPSD | D15: =+D13+D12+D11+D10 -> 148169.6901 | E15: =+E13+E12+E11+E10 -> 150026.6005 | F15: =+F13+F12+F11+F10 -> 151060.0984 | G15: =+G13+G12+G11+G10 -> 152854.2495
B17: Pérdidas Ecuaciones de Eficiencia | C17: (PDEcEf%) * MWhD * CMM | D17: =(('PERDIDAS y OTROS'!E9)*DEMANDA!E7/1000)*'PERDIDAS y OTROS'!E8 -> 51040.99483 | E17: =(('PERDIDAS y OTROS'!F9)*DEMANDA!F7/1000)*'PERDIDAS y OTROS'!F8 -> 51857.07297 | F17: =(('PERDIDAS y OTROS'!G9)*DEMANDA!G7/1000)*'PERDIDAS y OTROS'!G8 -> 52465.90811 | G17: =(('PERDIDAS y OTROS'!H9)*DEMANDA!H7/1000)*'PERDIDAS y OTROS'!H8 -> 52969.39713
B18: Pérdidas No Técnicas en Zonas Rojas (PNT) | C18: (PDNT%) * MWhD * CMM | D18: =(('PERDIDAS y OTROS'!E11)*DEMANDA!E7/1000)*'PERDIDAS y OTROS'!E8 -> 10048.04472 | E18: =(('PERDIDAS y OTROS'!F11)*DEMANDA!F7/1000)*'PERDIDAS y OTROS'!F8 -> 10212.02218 | F18: =(('PERDIDAS y OTROS'!G11)*DEMANDA!G7/1000)*'PERDIDAS y OTROS'!G8 -> 10334.3921 | G18: =(('PERDIDAS y OTROS'!H11)*DEMANDA!H7/1000)*'PERDIDAS y OTROS'!H8 -> 10435.6105
B19: Pérdidas carga EDEMET | C19: (PDEDEMET%) * MWhD * CMM | D19: =+'PERDIDAS y OTROS'!E10*DEMANDA!E8/1000*'PERDIDAS y OTROS'!E8 -> 488.9542569 | E19: =+'PERDIDAS y OTROS'!F10*DEMANDA!F8/1000*'PERDIDAS y OTROS'!F8 -> 488.9542569 | F19: =+'PERDIDAS y OTROS'!G10*DEMANDA!G8/1000*'PERDIDAS y OTROS'!G8 -> 488.9542569 | G19: =+'PERDIDAS y OTROS'!H10*DEMANDA!H8/1000*'PERDIDAS y OTROS'!H8 -> 488.9542569
B20: IPPD | D20: =+D17+D18+D19 -> 61577.9938 | E20: =+E17+E18+E19 -> 62558.0494 | F20: 63289.25446 | G20: 63893.96189
B22: IMPD | D22: =+D15+D20 -> 209747.6839 | E22: =+E15+E20 -> 212584.6499 | F22: =+F15+F20 -> 214349.3529 | G22: =+G15+G20 -> 216748.2114
D25: BC y Dep'!D80/1000-((H9-G9)/2)*'PERDIDAS y OTROS'!E$12-((G9-F9))*'BC y Dep'!C84

Sheet IMPCO
B2: ENSA
B4: INGRESO MÁXIMO PERMITIDO POR COMERCIALIZACIÓN = IMPCO
B5: En miles de Balboas
B7: COMERCIALIZACION | D7: =IMPD!D7 -> JUL26/ JUN27 | E7: =IMPD!E7 -> JUL27 / JUN28 | F7: =IMPD!F7 -> JUL28/ JUN29 | G7: =IMPD!G7 -> JUL29/ JUN30
B10: Rentabilidad sobre Activos | C10: BCNC * RR | D10: =+ACTIVOS!H15*RETORNO!$D$40 -> 10337.59295 | E10: =+ACTIVOS!I15*RETORNO!$D$40 -> 9835.610046 | F10: =+ACTIVOS!J15*RETORNO!$D$40 -> 9384.459882 | G10: =+ACTIVOS!K15*RETORNO!$D$40 -> 8998.587196
B11: Depreciación | C11: Depo+INVi * DEP% | D11: ='BC y Dep'!D82/1000+((ACTIVOS!H10-ACTIVOS!G10)/2)*'PERDIDAS y OTROS'!E$13+((ACTIVOS!G10-ACTIVOS!F10))*'BC y Dep'!C86 -> 8031.341212 | E11: ='BC y Dep'!E82/1000+(ACTIVOS!H10-ACTIVOS!G10)*'PERDIDAS y OTROS'!E$13+((ACTIVOS!I10-ACTIVOS!H10)/2)*'PERDIDAS y OTROS'!F$13+((ACTIVOS!G10-ACTIVOS!F10))*'BC y Dep'!C86 -> 7713.918846 | F11: ='BC y Dep'!F82/1000+(ACTIVOS!H10-ACTIVOS!G10)*'PERDIDAS y OTROS'!E$13+(ACTIVOS!I10-ACTIVOS!H10)*'PERDIDAS y OTROS'!F$13+((ACTIVOS!J10-ACTIVOS!I10)/2)*'PERDIDAS y OTROS'!G$13+((ACTIVOS!G10-ACTIVOS!F10))*'BC y Dep'!C86 -> 7323.947839 | G11: ='BC y Dep'!G82/1000+(ACTIVOS!H10-ACTIVOS!G10)*'PERDIDAS y OTROS'!E$13+(ACTIVOS!I10-ACTIVOS!H10)*'PERDIDAS y OTROS'!F$13+(ACTIVOS!J10-ACTIVOS!I10)*'PERDIDAS y OTROS'!G$13+((ACTIVOS!K10-ACTIVOS!J10)/2)*'PERDIDAS y OTROS'!H$13+((ACTIVOS!G10-ACTIVOS!F10))*'BC y Dep'!C86 -> 6801.833973
B12: Comercialización | C12: COM | D12: ='Costos y Pérdidas Eficientes'!D85/1000 -> 45189.80677 | E12: ='Costos y Pérdidas Eficientes'!E85/1000 -> 46549.54173 | F12: ='Costos y Pérdidas Eficientes'!F85/1000 -> 47950.20414 | G12: ='Costos y Pérdidas Eficientes'!G85/1000 -> 49393.04169
B14: IMPCO | D14: =+D10+D11+D12 -> 63558.74094 | E14: =+E10+E11+E12 -> 64099.07062 | F14: =+F10+F11+F12 -> 64658.61186 | G14: =+G10+G11+G12 -> 65193.46286

Sheet ALUMPU
B2: ENSA
B4: INGRESO MÁXIMO PERMITIDO POR ALUMBRADO PÚBLICO = ALUMPU
B5: En miles de Balboas
B7: ALUMBRADO PÚBLICO | D7: =IMPCO!D7 -> JUL26/ JUN27 | E7: =IMPCO!E7 -> JUL27 / JUN28 | F7: =IMPCO!F7 -> JUL28/ JUN29 | G7: =IMPCO!G7 -> JUL29/ JUN30
B10: Rentabilidad sobre Activos | C10: ACTNalum * RR | D10: =+ACTIVOS!H16*RETORNO!$D$40 -> 4372.584219 | E10: =+ACTIVOS!I16*RETORNO!$D$40 -> 4480.698838 | F10: =+ACTIVOS!J16*RETORNO!$D$40 -> 4583.558646 | G10: =+ACTIVOS!K16*RETORNO!$D$40 -> 4575.723745
B11: Depreciación | C11: Depo+INVi * DEP% | D11: ='BC y Dep'!D81/1000+((ACTIVOS!H11-ACTIVOS!G11)/2)*'PERDIDAS y OTROS'!E$14+((ACTIVOS!G11-ACTIVOS!F11))*'BC y Dep'!C85 -> 2630.504093 | E11: ='BC y Dep'!E81/1000+(ACTIVOS!H11-ACTIVOS!G11)*'PERDIDAS y OTROS'!E$14+((ACTIVOS!I11-ACTIVOS!H11)/2)*'PERDIDAS y OTROS'!F$14+((ACTIVOS!G11-ACTIVOS!F11))*'BC y Dep'!C85 -> 2769.658524 | F11: ='BC y Dep'!F81/1000+(ACTIVOS!H11-ACTIVOS!G11)*'PERDIDAS y OTROS'!E$14+(ACTIVOS!I11-ACTIVOS!H11)*'PERDIDAS y OTROS'!F$14+((ACTIVOS!J11-ACTIVOS!I11)/2)*'PERDIDAS y OTROS'!G$14+((ACTIVOS!G11-ACTIVOS!F11))*'BC y Dep'!C85 -> 2918.570823 | G11: ='BC y Dep'!G81/1000+(ACTIVOS!H11-ACTIVOS!G11)*'PERDIDAS y OTROS'!E$14+(ACTIVOS!I11-ACTIVOS!H11)*'PERDIDAS y OTROS'!F$14+(ACTIVOS!J11-ACTIVOS!I11)*'PERDIDAS y OTROS'!G$14+((ACTIVOS!K11-ACTIVOS!J11)/2)*'PERDIDAS y OTROS'!H$14+((ACTIVOS!G11-ACTIVOS!F11))*'BC y Dep'!C85 -> 3048.928025
B12: Operación y Mantenimiento | C12: OMalum | D12: =$D$26*(D25+E25)/2/1000 -> 953.6567274 | E12: =$D$26*(E25+F25)/2/1000 -> 1049.970627 | F12: =$D$26*(F25+G25)/2/1000 -> 1117.566494 | G12: =$D$26*(G25+H25)/2/1000 -> 1166.017006
B14: ALUMPU | D14: =+D10+D11+D12 -> 7956.745039 | E14: =+E10+E11+E12 -> 8300.32799 | F14: 8619.695963 | G14: 8790.668776
D23: 2026-06-01 | E23: 2027-06-01 | F23: 2028-06-01 | G23: 2029-06-01 | H23: 2030-06-01
B24: Operación y Mantenimiento | C24: OMalum | E24: =D12 -> 953.6567274 | F24: =E12 -> 1049.970627 | G24: =F12 -> 1117.566494 | H24: =G12 -> 1166.017006
B25: Cantidad de luminarias al 30/6 | D25: 141138.1667 | E25: =+D25+INVERSIONES!V48-INVERSIONES!V46 -> 157730.1667 | F25: =+E25+INVERSIONES!W48-INVERSIONES!W46 -> 171322.1667 | G25: =+F25+INVERSIONES!X48-INVERSIONES!X46 -> 178914.1667 | H25: =+G25+INVERSIONES!Y48-INVERSIONES!Y46 -> 186506.1667
B26: Costo O&M por luminaria [B/. /año] | D26: =D38 -> 6.381785027
E28: =+(E25+D25)/2 -> 149434.1667 | F28: =+(F25+E25)/2 -> 164526.1667 | G28: =+(G25+F25)/2 -> 175118.1667 | H28: 182710.1667
B30: Detalle | C30: Unidad | D30: 2022 | E30: =D30+1 -> 2023 | F30: =E30+1 -> 2024 | G30: 2025 | H30: Promedio
B31: Costo AP | C31: B/. | D31: 898604.3948 | E31: 699949.3922 | F31: 1002241.252 | G31: 727409 | H31: =AVERAGE(D31:G31) -> 832051.0097
B32: Luminarias | C32: Cant. | D32: 125723.6667 | E32: 129230.3333 | F32: 132553.75 | G32: 136089.1667 | H32: =AVERAGE(D32:G32) -> 130899.2292
B34: Costo Mant./lum Cont. | D34: =D31/D32*C49 -> 7.199899905 | E34: =E31/E32*D49 -> 5.421069091 | F34: =F31/F32*E49 -> 7.561079966 | G34: =G31/G32 -> 5.345091147 | H34: =AVERAGE(D34:G34) -> 6.381785027
B36: Costo Mant./lum RT-1 | D36: 6.75081243
B38: Costo Mant./lum | D38: =MIN(D36,H34) -> 6.381785027
B41: Actualización Semestral
B42: Detalle | C42: Jul-Dic/2022 | D42: Ene-Jun/2023 | E42: Jul-Dic/2023 | F42: Ene-Jun/2024 | G42: Jul-Dic/2024 | H42: Ene-Jun/2025 | I42: Jul-Dic/2025 | J42: Acumulado
B43: FAC de Comercialización | C43: 1.002995005 | D43: 1.018275 | E43: 0.9906102658 | F43: 1.007050562 | G43: 1.002317636 | H43: 1.003691176 | I43: 0.9963357664 | J43: =PRODUCT(C43:I43) -> 1.021243137
B44: FAC de redes de Distribución, conexión | C44: 1.005507877 | D44: 1.033608111 | E44: 0.9827320807 | F44: 1.011011236 | G44: 1.003619575 | H44: 1.005764706 | I44: 0.9942773723 | J44: =PRODUCT(C44:I44) -> 1.036347901
B45: FAC por Servicio de Alumbrado Público | C45: 1.001285687 | D45: 1.007845038 | E45: 0.9959692026 | F45: 1.002657303 | G45: 1.0008735 | H45: 1.001391176 | I45: 0.9986189781 | J45: 1.008632522
B47: Acumulado Anual
C48: 2022 | D48: 2023 | E48: 2024 | F48: 2025
B49: Actualización | C49: =PRODUCT(D45:$I$45) -> 1.007337401 | D49: =PRODUCT(G45:$I$45) -> 1.00088174 | E49: =PRODUCT(H45:$I$45) -> 1.000008233 | F49: =I45 -> 0.9986189781
B50: Act a Jun 26 | C50: =C49 -> 1.007337401
B53: IPC | C53: 2018 | D53: 2019 | E53: 2020 | F53: 2021 | G53: 2022
C54: 105.5 | D54: 104.9 | E54: 103.2 | F54: 104.9 | G54: 110.3
B55: Act a Jun 22 | C55: =G54/C54 -> 1.04549763
B58: IPC0 | C58: 104.1
B59: IPCN | C59: 108.8

Sheet DEMANDA
B3: ENSA
B5: IMPULSORES DE COSTOS | C5: Unidades | D5: BASE | E5: =ALUMPU!D7 -> JUL26/ JUN27 | F5: =ALUMPU!E7 -> JUL27 / JUN28 | G5: =ALUMPU!F7 -> JUL28/ JUN29 | H5: =ALUMPU!G7 -> JUL29/ JUN30 | I5: CREC.a.a.
B6: Demanda Máxima | C6: MW | D6: =(D7+D8)/8760/D18 -> 910.2233802 | E6: =(E7+E8)/8760/E18 -> 947.2541251 | F6: 962.0032044 | G6: 973.0083556 | H6: 982.1118618 | I6: =(H6/D6)^(1/4)-1 -> 0.01918551438
B7: Energía ingresada al sist. Propio (eficiente) sin EDEMET | C7: MWh | D7: =+(D13+D14)/(1-D16) -> 4791357.814 | E7: =+(E13+E14)/(1-E16) -> 4993544.552 | F7: 5075035.904 | G7: 5135849.692 | H7: 5186151.878 | I7: =(H7/D7)^(1/4)-1 -> 0.01999174411
B8: Energía ingresada para EDEMET | C8: MWh | D8: =+D15/(1-D17) -> 240564.0883 | E8: =+E15/(1-E17) -> 240564.0883 | F8: 240564.0883 | G8: 240564.0883 | H8: 240564.0883 | I8: =(H8/D8)^(1/4)-1 -> 0
B9: Clientes | C9: Nº clientes | D9: =AVERAGE(D31:E31) -> 580823 | E9: =AVERAGE(E31:F31) -> 598867.5 | F9: 616306.5 | G9: 634253.5 | H9: 652723.5 | I9: =(H9/D9)^(1/4)-1 -> 0.0296067019
B10: DEM/CLIENTE | C10: KW/CL | D10: =D6/D9*1000 -> 1.567126956 | E10: 1.836935005 | F10: 1.814307922 | G10: 1.784533004 | H10: 1.806068282
B11: ENERGIA-AÑO/CLIENTE | C11: MWh/CL | D11: =+D13/D9 -> 7.368378904 | E11: 9.060038081 | F11: 9.32608498 | G11: 8.982732672 | H11: 9.039666561
B13: Energia facturada sin AP | C13: MWh | D13: =D26/2+E26/2 -> 4279723.94 | E13: =E26/2+F26/2 -> 4463956.981 | F13: 4538215.565 | G13: 4593633.091 | H13: 4639472.562 | I13: =(H13/D13)^(1/4)-1 -> 0.020382998
B14: Energía facturada AP | C14: MWh | D14: =D27/2+E27/2 -> 78753.094 | E14: 78753.094 | F14: 78753.094 | G14: 78753.094 | H14: 78753.094 | I14: =(H14/D14)^(1/4)-1 -> 0
B15: Energia EDEMET | C15: MWh | D15: =D28/2+E28/2 -> 236955.627 | E15: 236955.627 | F15: 236955.627 | G15: 236955.627 | H15: 236955.627 | I15: =(H15/D15)^(1/4)-1 -> 0
B16: Perdidas eficientes | D16: =7.06578409415217%*D21 -> 0.09034615999 | E16: =7.06578409415217%*E21 -> 0.09028345939 | F16: 0.09025891708 | G16: 0.09024086265 | H16: 0.09022609295
B17: Perdidas carga EDEMET | D17: 0.015 | E17: =D17 -> 0.015 | F17: =E17 -> 0.015 | G17: 0.015 | H17: 0.015
B18: Factor de carga | D18: 0.6310761963 | E18: 0.6307715855 | F18: 0.630770926 | G18: 0.6307714233 | H18: 0.6307714508
D19: 0 | E19: 0 | F19: 0 | G19: 0 | H19: 0
C21: Factor de Ajuste | D21: 1.278643089 | E21: 1.277755705 | F21: 1.277408365 | G21: 1.277152846 | H21: 1.276943815
D23: =D16*1000000000-('Costos y Pérdidas Eficientes'!C98+'PERDIDAS y OTROS'!E11)*1000000000 -> 0 | E23: =E16*1000000000-('Costos y Pérdidas Eficientes'!D98+'PERDIDAS y OTROS'!E11)*1000000000 -> 0 | F23: =F16*1000000000-('Costos y Pérdidas Eficientes'!E98+'PERDIDAS y OTROS'!F11)*1000000000 -> 1.639127731e-07 | G23: =G16*1000000000-('Costos y Pérdidas Eficientes'!F98+'PERDIDAS y OTROS'!G11)*1000000000 -> 1.937150955e-07 | H23: =H16*1000000000-('Costos y Pérdidas Eficientes'!G98+'PERDIDAS y OTROS'!H11)*1000000000 -> -1.788139343e-07
B26: Energia facturada sin AP | C26: MWh | D26: 4142250.948 | E26: 4417196.933 | F26: 4510717.03 | G26: 4565714.1 | H26: 4621552.083 | I26: 4657393.042
B27: Energía facturada AP | C27: MWh | D27: 78753.094 | E27: 78753.094 | F27: 78753.094 | G27: 78753.094 | H27: 78753.094 | I27: 78753.094
B28: Energia EDEMET | C28: MWh | D28: 236955.627 | E28: 236955.627 | F28: 236955.627 | G28: 236955.627 | H28: 236955.627 | I28: 236955.627
B31: Clientes | C31: Nº clientes | D31: 571373 | E31: 590273 | F31: 607462 | G31: 625151 | H31: 643356 | I31: 662091

Sheet Costos y Pérdidas Eficientes
A1: ENSA
A2: Estimaciones de los costos a partir de parametros estimados y las variables reales, actualizados U$S junio 2024
D3: C | E3: Ln Clientes | F3: Ln DM | G3: Ln DM/Cli | H3: Ln O&M | I3: Ln COM | J3: Ln (O&M + COM) | K3: Ln MWh | L3: Ln MWh/Cli
A4: Activos de Distribución: | C4: Ln AD | D4: 16.938381 | E4: 0 | F4: 0.862667 | G4: 0 | H4: 0 | I4: 0 | J4: 0 | K4: 0 | L4: -0.581895
A5: Activos de Comercialización: | C5: Ln AC | D5: 6.48909 | E5: 0.939715 | F5: 0 | G5: 0 | H5: 0 | I5: 0 | J5: 0 | K5: 0 | L5: 0
A6: Costos de Operación y Mantenimiento de Distribución: | C6: Ln O&M | D6: 6.638115 | E6: 0 | F6: 0.893847 | G6: -0.826253 | H6: 0 | I6: 0 | J6: 0 | K6: 0 | L6: 0
A7: Costos de Comercialización: | C7: Ln COM | D7: 4.17036 | E7: 1.032803 | F7: 0 | G7: 0 | H7: 0 | I7: 0 | J7: 0 | K7: 0 | L7: 0
A8: Costos de Administración: | C8: Ln ADM | D8: -0.061995 | E8: 0 | F8: 0 | G8: 0 | H8: 0 | I8: 0 | J8: 0.931384 | K8: 0 | L8: 0
A9: Ecuación de Pérdidas Estándar o Eficientes: | C9: Ln Perd | D9: -2.274458 | E9: 0 | F9: 0 | G9: 0 | H9: 0 | I9: 0 | J9: 0 | K9: 0.979898 | L9: 0
A31: Tabla de Datos Proyectados | C31: Base
A32: Variable | B32: Unidad | C32: Jul 24 -jun 25 | D32: Jul 25 -jun 26 | E32: Jul 26 -jun 27 | F32: Jul 27 -jun 28 | G32: Jul 28 -jun 29 | H32: Jul 29 -jun 30
A33: Demanda Máxima | B33: MW | D33: =DEMANDA!D6 -> 910.2233802 | E33: =DEMANDA!E6 -> 947.2541251 | F33: =DEMANDA!F6 -> 962.0032044 | G33: =DEMANDA!G6 -> 973.0083556 | H33: =DEMANDA!H6 -> 982.1118618
A34: Longitud de red áerea | B34: km
A35: Longitud de red subterranea | B35: km
A36: Venta totales de energía [MWh] | B36: MWh | D36: =DEMANDA!D13+DEMANDA!D14+DEMANDA!D15 -> 4595432.661 | E36: =DEMANDA!E13+DEMANDA!E14+DEMANDA!E15 -> 4779665.702 | F36: =DEMANDA!F13+DEMANDA!F14+DEMANDA!F15 -> 4853924.286 | G36: =DEMANDA!G13+DEMANDA!G14+DEMANDA!G15 -> 4909341.812 | H36: =DEMANDA!H13+DEMANDA!H14+DEMANDA!H15 -> 4955181.283
A37: Costos OyM (D) | B37: USD | D37: =+C45 -> 70060922.32 | E37: 72048484.77 | F37: 73854758.25 | G37: 75685480.3 | H37: 77550808.25
A38: Costos OyM (C) | B38: USD | D38: =+C46 -> 58114709.36 | E38: 59980331.39 | F38: 61785104.62 | G38: 63644200.76 | H38: 65559275.87
A39: Clientes | B39: Cant. | D39: =DEMANDA!D9 -> 580823 | E39: =DEMANDA!E9 -> 598867.5 | F39: =DEMANDA!F9 -> 616306.5 | G39: =DEMANDA!G9 -> 634253.5 | H39: =DEMANDA!H9 -> 652723.5
D40: =D34+D35 -> 0 | E40: =E34+E35 -> 0 | F40: =F34+F35 -> 0 | G40: =G34+G35 -> 0 | H40: =H34+H35 -> 0
A41: Tabla de Costos sin Ajuste en USD (EEUU) a junio 2024
A42: COSTO | B42: =+C32 -> Jul 24 -jun 25 | C42: =D32 -> Jul 25 -jun 26 | D42: =E32 -> Jul 26 -jun 27 | E42: Jul 27 -jun 28 | F42: Jul 28 -jun 29 | G42: Jul 29 -jun 30
A43: AD | C43: =EXP($D$4+$E$4*LN(D$39)+$F$4*LN(D$33)+$G$4*LN(D$33/D$39)+$H$4*LN(D$37)+$I$4*LN(D$38)+$K$4*LN(D$36)+$L$4*LN(D36/D39)) -> 2433876642 | D43: 2506320947 | E43: 2559664424 | F43: 2611137401 | G43: =EXP($D$4+$E$4*LN(H$39)+$F$4*LN(H$33)+$G$4*LN(H$33/H$39)+$H$4*LN(H$37)+$I$4*LN(H$38)+$K$4*LN(H$36)+$L$4*LN(H36/H39)) -> 2662098479
A44: AC | C44: =EXP($D$5+$E$5*LN(D$39)+$F$5*LN(D$33)+$G$5*LN(D$33/D$39)+$H$5*LN(D$37)+$I$5*LN(D$38)+$K$5*LN(D$36)) -> 171685811 | D44: =EXP($D$5+$E$5*LN(E$39)+$F$5*LN(E$33)+$G$5*LN(E$33/E$39)+$H$5*LN(E$37)+$I$5*LN(E$38)+$K$5*LN(E$36)) -> 176693405.2 | E44: =EXP($D$5+$E$5*LN(F$39)+$F$5*LN(F$33)+$G$5*LN(F$33/F$39)+$H$5*LN(F$37)+$I$5*LN(F$38)+$K$5*LN(F$36)) -> 181524325.1 | F44: =EXP($D$5+$E$5*LN(G$39)+$F$5*LN(G$33)+$G$5*LN(G$33/G$39)+$H$5*LN(G$37)+$I$5*LN(G$38)+$K$5*LN(G$36)) -> 186487374.5 | G44: =EXP($D$5+$E$5*LN(H$39)+$F$5*LN(H$33)+$G$5*LN(H$33/H$39)+$H$5*LN(H$37)+$I$5*LN(H$38)+$K$5*LN(H$36)) -> 191586223
A45: OMD | C45: =EXP($D$6+$E$6*LN(D$39)+$F$6*LN(D$33)+$G$6*LN(D$33/D$39)+$K$6*LN(D$36)) -> 70060922.32 | D45: =EXP($D$6+$E$6*LN(E$39)+$F$6*LN(E$33)+$G$6*LN(E$33/E$39)+$K$6*LN(E$36)) -> 72048484.77 | E45: =EXP($D$6+$E$6*LN(F$39)+$F$6*LN(F$33)+$G$6*LN(F$33/F$39)+$K$6*LN(F$36)) -> 73854758.25 | F45: =EXP($D$6+$E$6*LN(G$39)+$F$6*LN(G$33)+$G$6*LN(G$33/G$39)+$K$6*LN(G$36)) -> 75685480.3 | G45: =EXP($D$6+$E$6*LN(H$39)+$F$6*LN(H$33)+$G$6*LN(H$33/H$39)+$K$6*LN(H$36)) -> 77550808.25
A46: COM | C46: =EXP($D$7+$E$7*LN(D$39)+$F$7*LN(D$33)+$G$7*LN(D$33/D$39)+$H$7*LN(D$37)+$K$7*LN(D$36)) -> 58114709.36 | D46: =EXP($D$7+$E$7*LN(E$39)+$F$7*LN(E$33)+$G$7*LN(E$33/E$39)+$H$7*LN(E$37)+$K$7*LN(E$36)) -> 59980331.39 | E46: =EXP($D$7+$E$7*LN(F$39)+$F$7*LN(F$33)+$G$7*LN(F$33/F$39)+$H$7*LN(F$37)+$K$7*LN(F$36)) -> 61785104.62 | F46: =EXP($D$7+$E$7*LN(G$39)+$F$7*LN(G$33)+$G$7*LN(G$33/G$39)+$H$7*LN(G$37)+$K$7*LN(G$36)) -> 63644200.76 | G46: =EXP($D$7+$E$7*LN(H$39)+$F$7*LN(H$33)+$G$7*LN(H$33/H$39)+$H$7*LN(H$37)+$K$7*LN(H$36)) -> 65559275.87
A47: ADM | C47: =EXP($D$8+$E$8*LN(D$39)+$F$8*LN(D$33)+$G$8*LN(D$33/D$39)+$H$8*LN(D$37)+$I$8*LN(D$38)+$J$8*LN(D$37+D$38)+$K$8*LN(D$36)) -> 33462331.72 | D47: =EXP($D$8+$E$8*LN(E$39)+$F$8*LN(E$33)+$G$8*LN(E$33/E$39)+$H$8*LN(E$37)+$I$8*LN(E$38)+$J$8*LN(E$37+E$38)+$K$8*LN(E$36)) -> 34398288.71 | E47: 35273728.33 | F47: 36166614.58 | G47: 37079740.12
A59: Costos resultantes de las ecuaciones de eficiencia dados en Balboas a junio 2020 (utilizando Parametros del estudio actual)
A60: COSTO | B60: =+B42 -> Jul 24 -jun 25 | C60: =+C42 -> Jul 25 -jun 26 | D60: Jul 26 -jun 27 | E60: Jul 27 -jun 28 | F60: Jul 28 -jun 29 | G60: Jul 29 -jun 30
A61: AD | C61: =C43*($C108*$B104+(1-$C108)*$C121*$B$117+(1-$C108)*(1-$C121)) -> 1104689342 | D61: =D43*($C108*$B104+(1-$C108)*$C121*$B$117+(1-$C108)*(1-$C121)) -> 1137570405 | E61: =E43*($C108*$B104+(1-$C108)*$C121*$B$117+(1-$C108)*(1-$C121)) -> 1161781973 | F61: =F43*($C108*$B104+(1-$C108)*$C121*$B$117+(1-$C108)*(1-$C121)) -> 1185144558 | G61: =G43*($C108*$B104+(1-$C108)*$C121*$B$117+(1-$C108)*(1-$C121)) -> 1208274801
A62: AC | C62: =C44*($C109*$B104+(1-$C109)*$C122*$B$117+(1-$C109)*(1-$C122)) -> 107994004.3 | D62: =D44*($C109*$B104+(1-$C109)*$C122*$B$117+(1-$C109)*(1-$C122)) -> 111143887 | E62: =E44*($C109*$B104+(1-$C109)*$C122*$B$117+(1-$C109)*(1-$C122)) -> 114182637.7 | F62: =F44*($C109*$B104+(1-$C109)*$C122*$B$117+(1-$C109)*(1-$C122)) -> 117304500.7 | G62: =G44*($C109*$B104+(1-$C109)*$C122*$B$117+(1-$C109)*(1-$C122)) -> 120511784.1
A63: OMD | C63: =C45*($B110*$B104+(1-$B110)*$B123*$B$117+(1-$B110)*(1-$B123)) -> 48290902.84 | D63: =D45*($B110*$B104+(1-$B110)*$B123*$B$117+(1-$B110)*(1-$B123)) -> 49660870.31 | E63: =E45*($B110*$B104+(1-$B110)*$B123*$B$117+(1-$B110)*(1-$B123)) -> 50905880.72 | F63: =F45*($B110*$B104+(1-$B110)*$B123*$B$117+(1-$B110)*(1-$B123)) -> 52167742.79 | G63: =G45*($B110*$B104+(1-$B110)*$B123*$B$117+(1-$B110)*(1-$B123)) -> 53453457.68
A64: COM | C64: =C46*($B111*$B104+(1-$B111)*$B124*$B$117+(1-$B111)*(1-$B124)) -> 43727657.74 | D64: =D46*($B111*$B104+(1-$B111)*$B124*$B$117+(1-$B111)*(1-$B124)) -> 45131420.79 | E64: =E46*($B111*$B104+(1-$B111)*$B124*$B$117+(1-$B111)*(1-$B124)) -> 46489398.95 | F64: =F46*($B111*$B104+(1-$B111)*$B124*$B$117+(1-$B111)*(1-$B124)) -> 47888251.68 | G64: =G46*($B111*$B104+(1-$B111)*$B124*$B$117+(1-$B111)*(1-$B124)) -> 49329225.06
A65: ADM | C65: =C47*($B112*$B104+(1-$B112)*$B125*$B$117+(1-$B112)*(1-$B125)) -> 17792433.83 | D65: =D47*($B112*$B104+(1-$B112)*$B125*$B$117+(1-$B112)*(1-$B125)) -> 18290096.48 | E65: =E47*($B112*$B104+(1-$B112)*$B125*$B$117+(1-$B112)*(1-$B125)) -> 18755581.12 | F65: =F47*($B112*$B104+(1-$B112)*$B125*$B$117+(1-$B112)*(1-$B125)) -> 19230342.4 | G65: =G47*($B112*$B104+(1-$B112)*$B125*$B$117+(1-$B112)*(1-$B125)) -> 19715865.23
C66: =SUM(C61:C62) -> 1212683346 | D66: =SUM(D61:D62) -> 1248714292 | E66: =SUM(E61:E62) -> 1275964611 | F66: 1302449058 | G66: 1328786585
A69: Activos proyectados con ecuaciones de eficiencia y mercado Proy Dda a precios de junio 2022
A70: Actividad | C70: =C60 -> Jul 25 -jun 26 | D70: =D60 -> Jul 26 -jun 27 | E70: Jul 27 -jun 28 | F70: Jul 28 -jun 29 | G70: Jul 29 -jun 30
A71: AD (Ecuación de eficiencia) | C71: =C61*$D130 -> 1106833636 | D71: 1139778524 | E71: 1164037089 | F71: 1187445022 | G71: 1210620163
A72: AC (Ecuación de eficiencia) | C72: 108088611.2 | D72: 111241253.2 | E72: 114282666 | F72: 117407263.9 | G72: 120617357.1
A73: Total | C73: =SUM(C71:C72) -> 1214922247 | D73: =SUM(D71:D72) -> 1251019777 | E73: 1278319755 | F73: 1304852286 | G73: 1331237520
A75: Inversiones proyectadas con ecuaciones de eficiencia y mercado Proy Dda a precios de junio 2022
A76: Actividad | C76: =C70 -> Jul 25 -jun 26 | D76: =D70 -> Jul 26 -jun 27 | E76: Jul 27 -jun 28 | F76: Jul 28 -jun 29 | G76: Jul 29 -jun 30
A77: AD (Ecuación de eficiencia) | D77: =(D71-C71) -> 32944888.05 | E77: =(E71-D71) -> 24258564.89 | F77: 23407933.47 | G77: =(G71-F71) -> 23175141.23
A78: AC (Ecuación de eficiencia) | D78: 3152642.028 | E78: 3041412.77 | F78: 3124597.878 | G78: 3210093.174
A79: Total | D79: =+SUM(D77:D78) -> 36097530.07 | E79: =+SUM(E77:E78) -> 27299977.66 | F79: =+SUM(F77:F78) -> 26532531.35 | G79: =+SUM(G77:G78) -> 26385234.4
A82: Costos proyectados con ecuaciones de eficiencia y mercado Proy Dda a precios de junio 2022
A83: Actividad | B83: 2021 | C83: =C76 -> Jul 25 -jun 26 | D83: =D76 -> Jul 26 -jun 27 | E83: Jul 27 -jun 28 | F83: Jul 28 -jun 29 | G83: Jul 29 -jun 30
A84: OMD | D84: =D63*$D132 -> 49738166.92 | E84: 50985115.17 | F84: 52248941.32 | G84: 53536657.41
A85: COM | D85: 45189806.77 | E85: 46549541.73 | F85: 47950204.14 | G85: 49393041.69
A86: ADM | D86: 18333212.48 | E86: 18799794.43 | F86: 19275674.88 | G86: 19762342.25
D87: =SUM(D84:D86) -> 113261186.2 | E87: =SUM(E84:E86) -> 116334451.3 | F87: =SUM(F84:F86) -> 119474820.3 | G87: =SUM(G84:G86) -> 122692041.3
A90: 2 - PÉRDIDAS
A92: RESULTADOS PÉRDIDAS
A95: Porcentaje
A96: COSTO | C96: =C83 -> Jul 25 -jun 26 | D96: =D83 -> Jul 26 -jun 27 | E96: =E83 -> Jul 27 -jun 28 | F96: =F83 -> Jul 28 -jun 29 | G96: =G83 -> Jul 29 -jun 30
A97: PE_MWH | C97: =EXP($D$9+$K$9*LN(DEMANDA!D7)) -> 361729.1161 | D97: =EXP($D$9+$K$9*LN(DEMANDA!E7)) -> 376680.3402 | E97: =EXP($D$9+$K$9*LN(DEMANDA!F7)) -> 382702.9617 | F97: =EXP($D$9+$K$9*LN(DEMANDA!G7)) -> 387196.1387 | G97: =EXP($D$9+$K$9*LN(DEMANDA!H7)) -> 390911.866
A98: PE_% | C98: =C97/DEMANDA!D7 -> 0.07549615999 | D98: =D97/DEMANDA!E7 -> 0.07543345939 | E98: =E97/DEMANDA!F7 -> 0.07540891708 | F98: =F97/DEMANDA!G7 -> 0.07539086265 | G98: =G97/DEMANDA!H7 -> 0.07537609295
A101: 3.- FACTORES DE AJUSTE
A102: Tabla de factores de ajuste del Componente Mano de Obra
B103: 2026 -2030
A104: Costo laboral relativo 2016 | B104: 0.288324305
A107: Participación de la mano de obra en los costos totales | B107: En Panama | C107: En EEUU
A108: AD | B108: 0.4224005874 | C108: 0.6649530545
A109: AC | B109: 0.2257416034 | C109: 0.4924879309
A110: OMD | B110: 0.3911
A111: COM | B111: 0.2655
A112: ADM | B112: 0.5794
A115: Tabla de factores de ajuste del Componente Materiales a PPP
A117: PPP | B117: 0.468
A120: % Nacional | B120: En Panama | C120: En EEUU
A121: AD | B121: 0.2445847228 | C121: 0.4089231293
A122: AC | B122: 0.03700539509 | C122: 0.0758794164
A123: OMD | B123: 0.1
A124: COM | B124: 0.15
A125: ADM | B125: 0.25
A129: % Total costos locales | B129: IPC 22/20 | C129: TC US$ 22/20 | D129: FA
A130: =B108+(1-B108)*B121 -> 0.5636725796 | B130: =B138/B137 -> 1.003443636 | C130: =B140/B139 -> 1 | D130: =A130*B130+(1-A130)*C130 -> 1.001941083
A131: =B109+(1-B109)*B122 -> 0.2543933413 | B131: =B130 -> 1.003443636 | C131: =C130 -> 1 | D131: =A131*B131+(1-A131)*C131 -> 1.000876038
A132: 0.45199 | B132: =B131 -> 1.003443636 | C132: 1 | D132: 1.001556489
A133: 0.375675 | B133: 1.003443636 | C133: 1 | D133: 1.001293688
A134: 0.68455 | B134: 1.003443636 | C134: 1 | D134: 1.002357341
A137: IPC jun 2024 | B137: =B148 -> 99.45750452
A138: IPC dic 2025 | B138: 99.8
A139: TC US$ 2024 | B139: 1
A140: TC US$ 2025 | B140: 1
A143: 2025-01-01
A144: Base 2013 | B144: 110
A145: Base 2024 | B145: 100
A146: 2024-06-01
A147: Base 2013 | B147: 110.6
A148: Base 2024 | B148: =B144*B145/B147 -> 99.45750452

Sheet INVERSIONES
B1: ENSA | J1: ENSA | U1: ENSA
B3: INVERSIONES | J3: INVERSIONES | U3: INVERSIONES
B4: En miles de Balboas | J4: En Balboas | U4: En Balboas
B6: INVERSIONES TOTALES | D6: =DEMANDA!E5 -> JUL26/ JUN27 | E6: =DEMANDA!F5 -> JUL27 / JUN28 | F6: =DEMANDA!G5 -> JUL28/ JUN29 | G6: =DEMANDA!H5 -> JUL29/ JUN30 | H6: TOTALES | J6: INVERSION EN SUBESTACIONES Y LÍNEAS EN AT NO CONTEMPLADAS EN LAS ECUACIONES DE EFICIENCIA
H7: Miles de Balboas | J7: Concepto | K7: 2026 2do Sem | L7: 2027 1er Sem | M7: 2027 2do Sem | N7: 2028 1er Sem | O7: 2028 2do Sem | P7: 2029 1er Sem | Q7: 2029 2do Sem | R7: 2030 1er Sem | S7: TOTAL | U7: Concepto | V7: =DEMANDA!E5 -> JUL26/ JUN27 | W7: =DEMANDA!F5 -> JUL27 / JUN28 | X7: =DEMANDA!G5 -> JUL28/ JUN29 | Y7: =DEMANDA!H5 -> JUL29/ JUN30 | Z7: TOTAL | AB7: =U7 -> Concepto | AC7: =V7 -> JUL26/ JUN27 | AD7: =W7 -> JUL27 / JUN28 | AE7: JUL28/ JUN29 | AF7: JUL29/ JUN30 | AG7: TOTAL
B8: Distribución | C8: ID | D8: =D14+D40 -> 32944.88805 | E8: =E14+E40 -> 29272.10379 | F8: 30774.61034 | G8: 33646.54899 | H8: =SUM(D8:G8) -> 126638.1512 | J8: EXPANSIÓN EN S/E AT Y LINEAS AT | K8: =SUM(K9:K14) -> 0 | L8: 0 | M8: 0 | N8: 0 | O8: 0 | P8: 7000000 | Q8: 0 | R8: 10000000 | S8: =SUM(K8:R8) -> 17000000 | U8: EXPANSIÓN EN S/E AT Y LINEAS AT | V8: =SUM(V9:V10) -> 0 | W8: 0 | X8: =SUM(X9:X10) -> 7000000 | Y8: =SUM(Y9:Y10) -> 10000000 | Z8: 17000000
B9: Comercialización | C9: IC | D9: =D15+D41 -> 3152.642028 | E9: =E15+E41 -> 3041.41277 | F9: 3124.597878 | G9: 3210.093174 | H9: =SUM(D9:G9) -> 12528.74585 | J9: Nueva Subestación Brisas del Golf | P9: 7000000 | S9: =SUM(K9:R9) -> 7000000 | U9: =J9 -> Nueva Subestación Brisas del Golf | V9: =K9+L9 -> 0 | W9: =M9+N9 -> 0 | X9: =O9+P9 -> 7000000 | Y9: =Q9+R9 -> 0 | Z9: =SUM(V9:Y9) -> 7000000 | AB9: =U9 -> Nueva Subestación Brisas del Golf | AC9: =V9/1000 -> 0 | AD9: =W9/1000 -> 0 | AE9: =X9/1000 -> 7000 | AF9: =Y9/1000 -> 0 | AG9: =SUM(AC9:AF9) -> 7000
B10: Alumbrado Público | C10: IAP | D10: =+D30 -> 4676 | E10: =+E30 -> 3776 | F10: =+F30 -> 3876 | G10: =+G30 -> 2976 | H10: 15304 | J10: Nueva Subestación entre las Subestaciones 24 de Diciembre y Geehan | R10: 10000000 | S10: =SUM(K10:R10) -> 10000000 | U10: =J10 -> Nueva Subestación entre las Subestaciones 24 de Diciembre y Geehan | V10: =K10+L10 -> 0 | W10: =M10+N10 -> 0 | X10: =O10+P10 -> 0 | Y10: =Q10+R10 -> 10000000 | Z10: =SUM(V10:Y10) -> 10000000 | AB10: =U10 -> Nueva Subestación entre las Subestaciones 24 de Diciembre y Geehan | AC10: =V10/1000 -> 0 | AD10: 0 | AE10: 0 | AF10: 10000 | AG10: =SUM(AC10:AF10) -> 10000
B11: TOTAL INVERSIONES | D11: =+D8+D9+D10 -> 40773.53007 | E11: =+E8+E9+E10 -> 36089.51656 | F11: =+F8+F9+F10 -> 37775.20822 | G11: =+G8+G9+G10 -> 39832.64216 | H11: =SUM(D11:G11) -> 154470.897 | U11: Total | V11: =SUM(V9:V10) -> 0 | W11: =SUM(W9:W10) -> 0 | X11: =SUM(X9:X10) -> 7000000 | Y11: =SUM(Y9:Y10) -> 10000000 | Z11: =SUM(Z9:Z10) -> 17000000 | AB11: Total | AC11: =SUM(AC9:AC10) -> 0 | AD11: =SUM(AD9:AD10) -> 0 | AE11: =SUM(AE9:AE10) -> 7000 | AF11: =SUM(AF9:AF10) -> 10000 | AG11: =SUM(AG9:AG10) -> 17000
B13: INVERSIONES Ecuaciones | D13: =D6 -> JUL26/ JUN27 | E13: =E6 -> JUL27 / JUN28 | F13: =F6 -> JUL28/ JUN29 | G13: =G6 -> JUL29/ JUN30 | H13: =H6 -> TOTALES
B14: Distribución | C14: ID | D14: ='Costos y Pérdidas Eficientes'!D77/1000 -> 32944.88805 | E14: ='Costos y Pérdidas Eficientes'!E77/1000 -> 24258.56489 | F14: ='Costos y Pérdidas Eficientes'!F77/1000 -> 23407.93347 | G14: ='Costos y Pérdidas Eficientes'!G77/1000 -> 23175.14123 | H14: =SUM(D14:G14) -> 103786.5276
B15: Comercialización | C15: IC | D15: ='Costos y Pérdidas Eficientes'!D78/1000 -> 3152.642028 | E15: ='Costos y Pérdidas Eficientes'!E78/1000 -> 3041.41277 | F15: ='Costos y Pérdidas Eficientes'!F78/1000 -> 3124.597878 | G15: ='Costos y Pérdidas Eficientes'!G78/1000 -> 3210.093174 | H15: =SUM(D15:G15) -> 12528.74585
J16: INVERSION EN OTROS CIRCUITOS NO CONTEMPLADAS EN LAS ECUACIONES DE EFICIENCIA
B17: INVERSIONES NO CONTEMPLADAS EN LAS ECUACIONES DE EFICIENCIA | D17: =D6 -> JUL26/ JUN27 | E17: =E6 -> JUL27 / JUN28 | F17: =F6 -> JUL28/ JUN29 | G17: =G6 -> JUL29/ JUN30 | H17: TOTALES | J17: Concepto | K17: =K7 -> 2026 2do Sem | L17: =L7 -> 2027 1er Sem | M17: 2027 2do Sem | N17: 2028 1er Sem | O17: 2028 2do Sem | P17: 2029 1er Sem | Q17: 2029 2do Sem | R17: 2030 1er Sem | S17: TOTAL | U17: Concepto | V17: =V7 -> JUL26/ JUN27 | W17: =W7 -> JUL27 / JUN28 | X17: =X7 -> JUL28/ JUN29 | Y17: =Y7 -> JUL29/ JUN30 | Z17: =Z7 -> TOTAL | AB17: Concepto | AC17: =AC7 -> JUL26/ JUN27 | AD17: =AD7 -> JUL27 / JUN28 | AE17: =AE7 -> JUL28/ JUN29 | AF17: =AF7 -> JUL29/ JUN30 | AG17: =AG7 -> TOTAL
J18: Proyectos Especiales Distribución | K18: =SUM(K19) -> 0 | L18: 0 | M18: 0 | N18: =SUM(N19) -> 2322613.331 | O18: =SUM(O19) -> 0 | P18: 0 | Q18: 0 | R18: 0 | S18: 2322613.331 | U18: Proyectos Especiales Distribución | V18: =SUM(V19) -> 0 | W18: 2322613.331 | X18: 0 | Y18: 0 | Z18: 2322613.331
B19: Distribución (Subestaciones, Arquitectura asociada y líneas en AT) | C19: ID | D19: =V8/1000 -> 0 | E19: =W8/1000 -> 0 | F19: =X8/1000 -> 7000 | G19: =Y8/1000 -> 10000 | H19: =SUM(D19:G19) -> 17000 | J19: Soterrado Calle 13 de la provincia de Colón | N19: 2322613.331 | S19: =SUM(L19:R19) -> 2322613.331 | U19: =J19 -> Soterrado Calle 13 de la provincia de Colón | V19: =K19+L19 -> 0 | W19: =M19+N19 -> 2322613.331 | X19: =O19+P19 -> 0 | Y19: =Q19+R19 -> 0 | Z19: =SUM(V19:Y19) -> 2322613.331 | AB19: =U19 -> Soterrado Calle 13 de la provincia de Colón | AC19: =V19/1000 -> 0 | AD19: =W19/1000 -> 2322.613331 | AE19: =X19/1000 -> 0 | AF19: =Y19/1000 -> 0 | AG19: =SUM(AC19:AF19) -> 2322.613331
B20: Distribución (Otros Circuitos) | C20: ID | D20: =V18/1000 -> 0 | E20: =W18/1000 -> 2322.613331 | F20: 0 | G20: 0 | H20: =SUM(D20:G20) -> 2322.613331 | S20: =SUM(L20:R20) -> 0 | V20: =K20+L20 -> 0 | W20: =M20+N20 -> 0 | X20: =O20+P20 -> 0 | Y20: =Q20+R20 -> 0 | Z20: =SUM(V20:Y20) -> 0 | AC20: =V20/1000 -> 0 | AD20: =W20/1000 -> 0 | AE20: =X20/1000 -> 0 | AF20: =Y20/1000 -> 0 | AG20: =SUM(AC20:AF20) -> 0
B21: Reemplazo Medidores Inteligentes | C21: IC | D21: =V20/1000 -> 0 | E21: =W20/1000 -> 0 | F21: =X20/1000 -> 0 | G21: =Y20/1000 -> 0 | H21: =SUM(D21:G21) -> 0 | J21: TOTAL | K21: =SUM(K19:K20) -> 0 | L21: 0 | M21: 0 | N21: 2322613.331 | O21: 0 | P21: 0 | Q21: 0 | R21: 0 | S21: 2322613.331 | U21: TOTAL | V21: =SUM(V19:V20) -> 0 | W21: =SUM(W19:W20) -> 2322613.331 | X21: =SUM(X19:X20) -> 0 | Y21: =SUM(Y19:Y20) -> 0 | Z21: =SUM(Z19:Z20) -> 2322613.331 | AB21: TOTAL | AC21: =SUM(AC19:AC20) -> 0 | AD21: =SUM(AD19:AD20) -> 2322.613331 | AE21: =SUM(AE19:AE20) -> 0 | AF21: =SUM(AF19:AF20) -> 0 | AG21: =SUM(AG19:AG20) -> 2322.613331
B22: Electrificación Rural | C22: ID | D22: =V26/1000 -> 0 | E22: =W26/1000 -> 2690.92557 | F22: =X26/1000 -> 366.67687 | G22: =Y26/1000 -> 471.40776 | H22: 3529.0102
B23: Estas inversiones se agregan a las que resultan de las ecuaciones de eficiencia
B25: INVERSIONES EN ALUMBRADO PÚBLICO | D25: =D17 -> JUL26/ JUN27 | E25: =E17 -> JUL27 / JUN28 | F25: JUL28/ JUN29 | G25: JUL29/ JUN30 | H25: TOTALES | J25: Concepto | K25: =K17 -> 2026 2do Sem | L25: 2027 1er Sem | M25: 2027 2do Sem | N25: 2028 1er Sem | O25: 2028 2do Sem | P25: 2029 1er Sem | Q25: 2029 2do Sem | R25: 2030 1er Sem | S25: TOTAL | U25: Concepto | V25: =V17 -> JUL26/ JUN27 | W25: =W17 -> JUL27 / JUN28 | X25: =X17 -> JUL28/ JUN29 | Y25: =Y17 -> JUL29/ JUN30 | Z25: =Z17 -> TOTAL | AB25: Concepto | AC25: =AC17 -> JUL26/ JUN27 | AD25: =AD17 -> JUL27 / JUN28 | AE25: =AE17 -> JUL28/ JUN29 | AF25: =AF17 -> JUL29/ JUN30 | AG25: =AG17 -> TOTAL
B26: Reposición Y Mejoras de AP | C26: IAP | D26: =V31/1000 -> 850 | E26: =W31/1000 -> 850 | F26: =X31/1000 -> 850 | G26: =Y31/1000 -> 850 | H26: =SUM(D26:G26) -> 3400 | J26: ELECTRIFICACIÓN RURAL | K26: 0 | L26: 0 | M26: 2427588.94 | N26: 263336.63 | O26: 226241.87 | P26: 140435 | Q26: 421351.02 | R26: 50056.74 | S26: =SUM(K26:R26) -> 3529010.2 | U26: ELECTRIFICACIÓN RURAL | V26: =K26+L26 -> 0 | W26: =M26+N26 -> 2690925.57 | X26: =O26+P26 -> 366676.87 | Y26: =Q26+R26 -> 471407.76 | Z26: =SUM(V26:Y26) -> 3529010.2 | AB26: ELECTRIFICACIÓN RURAL | AC26: =V26/1000 -> 0 | AD26: =W26/1000 -> 2690.92557 | AE26: =X26/1000 -> 366.67687 | AF26: =Y26/1000 -> 471.40776 | AG26: =SUM(AC26:AF26) -> 3529.0102
B27: Crecimiento Vegetativo - Sodio | C27: IAP
B28: Crecimiento Vegetativo - LED | C28: IAP | D28: =V32/1000 -> 976 | E28: 976 | F28: 976 | G28: 976 | H28: =SUM(D28:G28) -> 3904 | J28: INVERSIONES EN ALUMBRADO PÚBLICO
B29: Proyectos especiales | C29: IAP | D29: 2850 | E29: 1950 | F29: 2050 | G29: 1150 | H29: =SUM(D29:G29) -> 8000 | J29: DETALLE | K29: =K25 -> 2026 2do Sem | L29: =L25 -> 2027 1er Sem | M29: 2027 2do Sem | N29: 2028 1er Sem | O29: 2028 2do Sem | P29: 2029 1er Sem | Q29: 2029 2do Sem | R29: 2030 1er Sem | S29: TOTAL | U29: DETALLE | V29: =V25 -> JUL26/ JUN27 | W29: =W25 -> JUL27 / JUN28 | X29: JUL28/ JUN29 | Y29: JUL29/ JUN30 | Z29: TOTAL | AB29: DETALLE | AC29: =AC25 -> JUL26/ JUN27 | AD29: =AD25 -> JUL27 / JUN28 | AE29: JUL28/ JUN29 | AF29: JUL29/ JUN30 | AG29: TOTAL
B30: TOTAL | D30: =SUM(D26:D29) -> 4676 | E30: =SUM(E26:E29) -> 3776 | F30: 3876 | G30: 2976 | H30: 15304 | J30: ALUMBRADO PÚBLICO | K30: =SUM(K31:K32) -> 913000 | L30: =SUM(L31:L32) -> 913000 | M30: 913000 | N30: 913000 | O30: 913000 | P30: 913000 | Q30: 913000 | R30: 913000 | S30: =SUM(K30:R30) -> 7304000 | U30: ALUMBRADO PÚBLICO | V30: =SUM(V31:V32) -> 1826000 | W30: =SUM(W31:W32) -> 1826000 | X30: 1826000 | Y30: 1826000 | Z30: 7304000 | AB30: ALUMBRADO PÚBLICO | AC30: =SUM(AC31:AC32) -> 1826 | AD30: =SUM(AD31:AD32) -> 1826 | AE30: 1826 | AF30: 1826 | AG30: 7304
J31: Reposición Y Mejoras de AP | K31: 425000 | L31: 425000 | M31: 425000 | N31: 425000 | O31: 425000 | P31: 425000 | Q31: 425000 | R31: 425000 | S31: =SUM(K31:R31) -> 3400000 | U31: =J31 -> Reposición Y Mejoras de AP | V31: =K31+L31 -> 850000 | W31: =M31+N31 -> 850000 | X31: =O31+P31 -> 850000 | Y31: =Q31+R31 -> 850000 | Z31: =SUM(V31:Y31) -> 3400000 | AB31: =U31 -> Reposición Y Mejoras de AP | AC31: =V31/1000 -> 850 | AD31: =W31/1000 -> 850 | AE31: =X31/1000 -> 850 | AF31: =Y31/1000 -> 850 | AG31: =SUM(AC31:AF31) -> 3400
B32: LUMINARIAS QUE SE INCORPORAN | D32: =D17 -> JUL26/ JUN27 | E32: =E17 -> JUL27 / JUN28 | F32: JUL28/ JUN29 | G32: JUL29/ JUN30 | H32: TOTALES | J32: Crecimiento Vegetativo LED | K32: 488000 | L32: 488000 | M32: 488000 | N32: 488000 | O32: 488000 | P32: 488000 | Q32: 488000 | R32: 488000 | S32: =SUM(K32:R32) -> 3904000 | U32: =J32 -> Crecimiento Vegetativo LED | V32: 976000 | W32: 976000 | X32: 976000 | Y32: 976000 | Z32: 3904000 | AB32: Crecimiento Vegetativo LED | AC32: 976 | AD32: 976 | AE32: 976 | AF32: 976 | AG32: 3904
B33: Crecimiento Vegetativo - Sodio | H33: =SUM(D33:G33) -> 0 | J33: Proyectos Especiales de Alumbrado Público | K33: =SUM(K34:K35) -> 2000000 | L33: 850000 | M33: 850000 | N33: 1100000 | O33: 1100000 | P33: 950000 | Q33: 950000 | R33: 200000 | S33: =SUM(K33:R33) -> 8000000 | U33: Proyectos Especiales de Alumbrado Público | V33: =SUM(V34:V35) -> 2850000 | W33: 1950000 | X33: 2050000 | Y33: 1150000 | Z33: 8000000 | AB33: Proyectos Especiales de Alumbrado Público | AC33: =SUM(AC34:AC35) -> 2850 | AD33: 1950 | AE33: 2050 | AF33: 1150 | AG33: 8000
B34: Crecimiento Vegetativo - LED | D34: =V43+V44 -> 7592 | E34: =W43+W44 -> 7592 | F34: =X43+X44 -> 7592 | G34: =Y43+Y44 -> 7592 | H34: =SUM(D34:G34) -> 30368 | J34: Sustitución de luminarias de Sodio por LED con fotocontroles inteligentes | K34: 1790000 | L34: 430000 | M34: 430000 | N34: 1100000 | O34: 1100000 | P34: 950000 | Q34: 950000 | R34: 200000 | S34: 6950000 | U34: Sustitución de luminarias de Sodio por LED con fotocontroles inteligentes | V34: =K34+L34 -> 2220000 | W34: =M34+N34 -> 1530000 | X34: =O34+P34 -> 2050000 | Y34: =Q34+R34 -> 1150000 | Z34: =SUM(V34:Y34) -> 6950000 | AB34: =U34 -> Sustitución de luminarias de Sodio por LED con fotocontroles inteligentes | AC34: =V34/1000 -> 2220 | AD34: =W34/1000 -> 1530 | AE34: =X34/1000 -> 2050 | AF34: =Y34/1000 -> 1150 | AG34: =SUM(AC34:AF34) -> 6950
B35: Proyectos especiales | D35: =V45 -> 17419 | E35: =W45 -> 11802 | F35: =X45 -> 7774 | G35: =Y45 -> 4361 | H35: 41356 | J35: Fotocontroles inteligentes en Avenidas principales o de interés especial | K35: 210000 | L35: 420000 | M35: 420000 | N35: 0 | O35: 0 | P35: 0 | Q35: 0 | R35: 0 | S35: =SUM(K35:R35) -> 1050000 | U35: Fotocontroles inteligentes en Avenidas principales o de interés especial | V35: 630000 | W35: 420000 | X35: 0 | Y35: 0 | Z35: 1050000 | AB35: Fotocontroles inteligentes en Avenidas principales o de interés especial | AC35: 630 | AD35: 420 | AE35: 0 | AF35: 0 | AG35: 1050
B36: TOTAL LUMINARIAS ADICIONALES | D36: =SUM(D33:D35) -> 25011 | E36: =SUM(E33:E35) -> 19394 | F36: =SUM(F33:F35) -> 15366 | G36: =SUM(G33:G35) -> 11953 | H36: =SUM(D36:G36) -> 71724 | J36: TOTAL | K36: =K30+K33 -> 2913000 | L36: =L30+L33 -> 1763000 | M36: 1763000 | N36: 2013000 | O36: 2013000 | P36: 1863000 | Q36: 1863000 | R36: 1113000 | S36: =S30+S33 -> 15304000 | U36: TOTAL | V36: =V30+V33 -> 4676000 | W36: =W30+W33 -> 3776000 | X36: 3876000 | Y36: 2976000 | Z36: 15304000 | AB36: TOTAL | AC36: =AC30+AC33 -> 4676 | AD36: =AD30+AD33 -> 3776 | AE36: 3876 | AF36: 2976 | AG36: 15304
AC37: =+AC36*1000 -> 4676000 | AD37: =+AD36*1000 -> 3776000 | AE37: 3876000 | AF37: 2976000 | AG37: 15304000
B38: INVERSIONES NO CONTEMPLADAS EN LAS ECUACIONES DE EFICIENCIA | D38: =D17 -> JUL26/ JUN27 | E38: =E17 -> JUL27 / JUN28 | F38: =F17 -> JUL28/ JUN29 | G38: =G17 -> JUL29/ JUN30 | H38: TOTALES | S38: =S8+S21+S26+S36 -> 38155623.53 | V38: =V8+V21+V26+V36 -> 4676000 | W38: =W8+W21+W26+W36 -> 8789538.901 | X38: =X8+X21+X26+X36 -> 11242676.87 | Y38: =Y8+Y21+Y26+Y36 -> 13447407.76 | Z38: =Z8+Z21+Z26+Z36 -> 38155623.53 | AC38: =AC11+AC21+AC26+AC36 -> 4676 | AD38: =AD11+AD21+AD26+AD36 -> 8789.538901 | AE38: =AE11+AE21+AE26+AE36 -> 11242.67687 | AF38: =AF11+AF21+AF26+AF36 -> 13447.40776 | AG38: =AG11+AG21+AG26+AG36 -> 38155.62353
D39: Miles de Balboas | E39: Miles de Balboas | F39: Miles de Balboas | G39: Miles de Balboas | H39: Miles de Balboas | S39: 0
B40: Inverisones adicionales Distribucion | C40: ID | D40: =+D19+D20+D22 -> 0 | E40: =+E19+E20+E22 -> 5013.538901 | F40: =+F19+F20+F22 -> 7366.67687 | G40: =+G19+G20+G22 -> 10471.40776 | H40: =+H19+H20+H22 -> 22851.62353 | AB40: Concepto | AC40: JUL26/ JUN27 | AD40: JUL27 / JUN28 | AE40: JUL28 / JUN29 | AF40: JUL29/ JUN30 | AG40: TOTAL
B41: Inverisones adicionales Comercialización | C41: IC | D41: =+D21 -> 0 | E41: =+E21 -> 0 | F41: =+F21 -> 0 | G41: =+G21 -> 0 | H41: =+H21 -> 0 | J41: CANTIDAD DE LUMINARIAS ADICIONALES (ALUMBRADO PÚBLICO) | AB41: (Monto en miles de Balboas)
B42: Inversiones adicionales en alumbrado | C42: IAP | D42: =+D30 -> 4676 | E42: =+E30 -> 3776 | F42: 3876 | G42: 2976 | H42: 15304 | J42: DETALLE | K42: =K29 -> 2026 2do Sem | L42: 2027 1er Sem | M42: 2027 2do Sem | N42: 2028 1er Sem | O42: 2028 2do Sem | P42: 2029 1er Sem | Q42: 2029 2do Sem | R42: 2030 1er Sem | U42: DETALLE | V42: =V29 -> JUL26/ JUN27 | W42: =W29 -> JUL27 / JUN28 | X42: JUL28/ JUN29 | Y42: JUL29/ JUN30 | Z42: TOTAL | AB42: ELECTRIFICACIÓN RURAL | AC42: 0 | AD42: 2690.93 | AE42: 366.68 | AF42: 471.41 | AG42: 3529.01
D43: =SUM(D40:D42)-V38/1000 -> 0 | E43: =SUM(E40:E42)-W38/1000 -> 0 | F43: =SUM(F40:F42)-X38/1000 -> 0 | G43: =SUM(G40:G42)-Y38/1000 -> 0 | H43: =SUM(H40:H42)-Z38/1000 -> 0 | J43: Reposición y Mejoras de AP | K43: 2196 | L43: 2196 | M43: 2196 | N43: 2196 | O43: 2196 | P43: 2196 | Q43: 2196 | R43: 2196 | S43: =SUM(K43:R43) -> 17568 | U43: Crecimiento Vegetativo - LED | V43: =K43+L43 -> 4392 | W43: =M43+N43 -> 4392 | X43: =O43+P43 -> 4392 | Y43: =Q43+R43 -> 4392 | Z43: =SUM(V43:Y43) -> 17568 | AB43: Proyecto sistema aislado de tecnología fotovoltaica en la comunidad de Chimán | AC43: 0 | AD43: 2000 | AE43: 0 | AF43: 0 | AG43: 2000
J44: Crecimiento Vegetativo - LED | K44: 1600 | L44: 1600 | M44: 1600 | N44: 1600 | O44: 1600 | P44: 1600 | Q44: 1600 | R44: 1600 | S44: 12800 | U44: Reposición y Mejoras de AP | V44: 3200 | W44: 3200 | X44: 3200 | Y44: 3200 | Z44: 12800 | AB44: Extensión de línea eléctrica en la comunidad de San José de Tortí | AC44: 0 | AD44: 300 | AE44: 0 | AF44: 0 | AG44: 300
J45: Proyectos Especiales | K45: =SUM(K46:K47) -> 9788 | L45: =SUM(L46:L47) -> 7631 | M45: 7631 | N45: 4171 | O45: 4171 | P45: 3603 | Q45: 3603 | R45: 758 | S45: 41356 | U45: Proyectos Especiales | V45: =SUM(V46:V47) -> 17419 | W45: =SUM(W46:W47) -> 11802 | X45: 7774 | Y45: 4361 | Z45: 41356 | AB45: Barriada Villa de Las Rosas y Doña Eve | AC45: 0 | AD45: 127.59 | AE45: 0 | AF45: 0 | AG45: 127.59
B46: INVERSIONES ESTIMADAS | D46: ENE - JUN 2026 | J46: =J34 -> Sustitución de luminarias de Sodio por LED con fotocontroles inteligentes | K46: 6788 | L46: 1631 | M46: 1631 | N46: 4171 | O46: 4171 | P46: 3603 | Q46: 3603 | R46: 758 | S46: 26356 | U46: Sustitución de luminarias de Sodio por LED con fotocontroles inteligentes | V46: =K46+L46 -> 8419 | W46: =M46+N46 -> 5802 | X46: =O46+P46 -> 7774 | Y46: =Q46+R46 -> 4361 | Z46: =SUM(V46:Y46) -> 26356 | AB46: Agua Buena, El Llano, Chepo | AC46: 0 | AD46: 263.34 | AE46: 0 | AF46: 0 | AG46: 263.34
D47: Miles de Balboas | J47: =J35 -> Fotocontroles inteligentes en Avenidas principales o de interés especial | K47: 3000 | L47: 6000 | M47: 6000 | N47: 0 | O47: 0 | P47: 0 | Q47: 0 | R47: 0 | S47: 15000 | U47: Fotocontroles inteligentes en Avenidas principales o de interés especial | V47: 9000 | W47: 6000 | X47: 0 | Y47: 0 | Z47: 15000 | AB47: Río Román, Santa Fé | AC47: 0 | AD47: 0 | AE47: 226.24 | AF47: 0 | AG47: 226.24
B48: Distribución | C48: ID | D48: 34472.7698 | J48: TOTAL | K48: =SUM(K43:K45) -> 13584 | L48: =SUM(L43:L45) -> 11427 | M48: 11427 | N48: 7967 | O48: 7967 | P48: 7399 | Q48: 7399 | R48: 4554 | S48: =SUM(K48:R48) -> 71724 | U48: TOTAL | V48: =SUM(V43:V45) -> 25011 | W48: =SUM(W43:W45) -> 19394 | X48: 15366 | Y48: 11953 | Z48: 71724 | AB48: Paraguito, Las Margaritas, Chepo | AC48: 0 | AD48: 0 | AE48: 140.44 | AF48: 0 | AG48: 140.44
B49: Comercialización | C49: IC | D49: 4805.224549 | AB49: Coredo, Santa Fé | AC49: 0 | AD49: 0 | AE49: 0 | AF49: 348.8 | AG49: 348.8
B50: Alumbrado Público | C50: IAP | D50: 1680.902826 | V50: =V36/V48 -> 186.9577386 | W50: =W36/W48 -> 194.6993916 | X50: 252.2452167 | Y50: 248.9751527 | Z50: 213.3734873 | AB50: Barriadas frente a la Subasta y antes de la Universidad, Torti, Chpeo | AC50: 0 | AD50: 0 | AE50: 0 | AF50: 72.55 | AG50: 72.55
B51: TOTAL INVERSIONES | D51: =+D48+D49+D50 -> 40958.89718 | J51: Costo Promedio Instalación Luminarias | K51: =K32/K44 -> 305 | L51: 305 | M51: 305 | N51: 305 | O51: 305 | P51: 305 | Q51: 305 | R51: 305 | AB51: Altos del Cristo, Zapallal | AC51: 0 | AD51: 0 | AE51: 0 | AF51: 50.06 | AG51: 50.06
D52: 0

Sheet ACTIVOS
B2: ENSA
B4: ACTIVOS TARIFARIOS PERMITIDOS
B5: En miles de Balboas
B7: BASE DE CAPITAL | D7: ACT.Dic 25 | E7: AJUSTE ACTNOREG | F7: BASE | G7: 2026-06-01 | H7: =INVERSIONES!D25 -> JUL26/ JUN27 | I7: =INVERSIONES!E25 -> JUL27 / JUN28 | J7: =INVERSIONES!F25 -> JUL28/ JUN29 | K7: =INVERSIONES!G25 -> JUL29/ JUN30
B9: Valor Bruto Base de Capital Distribución | C9: BCD | D9: ='BC y Dep'!C68/1000 -> 937791.6697 | E9: =G29 -> 0.9635209321 | F9: =D9*E9 -> 903581.9037 | G9: =F9+INVERSIONES!D48 -> 938054.6735 | H9: =+G9+INVERSIONES!D8 -> 970999.5616 | I9: =+H9+INVERSIONES!E8 -> 1000271.665 | J9: =+I9+INVERSIONES!F8 -> 1031046.276 | K9: =+J9+INVERSIONES!G8 -> 1064692.825
B10: Valor Bruto Base de Capital Comercialización | C10: BCC | D10: ='BC y Dep'!C70/1000 -> 186258.5963 | E10: =+E9 -> 0.9635209321 | F10: =D10*E10 -> 179464.0563 | G10: =F10+INVERSIONES!D49 -> 184269.2808 | H10: =+G10+INVERSIONES!D9 -> 187421.9229 | I10: =+H10+INVERSIONES!E9 -> 190463.3356 | J10: =+I10+INVERSIONES!F9 -> 193587.9335 | K10: =+J10+INVERSIONES!G9 -> 196798.0267
B11: Valor Bruto Activos Fijos Alumbrado Público | C11: ACTalum | D11: ='BC y Dep'!C69/1000 -> 68987.96108 | E11: =+E9 -> 0.9635209321 | F11: =D11*E11 -> 66471.34456 | G11: =F11+INVERSIONES!D50 -> 68152.24739 | H11: =+G11+INVERSIONES!D10 -> 72828.24739 | I11: =+H11+INVERSIONES!E10 -> 76604.24739 | J11: =+I11+INVERSIONES!F10 -> 80480.24739 | K11: =+J11+INVERSIONES!G10 -> 83456.24739
D12: =SUM(D9:D11) -> 1193038.227 | F12: =SUM(F9:F11) -> 1149517.305 | G12: =SUM(G9:G11) -> 1190476.202 | H12: =SUM(H9:H11) -> 1231249.732 | I12: 1267339.248 | J12: 1305114.457 | K12: 1344947.099
B14: Valor Neto Base Capital Distribución | C14: BCND | D14: 458559.6738 | E14: =+E9 -> 0.9635209321 | F14: =D14*E14 -> 441831.8443 | G14: ='BC y Dep'!C76/1000*E14+(G9-F9)-((G9-F9)/4)*'BC y Dep'!C84 -> 461920.541 | H14: =G14+(H9-G9)-'BC y Dep'!D80/1000-((H9-G9)/2)*'PERDIDAS y OTROS'!E$12-((G9-F9))*'BC y Dep'!C84 -> 464690.3517 | I14: =H14+(I9-H9)-'BC y Dep'!E80/1000-((I9-H9)/2)*'PERDIDAS y OTROS'!F$12-((H9-G9))*'PERDIDAS y OTROS'!E$12-((G9-F9))*'BC y Dep'!C84 -> 463518.0542 | J14: =I14+(J9-I9)-'BC y Dep'!F80/1000-((J9-I9)/2)*'PERDIDAS y OTROS'!G$12-((I9-H9))*'PERDIDAS y OTROS'!F$12-((H9-G9))*'PERDIDAS y OTROS'!E$12-((G9-F9))*'BC y Dep'!C84 -> 464679.2198 | K14: =J14+(K9-J9)-'BC y Dep'!G80/1000-((K9-J9)/2)*'PERDIDAS y OTROS'!H$12-((J9-I9))*'PERDIDAS y OTROS'!G$12-((I9-H9))*'PERDIDAS y OTROS'!F$12-((H9-G9))*'PERDIDAS y OTROS'!E$12-((G9-F9))*'BC y Dep'!C84 -> 469175.6197
B15: Valor Neto Base Capital Comercialización | C15: BCNC | D15: 103978.7821 | E15: =+E9 -> 0.9635209321 | F15: =D15*E15 -> 100185.7331 | G15: ='BC y Dep'!C78/1000*E15+(G10-F10)-((G10-F10)/4)*'BC y Dep'!C86 -> 101102.0279 | H15: =G15+(H10-G10)-'BC y Dep'!D82/1000-((H10-G10)/2)*'PERDIDAS y OTROS'!E$13-((G10-F10))*'BC y Dep'!C86 -> 96223.32872 | I15: =H15+(I10-H10)-'BC y Dep'!E82/1000-((I10-H10)/2)*'PERDIDAS y OTROS'!F$13-((H10-G10))*'PERDIDAS y OTROS'!E$13-((G10-F10))*'BC y Dep'!C86 -> 91550.82265 | J15: =I15+(J10-I10)-'BC y Dep'!F82/1000-((J10-I10)/2)*'PERDIDAS y OTROS'!G$13-((I10-H10))*'PERDIDAS y OTROS'!F$13-((H10-G10))*'PERDIDAS y OTROS'!E$13-((G10-F10))*'BC y Dep'!C86 -> 87351.47269 | K15: =J15+(K10-J10)-'BC y Dep'!G82/1000-((K10-J10)/2)*'PERDIDAS y OTROS'!H$13-((J10-I10))*'PERDIDAS y OTROS'!G$13-((I10-H10))*'PERDIDAS y OTROS'!F$13-((H10-G10))*'PERDIDAS y OTROS'!E$13-((G10-F10))*'BC y Dep'!C86 -> 83759.73189
B16: Valor Neto Activos Fijos Alumbrado Público | C16: ACTN alum | D16: 39648.31118 | E16: =+E9 -> 0.9635209321 | F16: =D16*E16 -> 38201.97775 | G16: ='BC y Dep'!C77/1000*E16+(G11-F11)-((G11-F11)/4)*'BC y Dep'!C85 -> 38654.94672 | H16: =G16+(H11-G11)-'BC y Dep'!D81/1000-((H11-G11)/2)*'PERDIDAS y OTROS'!E$14-((G11-F11))*'BC y Dep'!C85 -> 40700.44262 | I16: =H16+(I11-H11)-'BC y Dep'!E81/1000-((I11-H11)/2)*'PERDIDAS y OTROS'!F$14-((H11-G11))*'PERDIDAS y OTROS'!E$14-((G11-F11))*'BC y Dep'!C85 -> 41706.7841 | J16: =I16+(J11-I11)-'BC y Dep'!F81/1000-((J11-I11)/2)*'PERDIDAS y OTROS'!G$14-((I11-H11))*'PERDIDAS y OTROS'!F$14-((H11-G11))*'PERDIDAS y OTROS'!E$14-((G11-F11))*'BC y Dep'!C85 -> 42664.21328 | K16: =J16+(K11-J11)-'BC y Dep'!G81/1000-((K11-J11)/2)*'PERDIDAS y OTROS'!H$14-((J11-I11))*'PERDIDAS y OTROS'!G$14-((I11-H11))*'PERDIDAS y OTROS'!F$14-((H11-G11))*'PERDIDAS y OTROS'!E$14-((G11-F11))*'BC y Dep'!C85 -> 42591.28525
D17: =SUM(D14:D16) -> 602186.7671 | F17: =SUM(F14:F16) -> 580219.5551 | G17: =SUM(G14:G16) -> 601677.5156 | H17: =SUM(H14:H16) -> 601614.1231 | I17: 596775.6609 | J17: 594694.9058 | K17: 595526.6369
B18: Check | D18: 0 | H18: =G17+INVERSIONES!D11-(IMPD!D11+IMPCO!D11+ALUMPU!D11)-H17 -> 0 | I18: =H17+INVERSIONES!E11-(IMPD!E11+IMPCO!E11+ALUMPU!E11)-I17 -> 0 | J18: =I17+INVERSIONES!F11-(IMPD!F11+IMPCO!F11+ALUMPU!F11)-J17 -> 0 | K18: =J17+INVERSIONES!G11-(IMPD!G11+IMPCO!G11+ALUMPU!G11)-K17 -> 0
D19: 0
B20: Ajuste Activos no Regulados
B22: Detalle | C22: 2022 | D22: 2023 | E22: 2024 | F22: 2025 | G22: Promedio
B23: Ingresos no regulados | C23: 5061890.04 | D23: 5300528.3 | E23: 8226728.03 | F23: 11991990.89 | G23: =AVERAGE(C23:F23) -> 7645284.315
B24: Ingresos por venta de energía | C24: 655014207 | D24: 693257162.8 | E24: 785380458.4 | F24: 808916226.1 | G24: =AVERAGE(C24:F24) -> 735642013.6
B25: Compras de energía | C25: -501204837 | D25: -500303968.7 | E25: -545489199 | F25: -587831048.6 | G25: -533707263.3
B26: otros ingresos
B27: Ingreso Neto por actividades reguladas | C27: =C24+C25+C26 -> 153809370 | D27: =D24+D25+D26 -> 192953194.1 | E27: 239891259.4 | F27: 221085177.5 | G27: =AVERAGE(C27:F27) -> 201934750.2
B29: Factor de ajuste | C29: =C27/(C27+C23) -> 0.9681384157 | D29: 0.9732639154 | E29: 0.966843484 | F29: 0.9485492682 | G29: =G27/(G27+G23) -> 0.9635209321

Sheet BC y Dep
A1: PLANILLA AA-01
A2: LÍNEA DE NEGOCIO | B2: CUENTAS | C2: Vida útil estándar | D2: t<2001 | G2: 2002 | K2: 2003 | O2: 2004 | S2: 2005 | W2: 2006 | AA2: 2007 | AE2: 2008 | AI2: 2009 | AM2: 2010 | AQ2: 2011 | AU2: 2012 | AY2: 2013 | BC2: 2014 | BG2: 2015 | BK2: 2016 | BO2: 2017 | BS2: 2018 | BW2: 2019 | CA2: 2020 | CE2: 2021 | CI2: 2022 | CM2: 2023 | CQ2: 2024 | CU2: 2025 | DA2: 2002 | DB2: =DA2+1 -> 2003 | DC2: =DB2+1 -> 2004 | DD2: =DC2+1 -> 2005 | DE2: =DD2+1 -> 2006 | DF2: =DE2+1 -> 2007 | DG2: =DF2+1 -> 2008 | DH2: =DG2+1 -> 2009 | DI2: =DH2+1 -> 2010 | DJ2: =DI2+1 -> 2011 | DK2: =DJ2+1 -> 2012 | DL2: =DK2+1 -> 2013 | DM2: =DL2+1 -> 2014 | DN2: =DM2+1 -> 2015 | DO2: =DN2+1 -> 2016 | DP2: =DO2+1 -> 2017 | DQ2: =DP2+1 -> 2018 | DR2: =DQ2+1 -> 2019 | DS2: =DR2+1 -> 2020 | DT2: =DS2+1 -> 2021 | DU2: 2022 | DV2: 2023 | DW2: 2024 | DX2: 2025 | DY2: =CU2+0.5 -> 2025.5 | EE2: 2002 | EF2: =EE2+1 -> 2003 | EG2: =EF2+1 -> 2004 | EH2: 2005 | EI2: 2006 | EJ2: 2007 | EK2: 2008 | EL2: 2009 | EM2: 2010 | EN2: 2011 | EO2: 2012 | EP2: 2013 | EQ2: 2014 | ER2: 2015 | ES2: 2016 | ET2: 2017 | EU2: 2018 | EV2: 2019 | EW2: 2020 | EX2: 2021 | EY2: 2022 | EZ2: =EY2+1 -> 2023 | FA2: 2024 | FB2: =FA2+1 -> 2025 | FC2: =DY2+1 -> 2026.5 | FE2: 2002 | FF2: =FE2+1 -> 2003 | FG2: =FF2+1 -> 2004 | FH2: 2005 | FI2: 2006 | FJ2: 2007 | FK2: 2008 | FL2: 2009 | FM2: 2010 | FN2: 2011 | FO2: 2012 | FP2: 2013 | FQ2: 2014 | FR2: 2015 | FS2: 2016 | FT2: 2017 | FU2: 2018 | FV2: 2019 | FW2: 2020 | FX2: 2021 | FY2: =FX2+1 -> 2022 | FZ2: =FY2+1 -> 2023 | GA2: 2024 | GB2: 2025 | GC2: =FC2+1 -> 2027.5 | GE2: 2002 | GF2: =GE2+1 -> 2003 | GG2: =GF2+1 -> 2004 | GH2: 2005 | GI2: 2006 | GJ2: 2007 | GK2: 2008 | GL2: 2009 | GM2: 2010 | GN2: 2011 | GO2: 2012 | GP2: 2013 | GQ2: 2014 | GR2: 2015 | GS2: 2016 | GT2: 2017 | GU2: 2018 | GV2: 2019 | GW2: 2020 | GX2: 2021 | GY2: =GX2+1 -> 2022 | GZ2: =GY2+1 -> 2023 | HA2: 2024 | HB2: 2025 | HC2: =GC2+1 -> 2028.5 | HE2: 2002 | HF2: =HE2+1 -> 2003 | HG2: =HF2+1 -> 2004 | HH2: 2005 | HI2: 2006 | HJ2: 2007 | HK2: 2008 | HL2: 2009 | HM2: 2010 | HN2: 2011 | HO2: 2012 | HP2: 2013 | HQ2: 2014 | HR2: 2015 | HS2: 2016 | HT2: 2017 | HU2: 2018 | HV2: 2019 | HW2: 2020 | HX2: 2021 | HY2: =HX2+1 -> 2022 | HZ2: =HY2+1 -> 2023 | IA2: 2024 | IB2: 2025 | IC2: =HC2+1 -> 2029.5
D3: BC BRUTA 31/12/01 | E3: RETIROS ACUMUL | F3: BC NETA 31/12/01 | G3: ADICIONES | H3: ATR | I3: RETIROS ACUMUL | J3: ATR Retiros acumul | K3: ADICIONES | L3: ATR | M3: RETIROS ACUMUL | N3: ATR Retiros acumul | O3: ADICIONES | P3: ATR | Q3: RETIROS ACUMUL | R3: ATR Retiros acumul | S3: ADICIONES | T3: ATR | U3: RETIROS ACUMUL | V3: ATR Retiros acumul | W3: ADICIONES | X3: ATR | Y3: RETIROS ACUMUL | Z3: ATR Retiros acumul | AA3: ADICIONES | AB3: ATR | AC3: RETIROS ACUMUL | AD3: ATR Retiros acumul | AE3: ADICIONES | AF3: ATR | AG3: RETIROS ACUMUL | AH3: ATR Retiros acumul | AI3: ADICIONES | AJ3: ATR | AK3: RETIROS ACUMUL | AL3: ATR Retiros acumul | AM3: ADICIONES | AN3: ATR | AO3: RETIROS ACUMUL | AP3: ATR Retiros acumul | AQ3: ADICIONES | AR3: ATR | AS3: RETIROS ACUMUL | AT3: ATR Retiros acumul | AU3: ADICIONES | AV3: ATR | AW3: RETIROS ACUMUL | AX3: ATR Retiros acumul | AY3: ADICIONES | AZ3: ATR | BA3: RETIROS ACUMUL | BB3: ATR Retiros acumul | BC3: ADICIONES | BD3: ATR | BE3: RETIROS ACUMUL | BF3: ATR Retiros acumul | BG3: ADICIONES | BH3: ATR | BI3: RETIROS ACUMUL | BJ3: ATR Retiros acumul | BK3: ADICIONES | BL3: ATR | BM3: RETIROS ACUMUL | BN3: ATR Retiros acumul | BO3: ADICIONES | BP3: ATR | BQ3: RETIROS ACUMUL | BR3: ATR Retiros acumul | BS3: ADICIONES | BT3: ATR | BU3: RETIROS ACUMUL | BV3: ATR Retiros acumul | BW3: ADICIONES | BX3: ATR | BY3: RETIROS ACUMUL | BZ3: ATR Retiros acumul | CA3: ADICIONES | CB3: ATR | CC3: RETIROS ACUMUL | CD3: ATR Retiros acumul | CE3: ADICIONES | CF3: ATR | CG3: RETIROS ACUMUL | CH3: ATR Retiros acumul | CI3: ADICIONES | CJ3: ATR | CK3: RETIROS ACUMUL | CL3: ATR Retiros acumul | CM3: ADICIONES | CN3: ATR | CO3: RETIROS ACUMUL | CP3: ATR Retiros acumul | CQ3: ADICIONES | CR3: ATR | CS3: RETIROS ACUMUL | CT3: ATR Retiros acumul | CU3: ADICIONES | CV3: ATR | CW3: RETIROS ACUMUL | CX3: ATR Retiros acumul | CY3: Año de alta activos < 2005 | CZ3: Vida activos < 2001 | DA3: Vida activos 2002 | DB3: Vida activos 2003 | DC3: Vida activos 2004 | DD3: Vida activos 2005 | DE3: Vida activos 2006 | DF3: Vida activos 2007 | DG3: Vida activos 2008 | DH3: Vida activos 2009 | DI3: Vida activos 2010 | DJ3: Vida activos 2011 | DK3: Vida activos 2012 | DL3: Vida activos 2013 | DM3: Vida activos 2014 | DN3: Vida activos 2015 | DO3: Vida activos 2016 | DP3: Vida activos 2017 | DQ3: Vida activos 2018 | DR3: Vida activos 2019 | DS3: Vida activos 2020 | DT3: Vida activos 2021 | DU3: Vida activos 2022 | DV3: Vida activos 2023 | DW3: Vida activos 2024 | DX3: Vida activos 2025 | DY3: Depreciación | DZ3: BC BRUTA 30/06 | EA3: BC BRUTA tdep 30/06 | EB3: BC NETA 30/06 | EC3: Depreciación | ED3: =CZ3 -> Vida activos < 2001 | EE3: =DA3 -> Vida activos 2002 | EF3: Vida activos 2003 | EG3: Vida activos 2004 | EH3: Vida activos 2005 | EI3: Vida activos 2006 | EJ3: Vida activos 2007 | EK3: Vida activos 2008 | EL3: Vida activos 2009 | EM3: Vida activos 2010 | EN3: Vida activos 2011 | EO3: Vida activos 2012 | EP3: Vida activos 2013 | EQ3: Vida activos 2014 | ER3: Vida activos 2015 | ES3: Vida activos 2016 | ET3: Vida activos 2017 | EU3: Vida activos 2018 | EV3: Vida activos 2019 | EW3: Vida activos 2020 | EX3: Vida activos 2021 | EY3: Vida activos 2022 | EZ3: Vida activos 2023 | FA3: Vida activos 2024 | FB3: Vida activos 2025 | FC3: Depreciación | FD3: =ED3 -> Vida activos < 2001 | FE3: =EE3 -> Vida activos 2002 | FF3: Vida activos 2003 | FG3: Vida activos 2004 | FH3: Vida activos 2005 | FI3: Vida activos 2006 | FJ3: Vida activos 2007 | FK3: Vida activos 2008 | FL3: Vida activos 2009 | FM3: Vida activos 2010 | FN3: Vida activos 2011 | FO3: Vida activos 2012 | FP3: Vida activos 2013 | FQ3: Vida activos 2014 | FR3: Vida activos 2015 | FS3: Vida activos 2016 | FT3: Vida activos 2017 | FU3: Vida activos 2018 | FV3: Vida activos 2019 | FW3: Vida activos 2020 | FX3: Vida activos 2021 | FY3: Vida activos 2022 | FZ3: Vida activos 2023 | GA3: Vida activos 2024 | GB3: Vida activos 2025 | GC3: Depreciación | GD3: =FD3 -> Vida activos < 2001 | GE3: Vida activos 2002 | GF3: Vida activos 2003 | GG3: Vida activos 2004 | GH3: Vida activos 2005 | GI3: Vida activos 2006 | GJ3: Vida activos 2007 | GK3: Vida activos 2008 | GL3: Vida activos 2009 | GM3: Vida activos 2010 | GN3: Vida activos 2011 | GO3: Vida activos 2012 | GP3: Vida activos 2013 | GQ3: Vida activos 2014 | GR3: Vida activos 2015 | GS3: Vida activos 2016 | GT3: Vida activos 2017 | GU3: Vida activos 2018 | GV3: Vida activos 2019 | GW3: Vida activos 2020 | GX3: Vida activos 2021 | GY3: Vida activos 2022 | GZ3: Vida activos 2023 | HA3: Vida activos 2024 | HB3: Vida activos 2025 | HC3: Depreciación | HD3: =GD3 -> Vida activos < 2001 | HE3: Vida activos 2002 | HF3: Vida activos 2003 | HG3: Vida activos 2004 | HH3: Vida activos 2005 | HI3: Vida activos 2006 | HJ3: Vida activos 2007 | HK3: Vida activos 2008 | HL3: Vida activos 2009 | HM3: Vida activos 2010 | HN3: Vida activos 2011 | HO3: Vida activos 2012 | HP3: Vida activos 2013 | HQ3: Vida activos 2014 | HR3: Vida activos 2015 | HS3: Vida activos 2016 | HT3: Vida activos 2017 | HU3: Vida activos 2018 | HV3: Vida activos 2019 | HW3: Vida activos 2020 | HX3: Vida activos 2021 | HY3: Vida activos 2022 | HZ3: Vida activos 2023 | IA3: Vida activos 2024 | IB3: Vida activos 2025 | IC3: Depreciación
A5: PROPIEDADES Y PLANTA | B5: Planta Intangible | C5: 4 | D5: 0 | E5: 0 | F5: 0 | G5: 287388 | H5: 0 | I5: 0 | J5: 0 | K5: 52836 | L5: 0 | M5: 0 | N5: 0 | O5: 67109.46 | P5: 0 | Q5: 0 | R5: 0 | S5: 672369.21 | T5: 0 | U5: 0 | V5: 0 | W5: 243754.56 | X5: 0 | Y5: 0 | Z5: 0 | AA5: 14899.23 | AB5: 0 | AC5: 0 | AD5: 0 | AE5: 202018.18 | AF5: 0 | AG5: 0 | AH5: 0 | AI5: 287685.76 | AJ5: 0 | AK5: 0 | AL5: 0 | AM5: 170892.94 | AN5: 0 | AO5: 0 | AP5: 0 | AQ5: 1530069.93 | AR5: 0 | AS5: 0 | AT5: 0 | AU5: 987858.74 | AV5: 0 | AW5: 0 | AX5: 0 | AY5: 1611707.59 | AZ5: 0 | BA5: 0 | BB5: 0 | BC5: 10187732.37 | BD5: 0 | BE5: 0 | BF5: 0 | BG5: 6034292.13 | BH5: 0 | BI5: 0 | BJ5: 0 | BK5: 3140812.26 | BL5: 0 | BM5: 0 | BN5: 0 | BO5: 1834846.59 | BP5: 0 | BQ5: 0 | BR5: 0 | BS5: 2623156.86 | BT5: 0 | BU5: 0 | BV5: 0 | BW5: 5103070.91 | BX5: 0 | BY5: 0 | BZ5: 0 | CA5: 3848424.69 | CB5: 0 | CC5: 0 | CD5: 0 | CE5: 10829659.36 | CF5: 0 | CG5: 0 | CH5: 0 | CI5: 2734650.91 | CJ5: 0 | CM5: 3870916.24 | CN5: 0 | CQ5: 7157024.33 | CR5: 0 | CU5: 5263460.19 | CV5: 0 | CY5: =IF(D5=0,0,2001-(D5-F5)*C5/D5) -> 0 | CZ5: =IF((1-($DY$2-$CY5)/$C5)>0,(1-($DY$2-$CY5)/$C5),0) -> 0 | DA5: =IF((1-($DY$2-G$2)/$C5)>0,(1-($DY$2-G$2)/$C5),0) -> 0 | DB5: =IF((1-($DY$2-K$2)/$C5)>0,(1-($DY$2-K$2)/$C5),0) -> 0 | DC5: =IF((1-($DY$2-O$2)/$C5)>0,(1-($DY$2-O$2)/$C5),0) -> 0 | DD5: =IF((1-($DY$2-S$2)/$C5)>0,(1-($DY$2-S$2)/$C5),0) -> 0 | DE5: =IF((1-($DY$2-W$2)/$C5)>0,(1-($DY$2-W$2)/$C5),0) -> 0 | DF5: =IF((1-($DY$2-AA$2)/$C5)>0,(1-($DY$2-AA$2)/$C5),0) -> 0 | DG5: =IF((1-($DY$2-AE$2)/$C5)>0,(1-($DY$2-AE$2)/$C5),0) -> 0 | DH5: =IF((1-($DY$2-AI$2)/$C5)>0,(1-($DY$2-AI$2)/$C5),0) -> 0 | DI5: =IF((1-($DY$2-AM$2)/$C5)>0,(1-($DY$2-AM$2)/$C5),0) -> 0 | DJ5: =IF((1-($DY$2-AQ$2)/$C5)>0,(1-($DY$2-AQ$2)/$C5),0) -> 0 | DK5: =IF((1-($DY$2-AU$2)/$C5)>0,(1-($DY$2-AU$2)/$C5),0) -> 0 | DL5: =IF((1-($DY$2-AY$2)/$C5)>0,(1-($DY$2-AY$2)/$C5),0) -> 0 | DM5: =IF((1-($DY$2-BC$2)/$C5)>0,(1-($DY$2-BC$2)/$C5),0) -> 0 | DN5: =IF((1-($DY$2-BG$2)/$C5)>0,(1-($DY$2-BG$2)/$C5),0) -> 0 | DO5: =IF((1-($DY$2-BK$2)/$C5)>0,(1-($DY$2-BK$2)/$C5),0) -> 0 | DP5: =IF((1-($DY$2-BO$2)/$C5)>0,(1-($DY$2-BO$2)/$C5),0) -> 0 | DQ5: =IF((1-($DY$2-BS$2)/$C5)>0,(1-($DY$2-BS$2)/$C5),0) -> 0 | DR5: =IF((1-($DY$2-BW$2)/$C5)>0,(1-($DY$2-BW$2)/$C5),0) -> 0 | DS5: =IF((1-($DY$2-CA$2)/$C5)>0,(1-($DY$2-CA$2)/$C5),0) -> 0 | DT5: =IF((1-($DY$2-CE$2)/$C5)>0,(1-($DY$2-CE$2)/$C5),0) -> 0 | DU5: =IF((1-($DY$2-CI$2)/$C5)>0,(1-($DY$2-CI$2)/$C5),0) -> 0.125 | DV5: =IF((1-($DY$2-CM$2)/$C5)>0,(1-($DY$2-CM$2)/$C5),0) -> 0.375 | DW5: =IF((1-($DY$2-CQ$2)/$C5)>0,(1-($DY$2-CQ$2)/$C5),0) -> 0.625 | DX5: =IF((1-($DY$2-CU$2)/$C5)>0,(1-($DY$2-CU$2)/$C5),0) -> 0.875 | DY5: =IF(CZ5=0,0,($D5-$E5)*1/$C5)+IF(DA5=0,0,($G5-$H5-$I5)*$G$60*1/$C5)+IF(DB5=0,0,($K5-$L5-$M5)*$K$60*1/$C5)+IF(DC5=0,0,($O5-$P5-$Q5)*$O$60*1/$C5)+IF(DD5=0,0,($S5-$T5-$U5)*$S$60*1/$C5)+IF(DE5=0,0,($W5-$X5-$Y5)*$W$60*1/$C5)+IF(DF5=0,0,($AA5-$AB5-$AC5)*$AA$60*1/$C5)+IF(DG5=0,0,($AE5-$AF5-$AG5)*$AE$60*1/$C5)+IF(DH5=0,0,($AI5-$AJ5-$AK5)*$AI$60*1/$C5)+IF(DI5=0,0,($AM5-$AN5-$AO5)*$AM$60*1/$C5)+IF(DJ5=0,0,($AQ5-$AR5-$AS5)*$AQ$60*1/$C5)+IF(DK5=0,0,($AU5-$AV5-$AW5)*$AU$60*1/$C5)+IF(DL5=0,0,($AY5-$AZ5-$BA5)*$AY$60*1/$C5)+IF(DM5=0,0,($BC5-$BD5-$BE5)*$BC$60*1/$C5)+IF(DN5=0,0,($BG5-$BH5-$BI5)*$BG$60*1/$C5)+IF(DO5=0,0,($BK5-$BL5-$BM5)*$BK$60*1/$C5)+IF(DP5=0,0,($BO5-$BP5-$BQ5)*$BO$60*1/$C5)+IF(DQ5=0,0,($BS5-$BT5-$BU5)*$BS$60*1/$C5)+IF(DR5=0,0,($BW5-$BX5-$BY5)*$BW$60*1/$C5)+IF(DS5=0,0,($CA5-$CB5-$CC5)*$CA$60*1/$C5)+IF(DT5=0,0,($CE5-$CF5-$CG5)*$CE$60*1/$C5)+IF(DU5=0,0,($CI5-$CJ5-$CK5)*$CI$60*1/$C5)+IF(DV5=0,0,($CM5-$CN5-$CO5)*$CM$60*1/$C5)+IF(DW5=0,0,($CQ5-$CR5-$CS5)*$CQ$60*1/$C5)+IF(DX5=0,0,($CU5-$CV5-$CW5)*$CU$60*1/$C5) -> 4375991.884 | DZ5: =D5-E5+(G5-H5-I5)*G$60+(K5-L5-M5)*K$60+(O5-P5-Q5)*O$60+(S5-T5-U5)*S$60+(W5-X5-Y5)*W$60+(AA5-AB5-AC5)*AA$60+(AE5-AF5-AG5)*AE$60+(AI5-AJ5-AK5)*AI$60+(AM5-AN5-AO5)*AM$60+(AQ5-AR5-AS5)*$AQ$60+(AU5-AV5-AW5)*$AU$60+(AY5-AZ5-BA5)*$AY$60+(BC5-BD5-BE5)*$BC$60+(BG5-BH5-BI5)*$BG$60+(BK5-BL5-BM5)*$BK$60+(BO5-BP5-BQ5)*$BO$60+(BS5-BT5-BU5)*$BS$60+(BW5-BX5-BY5)*$BW$60+(CA5-CB5-CC5)*$CA$60+(CE5-CF5-CG5)*$CE$60+(CI5-CJ5-CK5)*$CI$60+(CM5-CN5-CO5)*$CM$60+(CQ5-CR5-CS5)*$CQ$60+(CU5-CV5-CW5)*$CU$60 -> 60915419.75 | EA5: =IF(CZ5=0,D5-E5,0)+IF(DA5=0,(G5-H5-I5)*G$60,0)+IF(DB5=0,(K5-L5-M5)*K$60,0)+IF(DC5=0,(O5-P5-Q5)*O$60,0)+IF(DD5=0,(S5-T5-U5)*S$60,0)+IF(DE5=0,(W5-X5-Y5)*W$60,0)+IF(DF5=0,(AA5-AB5-AC5)*AA$60,0)+IF(DG5=0,(AE5-AF5-AG5)*AE$60,0)+IF(DH5=0,(AI5-AJ5-AK5)*AI$60,0)+IF(DI5=0,(AM5-AN5-AO5)*AM$60,0)+IF(DJ5=0,(AQ5-AR5-AS5)*$AQ$60,0)+IF(DK5=0,(AU5-AV5-AW5)*$AU$60,0)+IF(DL5=0,(AY5-AZ5-BA5)*$AY$60,0)++IF(DM5=0,(BC5-BD5-BE5)*$BC$60,0)+IF(DN5=0,(BG5-BH5-BI5)*$BG$60,0)+IF(DO5=0,(BK5-BL5-BM5)*$BK$60,0)+IF(DP5=0,(BO5-BP5-BQ5)*$BO$60,0)+IF(DQ5=0,(BS5-BT5-BU5)*$BS$60,0)+IF(DR5=0,(BW5-BX5-BY5)*$BW$60,0)+IF(DS5=0,(CA5-CB5-CC5)*$CA$60,0)+IF(DT5=0,(CE5-CF5-CG5)*$CE$60,0)+IF(DU5=0,(CI5-CJ5-CK5)*$CI$60,0)+IF(DV5=0,(CM5-CN5-CO5)*$CM$60,0)+IF(DW5=0,(CQ5-CR5-CS5)*$CQ$60,0)+IF(DX5=0,(CU5-CV5-CW5)*$CU$60,0) -> 43411452.22 | EB5: =(D5-E5)*CZ5+((G5-H5-(I5-J5))*G$60)*DA5+((K5-L5-(M5-N5))*K$60)*DB5+((O5-P5-(Q5-R5))*O$60)*DC5+((S5-T5-(U5-V5))*S$60)*DD5+((W5-X5-(Y5-Z5))*W$60)*DE5+((AA5-AB5-(AC5-AD5))*AA$60)*DF5+((AE5-AF5-(AG5-AH5))*AE$60)*DG5+((AI5-AJ5-(AK5-AL5))*AI$60)*DH5+((AM5-AN5-(AO5-AP5))*$AM$60)*DI5+((AQ5-AR5-(AS5-AT5))*$AQ$60)*DJ5+((AU5-AV5-(AW5-AX5))*$AU$60)*DK5+((AY5-AZ5-(BA5-BB5))*$AY$60)*DL5+((BC5-BD5-(BE5-BF5))*$BC$60)*DM5+((BG5-BH5-(BI5-BJ5))*$BG$60)*DN5+((BK5-BL5-(BM5-BN5))*$BK$60)*DO5+((BO5-BP5-(BQ5-BR5))*$BO$60)*DP5+((BS5-BT5-(BU5-BV5))*$BS$60)*DQ5+((BW5-BX5-(BY5-BZ5))*$BW$60)*DR5+((CA5-CB5-(CC5-CD5))*$CA$60)*DS5+((CE5-CF5-(CG5-CH5))*$CE$60)*DT5+((CI5-CJ5-(CK5-CL5))*$CI$60)*DU5+((CM5-CN5-(CO5-CP5))*$CM$60)*DV5+((CQ5-CR5-(CS5-CT5))*$CQ$60)*DW5+((CU5-CV5-(CW5-CX5))*$CU$60)*DX5 -> 10002325.4 | EC5: =(DZ5-EA5)*1/C5 -> 4375991.884 | ED5: =IF((1-($FC$2-$CY5)/$C5)>0,(1-($FC$2-$CY5)/$C5),0) -> 0 | EE5: =IF((1-($FC$2-EE$2)/$C5)>0,(1-($FC$2-EE$2)/$C5),0) -> 0 | EF5: 0 | EG5: 0 | EH5: 0 | EI5: 0 | EJ5: 0 | EK5: 0 | EL5: 0 | EM5: 0 | EN5: 0 | EO5: =IF((1-($FC$2-EO$2)/$C5)>0,(1-($FC$2-EO$2)/$C5),0) -> 0 | EP5: 0 | EQ5: 0 | ER5: 0 | ES5: 0 | ET5: 0 | EU5: 0 | EV5: 0 | EW5: 0 | EX5: 0 | EY5: 0 | EZ5: 0.125 | FA5: 0.375 | FB5: 0.625 | FC5: =IF(ED5=0,0,($D5-$E5)*1/$C5)+IF(EE5=0,0,($G5-$H5-$I5)*$G$60*1/$C5)+IF(EF5=0,0,($K5-$L5-$M5)*$K$60*1/$C5)+IF(EG5=0,0,($O5-$P5-$Q5)*$O$60*1/$C5)+IF(EH5=0,0,($S5-$T5-$U5)*$S$60*1/$C5)+IF(EI5=0,0,($W5-$X5-$Y5)*$W$60*1/$C5)+IF(EJ5=0,0,($AA5-$AB5-$AC5)*$AA$60*1/$C5)+IF(EK5=0,0,($AE5-$AF5-$AG5)*$AE$60*1/$C5)+IF(EL5=0,0,($AI5-$AJ5-$AK5)*$AI$60*1/$C5)+IF(EM5=0,0,($AM5-$AN5-$AO5)*$AM$60*1/$C5)+IF(EN5=0,0,($AQ5-$AR5-$AS5)*$AQ$60*1/$C5)+IF(EO5=0,0,($AU5-$AV5-$AW5)*$AU$60*1/$C5)+IF(EP5=0,0,($AY5-$AZ5-$BA5)*$AY$60*1/$C5)+IF(EQ5=0,0,($BC5-$BD5-$BE5)*$BC$60*1/$C5)+IF(ER5=0,0,($BG5-$BH5-$BI5)*$BG$60*1/$C5)+IF(ES5=0,0,($BK5-$BL5-$BM5)*$BK$60*1/$C5)+IF(ET5=0,0,($BO5-$BP5-$BQ5)*$BO$60*1/$C5)+IF(EU5=0,0,($BS5-$BT5-$BU5)*$BS$60*1/$C5)+IF(EV5=0,0,($BW5-$BX5-$BY5)*$BW$60*1/$C5)+IF(EW5=0,0,($CA5-$CB5-$CC5)*$CA$60*1/$C5)+IF(EX5=0,0,($CE5-$CF5-$CG5)*$CE$60*1/$C5)+IF(EY5=0,0,($CI5-$CJ5-$CK5)*$CI$60*1/$C5)+IF(EZ5=0,0,($CM5-$CN5-$CO5)*$CM$60*1/$C5)+IF(FA5=0,0,($CQ5-$CR5-$CS5)*$CQ$60*1/$C5)+IF(FB5=0,0,($CU5-$CV5-$CW5)*$CU$60*1/$C5) -> 3747022.175 | FD5: =IF((1-($GC$2-$CY5)/$C5)>0,(1-($GC$2-$CY5)/$C5),0) -> 0 | FE5: =IF((1-($GC$2-FE$2)/$C5)>0,(1-($GC$2-FE$2)/$C5),0) -> 0 | FF5: 0 | FG5: 0 | FH5: 0 | FI5: 0 | FJ5: 0 | FK5: 0 | FL5: 0 | FM5: 0 | FN5: 0 | FO5: =IF((1-($GC$2-FO$2)/$C5)>0,(1-($GC$2-FO$2)/$C5),0) -> 0 | FP5: 0 | FQ5: 0 | FR5: 0 | FS5: 0 | FT5: 0 | FU5: 0 | FV5: 0 | FW5: 0 | FX5: 0 | FY5: 0 | FZ5: =IF((1-($GC$2-FZ$2)/$C5)>0,(1-($GC$2-FZ$2)/$C5),0) -> 0 | GA5: 0.125 | GB5: =IF((1-($GC$2-GB$2)/$C5)>0,(1-($GC$2-GB$2)/$C5),0) -> 0.375 | GC5: =IF(FD5=0,0,($D5-$E5)*1/$C5)+IF(FE5=0,0,($G5-$H5-$I5)*$G$60*1/$C5)+IF(FF5=0,0,($K5-$L5-$M5)*$K$60*1/$C5)+IF(FG5=0,0,($O5-$P5-$Q5)*$O$60*1/$C5)+IF(FH5=0,0,($S5-$T5-$U5)*$S$60*1/$C5)+IF(FI5=0,0,($W5-$X5-$Y5)*$W$60*1/$C5)+IF(FJ5=0,0,($AA5-$AB5-$AC5)*$AA$60*1/$C5)+IF(FK5=0,0,($AE5-$AF5-$AG5)*$AE$60*1/$C5)+IF(FL5=0,0,($AI5-$AJ5-$AK5)*$AI$60*1/$C5)+IF(FM5=0,0,($AM5-$AN5-$AO5)*$AM$60*1/$C5)+IF(FN5=0,0,($AQ5-$AR5-$AS5)*$AQ$60*1/$C5)+IF(FO5=0,0,($AU5-$AV5-$AW5)*$AU$60*1/$C5)+IF(FP5=0,0,($AY5-$AZ5-$BA5)*$AY$60*1/$C5)+IF(FQ5=0,0,($BC5-$BD5-$BE5)*$BC$60*1/$C5)+IF(FR5=0,0,($BG5-$BH5-$BI5)*$BG$60*1/$C5)+IF(FS5=0,0,($BK5-$BL5-$BM5)*$BK$60*1/$C5)+IF(FT5=0,0,($BO5-$BP5-$BQ5)*$BO$60*1/$C5)+IF(FU5=0,0,($BS5-$BT5-$BU5)*$BS$60*1/$C5)+IF(FV5=0,0,($BW5-$BX5-$BY5)*$BW$60*1/$C5)+IF(FW5=0,0,($CA5-$CB5-$CC5)*$CA$60*1/$C5)+IF(FX5=0,0,($CE5-$CF5-$CG5)*$CE$60*1/$C5)+IF(FY5=0,0,($CI5-$CJ5-$CK5)*$CI$60*1/$C5)+IF(FZ5=0,0,($CM5-$CN5-$CO5)*$CM$60*1/$C5)+IF(GA5=0,0,($CQ5-$CR5-$CS5)*$CQ$60*1/$C5)+IF(GB5=0,0,($CU5-$CV5-$CW5)*$CU$60*1/$C5) -> 2856711.44 | GD5: =IF((1-($HC$2-$CY5)/$C5)>0,(1-($HC$2-$CY5)/$C5),0) -> 0 | GE5: =IF((1-($HC$2-GE$2)/$C5)>0,(1-($HC$2-GE$2)/$C5),0) -> 0 | GF5: 0 | GG5: 0 | GH5: 0 | GI5: 0 | GJ5: 0 | GK5: 0 | GL5: 0 | GM5: 0 | GN5: 0 | GO5: =IF((1-($HC$2-GO$2)/$C5)>0,(1-($HC$2-GO$2)/$C5),0) -> 0 | GP5: 0 | GQ5: 0 | GR5: 0 | GS5: 0 | GT5: 0 | GU5: 0 | GV5: 0 | GW5: 0 | GX5: 0 | GY5: 0 | GZ5: =IF((1-($HC$2-GZ$2)/$C5)>0,(1-($HC$2-GZ$2)/$C5),0) -> 0 | HA5: 0 | HB5: 0.125 | HC5: =IF(GD5=0,0,($D5-$E5)*1/$C5)+IF(GE5=0,0,($G5-$H5-$I5)*$G$60*1/$C5)+IF(GF5=0,0,($K5-$L5-$M5)*$K$60*1/$C5)+IF(GG5=0,0,($O5-$P5-$Q5)*$O$60*1/$C5)+IF(GH5=0,0,($S5-$T5-$U5)*$S$60*1/$C5)+IF(GI5=0,0,($W5-$X5-$Y5)*$W$60*1/$C5)+IF(GJ5=0,0,($AA5-$AB5-$AC5)*$AA$60*1/$C5)+IF(GK5=0,0,($AE5-$AF5-$AG5)*$AE$60*1/$C5)+IF(GL5=0,0,($AI5-$AJ5-$AK5)*$AI$60*1/$C5)+IF(GM5=0,0,($AM5-$AN5-$AO5)*$AM$60*1/$C5)+IF(GN5=0,0,($AQ5-$AR5-$AS5)*$AQ$60*1/$C5)+IF(GO5=0,0,($AU5-$AV5-$AW5)*$AU$60*1/$C5)+IF(GP5=0,0,($AY5-$AZ5-$BA5)*$AY$60*1/$C5)+IF(GQ5=0,0,($BC5-$BD5-$BE5)*$BC$60*1/$C5)+IF(GR5=0,0,($BG5-$BH5-$BI5)*$BG$60*1/$C5)+IF(GS5=0,0,($BK5-$BL5-$BM5)*$BK$60*1/$C5)+IF(GT5=0,0,($BO5-$BP5-$BQ5)*$BO$60*1/$C5)+IF(GU5=0,0,($BS5-$BT5-$BU5)*$BS$60*1/$C5)+IF(GV5=0,0,($BW5-$BX5-$BY5)*$BW$60*1/$C5)+IF(GW5=0,0,($CA5-$CB5-$CC5)*$CA$60*1/$C5)+IF(GX5=0,0,($CE5-$CF5-$CG5)*$CE$60*1/$C5)+IF(GY5=0,0,($CI5-$CJ5-$CK5)*$CI$60*1/$C5)+IF(GZ5=0,0,($CM5-$CN5-$CO5)*$CM$60*1/$C5)+IF(HA5=0,0,($CQ5-$CR5-$CS5)*$CQ$60*1/$C5)+IF(HB5=0,0,($CU5-$CV5-$CW5)*$CU$60*1/$C5) -> 1210595.844 | HD5: =IF((1-($IC$2-$CY5)/$C5)>0,(1-($IC$2-$CY5)/$C5),0) -> 0 | HE5: =IF((1-($IC$2-HE$2)/$C5)>0,(1-($IC$2-HE$2)/$C5),0) -> 0 | HF5: 0 | HG5: 0 | HH5: 0 | HI5: 0 | HJ5: 0 | HK5: 0 | HL5: 0 | HM5: 0 | HN5: 0 | HO5: =IF((1-($IC$2-HO$2)/$C5)>0,(1-($IC$2-HO$2)/$C5),0) -> 0 | HP5: 0 | HQ5: 0 | HR5: 0 | HS5: 0 | HT5: 0 | HU5: 0 | HV5: 0 | HW5: 0 | HX5: 0 | HY5: 0 | HZ5: =IF((1-($IC$2-HZ$2)/$C5)>0,(1-($IC$2-HZ$2)/$C5),0) -> 0 | IA5: 0 | IB5: 0 | IC5: =IF(HD5=0,0,($D5-$E5)*1/$C5)+IF(HE5=0,0,($G5-$H5-$I5)*$G$60*1/$C5)+IF(HF5=0,0,($K5-$L5-$M5)*$K$60*1/$C5)+IF(HG5=0,0,($O5-$P5-$Q5)*$O$60*1/$C5)+IF(HH5=0,0,($S5-$T5-$U5)*$S$60*1/$C5)+IF(HI5=0,0,($W5-$X5-$Y5)*$W$60*1/$C5)+IF(HJ5=0,0,($AA5-$AB5-$AC5)*$AA$60*1/$C5)+IF(HK5=0,0,($AE5-$AF5-$AG5)*$AE$60*1/$C5)+IF(HL5=0,0,($AI5-$AJ5-$AK5)*$AI$60*1/$C5)+IF(HM5=0,0,($AM5-$AN5-$AO5)*$AM$60*1/$C5)+IF(HN5=0,0,($AQ5-$AR5-$AS5)*$AQ$60*1/$C5)+IF(HO5=0,0,($AU5-$AV5-$AW5)*$AU$60*1/$C5)+IF(HP5=0,0,($AY5-$AZ5-$BA5)*$AY$60*1/$C5)+IF(HQ5=0,0,($BC5-$BD5-$BE5)*$BC$60*1/$C5)+IF(HR5=0,0,($BG5-$BH5-$BI5)*$BG$60*1/$C5)+IF(HS5=0,0,($BK5-$BL5-$BM5)*$BK$60*1/$C5)+IF(HT5=0,0,($BO5-$BP5-$BQ5)*$BO$60*1/$C5)+IF(HU5=0,0,($BS5-$BT5-$BU5)*$BS$60*1/$C5)+IF(HV5=0,0,($BW5-$BX5-$BY5)*$BW$60*1/$C5)+IF(HW5=0,0,($CA5-$CB5-$CC5)*$CA$60*1/$C5)+IF(HX5=0,0,($CE5-$CF5-$CG5)*$CE$60*1/$C5)+IF(HY5=0,0,($CI5-$CJ5-$CK5)*$CI$60*1/$C5)+IF(HZ5=0,0,($CM5-$CN5-$CO5)*$CM$60*1/$C5)+IF(IA5=0,0,($CQ5-$CR5-$CS5)*$CQ$60*1/$C5)+IF(IB5=0,0,($CU5-$CV5-$CW5)*$CU$60*1/$C5) -> 0 | IE5: =DY5-FC5 -> 628969.7093 | IF5: =FC5-GC5 -> 890310.7352 | IG5: =GC5-HC5 -> 1646115.596 | IH5: =HC5-IC5 -> 1210595.844
B6: Terrenos | C6: 1000 | D6: 221523.7605 | E6: 0 | F6: 221523.7605 | G6: 0 | H6: 0 | I6: 0 | J6: 0 | K6: 0 | L6: 0 | M6: 0 | N6: 0 | O6: 0 | P6: 0 | Q6: 0 | R6: 0 | S6: 0 | T6: 0 | U6: 0 | V6: 0 | W6: 0 | X6: 0 | Y6: 0 | Z6: 0 | AA6: 0 | AB6: 0 | AC6: 0 | AD6: 0 | AE6: 0 | AF6: 0 | AG6: 0 | AH6: 0 | AI6: 0 | AJ6: 0 | AK6: 0 | AL6: 0 | AM6: 1761274.58 | AN6: 0 | AO6: 0 | AP6: 0 | AQ6: 446829.54 | AR6: 0 | AS6: 0 | AT6: 0 | AU6: 2164835 | AV6: 0 | AW6: 0 | AX6: 0 | AY6: 884628.87 | AZ6: 0 | BA6: 0 | BB6: 0 | BC6: 663090.93 | BD6: 0 | BE6: 0 | BF6: 0 | BG6: 5674899.26 | BH6: 0 | BI6: 0 | BJ6: 0 | BK6: 2117720.66 | BL6: 0 | BM6: 0 | BN6: 0 | BO6: 0 | BP6: 0 | BQ6: 0 | BR6: 0 | BS6: 209717.41 | BT6: 0 | BU6: 0 | BV6: 0 | BW6: 0 | BX6: 0 | BY6: 0 | BZ6: 0 | CA6: 0 | CB6: 0 | CC6: 0 | CD6: 0 | CE6: 0 | CF6: 0 | CG6: 0 | CH6: 0 | CI6: 0 | CJ6: 0 | CM6: 257610.25 | CN6: 0 | CQ6: 0 | CR6: 0 | CU6: 0 | CV6: 0 | CY6: 2001 | CZ6: 0.9755 | DA6: 0.9765 | DB6: 0.9775 | DC6: 0.9785 | DD6: 0.9795 | DE6: 0.9805 | DF6: 0.9815 | DG6: 0.9825 | DH6: 0.9835 | DI6: 0.9845 | DJ6: 0.9855 | DK6: 0.9865 | DL6: 0.9875 | DM6: 0.9885 | DN6: 0.9895 | DO6: 0.9905 | DP6: 0.9915 | DQ6: 0.9925 | DR6: 0.9935 | DS6: 0.9945 | DT6: 0.9955 | DU6: 0.9965 | DV6: =IF((1-($DY$2-CM$2)/$C6)>0,(1-($DY$2-CM$2)/$C6),0) -> 0.9975 | DW6: =IF((1-($DY$2-CQ$2)/$C6)>0,(1-($DY$2-CQ$2)/$C6),0) -> 0.9985 | DX6: =IF((1-($DY$2-CU$2)/$C6)>0,(1-($DY$2-CU$2)/$C6),0) -> 0.9995 | DY6: 12246.3679 | DZ6: 12246367.9 | EA6: =IF(CZ6=0,D6-E6,0)+IF(DA6=0,(G6-H6-I6)*G$60,0)+IF(DB6=0,(K6-L6-M6)*K$60,0)+IF(DC6=0,(O6-P6-Q6)*O$60,0)+IF(DD6=0,(S6-T6-U6)*S$60,0)+IF(DE6=0,(W6-X6-Y6)*W$60,0)+IF(DF6=0,(AA6-AB6-AC6)*AA$60,0)+IF(DG6=0,(AE6-AF6-AG6)*AE$60,0)+IF(DH6=0,(AI6-AJ6-AK6)*AI$60,0)+IF(DI6=0,(AM6-AN6-AO6)*AM$60,0)+IF(DJ6=0,(AQ6-AR6-AS6)*$AQ$60,0)+IF(DK6=0,(AU6-AV6-AW6)*$AU$60,0)+IF(DL6=0,(AY6-AZ6-BA6)*$AY$60,0)++IF(DM6=0,(BC6-BD6-BE6)*$BC$60,0)+IF(DN6=0,(BG6-BH6-BI6)*$BG$60,0)+IF(DO6=0,(BK6-BL6-BM6)*$BK$60,0)+IF(DP6=0,(BO6-BP6-BQ6)*$BO$60,0)+IF(DQ6=0,(BS6-BT6-BU6)*$BS$60,0)+IF(DR6=0,(BW6-BX6-BY6)*$BW$60,0)+IF(DS6=0,(CA6-CB6-CC6)*$CA$60,0)+IF(DT6=0,(CE6-CF6-CG6)*$CE$60,0)+IF(DU6=0,(CI6-CJ6-CK6)*$CI$60,0)+IF(DV6=0,(CM6-CN6-CO6)*$CM$60,0)+IF(DW6=0,(CQ6-CR6-CS6)*$CQ$60,0)+IF(DX6=0,(CU6-CV6-CW6)*$CU$60,0) -> 0 | EB6: 12104185.69 | EC6: 12246.3679 | ED6: 0.9745 | EE6: 0.9755 | EF6: 0.9765 | EG6: 0.9775 | EH6: 0.9785 | EI6: 0.9795 | EJ6: 0.9805 | EK6: 0.9815 | EL6: 0.9825 | EM6: 0.9835 | EN6: 0.9845 | EO6: 0.9855 | EP6: 0.9865 | EQ6: 0.9875 | ER6: 0.9885 | ES6: 0.9895 | ET6: 0.9905 | EU6: 0.9915 | EV6: 0.9925 | EW6: 0.9935 | EX6: 0.9945 | EY6: 0.9955 | EZ6: 0.9965 | FA6: 0.9975 | FB6: 0.9985 | FC6: 12246.3679 | FD6: 0.9735 | FE6: 0.9745 | FF6: 0.9755 | FG6: 0.9765 | FH6: 0.9775 | FI6: 0.9785 | FJ6: 0.9795 | FK6: 0.9805 | FL6: 0.9815 | FM6: 0.9825 | FN6: 0.9835 | FO6: 0.9845 | FP6: 0.9855 | FQ6: 0.9865 | FR6: 0.9875 | FS6: 0.9885 | FT6: 0.9895 | FU6: 0.9905 | FV6: 0.9915 | FW6: 0.9925 | FX6: 0.9935 | FY6: 0.9945 | FZ6: 0.9955 | GA6: 0.9965 | GB6: 0.9975 | GC6: 12246.3679 | GD6: 0.9725 | GE6: 0.9735 | GF6: 0.9745 | GG6: 0.9755 | GH6: 0.9765 | GI6: 0.9775 | GJ6: 0.9785 | GK6: 0.9795 | GL6: 0.9805 | GM6: 0.9815 | GN6: 0.9825 | GO6: 0.9835 | GP6: 0.9845 | GQ6: 0.9855 | GR6: 0.9865 | GS6: 0.9875 | GT6: 0.9885 | GU6: 0.9895 | GV6: 0.9905 | GW6: 0.9915 | GX6: 0.9925 | GY6: 0.9935 | GZ6: 0.9945 | HA6: 0.9955 | HB6: 0.9965 | HC6: 12246.3679 | HD6: 0.9715 | HE6: 0.9725 | HF6: 0.9735 | HG6: 0.9745 | HH6: 0.9755 | HI6: 0.9765 | HJ6: 0.9775 | HK6: 0.9785 | HL6: 0.9795 | HM6: 0.9805 | HN6: 0.9815 | HO6: 0.9825 | HP6: 0.9835 | HQ6: 0.9845 | HR6: 0.9855 | HS6: 0.9865 | HT6: 0.9875 | HU6: 0.9885 | HV6: 0.9895 | HW6: 0.9905 | HX6: 0.9915 | HY6: 0.9925 | HZ6: 0.9935 | IA6: 0.9945 | IB6: 0.9955 | IC6: =IF(HD6=0,0,($D6-$E6)*1/$C6)+IF(HE6=0,0,($G6-$H6-$I6)*$G$60*1/$C6)+IF(HF6=0,0,($K6-$L6-$M6)*$K$60*1/$C6)+IF(HG6=0,0,($O6-$P6-$Q6)*$O$60*1/$C6)+IF(HH6=0,0,($S6-$T6-$U6)*$S$60*1/$C6)+IF(HI6=0,0,($W6-$X6-$Y6)*$W$60*1/$C6)+IF(HJ6=0,0,($AA6-$AB6-$AC6)*$AA$60*1/$C6)+IF(HK6=0,0,($AE6-$AF6-$AG6)*$AE$60*1/$C6)+IF(HL6=0,0,($AI6-$AJ6-$AK6)*$AI$60*1/$C6)+IF(HM6=0,0,($AM6-$AN6-$AO6)*$AM$60*1/$C6)+IF(HN6=0,0,($AQ6-$AR6-$AS6)*$AQ$60*1/$C6)+IF(HO6=0,0,($AU6-$AV6-$AW6)*$AU$60*1/$C6)+IF(HP6=0,0,($AY6-$AZ6-$BA6)*$AY$60*1/$C6)+IF(HQ6=0,0,($BC6-$BD6-$BE6)*$BC$60*1/$C6)+IF(HR6=0,0,($BG6-$BH6-$BI6)*$BG$60*1/$C6)+IF(HS6=0,0,($BK6-$BL6-$BM6)*$BK$60*1/$C6)+IF(HT6=0,0,($BO6-$BP6-$BQ6)*$BO$60*1/$C6)+IF(HU6=0,0,($BS6-$BT6-$BU6)*$BS$60*1/$C6)+IF(HV6=0,0,($BW6-$BX6-$BY6)*$BW$60*1/$C6)+IF(HW6=0,0,($CA6-$CB6-$CC6)*$CA$60*1/$C6)+IF(HX6=0,0,($CE6-$CF6-$CG6)*$CE$60*1/$C6)+IF(HY6=0,0,($CI6-$CJ6-$CK6)*$CI$60*1/$C6)+IF(HZ6=0,0,($CM6-$CN6-$CO6)*$CM$60*1/$C6)+IF(IA6=0,0,($CQ6-$CR6-$CS6)*$CQ$60*1/$C6)+IF(IB6=0,0,($CU6-$CV6-$CW6)*$CU$60*1/$C6) -> 12246.3679 | IE6: 0 | IF6: 0 | IG6: 0 | IH6: 0
B7: Edificios y mejoras | C7: 40 | D7: 580007.3501 | E7: 0 | F7: 536566.1437 | G7: 317455 | H7: 0 | I7: 0 | J7: 0 | K7: 69289 | L7: 0 | M7: 0 | N7: 0 | O7: 473648.75 | P7: 0 | Q7: 0 | R7: 0 | S7: 25725 | T7: 0 | U7: 0 | V7: 0 | W7: 28840.86 | X7: 0 | Y7: 0 | Z7: 0 | AA7: 1205953.12 | AB7: 0 | AC7: 0 | AD7: 0 | AE7: 197890.73 | AF7: 0 | AG7: 0 | AH7: 0 | AI7: 199788.26 | AJ7: 0 | AK7: 0 | AL7: 0 | AM7: 301192.66 | AN7: 0 | AO7: 0 | AP7: 0 | AQ7: 422304.54 | AR7: 0 | AS7: 0 | AT7: 0 | AU7: 395004.46 | AV7: 0 | AW7: 0 | AX7: 0 | AY7: 203644.44 | AZ7: 0 | BA7: 0 | BB7: 0 | BC7: 1219011.11 | BD7: 0 | BE7: 0 | BF7: 0 | BG7: 3274535.54 | BH7: 0 | BI7: 0 | BJ7: 0 | BK7: 19074507.6 | BL7: 0 | BM7: 0 | BN7: 0 | BO7: 8517340.3 | BP7: 0 | BQ7: 0 | BR7: 0 | BS7: 1969613.19 | BT7: 0 | BU7: 0 | BV7: 0 | BW7: 949681.73 | BX7: 0 | BY7: 0 | BZ7: 0 | CA7: 3311003.69 | CB7: 0 | CC7: 0 | CD7: 0 | CE7: 845796.73 | CF7: 0 | CG7: 0 | CH7: 0 | CI7: 1794144.75 | CJ7: 5336.47 | CM7: 1604135.84 | CN7: 0 | CQ7: 1155668.82 | CR7: 0 | CU7: 12004013.57 | CV7: 0 | CY7: 1998.004093 | CZ7: 0.3126023174 | DA7: 0.4125 | DB7: 0.4375 | DC7: 0.4625 | DD7: 0.4875 | DE7: 0.5125 | DF7: 0.5375 | DG7: 0.5625 | DH7: 0.5875 | DI7: 0.6125 | DJ7: 0.6375 | DK7: 0.6625 | DL7: 0.6875 | DM7: 0.7125 | DN7: 0.7375 | DO7: 0.7625 | DP7: 0.7875 | DQ7: 0.8125 | DR7: 0.8375 | DS7: 0.8625 | DT7: 0.8875 | DU7: 0.9125 | DV7: 0.9375 | DW7: 0.9625 | DX7: 0.9875 | DY7: 1353565.266 | DZ7: 54142610.64 | EA7: 0 | EB7: 44169481.75 | EC7: 1353565.266 | ED7: 0.2876023174 | EE7: 0.3875 | EF7: 0.4125 | EG7: 0.4375 | EH7: 0.4625 | EI7: 0.4875 | EJ7: 0.5125 | EK7: 0.5375 | EL7: 0.5625 | EM7: 0.5875 | EN7: 0.6125 | EO7: 0.6375 | EP7: 0.6625 | EQ7: 0.6875 | ER7: 0.7125 | ES7: 0.7375 | ET7: 0.7625 | EU7: 0.7875 | EV7: 0.8125 | EW7: 0.8375 | EX7: 0.8625 | EY7: 0.8875 | EZ7: 0.9125 | FA7: 0.9375 | FB7: 0.9625 | FC7: 1353565.266 | FD7: 0.2626023174 | FE7: 0.3625 | FF7: 0.3875 | FG7: 0.4125 | FH7: 0.4375 | FI7: 0.4625 | FJ7: 0.4875 | FK7: 0.5125 | FL7: 0.5375 | FM7: 0.5625 | FN7: 0.5875 | FO7: 0.6125 | FP7: 0.6375 | FQ7: 0.6625 | FR7: 0.6875 | FS7: 0.7125 | FT7: 0.7375 | FU7: 0.7625 | FV7: 0.7875 | FW7: 0.8125 | FX7: 0.8375 | FY7: 0.8625 | FZ7: 0.8875 | GA7: 0.9125 | GB7: 0.9375 | GC7: 1353565.266 | GD7: 0.2376023174 | GE7: 0.3375 | GF7: 0.3625 | GG7: 0.3875 | GH7: 0.4125 | GI7: 0.4375 | GJ7: 0.4625 | GK7: 0.4875 | GL7: 0.5125 | GM7: 0.5375 | GN7: 0.5625 | GO7: 0.5875 | GP7: 0.6125 | GQ7: 0.6375 | GR7: 0.6625 | GS7: 0.6875 | GT7: 0.7125 | GU7: 0.7375 | GV7: 0.7625 | GW7: 0.7875 | GX7: 0.8125 | GY7: 0.8375 | GZ7: 0.8625 | HA7: 0.8875 | HB7: 0.9125 | HC7: 1353565.266 | HD7: 0.2126023174 | HE7: 0.3125 | HF7: 0.3375 | HG7: 0.3625 | HH7: 0.3875 | HI7: 0.4125 | HJ7: 0.4375 | HK7: 0.4625 | HL7: 0.4875 | HM7: 0.5125 | HN7: 0.5375 | HO7: 0.5625 | HP7: 0.5875 | HQ7: 0.6125 | HR7: 0.6375 | HS7: 0.6625 | HT7: 0.6875 | HU7: 0.7125 | HV7: 0.7375 | HW7: 0.7625 | HX7: 0.7875 | HY7: 0.8125 | HZ7: 0.8375 | IA7: 0.8625 | IB7: 0.8875 | IC7: =IF(HD7=0,0,($D7-$E7)*1/$C7)+IF(HE7=0,0,($G7-$H7-$I7)*$G$60*1/$C7)+IF(HF7=0,0,($K7-$L7-$M7)*$K$60*1/$C7)+IF(HG7=0,0,($O7-$P7-$Q7)*$O$60*1/$C7)+IF(HH7=0,0,($S7-$T7-$U7)*$S$60*1/$C7)+IF(HI7=0,0,($W7-$X7-$Y7)*$W$60*1/$C7)+IF(HJ7=0,0,($AA7-$AB7-$AC7)*$AA$60*1/$C7)+IF(HK7=0,0,($AE7-$AF7-$AG7)*$AE$60*1/$C7)+IF(HL7=0,0,($AI7-$AJ7-$AK7)*$AI$60*1/$C7)+IF(HM7=0,0,($AM7-$AN7-$AO7)*$AM$60*1/$C7)+IF(HN7=0,0,($AQ7-$AR7-$AS7)*$AQ$60*1/$C7)+IF(HO7=0,0,($AU7-$AV7-$AW7)*$AU$60*1/$C7)+IF(HP7=0,0,($AY7-$AZ7-$BA7)*$AY$60*1/$C7)+IF(HQ7=0,0,($BC7-$BD7-$BE7)*$BC$60*1/$C7)+IF(HR7=0,0,($BG7-$BH7-$BI7)*$BG$60*1/$C7)+IF(HS7=0,0,($BK7-$BL7-$BM7)*$BK$60*1/$C7)+IF(HT7=0,0,($BO7-$BP7-$BQ7)*$BO$60*1/$C7)+IF(HU7=0,0,($BS7-$BT7-$BU7)*$BS$60*1/$C7)+IF(HV7=0,0,($BW7-$BX7-$BY7)*$BW$60*1/$C7)+IF(HW7=0,0,($CA7-$CB7-$CC7)*$CA$60*1/$C7)+IF(HX7=0,0,($CE7-$CF7-$CG7)*$CE$60*1/$C7)+IF(HY7=0,0,($CI7-$CJ7-$CK7)*$CI$60*1/$C7)+IF(HZ7=0,0,($CM7-$CN7-$CO7)*$CM$60*1/$C7)+IF(IA7=0,0,($CQ7-$CR7-$CS7)*$CQ$60*1/$C7)+IF(IB7=0,0,($CU7-$CV7-$CW7)*$CU$60*1/$C7) -> 1353565.266 | IE7: 0 | IF7: 0 | IG7: 0 | IH7: 0
B8: Mobiliario y equipo de oficina | C8: 7 | D8: 3527073.473 | E8: 0 | F8: 2196534.411 | G8: 41591 | H8: 0 | I8: 0 | J8: 0 | K8: 38057 | L8: 0 | M8: 0 | N8: 0 | O8: 66341 | P8: 0 | Q8: 0 | R8: 0 | S8: 10238.7 | T8: 0 | U8: 0 | V8: 0 | W8: 1190.28 | X8: 0 | Y8: 0 | Z8: 0 | AA8: 337294.97 | AB8: 0 | AC8: 0 | AD8: 0 | AE8: 185114.05 | AF8: 0 | AG8: 0 | AH8: 0 | AI8: 21824.53 | AJ8: 0 | AK8: 0 | AL8: 0 | AM8: 25294.7 | AN8: 0 | AO8: 0 | AP8: 0 | AQ8: 293654.97 | AR8: 0 | AS8: 0 | AT8: 0 | AU8: 57779.52 | AV8: 0 | AW8: 0 | AX8: 0 | AY8: 182516.04 | AZ8: 0 | BA8: 0 | BB8: 0 | BC8: 48581.91 | BD8: 0 | BE8: 0 | BF8: 0 | BG8: 205581.72 | BH8: 0 | BI8: 0 | BJ8: 0 | BK8: 20046.87 | BL8: 0 | BM8: 0 | BN8: 0 | BO8: 1954431.76 | BP8: 0 | BQ8: 0 | BR8: 0 | BS8: 29151.04 | BT8: 0 | BU8: 0 | BV8: 0 | BW8: 38603.8 | BX8: 0 | BY8: 0 | BZ8: 0 | CA8: 80219.52 | CB8: 0 | CC8: 0 | CD8: 0 | CE8: 42186.15 | CF8: 0 | CG8: 0 | CH8: 0 | CI8: 98823.01 | CJ8: 0 | CM8: 90539.3 | CN8: 0 | CQ8: 197653.87 | CR8: 0 | CU8: 655880.95 | CV8: 0 | CY8: 1998.359348 | CZ8: 0 | DA8: 0 | DB8: 0 | DC8: 0 | DD8: 0 | DE8: 0 | DF8: 0 | DG8: 0 | DH8: 0 | DI8: 0 | DJ8: 0 | DK8: 0 | DL8: 0 | DM8: 0 | DN8: 0 | DO8: 0 | DP8: 0 | DQ8: 0 | DR8: 0.07142857143 | DS8: 0.2142857143 | DT8: 0.3571428571 | DU8: 0.5 | DV8: 0.6428571429 | DW8: 0.7857142857 | DX8: 0.9285714286 | DY8: 157548.562 | DZ8: 7626931.626 | EA8: 6524091.692 | EB8: 833155.9264 | EC8: 157548.562 | ED8: 0 | EE8: 0 | EF8: 0 | EG8: 0 | EH8: 0 | EI8: 0 | EJ8: 0 | EK8: 0 | EL8: 0 | EM8: 0 | EN8: 0 | EO8: 0 | EP8: 0 | EQ8: 0 | ER8: 0 | ES8: 0 | ET8: 0 | EU8: 0 | EV8: 0 | EW8: 0.07142857143 | EX8: 0.2142857143 | EY8: 0.3571428571 | EZ8: 0.5 | FA8: 0.6428571429 | FB8: 0.7857142857 | FC8: 152585.2163 | FD8: 0 | FE8: 0 | FF8: 0 | FG8: 0 | FH8: 0 | FI8: 0 | FJ8: 0 | FK8: 0 | FL8: 0 | FM8: 0 | FN8: 0 | FO8: 0 | FP8: 0 | FQ8: 0 | FR8: 0 | FS8: 0 | FT8: 0 | FU8: 0 | FV8: 0 | FW8: 0 | FX8: 0.07142857143 | FY8: 0.2142857143 | FZ8: 0.3571428571 | GA8: 0.5 | GB8: 0.6428571429 | GC8: 142271.278 | GD8: 0 | GE8: 0 | GF8: 0 | GG8: 0 | GH8: 0 | GI8: 0 | GJ8: 0 | GK8: 0 | GL8: 0 | GM8: 0 | GN8: 0 | GO8: 0 | GP8: 0 | GQ8: 0 | GR8: 0 | GS8: 0 | GT8: 0 | GU8: 0 | GV8: 0 | GW8: 0 | GX8: 0 | GY8: 0.07142857143 | GZ8: 0.2142857143 | HA8: 0.3571428571 | HB8: 0.5 | HC8: 137066.4799 | HD8: 0 | HE8: 0 | HF8: 0 | HG8: 0 | HH8: 0 | HI8: 0 | HJ8: 0 | HK8: 0 | HL8: 0 | HM8: 0 | HN8: 0 | HO8: 0 | HP8: 0 | HQ8: 0 | HR8: 0 | HS8: 0 | HT8: 0 | HU8: 0 | HV8: 0 | HW8: 0 | HX8: 0 | HY8: 0 | HZ8: 0.07142857143 | IA8: 0.2142857143 | IB8: 0.3571428571 | IC8: =IF(HD8=0,0,($D8-$E8)*1/$C8)+IF(HE8=0,0,($G8-$H8-$I8)*$G$60*1/$C8)+IF(HF8=0,0,($K8-$L8-$M8)*$K$60*1/$C8)+IF(HG8=0,0,($O8-$P8-$Q8)*$O$60*1/$C8)+IF(HH8=0,0,($S8-$T8-$U8)*$S$60*1/$C8)+IF(HI8=0,0,($W8-$X8-$Y8)*$W$60*1/$C8)+IF(HJ8=0,0,($AA8-$AB8-$AC8)*$AA$60*1/$C8)+IF(HK8=0,0,($AE8-$AF8-$AG8)*$AE$60*1/$C8)+IF(HL8=0,0,($AI8-$AJ8-$AK8)*$AI$60*1/$C8)+IF(HM8=0,0,($AM8-$AN8-$AO8)*$AM$60*1/$C8)+IF(HN8=0,0,($AQ8-$AR8-$AS8)*$AQ$60*1/$C8)+IF(HO8=0,0,($AU8-$AV8-$AW8)*$AU$60*1/$C8)+IF(HP8=0,0,($AY8-$AZ8-$BA8)*$AY$60*1/$C8)+IF(HQ8=0,0,($BC8-$BD8-$BE8)*$BC$60*1/$C8)+IF(HR8=0,0,($BG8-$BH8-$BI8)*$BG$60*1/$C8)+IF(HS8=0,0,($BK8-$BL8-$BM8)*$BK$60*1/$C8)+IF(HT8=0,0,($BO8-$BP8-$BQ8)*$BO$60*1/$C8)+IF(HU8=0,0,($BS8-$BT8-$BU8)*$BS$60*1/$C8)+IF(HV8=0,0,($BW8-$BX8-$BY8)*$BW$60*1/$C8)+IF(HW8=0,0,($CA8-$CB8-$CC8)*$CA$60*1/$C8)+IF(HX8=0,0,($CE8-$CF8-$CG8)*$CE$60*1/$C8)+IF(HY8=0,0,($CI8-$CJ8-$CK8)*$CI$60*1/$C8)+IF(HZ8=0,0,($CM8-$CN8-$CO8)*$CM$60*1/$C8)+IF(IA8=0,0,($CQ8-$CR8-$CS8)*$CQ$60*1/$C8)+IF(IB8=0,0,($CU8-$CV8-$CW8)*$CU$60*1/$C8) -> 124078.3129 | IE8: 4963.345714 | IF8: 10313.93829 | IG8: 5204.798026 | IH8: 12988.16703
B9: Equipo de computación | C9: 4 | D9: 1103173.068 | E9: 0 | F9: 1015622.319 | G9: 176958 | H9: 0 | I9: 0 | J9: 0 | K9: 24713 | L9: 0 | M9: 0 | N9: 0 | O9: 465414 | P9: 0 | Q9: 0 | R9: 0 | S9: 247690.5 | T9: 0 | U9: 0 | V9: 0 | W9: 146862.53 | X9: 0 | Y9: 0 | Z9: 0 | AA9: 0 | AB9: 0 | AC9: 0 | AD9: 0 | AE9: 146772.83 | AF9: 0 | AG9: 0 | AH9: 0 | AI9: 515072.17 | AJ9: 0 | AK9: 0 | AL9: 0 | AM9: 237279.38 | AN9: 0 | AO9: 0 | AP9: 0 | AQ9: 506958.58 | AR9: 0 | AS9: 0 | AT9: 0 | AU9: 367178.45 | AV9: 0 | AW9: 0 | AX9: 0 | AY9: 611407.41 | AZ9: 0 | BA9: 0 | BB9: 0 | BC9: 710171.34 | BD9: 0 | BE9: 0 | BF9: 0 | BG9: 1321504.94 | BH9: 0 | BI9: 0 | BJ9: 0 | BK9: 758320.35 | BL9: 0 | BM9: 0 | BN9: 0 | BO9: 2050368.06 | BP9: 0 | BQ9: 0 | BR9: 0 | BS9: 959880.56 | BT9: 0 | BU9: 0 | BV9: 0 | BW9: 747701.29 | BX9: 0 | BY9: 0 | BZ9: 0 | CA9: 1523031.14 | CB9: 0 | CC9: 0 | CD9: 0 | CE9: 2131078.53 | CF9: 0 | CG9: 0 | CH9: 0 | CI9: 1901684.63 | CJ9: 0 | CM9: 1346496.28 | CN9: 0 | CQ9: 1440676.51 | CR9: 0 | CU9: 2937702.71 | CV9: 0 | CY9: 2000.682549 | CZ9: 0 | DA9: 0 | DB9: 0 | DC9: 0 | DD9: 0 | DE9: 0 | DF9: 0 | DG9: 0 | DH9: 0 | DI9: 0 | DJ9: 0 | DK9: 0 | DL9: 0 | DM9: 0 | DN9: 0 | DO9: 0 | DP9: 0 | DQ9: 0 | DR9: 0 | DS9: 0 | DT9: 0 | DU9: 0.125 | DV9: 0.375 | DW9: 0.625 | DX9: 0.875 | DY9: 1754108.83 | DZ9: 19969422.39 | EA9: 12952987.07 | EB9: 3876474.624 | EC9: 1754108.83 | ED9: 0 | EE9: 0 | EF9: 0 | EG9: 0 | EH9: 0 | EI9: 0 | EJ9: 0 | EK9: 0 | EL9: 0 | EM9: 0 | EN9: 0 | EO9: 0 | EP9: 0 | EQ9: 0 | ER9: 0 | ES9: 0 | ET9: 0 | EU9: 0 | EV9: 0 | EW9: 0 | EX9: 0 | EY9: 0 | EZ9: 0.125 | FA9: 0.375 | FB9: 0.625 | FC9: 1316721.365 | FD9: 0 | FE9: 0 | FF9: 0 | FG9: 0 | FH9: 0 | FI9: 0 | FJ9: 0 | FK9: 0 | FL9: 0 | FM9: 0 | FN9: 0 | FO9: 0 | FP9: 0 | FQ9: 0 | FR9: 0 | FS9: 0 | FT9: 0 | FU9: 0 | FV9: 0 | FW9: 0 | FX9: 0 | FY9: 0 | FZ9: 0 | GA9: 0.125 | GB9: 0.375 | GC9: 1007027.221 | GD9: 0 | GE9: 0 | GF9: 0 | GG9: 0 | GH9: 0 | GI9: 0 | GJ9: 0 | GK9: 0 | GL9: 0 | GM9: 0 | GN9: 0 | GO9: 0 | GP9: 0 | GQ9: 0 | GR9: 0 | GS9: 0 | GT9: 0 | GU9: 0 | GV9: 0 | GW9: 0 | GX9: 0 | GY9: 0 | GZ9: 0 | HA9: 0 | HB9: 0.125 | HC9: 675671.6233 | HD9: 0 | HE9: 0 | HF9: 0 | HG9: 0 | HH9: 0 | HI9: 0 | HJ9: 0 | HK9: 0 | HL9: 0 | HM9: 0 | HN9: 0 | HO9: 0 | HP9: 0 | HQ9: 0 | HR9: 0 | HS9: 0 | HT9: 0 | HU9: 0 | HV9: 0 | HW9: 0 | HX9: 0 | HY9: 0 | HZ9: 0 | IA9: 0 | IB9: 0 | IC9: =IF(HD9=0,0,($D9-$E9)*1/$C9)+IF(HE9=0,0,($G9-$H9-$I9)*$G$60*1/$C9)+IF(HF9=0,0,($K9-$L9-$M9)*$K$60*1/$C9)+IF(HG9=0,0,($O9-$P9-$Q9)*$O$60*1/$C9)+IF(HH9=0,0,($S9-$T9-$U9)*$S$60*1/$C9)+IF(HI9=0,0,($W9-$X9-$Y9)*$W$60*1/$C9)+IF(HJ9=0,0,($AA9-$AB9-$AC9)*$AA$60*1/$C9)+IF(HK9=0,0,($AE9-$AF9-$AG9)*$AE$60*1/$C9)+IF(HL9=0,0,($AI9-$AJ9-$AK9)*$AI$60*1/$C9)+IF(HM9=0,0,($AM9-$AN9-$AO9)*$AM$60*1/$C9)+IF(HN9=0,0,($AQ9-$AR9-$AS9)*$AQ$60*1/$C9)+IF(HO9=0,0,($AU9-$AV9-$AW9)*$AU$60*1/$C9)+IF(HP9=0,0,($AY9-$AZ9-$BA9)*$AY$60*1/$C9)+IF(HQ9=0,0,($BC9-$BD9-$BE9)*$BC$60*1/$C9)+IF(HR9=0,0,($BG9-$BH9-$BI9)*$BG$60*1/$C9)+IF(HS9=0,0,($BK9-$BL9-$BM9)*$BK$60*1/$C9)+IF(HT9=0,0,($BO9-$BP9-$BQ9)*$BO$60*1/$C9)+IF(HU9=0,0,($BS9-$BT9-$BU9)*$BS$60*1/$C9)+IF(HV9=0,0,($BW9-$BX9-$BY9)*$BW$60*1/$C9)+IF(HW9=0,0,($CA9-$CB9-$CC9)*$CA$60*1/$C9)+IF(HX9=0,0,($CE9-$CF9-$CG9)*$CE$60*1/$C9)+IF(HY9=0,0,($CI9-$CJ9-$CK9)*$CI$60*1/$C9)+IF(HZ9=0,0,($CM9-$CN9-$CO9)*$CM$60*1/$C9)+IF(IA9=0,0,($CQ9-$CR9-$CS9)*$CQ$60*1/$C9)+IF(IB9=0,0,($CU9-$CV9-$CW9)*$CU$60*1/$C9) -> 0 | IE9: 437387.4649 | IF9: 309694.1444 | IG9: 331355.5973 | IH9: 675671.6233
B10: Equipos de transporte y carga | C10: 5 | D10: 3800054.162 | E10: 0 | F10: 1250795.267 | G10: 66062 | H10: 0 | I10: 0 | J10: 0 | K10: 12581 | L10: 0 | M10: 0 | N10: 0 | O10: 73500 | P10: 0 | Q10: 0 | R10: 0 | S10: 54739 | T10: 0 | U10: 0 | V10: 0 | W10: 0 | X10: 0 | Y10: 0 | Z10: 0 | AA10: 0 | AB10: 0 | AC10: 0 | AD10: 0 | AE10: 188844.95 | AF10: 0 | AG10: 0 | AH10: 0 | AI10: 8402 | AJ10: 0 | AK10: 0 | AL10: 0 | AM10: 523011.97 | AN10: 0 | AO10: 0 | AP10: 0 | AQ10: 668495.99 | AR10: 0 | AS10: 0 | AT10: 0 | AU10: 476895.13 | AV10: 0 | AW10: 0 | AX10: 0 | AY10: 272443.65 | AZ10: 0 | BA10: 0 | BB10: 0 | BC10: 2092541.22 | BD10: 0 | BE10: 0 | BF10: 0 | BG10: 690928.83 | BH10: 0 | BI10: 0 | BJ10: 0 | BK10: 1475074.11 | BL10: 0 | BM10: 0 | BN10: 0 | BO10: 135135 | BP10: 0 | BQ10: 0 | BR10: 0 | BS10: 57990 | BT10: 0 | BU10: 0 | BV10: 0 | BW10: 362633.37 | BX10: 0 | BY10: 0 | BZ10: 0 | CA10: 45000.01 | CB10: 0 | CC10: 0 | CD10: 0 | CE10: 184844.03 | CF10: 0 | CG10: 0 | CH10: 0 | CI10: 1037298.91 | CJ10: 0 | CM10: 790628.31 | CN10: 0 | CQ10: 1689921.08 | CR10: 0 | CU10: 326724.66 | CV10: 0 | CY10: 1997.64576 | CZ10: 0 | DA10: 0 | DB10: 0 | DC10: 0 | DD10: 0 | DE10: 0 | DF10: 0 | DG10: 0 | DH10: 0 | DI10: 0 | DJ10: 0 | DK10: 0 | DL10: 0 | DM10: 0 | DN10: 0 | DO10: 0 | DP10: 0 | DQ10: 0 | DR10: 0 | DS10: 0 | DT10: 0.1 | DU10: 0.3 | DV10: 0.5 | DW10: 0.7 | DX10: 0.9 | DY10: 739329.1113 | DZ10: 13561568.13 | EA10: 9864922.571 | EB10: 2024784.559 | EC10: 739329.1113 | ED10: 0 | EE10: 0 | EF10: 0 | EG10: 0 | EH10: 0 | EI10: 0 | EJ10: 0 | EK10: 0 | EL10: 0 | EM10: 0 | EN10: 0 | EO10: 0 | EP10: 0 | EQ10: 0 | ER10: 0 | ES10: 0 | ET10: 0 | EU10: 0 | EV10: 0 | EW10: 0 | EX10: 0 | EY10: 0.1 | EZ10: 0.3 | FA10: 0.5 | FB10: 0.7 | FC10: 707401.4246 | FD10: 0 | FE10: 0 | FF10: 0 | FG10: 0 | FH10: 0 | FI10: 0 | FJ10: 0 | FK10: 0 | FL10: 0 | FM10: 0 | FN10: 0 | FO10: 0 | FP10: 0 | FQ10: 0 | FR10: 0 | FS10: 0 | FT10: 0 | FU10: 0 | FV10: 0 | FW10: 0 | FX10: 0 | FY10: 0 | FZ10: 0.1 | GA10: 0.3 | GB10: 0.5 | GC10: 516538.4252 | GD10: 0 | GE10: 0 | GF10: 0 | GG10: 0 | GH10: 0 | GI10: 0 | GJ10: 0 | GK10: 0 | GL10: 0 | GM10: 0 | GN10: 0 | GO10: 0 | GP10: 0 | GQ10: 0 | GR10: 0 | GS10: 0 | GT10: 0 | GU10: 0 | GV10: 0 | GW10: 0 | GX10: 0 | GY10: 0 | GZ10: 0 | HA10: 0.1 | HB10: 0.3 | HC10: 371062.8162 | HD10: 0 | HE10: 0 | HF10: 0 | HG10: 0 | HH10: 0 | HI10: 0 | HJ10: 0 | HK10: 0 | HL10: 0 | HM10: 0 | HN10: 0 | HO10: 0 | HP10: 0 | HQ10: 0 | HR10: 0 | HS10: 0 | HT10: 0 | HU10: 0 | HV10: 0 | HW10: 0 | HX10: 0 | HY10: 0 | HZ10: 0 | IA10: 0 | IB10: 0.1 | IC10: =IF(HD10=0,0,($D10-$E10)*1/$C10)+IF(HE10=0,0,($G10-$H10-$I10)*$G$60*1/$C10)+IF(HF10=0,0,($K10-$L10-$M10)*$K$60*1/$C10)+IF(HG10=0,0,($O10-$P10-$Q10)*$O$60*1/$C10)+IF(HH10=0,0,($S10-$T10-$U10)*$S$60*1/$C10)+IF(HI10=0,0,($W10-$X10-$Y10)*$W$60*1/$C10)+IF(HJ10=0,0,($AA10-$AB10-$AC10)*$AA$60*1/$C10)+IF(HK10=0,0,($AE10-$AF10-$AG10)*$AE$60*1/$C10)+IF(HL10=0,0,($AI10-$AJ10-$AK10)*$AI$60*1/$C10)+IF(HM10=0,0,($AM10-$AN10-$AO10)*$AM$60*1/$C10)+IF(HN10=0,0,($AQ10-$AR10-$AS10)*$AQ$60*1/$C10)+IF(HO10=0,0,($AU10-$AV10-$AW10)*$AU$60*1/$C10)+IF(HP10=0,0,($AY10-$AZ10-$BA10)*$AY$60*1/$C10)+IF(HQ10=0,0,($BC10-$BD10-$BE10)*$BC$60*1/$C10)+IF(HR10=0,0,($BG10-$BH10-$BI10)*$BG$60*1/$C10)+IF(HS10=0,0,($BK10-$BL10-$BM10)*$BK$60*1/$C10)+IF(HT10=0,0,($BO10-$BP10-$BQ10)*$BO$60*1/$C10)+IF(HU10=0,0,($BS10-$BT10-$BU10)*$BS$60*1/$C10)+IF(HV10=0,0,($BW10-$BX10-$BY10)*$BW$60*1/$C10)+IF(HW10=0,0,($CA10-$CB10-$CC10)*$CA$60*1/$C10)+IF(HX10=0,0,($CE10-$CF10-$CG10)*$CE$60*1/$C10)+IF(HY10=0,0,($CI10-$CJ10-$CK10)*$CI$60*1/$C10)+IF(HZ10=0,0,($CM10-$CN10-$CO10)*$CM$60*1/$C10)+IF(IA10=0,0,($CQ10-$CR10-$CS10)*$CQ$60*1/$C10)+IF(IB10=0,0,($CU10-$CV10-$CW10)*$CU$60*1/$C10) -> 60117.33744 | IE10: 31927.68668 | IF10: 190862.9994 | IG10: 145475.609 | IH10: 310945.4787
B11: Equipos de comunicaciones | C11: 8 | D11: 2480336.603 | E11: 0 | F11: 1769732.541 | G11: 31891 | H11: 0 | I11: 0 | J11: 0 | K11: 217281 | L11: 0 | M11: 0 | N11: 0 | O11: 55152 | P11: 0 | Q11: 0 | R11: 0 | S11: 19165 | T11: 0 | U11: 0 | V11: 0 | W11: 0 | X11: 0 | Y11: 0 | Z11: 0 | AA11: 0 | AB11: 0 | AC11: 0 | AD11: 0 | AE11: 34477.98 | AF11: 0 | AG11: 0 | AH11: 0 | AI11: 33653.06 | AJ11: 0 | AK11: 0 | AL11: 0 | AM11: 292999.33 | AN11: 0 | AO11: 0 | AP11: 0 | AQ11: 132499.14 | AR11: 0 | AS11: 0 | AT11: 0 | AU11: 143653.87 | AV11: 0 | AW11: 0 | AX11: 0 | AY11: 158473.01 | AZ11: 0 | BA11: 0 | BB11: 0 | BC11: 21964.41 | BD11: 0 | BE11: 0 | BF11: 0 | BG11: 254615.15 | BH11: 0 | BI11: 0 | BJ11: 0 | BK11: 91973.18 | BL11: 0 | BM11: 0 | BN11: 0 | BO11: 224816.85 | BP11: 0 | BQ11: 0 | BR11: 0 | BS11: 108324.82 | BT11: 0 | BU11: 0 | BV11: 0 | BW11: 40426.51 | BX11: 0 | BY11: 0 | BZ11: 0 | CA11: 78367.78 | CB11: 0 | CC11: 0 | CD11: 0 | CE11: 284756.9 | CF11: 0 | CG11: 0 | CH11: 0 | CI11: 350718.89 | CJ11: 0 | CM11: 368828.42 | CN11: 0 | CQ11: 18519.83 | CR11: 0 | CU11: 740711.64 | CV11: 0 | CY11: 1998.70804 | CZ11: 0 | DA11: 0 | DB11: 0 | DC11: 0 | DD11: 0 | DE11: 0 | DF11: 0 | DG11: 0 | DH11: 0 | DI11: 0 | DJ11: 0 | DK11: 0 | DL11: 0 | DM11: 0 | DN11: 0 | DO11: 0 | DP11: 0 | DQ11: 0.0625 | DR11: 0.1875 | DS11: 0.3125 | DT11: 0.4375 | DU11: 0.5625 | DV11: 0.6875 | DW11: 0.8125 | DX11: 0.9375 | DY11: 226351.3398 | DZ11: 5686502.852 | EA11: 3875692.134 | EB11: 1210037.627 | EC11: 226351.3398 | ED11: 0 | EE11: 0 | EF11: 0 | EG11: 0 | EH11: 0 | EI11: 0 | EJ11: 0 | EK11: 0 | EL11: 0 | EM11: 0 | EN11: 0 | EO11: 0 | EP11: 0 | EQ11: 0 | ER11: 0 | ES11: 0 | ET11: 0 | EU11: 0 | EV11: 0.0625 | EW11: 0.1875 | EX11: 0.3125 | EY11: 0.4375 | EZ11: 0.5625 | FA11: 0.6875 | FB11: 0.8125 | FC11: 214164.7975 | FD11: 0 | FE11: 0 | FF11: 0 | FG11: 0 | FH11: 0 | FI11: 0 | FJ11: 0 | FK11: 0 | FL11: 0 | FM11: 0 | FN11: 0 | FO11: 0 | FP11: 0 | FQ11: 0 | FR11: 0 | FS11: 0 | FT11: 0 | FU11: 0 | FV11: 0 | FW11: 0.0625 | FX11: 0.1875 | FY11: 0.3125 | FZ11: 0.4375 | GA11: 0.5625 | GB11: 0.6875 | GC11: 209616.8151 | GD11: 0 | GE11: 0 | GF11: 0 | GG11: 0 | GH11: 0 | GI11: 0 | GJ11: 0 | GK11: 0 | GL11: 0 | GM11: 0 | GN11: 0 | GO11: 0 | GP11: 0 | GQ11: 0 | GR11: 0 | GS11: 0 | GT11: 0 | GU11: 0 | GV11: 0 | GW11: 0 | GX11: 0.0625 | GY11: 0.1875 | GZ11: 0.3125 | HA11: 0.4375 | HB11: 0.5625 | HC11: 200800.4399 | HD11: 0 | HE11: 0 | HF11: 0 | HG11: 0 | HH11: 0 | HI11: 0 | HJ11: 0 | HK11: 0 | HL11: 0 | HM11: 0 | HN11: 0 | HO11: 0 | HP11: 0 | HQ11: 0 | HR11: 0 | HS11: 0 | HT11: 0 | HU11: 0 | HV11: 0 | HW11: 0 | HX11: 0 | HY11: 0.0625 | HZ11: 0.1875 | IA11: 0.3125 | IB11: 0.4375 | IC11: =IF(HD11=0,0,($D11-$E11)*1/$C11)+IF(HE11=0,0,($G11-$H11-$I11)*$G$60*1/$C11)+IF(HF11=0,0,($K11-$L11-$M11)*$K$60*1/$C11)+IF(HG11=0,0,($O11-$P11-$Q11)*$O$60*1/$C11)+IF(HH11=0,0,($S11-$T11-$U11)*$S$60*1/$C11)+IF(HI11=0,0,($W11-$X11-$Y11)*$W$60*1/$C11)+IF(HJ11=0,0,($AA11-$AB11-$AC11)*$AA$60*1/$C11)+IF(HK11=0,0,($AE11-$AF11-$AG11)*$AE$60*1/$C11)+IF(HL11=0,0,($AI11-$AJ11-$AK11)*$AI$60*1/$C11)+IF(HM11=0,0,($AM11-$AN11-$AO11)*$AM$60*1/$C11)+IF(HN11=0,0,($AQ11-$AR11-$AS11)*$AQ$60*1/$C11)+IF(HO11=0,0,($AU11-$AV11-$AW11)*$AU$60*1/$C11)+IF(HP11=0,0,($AY11-$AZ11-$BA11)*$AY$60*1/$C11)+IF(HQ11=0,0,($BC11-$BD11-$BE11)*$BC$60*1/$C11)+IF(HR11=0,0,($BG11-$BH11-$BI11)*$BG$60*1/$C11)+IF(HS11=0,0,($BK11-$BL11-$BM11)*$BK$60*1/$C11)+IF(HT11=0,0,($BO11-$BP11-$BQ11)*$BO$60*1/$C11)+IF(HU11=0,0,($BS11-$BT11-$BU11)*$BS$60*1/$C11)+IF(HV11=0,0,($BW11-$BX11-$BY11)*$BW$60*1/$C11)+IF(HW11=0,0,($CA11-$CB11-$CC11)*$CA$60*1/$C11)+IF(HX11=0,0,($CE11-$CF11-$CG11)*$CE$60*1/$C11)+IF(HY11=0,0,($CI11-$CJ11-$CK11)*$CI$60*1/$C11)+IF(HZ11=0,0,($CM11-$CN11-$CO11)*$CM$60*1/$C11)+IF(IA11=0,0,($CQ11-$CR11-$CS11)*$CQ$60*1/$C11)+IF(IB11=0,0,($CU11-$CV11-$CW11)*$CU$60*1/$C11) -> 170059.5597 | IE11: 12186.54225 | IF11: 4547.982375 | IG11: 8816.37525 | IH11: 30740.88018
B12: Otros equipos de uso general | C12: 17 | D12: 2346911.757 | E12: 0 | F12: 1840063.673 | G12: 71208 | H12: 0 | I12: 0 | J12: 0 | K12: 19909 | L12: 0 | M12: 0 | N12: 0 | O12: 14365.32 | P12: 0 | Q12: 0 | R12: 0 | S12: 22325.92 | T12: 0 | U12: 0 | V12: 0 | W12: 0 | X12: 0 | Y12: 0 | Z12: 0 | AA12: 0 | AB12: 0 | AC12: 0 | AD12: 0 | AE12: 97557.38 | AF12: 0 | AG12: 0 | AH12: 0 | AI12: 832985.52 | AJ12: 0 | AK12: 0 | AL12: 0 | AM12: 102780.58 | AN12: 0 | AO12: 0 | AP12: 0 | AQ12: 246580.92 | AR12: 0 | AS12: 0 | AT12: 0 | AU12: 397920.5 | AV12: 0 | AW12: 0 | AX12: 0 | AY12: 665955.6 | AZ12: 0 | BA12: 0 | BB12: 0 | BC12: 33332.06 | BD12: 0 | BE12: 0 | BF12: 0 | BG12: 201849.28 | BH12: 0 | BI12: 0 | BJ12: 0 | BK12: 34629.9 | BL12: 0 | BM12: 0 | BN12: 0 | BO12: 935430.96 | BP12: 0 | BQ12: 0 | BR12: 0 | BS12: 248586.98 | BT12: 0 | BU12: 0 | BV12: 0 | BW12: 304540.84 | BX12: 0 | BY12: 0 | BZ12: 0 | CA12: 79149.89 | CB12: 0 | CC12: 0 | CD12: 0 | CE12: 201124.62 | CF12: 0 | CG12: 0 | CH12: 0 | CI12: 249750.33 | CJ12: 0 | CM12: 346710.1 | CN12: 0 | CQ12: 489055.11 | CR12: 0 | CU12: 1919808.95 | CV12: 0 | CY12: 1997.328615 | CZ12: 0 | DA12: 0 | DB12: 0 | DC12: 0 | DD12: 0 | DE12: 0 | DF12: 0 | DG12: 0 | DH12: 0.02941176471 | DI12: 0.08823529412 | DJ12: 0.1470588235 | DK12: 0.2058823529 | DL12: 0.2647058824 | DM12: 0.3235294118 | DN12: 0.3823529412 | DO12: 0.4411764706 | DP12: 0.5 | DQ12: 0.5588235294 | DR12: 0.6176470588 | DS12: 0.6764705882 | DT12: 0.7352941176 | DU12: 0.7941176471 | DV12: 0.8529411765 | DW12: 0.9117647059 | DX12: 0.9705882353 | DY12: 375642.1579 | DZ12: 8934752.438 | EA12: 2548835.754 | EB12: 3811962.805 | EC12: 375642.1579 | ED12: 0 | EE12: 0 | EF12: 0 | EG12: 0 | EH12: 0 | EI12: 0 | EJ12: 0 | EK12: 0 | EL12: 0 | EM12: 0.02941176471 | EN12: 0.08823529412 | EO12: 0.1470588235 | EP12: 0.2058823529 | EQ12: 0.2647058824 | ER12: 0.3235294118 | ES12: 0.3823529412 | ET12: 0.4411764706 | EU12: 0.5 | EV12: 0.5588235294 | EW12: 0.6176470588 | EX12: 0.6764705882 | EY12: 0.7352941176 | EZ12: 0.7941176471 | FA12: 0.8529411765 | FB12: 0.9117647059 | FC12: 330732.8058 | FD12: 0 | FE12: 0 | FF12: 0 | FG12: 0 | FH12: 0 | FI12: 0 | FJ12: 0 | FK12: 0 | FL12: 0 | FM12: 0 | FN12: 0.02941176471 | FO12: 0.08823529412 | FP12: 0.1470588235 | FQ12: 0.2058823529 | FR12: 0.2647058824 | FS12: 0.3235294118 | FT12: 0.3823529412 | FU12: 0.4411764706 | FV12: 0.5 | FW12: 0.5588235294 | FX12: 0.6176470588 | FY12: 0.6764705882 | FZ12: 0.7352941176 | GA12: 0.7941176471 | GB12: 0.8529411765 | GC12: 325949.349 | GD12: 0 | GE12: 0 | GF12: 0 | GG12: 0 | GH12: 0 | GI12: 0 | GJ12: 0 | GK12: 0 | GL12: 0 | GM12: 0 | GN12: 0 | GO12: 0.02941176471 | GP12: 0.08823529412 | GQ12: 0.1470588235 | GR12: 0.2058823529 | GS12: 0.2647058824 | GT12: 0.3235294118 | GU12: 0.3823529412 | GV12: 0.4411764706 | GW12: 0.5 | GX12: 0.5588235294 | GY12: 0.6176470588 | GZ12: 0.6764705882 | HA12: 0.7352941176 | HB12: 0.7941176471 | HC12: 319106.9628 | HD12: 0 | HE12: 0 | HF12: 0 | HG12: 0 | HH12: 0 | HI12: 0 | HJ12: 0 | HK12: 0 | HL12: 0 | HM12: 0 | HN12: 0 | HO12: 0 | HP12: 0.02941176471 | HQ12: 0.08823529412 | HR12: 0.1470588235 | HS12: 0.2058823529 | HT12: 0.2647058824 | HU12: 0.3235294118 | HV12: 0.3823529412 | HW12: 0.4411764706 | HX12: 0.5 | HY12: 0.5588235294 | HZ12: 0.6176470588 | IA12: 0.6764705882 | IB12: 0.7352941176 | IC12: =IF(HD12=0,0,($D12-$E12)*1/$C12)+IF(HE12=0,0,($G12-$H12-$I12)*$G$60*1/$C12)+IF(HF12=0,0,($K12-$L12-$M12)*$K$60*1/$C12)+IF(HG12=0,0,($O12-$P12-$Q12)*$O$60*1/$C12)+IF(HH12=0,0,($S12-$T12-$U12)*$S$60*1/$C12)+IF(HI12=0,0,($W12-$X12-$Y12)*$W$60*1/$C12)+IF(HJ12=0,0,($AA12-$AB12-$AC12)*$AA$60*1/$C12)+IF(HK12=0,0,($AE12-$AF12-$AG12)*$AE$60*1/$C12)+IF(HL12=0,0,($AI12-$AJ12-$AK12)*$AI$60*1/$C12)+IF(HM12=0,0,($AM12-$AN12-$AO12)*$AM$60*1/$C12)+IF(HN12=0,0,($AQ12-$AR12-$AS12)*$AQ$60*1/$C12)+IF(HO12=0,0,($AU12-$AV12-$AW12)*$AU$60*1/$C12)+IF(HP12=0,0,($AY12-$AZ12-$BA12)*$AY$60*1/$C12)+IF(HQ12=0,0,($BC12-$BD12-$BE12)*$BC$60*1/$C12)+IF(HR12=0,0,($BG12-$BH12-$BI12)*$BG$60*1/$C12)+IF(HS12=0,0,($BK12-$BL12-$BM12)*$BK$60*1/$C12)+IF(HT12=0,0,($BO12-$BP12-$BQ12)*$BO$60*1/$C12)+IF(HU12=0,0,($BS12-$BT12-$BU12)*$BS$60*1/$C12)+IF(HV12=0,0,($BW12-$BX12-$BY12)*$BW$60*1/$C12)+IF(HW12=0,0,($CA12-$CB12-$CC12)*$CA$60*1/$C12)+IF(HX12=0,0,($CE12-$CF12-$CG12)*$CE$60*1/$C12)+IF(HY12=0,0,($CI12-$CJ12-$CK12)*$CI$60*1/$C12)+IF(HZ12=0,0,($CM12-$CN12-$CO12)*$CM$60*1/$C12)+IF(IA12=0,0,($CQ12-$CR12-$CS12)*$CQ$60*1/$C12)+IF(IB12=0,0,($CU12-$CV12-$CW12)*$CU$60*1/$C12) -> 300851.4569 | IE12: 44909.35205 | IF12: 4783.456781 | IG12: 6842.386244 | IH12: 18255.50589
B13: TOTAL PROPIEDADES Y PLANTA | D13: =SUM(D5:D12) -> 14059080.17 | E13: =SUM(E5:E12) -> 0 | F13: 8830838.116 | G13: =SUM(G5:G12) -> 992553 | H13: =SUM(H5:H12) -> 0 | I13: 0 | J13: 0 | K13: =SUM(K5:K12) -> 434666 | L13: =SUM(L5:L12) -> 0 | M13: =SUM(M5:M12) -> 0 | N13: =SUM(N5:N12) -> 0 | O13: =SUM(O5:O12) -> 1215530.53 | P13: =SUM(P5:P12) -> 0 | Q13: =SUM(Q5:Q12) -> 0 | R13: =SUM(R5:R12) -> 0 | S13: =SUM(S5:S12) -> 1052253.33 | T13: =SUM(T5:T12) -> 0 | U13: =SUM(U5:U12) -> 0 | V13: =SUM(V5:V12) -> 0 | W13: =SUM(W5:W12) -> 420648.23 | X13: =SUM(X5:X12) -> 0 | Y13: =SUM(Y5:Y12) -> 0 | Z13: =SUM(Z5:Z12) -> 0 | AA13: =SUM(AA5:AA12) -> 1558147.32 | AB13: =SUM(AB5:AB12) -> 0 | AC13: =SUM(AC5:AC12) -> 0 | AD13: =SUM(AD5:AD12) -> 0 | AE13: =SUM(AE5:AE12) -> 1052676.1 | AF13: =SUM(AF5:AF12) -> 0 | AG13: =SUM(AG5:AG12) -> 0 | AH13: =SUM(AH5:AH12) -> 0 | AI13: =SUM(AI5:AI12) -> 1899411.3 | AJ13: =SUM(AJ5:AJ12) -> 0 | AK13: =SUM(AK5:AK12) -> 0 | AL13: =SUM(AL5:AL12) -> 0 | AM13: =SUM(AM5:AM12) -> 3414726.14 | AN13: =SUM(AN5:AN12) -> 0 | AO13: =SUM(AO5:AO12) -> 0 | AP13: =SUM(AP5:AP12) -> 0 | AQ13: =SUM(AQ5:AQ12) -> 4247393.61 | AR13: =SUM(AR5:AR12) -> 0 | AS13: =SUM(AS5:AS12) -> 0 | AT13: =SUM(AT5:AT12) -> 0 | AU13: =SUM(AU5:AU12) -> 4991125.67 | AV13: =SUM(AV5:AV12) -> 0 | AW13: =SUM(AW5:AW12) -> 0 | AX13: =SUM(AX5:AX12) -> 0 | AY13: =SUM(AY5:AY12) -> 4590776.61 | AZ13: =SUM(AZ5:AZ12) -> 0 | BA13: =SUM(BA5:BA12) -> 0 | BB13: =SUM(BB5:BB12) -> 0 | BC13: =SUM(BC5:BC12) -> 14976425.35 | BD13: =SUM(BD5:BD12) -> 0 | BE13: =SUM(BE5:BE12) -> 0 | BF13: =SUM(BF5:BF12) -> 0 | BG13: =SUM(BG5:BG12) -> 17658206.85 | BH13: =SUM(BH5:BH12) -> 0 | BI13: =SUM(BI5:BI12) -> 0 | BJ13: =SUM(BJ5:BJ12) -> 0 | BK13: =SUM(BK5:BK12) -> 26713084.93 | BL13: =SUM(BL5:BL12) -> 0 | BM13: =SUM(BM5:BM12) -> 0 | BN13: =SUM(BN5:BN12) -> 0 | BO13: =SUM(BO5:BO12) -> 15652369.52 | BP13: =SUM(BP5:BP12) -> 0 | BQ13: =SUM(BQ5:BQ12) -> 0 | BR13: =SUM(BR5:BR12) -> 0 | BS13: =SUM(BS5:BS12) -> 6206420.86 | BT13: =SUM(BT5:BT12) -> 0 | BU13: =SUM(BU5:BU12) -> 0 | BV13: =SUM(BV5:BV12) -> 0 | BW13: =SUM(BW5:BW12) -> 7546658.45 | BX13: =SUM(BX5:BX12) -> 0 | BY13: =SUM(BY5:BY12) -> 0 | BZ13: =SUM(BZ5:BZ12) -> 0 | CA13: =SUM(CA5:CA12) -> 8965196.72 | CB13: =SUM(CB5:CB12) -> 0 | CC13: =SUM(CC5:CC12) -> 0 | CD13: =SUM(CD5:CD12) -> 0 | CE13: =SUM(CE5:CE12) -> 14519446.32 | CF13: =SUM(CF5:CF12) -> 0 | CG13: =SUM(CG5:CG12) -> 0 | CH13: =SUM(CH5:CH12) -> 0 | CI13: =SUM(CI5:CI12) -> 8167071.43 | CJ13: 5336.47 | CK13: 0 | CL13: 0 | CM13: 8675864.74 | CN13: 0 | CO13: 0 | CP13: 0 | CQ13: 12148519.55 | CR13: 0 | CS13: 0 | CT13: 0 | CU13: =SUM(CU5:CU12) -> 23848302.67 | CV13: =SUM(CV5:CV12) -> 0 | CW13: =SUM(CW5:CW12) -> 0 | CX13: 0 | DY13: =SUM(DY5:DY12) -> 8994783.519 | DZ13: =SUM(DZ5:DZ12) -> 183083575.7 | EA13: =SUM(EA5:EA12) -> 79177981.44 | EB13: =SUM(EB5:EB12) -> 78032408.38 | EC13: =SUM(EC5:EC12) -> 8994783.519 | FC13: =SUM(FC5:FC12) -> 7834439.418 | GC13: =SUM(GC5:GC12) -> 6423926.161 | HC13: =SUM(HC5:HC12) -> 4280115.8 | IC13: =SUM(IC5:IC12) -> 2020918.301 | IE13: 1160344.101 | IF13: 1410513.256 | IG13: 2143810.362 | IH13: 2259197.499
B14: Activos intangibles (software) | C14: 4 | D14: 0 | E14: 0 | F14: 0 | G14: 146069 | H14: 0 | I14: 0 | J14: 0 | K14: 712799 | L14: 0 | M14: 0 | N14: 0 | O14: 15512 | P14: 0 | Q14: 0 | R14: 0 | S14: 150992.98 | T14: 0 | U14: 0 | V14: 0 | W14: 2344.63 | X14: 0 | Y14: 0 | Z14: 0 | AA14: 0 | AB14: 0 | AC14: 0 | AD14: 0 | AE14: 3384.67 | AF14: 0 | AG14: 0 | AH14: 0 | AI14: 134496.21 | AJ14: 0 | AK14: 0 | AL14: 0 | AM14: 0 | AN14: 0 | AO14: 0 | AP14: 0 | AQ14: 0 | AR14: 0 | AS14: 0 | AT14: 0 | AU14: 0 | AV14: 0 | AW14: 0 | AX14: 0 | AY14: 0 | AZ14: 0 | BA14: 0 | BB14: 0 | BC14: 0 | BD14: 0 | BE14: 0 | BF14: 0 | BG14: 0 | BH14: 0 | BI14: 0 | BJ14: 0 | BK14: 0 | BL14: 0 | BM14: 0 | BN14: 0 | BO14: 0 | BP14: 0 | BQ14: 0 | BR14: 0 | BS14: 0 | BT14: 0 | BU14: 0 | BV14: 0 | BW14: 0 | BX14: 0 | BY14: 0 | BZ14: 0 | CA14: 0 | CB14: 0 | CC14: 0 | CD14: 0 | CE14: 0 | CF14: 0 | CG14: 0 | CH14: 0 | CI14: 0 | CJ14: 0 | CM14: 0 | CN14: 0 | CQ14: 0 | CR14: 0 | CU14: 0 | CV14: 0 | CY14: =IF(D14=0,0,2001-(D14-F14)*C14/D14) -> 0 | CZ14: =IF((1-($DY$2-$CY14)/$C14)>0,(1-($DY$2-$CY14)/$C14),0) -> 0 | DA14: =IF((1-($DY$2-G$2)/$C14)>0,(1-($DY$2-G$2)/$C14),0) -> 0 | DB14: =IF((1-($DY$2-K$2)/$C14)>0,(1-($DY$2-K$2)/$C14),0) -> 0 | DC14: =IF((1-($DY$2-O$2)/$C14)>0,(1-($DY$2-O$2)/$C14),0) -> 0 | DD14: =IF((1-($DY$2-S$2)/$C14)>0,(1-($DY$2-S$2)/$C14),0) -> 0 | DE14: =IF((1-($DY$2-W$2)/$C14)>0,(1-($DY$2-W$2)/$C14),0) -> 0 | DF14: =IF((1-($DY$2-AA$2)/$C14)>0,(1-($DY$2-AA$2)/$C14),0) -> 0 | DG14: =IF((1-($DY$2-AE$2)/$C14)>0,(1-($DY$2-AE$2)/$C14),0) -> 0 | DH14: =IF((1-($DY$2-AI$2)/$C14)>0,(1-($DY$2-AI$2)/$C14),0) -> 0 | DI14: =IF((1-($DY$2-AM$2)/$C14)>0,(1-($DY$2-AM$2)/$C14),0) -> 0 | DJ14: =IF((1-($DY$2-AQ$2)/$C14)>0,(1-($DY$2-AQ$2)/$C14),0) -> 0 | DK14: =IF((1-($DY$2-AU$2)/$C14)>0,(1-($DY$2-AU$2)/$C14),0) -> 0 | DL14: =IF((1-($DY$2-AY$2)/$C14)>0,(1-($DY$2-AY$2)/$C14),0) -> 0 | DM14: =IF((1-($DY$2-BC$2)/$C14)>0,(1-($DY$2-BC$2)/$C14),0) -> 0 | DN14: =IF((1-($DY$2-BG$2)/$C14)>0,(1-($DY$2-BG$2)/$C14),0) -> 0 | DO14: =IF((1-($DY$2-BK$2)/$C14)>0,(1-($DY$2-BK$2)/$C14),0) -> 0 | DP14: =IF((1-($DY$2-BO$2)/$C14)>0,(1-($DY$2-BO$2)/$C14),0) -> 0 | DQ14: =IF((1-($DY$2-BS$2)/$C14)>0,(1-($DY$2-BS$2)/$C14),0) -> 0 | DR14: =IF((1-($DY$2-BW$2)/$C14)>0,(1-($DY$2-BW$2)/$C14),0) -> 0 | DS14: =IF((1-($DY$2-CA$2)/$C14)>0,(1-($DY$2-CA$2)/$C14),0) -> 0 | DT14: =IF((1-($DY$2-CE$2)/$C14)>0,(1-($DY$2-CE$2)/$C14),0) -> 0 | DU14: =IF((1-($DY$2-CI$2)/$C14)>0,(1-($DY$2-CI$2)/$C14),0) -> 0.125 | DV14: =IF((1-($DY$2-CM$2)/$C14)>0,(1-($DY$2-CM$2)/$C14),0) -> 0.375 | DW14: =IF((1-($DY$2-CQ$2)/$C14)>0,(1-($DY$2-CQ$2)/$C14),0) -> 0.625 | DX14: =IF((1-($DY$2-CU$2)/$C14)>0,(1-($DY$2-CU$2)/$C14),0) -> 0.875 | DY14: =IF(CZ14=0,0,($D14-$E14)*1/$C14)+IF(DA14=0,0,($G14-$H14-$I14)*$G$61*1/$C14)+IF(DB14=0,0,($K14-$L14-$M14)*$K$61*1/$C14)+IF(DC14=0,0,($O14-$P14-$Q14)*$O$61*1/$C14)+IF(DD14=0,0,($S14-$T14-$U14)*$S$61*1/$C14)+IF(DE14=0,0,($W14-$X14-$Y14)*$W$61*1/$C14)+IF(DF14=0,0,($AA14-$AB14-$AC14)*$AA$61*1/$C14)+IF(DG14=0,0,($AE14-$AF14-$AG14)*$AE$61*1/$C14)+IF(DH14=0,0,($AI14-$AJ14-$AK14)*$AI$61*1/$C14)+IF(DI14=0,0,($AM14-$AN14-$AO14)*$AM$61*1/$C14)+IF(DJ14=0,0,($AQ14-$AR14-$AS14)*$AQ$61*1/$C14)+IF(DK14=0,0,($AU14-$AV14-$AW14)*$AU$61*1/$C14)+IF(DL14=0,0,($AY14-$AZ14-$BA14)*$AY$61*1/$C14)+IF(DM14=0,0,($BC14-$BD14-$BE14)*$BC$61*1/$C14)+IF(DN14=0,0,($BG14-$BH14-$BI14)*$BG$61*1/$C14)+IF(DO14=0,0,($BK14-$BL14-$BM14)*$BK$61*1/$C14)+IF(DP14=0,0,($BO14-$BP14-$BQ14)*$BO$61*1/$C14)+IF(DQ14=0,0,($BS14-$BT14-$BU14)*$BS$61*1/$C14)+IF(DR14=0,0,($BW14-$BX14-$BY14)*$BW$61*1/$C14)+IF(DS14=0,0,($CA14-$CB14-$CC14)*$CA$61*1/$C14)+IF(DT14=0,0,($CE14-$CF14-$CG14)*$CE$61*1/$C14)+IF(DU14=0,0,($CI14-$CJ14-$CK14)*$CI$61*1/$C14)+IF(DV14=0,0,($CM14-$CN14-$CO14)*$CM$61*1/$C14)+IF(DW14=0,0,($CQ14-$CR14-$CS14)*$CQ$61*1/$C14)+IF(DX14=0,0,($CU14-$CV14-$CW14)*$CU$61*1/$C14) -> 0 | DZ14: =D14-E14+(G14-H14-I14)*G$61+(K14-L14-M14)*K$61+(O14-P14-Q14)*O$61+(S14-T14-U14)*S$61+(W14-X14-Y14)*W$61+(AA14-AB14-AC14)*AA$61+(AE14-AF14-AG14)*AE$61+(AI14-AJ14-AK14)*AI$61+(AM14-AN14-AO14)*AM$61+(AQ14-AR14-AS14)*$AQ$61+(AU14-AV14-AW14)*$AU$61+(AY14-AZ14-BA14)*$AY$61+(BC14-BD14-BE14)*$BC$61+(BG14-BH14-BI14)*$BG$61+(BK14-BL14-BM14)*$BK$61+(BO14-BP14-BQ14)*$BO$61+(BS14-BT14-BU14)*$BS$61+(BW14-BX14-BY14)*$BW$61+(CA14-CB14-CC14)*$CA$61+(CE14-CF14-CG14)*$CE$61+(CI14-CJ14-CK14)*$CI$61+(CM14-CN14-CO14)*$CM$61+(CQ14-CR14-CS14)*$CQ$61+(CU14-CV14-CW14)*$CU$61 -> 1051269.921 | EA14: =IF(CZ14=0,D14-E14,0)+IF(DA14=0,(G14-H14-I14)*G$61,0)+IF(DB14=0,(K14-L14-M14)*K$61,0)+IF(DC14=0,(O14-P14-Q14)*O$61,0)+IF(DD14=0,(S14-T14-U14)*S$61,0)+IF(DE14=0,(W14-X14-Y14)*W$61,0)+IF(DF14=0,(AA14-AB14-AC14)*AA$61,0)+IF(DG14=0,(AE14-AF14-AG14)*AE$61,0)+IF(DH14=0,(AI14-AJ14-AK14)*AI$61,0)+IF(DI14=0,(AM14-AN14-AO14)*AM$61,0)+IF(DJ14=0,(AQ14-AR14-AS14)*$AQ$61,0)+IF(DK14=0,(AU14-AV14-AW14)*$AU$61,0)+IF(DL14=0,(AY14-AZ14-BA14)*$AY$61,0)++IF(DM14=0,(BC14-BD14-BE14)*$BC$61,0)+IF(DN14=0,(BG14-BH14-BI14)*$BG$61,0)+IF(DO14=0,(BK14-BL14-BM14)*$BK$61,0)+IF(DP14=0,(BO14-BP14-BQ14)*$BO$61,0)+IF(DQ14=0,(BS14-BT14-BU14)*$BS$61,0)+IF(DR14=0,(BW14-BX14-BY14)*$BW$61,0)+IF(DS14=0,(CA14-CB14-CC14)*$CA$61,0)+IF(DT14=0,(CE14-CF14-CG14)*$CE$61,0)+IF(DU14=0,(CI14-CJ14-CK14)*$CI$61,0)+IF(DV14=0,(CM14-CN14-CO14)*$CM$61,0)+IF(DW14=0,(CQ14-CR14-CS14)*$CQ$61,0)+IF(DX14=0,(CU14-CV14-CW14)*$CU$61,0) -> 1051269.921 | EB14: =(D14-E14)*CZ14+((G14-H14-(I14-J14))*G$61)*DA14+((K14-L14-(M14-N14))*K$61)*DB14+((O14-P14-(Q14-R14))*O$61)*DC14+((S14-T14-(U14-V14))*S$61)*DD14+((W14-X14-(Y14-Z14))*W$61)*DE14+((AA14-AB14-(AC14-AD14))*AA$61)*DF14+((AE14-AF14-(AG14-AH14))*AE$61)*DG14+((AI14-AJ14-(AK14-AL14))*AI$61)*DH14+((AM14-AN14-(AO14-AP14))*$AM$61)*DI14+((AQ14-AR14-(AS14-AT14))*$AQ$61)*DJ14+((AU14-AV14-(AW14-AX14))*$AU$61)*DK14+((AY14-AZ14-(BA14-BB14))*$AY$61)*DL14+((BC14-BD14-(BE14-BF14))*$BC$61)*DM14+((BG14-BH14-(BI14-BJ14))*$BG$61)*DN14+((BK14-BL14-(BM14-BN14))*$BK$61)*DO14+((BO14-BP14-(BQ14-BR14))*$BO$61)*DP14+((BS14-BT14-(BU14-BV14))*$BS$61)*DQ14+((BW14-BX14-(BY14-BZ14))*$BW$61)*DR14+((CA14-CB14-(CC14-CD14))*$CA$61)*DS14+((CE14-CF14-(CG14-CH14))*$CE$61)*DT14+((CI14-CJ14-(CK14-CL14))*$CI$61)*DU14+((CM14-CN14-(CO14-CP14))*$CM$61)*DV14+((CQ14-CR14-(CS14-CT14))*$CQ$61)*DW14+((CU14-CV14-(CW14-CX14))*$CU$61)*DX14 -> 0 | EC14: =(DZ14-EA14)*1/C14 -> 0 | ED14: =IF((1-($FC$2-$CY14)/$C14)>0,(1-($FC$2-$CY14)/$C14),0) -> 0 | EE14: =IF((1-($FC$2-EE$2)/$C14)>0,(1-($FC$2-EE$2)/$C14),0) -> 0 | EF14: 0 | EG14: 0 | EH14: 0 | EI14: 0 | EJ14: 0 | EK14: 0 | EL14: 0 | EM14: 0 | EN14: 0 | EO14: =IF((1-($FC$2-EO$2)/$C14)>0,(1-($FC$2-EO$2)/$C14),0) -> 0 | EP14: 0 | EQ14: 0 | ER14: 0 | ES14: 0 | ET14: 0 | EU14: 0 | EV14: 0 | EW14: 0 | EX14: 0 | EY14: 0 | EZ14: 0.125 | FA14: 0.375 | FB14: 0.625 | FC14: =IF(ED14=0,0,($D14-$E14)*1/$C14)+IF(EE14=0,0,($G14-$H14-$I14)*$G$61*1/$C14)+IF(EF14=0,0,($K14-$L14-$M14)*$K$61*1/$C14)+IF(EG14=0,0,($O14-$P14-$Q14)*$O$61*1/$C14)+IF(EH14=0,0,($S14-$T14-$U14)*$S$61*1/$C14)+IF(EI14=0,0,($W14-$X14-$Y14)*$W$61*1/$C14)+IF(EJ14=0,0,($AA14-$AB14-$AC14)*$AA$61*1/$C14)+IF(EK14=0,0,($AE14-$AF14-$AG14)*$AE$61*1/$C14)+IF(EL14=0,0,($AI14-$AJ14-$AK14)*$AI$61*1/$C14)+IF(EM14=0,0,($AM14-$AN14-$AO14)*$AM$61*1/$C14)+IF(EN14=0,0,($AQ14-$AR14-$AS14)*$AQ$61*1/$C14)+IF(EO14=0,0,($AU14-$AV14-$AW14)*$AU$61*1/$C14)+IF(EP14=0,0,($AY14-$AZ14-$BA14)*$AY$61*1/$C14)+IF(EQ14=0,0,($BC14-$BD14-$BE14)*$BC$61*1/$C14)+IF(ER14=0,0,($BG14-$BH14-$BI14)*$BG$61*1/$C14)+IF(ES14=0,0,($BK14-$BL14-$BM14)*$BK$61*1/$C14)+IF(ET14=0,0,($BO14-$BP14-$BQ14)*$BO$61*1/$C14)+IF(EU14=0,0,($BS14-$BT14-$BU14)*$BS$61*1/$C14)+IF(EV14=0,0,($BW14-$BX14-$BY14)*$BW$61*1/$C14)+IF(EW14=0,0,($CA14-$CB14-$CC14)*$CA$61*1/$C14)+IF(EX14=0,0,($CE14-$CF14-$CG14)*$CE$61*1/$C14)+IF(EY14=0,0,($CI14-$CJ14-$CK14)*$CI$61*1/$C14)+IF(EZ14=0,0,($CM14-$CN14-$CO14)*$CM$61*1/$C14)+IF(FA14=0,0,($CQ14-$CR14-$CS14)*$CQ$61*1/$C14)+IF(FB14=0,0,($CU14-$CV14-$CW14)*$CU$61*1/$C14) -> 0 | FD14: =IF((1-($GC$2-$CY14)/$C14)>0,(1-($GC$2-$CY14)/$C14),0) -> 0 | FE14: =IF((1-($GC$2-FE$2)/$C14)>0,(1-($GC$2-FE$2)/$C14),0) -> 0 | FF14: 0 | FG14: 0 | FH14: 0 | FI14: 0 | FJ14: 0 | FK14: 0 | FL14: 0 | FM14: 0 | FN14: 0 | FO14: =IF((1-($GC$2-FO$2)/$C14)>0,(1-($GC$2-FO$2)/$C14),0) -> 0 | FP14: 0 | FQ14: 0 | FR14: 0 | FS14: 0 | FT14: 0 | FU14: 0 | FV14: 0 | FW14: 0 | FX14: 0 | FY14: 0 | FZ14: =IF((1-($GC$2-FZ$2)/$C14)>0,(1-($GC$2-FZ$2)/$C14),0) -> 0 | GA14: 0.125 | GB14: 0.375 | GC14: =IF(FD14=0,0,($D14-$E14)*1/$C14)+IF(FE14=0,0,($G14-$H14-$I14)*$G$61*1/$C14)+IF(FF14=0,0,($K14-$L14-$M14)*$K$61*1/$C14)+IF(FG14=0,0,($O14-$P14-$Q14)*$O$61*1/$C14)+IF(FH14=0,0,($S14-$T14-$U14)*$S$61*1/$C14)+IF(FI14=0,0,($W14-$X14-$Y14)*$W$61*1/$C14)+IF(FJ14=0,0,($AA14-$AB14-$AC14)*$AA$61*1/$C14)+IF(FK14=0,0,($AE14-$AF14-$AG14)*$AE$61*1/$C14)+IF(FL14=0,0,($AI14-$AJ14-$AK14)*$AI$61*1/$C14)+IF(FM14=0,0,($AM14-$AN14-$AO14)*$AM$61*1/$C14)+IF(FN14=0,0,($AQ14-$AR14-$AS14)*$AQ$61*1/$C14)+IF(FO14=0,0,($AU14-$AV14-$AW14)*$AU$61*1/$C14)+IF(FP14=0,0,($AY14-$AZ14-$BA14)*$AY$61*1/$C14)+IF(FQ14=0,0,($BC14-$BD14-$BE14)*$BC$61*1/$C14)+IF(FR14=0,0,($BG14-$BH14-$BI14)*$BG$61*1/$C14)+IF(FS14=0,0,($BK14-$BL14-$BM14)*$BK$61*1/$C14)+IF(FT14=0,0,($BO14-$BP14-$BQ14)*$BO$61*1/$C14)+IF(FU14=0,0,($BS14-$BT14-$BU14)*$BS$61*1/$C14)+IF(FV14=0,0,($BW14-$BX14-$BY14)*$BW$61*1/$C14)+IF(FW14=0,0,($CA14-$CB14-$CC14)*$CA$61*1/$C14)+IF(FX14=0,0,($CE14-$CF14-$CG14)*$CE$61*1/$C14)+IF(FY14=0,0,($CI14-$CJ14-$CK14)*$CI$61*1/$C14)+IF(FZ14=0,0,($CM14-$CN14-$CO14)*$CM$61*1/$C14)+IF(GA14=0,0,($CQ14-$CR14-$CS14)*$CQ$61*1/$C14)+IF(GB14=0,0,($CU14-$CV14-$CW14)*$CU$61*1/$C14) -> 0 | GD14: =IF((1-($HC$2-$CY14)/$C14)>0,(1-($HC$2-$CY14)/$C14),0) -> 0 | GE14: =IF((1-($HC$2-GE$2)/$C14)>0,(1-($HC$2-GE$2)/$C14),0) -> 0 | GF14: 0 | GG14: 0 | GH14: 0 | GI14: 0 | GJ14: 0 | GK14: 0 | GL14: 0 | GM14: 0 | GN14: 0 | GO14: =IF((1-($HC$2-GO$2)/$C14)>0,(1-($HC$2-GO$2)/$C14),0) -> 0 | GP14: 0 | GQ14: 0 | GR14: 0 | GS14: 0 | GT14: 0 | GU14: 0 | GV14: 0 | GW14: 0 | GX14: 0 | GY14: 0 | GZ14: =IF((1-($HC$2-GZ$2)/$C14)>0,(1-($HC$2-GZ$2)/$C14),0) -> 0 | HA14: 0 | HB14: 0.125 | HC14: =IF(GD14=0,0,($D14-$E14)*1/$C14)+IF(GE14=0,0,($G14-$H14-$I14)*$G$61*1/$C14)+IF(GF14=0,0,($K14-$L14-$M14)*$K$61*1/$C14)+IF(GG14=0,0,($O14-$P14-$Q14)*$O$61*1/$C14)+IF(GH14=0,0,($S14-$T14-$U14)*$S$61*1/$C14)+IF(GI14=0,0,($W14-$X14-$Y14)*$W$61*1/$C14)+IF(GJ14=0,0,($AA14-$AB14-$AC14)*$AA$61*1/$C14)+IF(GK14=0,0,($AE14-$AF14-$AG14)*$AE$61*1/$C14)+IF(GL14=0,0,($AI14-$AJ14-$AK14)*$AI$61*1/$C14)+IF(GM14=0,0,($AM14-$AN14-$AO14)*$AM$61*1/$C14)+IF(GN14=0,0,($AQ14-$AR14-$AS14)*$AQ$61*1/$C14)+IF(GO14=0,0,($AU14-$AV14-$AW14)*$AU$61*1/$C14)+IF(GP14=0,0,($AY14-$AZ14-$BA14)*$AY$61*1/$C14)+IF(GQ14=0,0,($BC14-$BD14-$BE14)*$BC$61*1/$C14)+IF(GR14=0,0,($BG14-$BH14-$BI14)*$BG$61*1/$C14)+IF(GS14=0,0,($BK14-$BL14-$BM14)*$BK$61*1/$C14)+IF(GT14=0,0,($BO14-$BP14-$BQ14)*$BO$61*1/$C14)+IF(GU14=0,0,($BS14-$BT14-$BU14)*$BS$61*1/$C14)+IF(GV14=0,0,($BW14-$BX14-$BY14)*$BW$61*1/$C14)+IF(GW14=0,0,($CA14-$CB14-$CC14)*$CA$61*1/$C14)+IF(GX14=0,0,($CE14-$CF14-$CG14)*$CE$61*1/$C14)+IF(GY14=0,0,($CI14-$CJ14-$CK14)*$CI$61*1/$C14)+IF(GZ14=0,0,($CM14-$CN14-$CO14)*$CM$61*1/$C14)+IF(HA14=0,0,($CQ14-$CR14-$CS14)*$CQ$61*1/$C14)+IF(HB14=0,0,($CU14-$CV14-$CW14)*$CU$61*1/$C14) -> 0 | HD14: =IF((1-($IC$2-$CY14)/$C14)>0,(1-($IC$2-$CY14)/$C14),0) -> 0 | HE14: =IF((1-($IC$2-HE$2)/$C14)>0,(1-($IC$2-HE$2)/$C14),0) -> 0 | HF14: 0 | HG14: 0 | HH14: 0 | HI14: 0 | HJ14: 0 | HK14: 0 | HL14: 0 | HM14: 0 | HN14: 0 | HO14: =IF((1-($IC$2-HO$2)/$C14)>0,(1-($IC$2-HO$2)/$C14),0) -> 0 | HP14: 0 | HQ14: 0 | HR14: 0 | HS14: 0 | HT14: 0 | HU14: 0 | HV14: 0 | HW14: 0 | HX14: 0 | HY14: 0 | HZ14: =IF((1-($IC$2-HZ$2)/$C14)>0,(1-($IC$2-HZ$2)/$C14),0) -> 0 | IA14: 0 | IB14: 0 | IC14: =IF(HD14=0,0,($D14-$E14)*1/$C14)+IF(HE14=0,0,($G14-$H14-$I14)*$G$61*1/$C14)+IF(HF14=0,0,($K14-$L14-$M14)*$K$61*1/$C14)+IF(HG14=0,0,($O14-$P14-$Q14)*$O$61*1/$C14)+IF(HH14=0,0,($S14-$T14-$U14)*$S$61*1/$C14)+IF(HI14=0,0,($W14-$X14-$Y14)*$W$61*1/$C14)+IF(HJ14=0,0,($AA14-$AB14-$AC14)*$AA$61*1/$C14)+IF(HK14=0,0,($AE14-$AF14-$AG14)*$AE$61*1/$C14)+IF(HL14=0,0,($AI14-$AJ14-$AK14)*$AI$61*1/$C14)+IF(HM14=0,0,($AM14-$AN14-$AO14)*$AM$61*1/$C14)+IF(HN14=0,0,($AQ14-$AR14-$AS14)*$AQ$61*1/$C14)+IF(HO14=0,0,($AU14-$AV14-$AW14)*$AU$61*1/$C14)+IF(HP14=0,0,($AY14-$AZ14-$BA14)*$AY$61*1/$C14)+IF(HQ14=0,0,($BC14-$BD14-$BE14)*$BC$61*1/$C14)+IF(HR14=0,0,($BG14-$BH14-$BI14)*$BG$61*1/$C14)+IF(HS14=0,0,($BK14-$BL14-$BM14)*$BK$61*1/$C14)+IF(HT14=0,0,($BO14-$BP14-$BQ14)*$BO$61*1/$C14)+IF(HU14=0,0,($BS14-$BT14-$BU14)*$BS$61*1/$C14)+IF(HV14=0,0,($BW14-$BX14-$BY14)*$BW$61*1/$C14)+IF(HW14=0,0,($CA14-$CB14-$CC14)*$CA$61*1/$C14)+IF(HX14=0,0,($CE14-$CF14-$CG14)*$CE$61*1/$C14)+IF(HY14=0,0,($CI14-$CJ14-$CK14)*$CI$61*1/$C14)+IF(HZ14=0,0,($CM14-$CN14-$CO14)*$CM$61*1/$C14)+IF(IA14=0,0,($CQ14-$CR14-$CS14)*$CQ$61*1/$C14)+IF(IB14=0,0,($CU14-$CV14-$CW14)*$CU$61*1/$C14) -> 0 | IE14: 0 | IF14: 0 | IG14: 0 | IH14: 0
B15: Líneas aéreas AT | C15: 30 | D15: 7006841.955 | E15: 0 | F15: 5589994.199 | G15: 119182 | H15: 0 | I15: 0 | J15: 0 | K15: 2882968 | L15: 0 | M15: 0 | N15: 0 | O15: 0 | P15: 0 | Q15: 0 | R15: 0 | S15: 79197 | T15: 0 | U15: 0 | V15: 0 | W15: 230522.79 | X15: 0 | Y15: 0 | Z15: 0 | AA15: 48300 | AB15: 0 | AC15: 0 | AD15: 0 | AE15: 199372.15 | AF15: 0 | AG15: 0 | AH15: 0 | AI15: 0 | AJ15: 0 | AK15: 0 | AL15: 0 | AM15: 0 | AN15: 0 | AO15: 0 | AP15: 0 | AQ15: 612725.83 | AR15: 0 | AS15: 0 | AT15: 0 | AU15: 85466.62 | AV15: 0 | AW15: 0 | AX15: 0 | AY15: 16420.61 | AZ15: 0 | BA15: 0 | BB15: 0 | BC15: 852.62 | BD15: 0 | BE15: 0 | BF15: 0 | BG15: 7511270.5 | BH15: 0 | BI15: 0 | BJ15: 0 | BK15: 0 | BL15: 0 | BM15: 0 | BN15: 0 | BO15: 4108427.82 | BP15: 0 | BQ15: 0 | BR15: 0 | BS15: 3776393.97 | BT15: 0 | BU15: 0 | BV15: 0 | BW15: 18045.36 | BX15: 0 | BY15: 0 | BZ15: 0 | CA15: 34140.38 | CB15: 0 | CC15: 0 | CD15: 0 | CE15: 0 | CF15: 0 | CG15: 0 | CH15: 0 | CI15: 4005.17 | CJ15: 0 | CM15: 0 | CN15: 0 | CQ15: 4715.08 | CR15: 0 | CU15: 18283.85 | CV15: 0 | CY15: =IF(D15=0,0,2001-(D15-F15)*C15/D15) -> 1994.933725 | CZ15: =IF((1-($DY$2-$CY15)/$C15)>0,(1-($DY$2-$CY15)/$C15),0) -> 0 | DA15: =IF((1-($DY$2-G$2)/$C15)>0,(1-($DY$2-G$2)/$C15),0) -> 0.2166666667 | DB15: =IF((1-($DY$2-K$2)/$C15)>0,(1-($DY$2-K$2)/$C15),0) -> 0.25 | DC15: =IF((1-($DY$2-O$2)/$C15)>0,(1-($DY$2-O$2)/$C15),0) -> 0.2833333333 | DD15: =IF((1-($DY$2-S$2)/$C15)>0,(1-($DY$2-S$2)/$C15),0) -> 0.3166666667 | DE15: =IF((1-($DY$2-W$2)/$C15)>0,(1-($DY$2-W$2)/$C15),0) -> 0.35 | DF15: =IF((1-($DY$2-AA$2)/$C15)>0,(1-($DY$2-AA$2)/$C15),0) -> 0.3833333333 | DG15: =IF((1-($DY$2-AE$2)/$C15)>0,(1-($DY$2-AE$2)/$C15),0) -> 0.4166666667 | DH15: =IF((1-($DY$2-AI$2)/$C15)>0,(1-($DY$2-AI$2)/$C15),0) -> 0.45 | DI15: =IF((1-($DY$2-AM$2)/$C15)>0,(1-($DY$2-AM$2)/$C15),0) -> 0.4833333333 | DJ15: =IF((1-($DY$2-AQ$2)/$C15)>0,(1-($DY$2-AQ$2)/$C15),0) -> 0.5166666667 | DK15: =IF((1-($DY$2-AU$2)/$C15)>0,(1-($DY$2-AU$2)/$C15),0) -> 0.55 | DL15: =IF((1-($DY$2-AY$2)/$C15)>0,(1-($DY$2-AY$2)/$C15),0) -> 0.5833333333 | DM15: =IF((1-($DY$2-BC$2)/$C15)>0,(1-($DY$2-BC$2)/$C15),0) -> 0.6166666667 | DN15: =IF((1-($DY$2-BG$2)/$C15)>0,(1-($DY$2-BG$2)/$C15),0) -> 0.65 | DO15: =IF((1-($DY$2-BK$2)/$C15)>0,(1-($DY$2-BK$2)/$C15),0) -> 0.6833333333 | DP15: =IF((1-($DY$2-BO$2)/$C15)>0,(1-($DY$2-BO$2)/$C15),0) -> 0.7166666667 | DQ15: =IF((1-($DY$2-BS$2)/$C15)>0,(1-($DY$2-BS$2)/$C15),0) -> 0.75 | DR15: =IF((1-($DY$2-BW$2)/$C15)>0,(1-($DY$2-BW$2)/$C15),0) -> 0.7833333333 | DS15: =IF((1-($DY$2-CA$2)/$C15)>0,(1-($DY$2-CA$2)/$C15),0) -> 0.8166666667 | DT15: =IF((1-($DY$2-CE$2)/$C15)>0,(1-($DY$2-CE$2)/$C15),0) -> 0.85 | DU15: =IF((1-($DY$2-CI$2)/$C15)>0,(1-($DY$2-CI$2)/$C15),0) -> 0.8833333333 | DV15: 0.9166666667 | DW15: 0.95 | DX15: 0.9833333333 | DY15: =IF(CZ15=0,0,($D15-$E15)*1/$C15)+IF(DA15=0,0,($G15-$H15-$I15)*$G$61*1/$C15)+IF(DB15=0,0,($K15-$L15-$M15)*$K$61*1/$C15)+IF(DC15=0,0,($O15-$P15-$Q15)*$O$61*1/$C15)+IF(DD15=0,0,($S15-$T15-$U15)*$S$61*1/$C15)+IF(DE15=0,0,($W15-$X15-$Y15)*$W$61*1/$C15)+IF(DF15=0,0,($AA15-$AB15-$AC15)*$AA$61*1/$C15)+IF(DG15=0,0,($AE15-$AF15-$AG15)*$AE$61*1/$C15)+IF(DH15=0,0,($AI15-$AJ15-$AK15)*$AI$61*1/$C15)+IF(DI15=0,0,($AM15-$AN15-$AO15)*$AM$61*1/$C15)+IF(DJ15=0,0,($AQ15-$AR15-$AS15)*$AQ$61*1/$C15)+IF(DK15=0,0,($AU15-$AV15-$AW15)*$AU$61*1/$C15)+IF(DL15=0,0,($AY15-$AZ15-$BA15)*$AY$61*1/$C15)+IF(DM15=0,0,($BC15-$BD15-$BE15)*$BC$61*1/$C15)+IF(DN15=0,0,($BG15-$BH15-$BI15)*$BG$61*1/$C15)+IF(DO15=0,0,($BK15-$BL15-$BM15)*$BK$61*1/$C15)+IF(DP15=0,0,($BO15-$BP15-$BQ15)*$BO$61*1/$C15)+IF(DQ15=0,0,($BS15-$BT15-$BU15)*$BS$61*1/$C15)+IF(DR15=0,0,($BW15-$BX15-$BY15)*$BW$61*1/$C15)+IF(DS15=0,0,($CA15-$CB15-$CC15)*$CA$61*1/$C15)+IF(DT15=0,0,($CE15-$CF15-$CG15)*$CE$61*1/$C15)+IF(DU15=0,0,($CI15-$CJ15-$CK15)*$CI$61*1/$C15)+IF(DV15=0,0,($CM15-$CN15-$CO15)*$CM$61*1/$C15)+IF(DW15=0,0,($CQ15-$CR15-$CS15)*$CQ$61*1/$C15)+IF(DX15=0,0,($CU15-$CV15-$CW15)*$CU$61*1/$C15) -> 582299.9359 | DZ15: =D15-E15+(G15-H15-I15)*G$61+(K15-L15-M15)*K$61+(O15-P15-Q15)*O$61+(S15-T15-U15)*S$61+(W15-X15-Y15)*W$61+(AA15-AB15-AC15)*AA$61+(AE15-AF15-AG15)*AE$61+(AI15-AJ15-AK15)*AI$61+(AM15-AN15-AO15)*AM$61+(AQ15-AR15-AS15)*$AQ$61+(AU15-AV15-AW15)*$AU$61+(AY15-AZ15-BA15)*$AY$61+(BC15-BD15-BE15)*$BC$61+(BG15-BH15-BI15)*$BG$61+(BK15-BL15-BM15)*$BK$61+(BO15-BP15-BQ15)*$BO$61+(BS15-BT15-BU15)*$BS$61+(BW15-BX15-BY15)*$BW$61+(CA15-CB15-CC15)*$CA$61+(CE15-CF15-CG15)*$CE$61+(CI15-CJ15-CK15)*$CI$61+(CM15-CN15-CO15)*$CM$61+(CQ15-CR15-CS15)*$CQ$61+(CU15-CV15-CW15)*$CU$61 -> 24475840.03 | EA15: =IF(CZ15=0,D15-E15,0)+IF(DA15=0,(G15-H15-I15)*G$61,0)+IF(DB15=0,(K15-L15-M15)*K$61,0)+IF(DC15=0,(O15-P15-Q15)*O$61,0)+IF(DD15=0,(S15-T15-U15)*S$61,0)+IF(DE15=0,(W15-X15-Y15)*W$61,0)+IF(DF15=0,(AA15-AB15-AC15)*AA$61,0)+IF(DG15=0,(AE15-AF15-AG15)*AE$61,0)+IF(DH15=0,(AI15-AJ15-AK15)*AI$61,0)+IF(DI15=0,(AM15-AN15-AO15)*AM$61,0)+IF(DJ15=0,(AQ15-AR15-AS15)*$AQ$61,0)+IF(DK15=0,(AU15-AV15-AW15)*$AU$61,0)+IF(DL15=0,(AY15-AZ15-BA15)*$AY$61,0)++IF(DM15=0,(BC15-BD15-BE15)*$BC$61,0)+IF(DN15=0,(BG15-BH15-BI15)*$BG$61,0)+IF(DO15=0,(BK15-BL15-BM15)*$BK$61,0)+IF(DP15=0,(BO15-BP15-BQ15)*$BO$61,0)+IF(DQ15=0,(BS15-BT15-BU15)*$BS$61,0)+IF(DR15=0,(BW15-BX15-BY15)*$BW$61,0)+IF(DS15=0,(CA15-CB15-CC15)*$CA$61,0)+IF(DT15=0,(CE15-CF15-CG15)*$CE$61,0)+IF(DU15=0,(CI15-CJ15-CK15)*$CI$61,0)+IF(DV15=0,(CM15-CN15-CO15)*$CM$61,0)+IF(DW15=0,(CQ15-CR15-CS15)*$CQ$61,0)+IF(DX15=0,(CU15-CV15-CW15)*$CU$61,0) -> 7006841.955 | EB15: =(D15-E15)*CZ15+((G15-H15-(I15-J15))*G$61)*DA15+((K15-L15-(M15-N15))*K$61)*DB15+((O15-P15-(Q15-R15))*O$61)*DC15+((S15-T15-(U15-V15))*S$61)*DD15+((W15-X15-(Y15-Z15))*W$61)*DE15+((AA15-AB15-(AC15-AD15))*AA$61)*DF15+((AE15-AF15-(AG15-AH15))*AE$61)*DG15+((AI15-AJ15-(AK15-AL15))*AI$61)*DH15+((AM15-AN15-(AO15-AP15))*$AM$61)*DI15+((AQ15-AR15-(AS15-AT15))*$AQ$61)*DJ15+((AU15-AV15-(AW15-AX15))*$AU$61)*DK15+((AY15-AZ15-(BA15-BB15))*$AY$61)*DL15+((BC15-BD15-(BE15-BF15))*$BC$61)*DM15+((BG15-BH15-(BI15-BJ15))*$BG$61)*DN15+((BK15-BL15-(BM15-BN15))*$BK$61)*DO15+((BO15-BP15-(BQ15-BR15))*$BO$61)*DP15+((BS15-BT15-(BU15-BV15))*$BS$61)*DQ15+((BW15-BX15-(BY15-BZ15))*$BW$61)*DR15+((CA15-CB15-(CC15-CD15))*$CA$61)*DS15+((CE15-CF15-(CG15-CH15))*$CE$61)*DT15+((CI15-CJ15-(CK15-CL15))*$CI$61)*DU15+((CM15-CN15-(CO15-CP15))*$CM$61)*DV15+((CQ15-CR15-(CS15-CT15))*$CQ$61)*DW15+((CU15-CV15-(CW15-CX15))*$CU$61)*DX15 -> 10642411.37 | EC15: =(DZ15-EA15)*1/C15 -> 582299.9359 | ED15: =IF((1-($FC$2-$CY15)/$C15)>0,(1-($FC$2-$CY15)/$C15),0) -> 0 | EE15: 0.1833333333 | EF15: 0.2166666667 | EG15: 0.25 | EH15: 0.2833333333 | EI15: 0.3166666667 | EJ15: 0.35 | EK15: 0.3833333333 | EL15: 0.4166666667 | EM15: 0.45 | EN15: 0.4833333333 | EO15: 0.5166666667 | EP15: 0.55 | EQ15: 0.5833333333 | ER15: 0.6166666667 | ES15: 0.65 | ET15: 0.6833333333 | EU15: 0.7166666667 | EV15: 0.75 | EW15: 0.7833333333 | EX15: 0.8166666667 | EY15: 0.85 | EZ15: 0.8833333333 | FA15: 0.9166666667 | FB15: 0.95 | FC15: =IF(ED15=0,0,($D15-$E15)*1/$C15)+IF(EE15=0,0,($G15-$H15-$I15)*$G$61*1/$C15)+IF(EF15=0,0,($K15-$L15-$M15)*$K$61*1/$C15)+IF(EG15=0,0,($O15-$P15-$Q15)*$O$61*1/$C15)+IF(EH15=0,0,($S15-$T15-$U15)*$S$61*1/$C15)+IF(EI15=0,0,($W15-$X15-$Y15)*$W$61*1/$C15)+IF(EJ15=0,0,($AA15-$AB15-$AC15)*$AA$61*1/$C15)+IF(EK15=0,0,($AE15-$AF15-$AG15)*$AE$61*1/$C15)+IF(EL15=0,0,($AI15-$AJ15-$AK15)*$AI$61*1/$C15)+IF(EM15=0,0,($AM15-$AN15-$AO15)*$AM$61*1/$C15)+IF(EN15=0,0,($AQ15-$AR15-$AS15)*$AQ$61*1/$C15)+IF(EO15=0,0,($AU15-$AV15-$AW15)*$AU$61*1/$C15)+IF(EP15=0,0,($AY15-$AZ15-$BA15)*$AY$61*1/$C15)+IF(EQ15=0,0,($BC15-$BD15-$BE15)*$BC$61*1/$C15)+IF(ER15=0,0,($BG15-$BH15-$BI15)*$BG$61*1/$C15)+IF(ES15=0,0,($BK15-$BL15-$BM15)*$BK$61*1/$C15)+IF(ET15=0,0,($BO15-$BP15-$BQ15)*$BO$61*1/$C15)+IF(EU15=0,0,($BS15-$BT15-$BU15)*$BS$61*1/$C15)+IF(EV15=0,0,($BW15-$BX15-$BY15)*$BW$61*1/$C15)+IF(EW15=0,0,($CA15-$CB15-$CC15)*$CA$61*1/$C15)+IF(EX15=0,0,($CE15-$CF15-$CG15)*$CE$61*1/$C15)+IF(EY15=0,0,($CI15-$CJ15-$CK15)*$CI$61*1/$C15)+IF(EZ15=0,0,($CM15-$CN15-$CO15)*$CM$61*1/$C15)+IF(FA15=0,0,($CQ15-$CR15-$CS15)*$CQ$61*1/$C15)+IF(FB15=0,0,($CU15-$CV15-$CW15)*$CU$61*1/$C15) -> 582299.9359 | FD15: =IF((1-($GC$2-$CY15)/$C15)>0,(1-($GC$2-$CY15)/$C15),0) -> 0 | FE15: 0.15 | FF15: 0.1833333333 | FG15: 0.2166666667 | FH15: 0.25 | FI15: 0.2833333333 | FJ15: 0.3166666667 | FK15: 0.35 | FL15: 0.3833333333 | FM15: 0.4166666667 | FN15: 0.45 | FO15: 0.4833333333 | FP15: 0.5166666667 | FQ15: 0.55 | FR15: 0.5833333333 | FS15: 0.6166666667 | FT15: 0.65 | FU15: 0.6833333333 | FV15: 0.7166666667 | FW15: 0.75 | FX15: 0.7833333333 | FY15: 0.8166666667 | FZ15: 0.85 | GA15: 0.8833333333 | GB15: 0.9166666667 | GC15: =IF(FD15=0,0,($D15-$E15)*1/$C15)+IF(FE15=0,0,($G15-$H15-$I15)*$G$61*1/$C15)+IF(FF15=0,0,($K15-$L15-$M15)*$K$61*1/$C15)+IF(FG15=0,0,($O15-$P15-$Q15)*$O$61*1/$C15)+IF(FH15=0,0,($S15-$T15-$U15)*$S$61*1/$C15)+IF(FI15=0,0,($W15-$X15-$Y15)*$W$61*1/$C15)+IF(FJ15=0,0,($AA15-$AB15-$AC15)*$AA$61*1/$C15)+IF(FK15=0,0,($AE15-$AF15-$AG15)*$AE$61*1/$C15)+IF(FL15=0,0,($AI15-$AJ15-$AK15)*$AI$61*1/$C15)+IF(FM15=0,0,($AM15-$AN15-$AO15)*$AM$61*1/$C15)+IF(FN15=0,0,($AQ15-$AR15-$AS15)*$AQ$61*1/$C15)+IF(FO15=0,0,($AU15-$AV15-$AW15)*$AU$61*1/$C15)+IF(FP15=0,0,($AY15-$AZ15-$BA15)*$AY$61*1/$C15)+IF(FQ15=0,0,($BC15-$BD15-$BE15)*$BC$61*1/$C15)+IF(FR15=0,0,($BG15-$BH15-$BI15)*$BG$61*1/$C15)+IF(FS15=0,0,($BK15-$BL15-$BM15)*$BK$61*1/$C15)+IF(FT15=0,0,($BO15-$BP15-$BQ15)*$BO$61*1/$C15)+IF(FU15=0,0,($BS15-$BT15-$BU15)*$BS$61*1/$C15)+IF(FV15=0,0,($BW15-$BX15-$BY15)*$BW$61*1/$C15)+IF(FW15=0,0,($CA15-$CB15-$CC15)*$CA$61*1/$C15)+IF(FX15=0,0,($CE15-$CF15-$CG15)*$CE$61*1/$C15)+IF(FY15=0,0,($CI15-$CJ15-$CK15)*$CI$61*1/$C15)+IF(FZ15=0,0,($CM15-$CN15-$CO15)*$CM$61*1/$C15)+IF(GA15=0,0,($CQ15-$CR15-$CS15)*$CQ$61*1/$C15)+IF(GB15=0,0,($CU15-$CV15-$CW15)*$CU$61*1/$C15) -> 582299.9359 | GD15: =IF((1-($HC$2-$CY15)/$C15)>0,(1-($HC$2-$CY15)/$C15),0) -> 0 | GE15: 0.1166666667 | GF15: 0.15 | GG15: 0.1833333333 | GH15: 0.2166666667 | GI15: 0.25 | GJ15: 0.2833333333 | GK15: 0.3166666667 | GL15: 0.35 | GM15: 0.3833333333 | GN15: 0.4166666667 | GO15: 0.45 | GP15: 0.4833333333 | GQ15: 0.5166666667 | GR15: 0.55 | GS15: 0.5833333333 | GT15: 0.6166666667 | GU15: 0.65 | GV15: 0.6833333333 | GW15: 0.7166666667 | GX15: 0.75 | GY15: 0.7833333333 | GZ15: 0.8166666667 | HA15: 0.85 | HB15: 0.8833333333 | HC15: =IF(GD15=0,0,($D15-$E15)*1/$C15)+IF(GE15=0,0,($G15-$H15-$I15)*$G$61*1/$C15)+IF(GF15=0,0,($K15-$L15-$M15)*$K$61*1/$C15)+IF(GG15=0,0,($O15-$P15-$Q15)*$O$61*1/$C15)+IF(GH15=0,0,($S15-$T15-$U15)*$S$61*1/$C15)+IF(GI15=0,0,($W15-$X15-$Y15)*$W$61*1/$C15)+IF(GJ15=0,0,($AA15-$AB15-$AC15)*$AA$61*1/$C15)+IF(GK15=0,0,($AE15-$AF15-$AG15)*$AE$61*1/$C15)+IF(GL15=0,0,($AI15-$AJ15-$AK15)*$AI$61*1/$C15)+IF(GM15=0,0,($AM15-$AN15-$AO15)*$AM$61*1/$C15)+IF(GN15=0,0,($AQ15-$AR15-$AS15)*$AQ$61*1/$C15)+IF(GO15=0,0,($AU15-$AV15-$AW15)*$AU$61*1/$C15)+IF(GP15=0,0,($AY15-$AZ15-$BA15)*$AY$61*1/$C15)+IF(GQ15=0,0,($BC15-$BD15-$BE15)*$BC$61*1/$C15)+IF(GR15=0,0,($BG15-$BH15-$BI15)*$BG$61*1/$C15)+IF(GS15=0,0,($BK15-$BL15-$BM15)*$BK$61*1/$C15)+IF(GT15=0,0,($BO15-$BP15-$BQ15)*$BO$61*1/$C15)+IF(GU15=0,0,($BS15-$BT15-$BU15)*$BS$61*1/$C15)+IF(GV15=0,0,($BW15-$BX15-$BY15)*$BW$61*1/$C15)+IF(GW15=0,0,($CA15-$CB15-$CC15)*$CA$61*1/$C15)+IF(GX15=0,0,($CE15-$CF15-$CG15)*$CE$61*1/$C15)+IF(GY15=0,0,($CI15-$CJ15-$CK15)*$CI$61*1/$C15)+IF(GZ15=0,0,($CM15-$CN15-$CO15)*$CM$61*1/$C15)+IF(HA15=0,0,($CQ15-$CR15-$CS15)*$CQ$61*1/$C15)+IF(HB15=0,0,($CU15-$CV15-$CW15)*$CU$61*1/$C15) -> 582299.9359 | HD15: =IF((1-($IC$2-$CY15)/$C15)>0,(1-($IC$2-$CY15)/$C15),0) -> 0 | HE15: 0.08333333333 | HF15: 0.1166666667 | HG15: 0.15 | HH15: 0.1833333333 | HI15: 0.2166666667 | HJ15: 0.25 | HK15: 0.2833333333 | HL15: 0.3166666667 | HM15: 0.35 | HN15: 0.3833333333 | HO15: 0.4166666667 | HP15: 0.45 | HQ15: 0.4833333333 | HR15: 0.5166666667 | HS15: 0.55 | HT15: 0.5833333333 | HU15: 0.6166666667 | HV15: 0.65 | HW15: 0.6833333333 | HX15: 0.7166666667 | HY15: 0.75 | HZ15: 0.7833333333 | IA15: 0.8166666667 | IB15: 0.85 | IC15: =IF(HD15=0,0,($D15-$E15)*1/$C15)+IF(HE15=0,0,($G15-$H15-$I15)*$G$61*1/$C15)+IF(HF15=0,0,($K15-$L15-$M15)*$K$61*1/$C15)+IF(HG15=0,0,($O15-$P15-$Q15)*$O$61*1/$C15)+IF(HH15=0,0,($S15-$T15-$U15)*$S$61*1/$C15)+IF(HI15=0,0,($W15-$X15-$Y15)*$W$61*1/$C15)+IF(HJ15=0,0,($AA15-$AB15-$AC15)*$AA$61*1/$C15)+IF(HK15=0,0,($AE15-$AF15-$AG15)*$AE$61*1/$C15)+IF(HL15=0,0,($AI15-$AJ15-$AK15)*$AI$61*1/$C15)+IF(HM15=0,0,($AM15-$AN15-$AO15)*$AM$61*1/$C15)+IF(HN15=0,0,($AQ15-$AR15-$AS15)*$AQ$61*1/$C15)+IF(HO15=0,0,($AU15-$AV15-$AW15)*$AU$61*1/$C15)+IF(HP15=0,0,($AY15-$AZ15-$BA15)*$AY$61*1/$C15)+IF(HQ15=0,0,($BC15-$BD15-$BE15)*$BC$61*1/$C15)+IF(HR15=0,0,($BG15-$BH15-$BI15)*$BG$61*1/$C15)+IF(HS15=0,0,($BK15-$BL15-$BM15)*$BK$61*1/$C15)+IF(HT15=0,0,($BO15-$BP15-$BQ15)*$BO$61*1/$C15)+IF(HU15=0,0,($BS15-$BT15-$BU15)*$BS$61*1/$C15)+IF(HV15=0,0,($BW15-$BX15-$BY15)*$BW$61*1/$C15)+IF(HW15=0,0,($CA15-$CB15-$CC15)*$CA$61*1/$C15)+IF(HX15=0,0,($CE15-$CF15-$CG15)*$CE$61*1/$C15)+IF(HY15=0,0,($CI15-$CJ15-$CK15)*$CI$61*1/$C15)+IF(HZ15=0,0,($CM15-$CN15-$CO15)*$CM$61*1/$C15)+IF(IA15=0,0,($CQ15-$CR15-$CS15)*$CQ$61*1/$C15)+IF(IB15=0,0,($CU15-$CV15-$CW15)*$CU$61*1/$C15) -> 582299.9359 | IE15: 0 | IF15: =FC15-GC15 -> 0 | IG15: =GC15-HC15 -> 0 | IH15: =HC15-IC15 -> 0
B16: Líneas subterráneas AT | C16: 30 | D16: 6489975.156 | E16: 0 | F16: 5855328.852 | G16: 0 | H16: 0 | I16: 0 | J16: 0 | K16: 0 | L16: 0 | M16: 0 | N16: 0 | O16: 0 | P16: 0 | Q16: 0 | R16: 0 | S16: 0 | T16: 0 | U16: 0 | V16: 0 | W16: 0 | X16: 0 | Y16: 0 | Z16: 0 | AA16: 0 | AB16: 0 | AC16: 0 | AD16: 0 | AE16: 0 | AF16: 0 | AG16: 0 | AH16: 0 | AI16: 0 | AJ16: 0 | AK16: 0 | AL16: 0 | AM16: 0 | AN16: 0 | AO16: 0 | AP16: 0 | AQ16: 0 | AR16: 0 | AS16: 0 | AT16: 0 | AU16: 0 | AV16: 0 | AW16: 0 | AX16: 0 | AY16: 4451477.04 | AZ16: 0 | BA16: 0 | BB16: 0 | BC16: 7685196.6 | BD16: 0 | BE16: 0 | BF16: 0 | BG16: 780.38 | BH16: 0 | BI16: 0 | BJ16: 0 | BK16: 0 | BL16: 0 | BM16: 0 | BN16: 0 | BO16: 0 | BP16: 0 | BQ16: 0 | BR16: 0 | BS16: 8783620.27 | BT16: 0 | BU16: 0 | BV16: 0 | BW16: 52088.19 | BX16: 0 | BY16: 0 | BZ16: 0 | CA16: 852652.38 | CB16: 0 | CC16: 0 | CD16: 0 | CE16: 10959.23 | CF16: 0 | CG16: 0 | CH16: 0 | CI16: 0 | CJ16: 0 | CM16: 0 | CN16: 0 | CQ16: 0 | CR16: 0 | CU16: 0 | CV16: 0 | CY16: =IF(D16=0,0,2001-(D16-F16)*C16/D16) -> 1998.066339 | CZ16: =IF((1-($DY$2-$CY16)/$C16)>0,(1-($DY$2-$CY16)/$C16),0) -> 0.08554462246 | DA16: =IF((1-($DY$2-G$2)/$C16)>0,(1-($DY$2-G$2)/$C16),0) -> 0.2166666667 | DB16: =IF((1-($DY$2-K$2)/$C16)>0,(1-($DY$2-K$2)/$C16),0) -> 0.25 | DC16: =IF((1-($DY$2-O$2)/$C16)>0,(1-($DY$2-O$2)/$C16),0) -> 0.2833333333 | DD16: =IF((1-($DY$2-S$2)/$C16)>0,(1-($DY$2-S$2)/$C16),0) -> 0.3166666667 | DE16: =IF((1-($DY$2-W$2)/$C16)>0,(1-($DY$2-W$2)/$C16),0) -> 0.35 | DF16: =IF((1-($DY$2-AA$2)/$C16)>0,(1-($DY$2-AA$2)/$C16),0) -> 0.3833333333 | DG16: =IF((1-($DY$2-AE$2)/$C16)>0,(1-($DY$2-AE$2)/$C16),0) -> 0.4166666667 | DH16: =IF((1-($DY$2-AI$2)/$C16)>0,(1-($DY$2-AI$2)/$C16),0) -> 0.45 | DI16: =IF((1-($DY$2-AM$2)/$C16)>0,(1-($DY$2-AM$2)/$C16),0) -> 0.4833333333 | DJ16: =IF((1-($DY$2-AQ$2)/$C16)>0,(1-($DY$2-AQ$2)/$C16),0) -> 0.5166666667 | DK16: =IF((1-($DY$2-AU$2)/$C16)>0,(1-($DY$2-AU$2)/$C16),0) -> 0.55 | DL16: =IF((1-($DY$2-AY$2)/$C16)>0,(1-($DY$2-AY$2)/$C16),0) -> 0.5833333333 | DM16: =IF((1-($DY$2-BC$2)/$C16)>0,(1-($DY$2-BC$2)/$C16),0) -> 0.6166666667 | DN16: =IF((1-($DY$2-BG$2)/$C16)>0,(1-($DY$2-BG$2)/$C16),0) -> 0.65 | DO16: =IF((1-($DY$2-BK$2)/$C16)>0,(1-($DY$2-BK$2)/$C16),0) -> 0.6833333333 | DP16: =IF((1-($DY$2-BO$2)/$C16)>0,(1-($DY$2-BO$2)/$C16),0) -> 0.7166666667 | DQ16: =IF((1-($DY$2-BS$2)/$C16)>0,(1-($DY$2-BS$2)/$C16),0) -> 0.75 | DR16: =IF((1-($DY$2-BW$2)/$C16)>0,(1-($DY$2-BW$2)/$C16),0) -> 0.7833333333 | DS16: =IF((1-($DY$2-CA$2)/$C16)>0,(1-($DY$2-CA$2)/$C16),0) -> 0.8166666667 | DT16: =IF((1-($DY$2-CE$2)/$C16)>0,(1-($DY$2-CE$2)/$C16),0) -> 0.85 | DU16: =IF((1-($DY$2-CI$2)/$C16)>0,(1-($DY$2-CI$2)/$C16),0) -> 0.8833333333 | DV16: 0.9166666667 | DW16: 0.95 | DX16: 0.9833333333 | DY16: =IF(CZ16=0,0,($D16-$E16)*1/$C16)+IF(DA16=0,0,($G16-$H16-$I16)*$G$61*1/$C16)+IF(DB16=0,0,($K16-$L16-$M16)*$K$61*1/$C16)+IF(DC16=0,0,($O16-$P16-$Q16)*$O$61*1/$C16)+IF(DD16=0,0,($S16-$T16-$U16)*$S$61*1/$C16)+IF(DE16=0,0,($W16-$X16-$Y16)*$W$61*1/$C16)+IF(DF16=0,0,($AA16-$AB16-$AC16)*$AA$61*1/$C16)+IF(DG16=0,0,($AE16-$AF16-$AG16)*$AE$61*1/$C16)+IF(DH16=0,0,($AI16-$AJ16-$AK16)*$AI$61*1/$C16)+IF(DI16=0,0,($AM16-$AN16-$AO16)*$AM$61*1/$C16)+IF(DJ16=0,0,($AQ16-$AR16-$AS16)*$AQ$61*1/$C16)+IF(DK16=0,0,($AU16-$AV16-$AW16)*$AU$61*1/$C16)+IF(DL16=0,0,($AY16-$AZ16-$BA16)*$AY$61*1/$C16)+IF(DM16=0,0,($BC16-$BD16-$BE16)*$BC$61*1/$C16)+IF(DN16=0,0,($BG16-$BH16-$BI16)*$BG$61*1/$C16)+IF(DO16=0,0,($BK16-$BL16-$BM16)*$BK$61*1/$C16)+IF(DP16=0,0,($BO16-$BP16-$BQ16)*$BO$61*1/$C16)+IF(DQ16=0,0,($BS16-$BT16-$BU16)*$BS$61*1/$C16)+IF(DR16=0,0,($BW16-$BX16-$BY16)*$BW$61*1/$C16)+IF(DS16=0,0,($CA16-$CB16-$CC16)*$CA$61*1/$C16)+IF(DT16=0,0,($CE16-$CF16-$CG16)*$CE$61*1/$C16)+IF(DU16=0,0,($CI16-$CJ16-$CK16)*$CI$61*1/$C16)+IF(DV16=0,0,($CM16-$CN16-$CO16)*$CM$61*1/$C16)+IF(DW16=0,0,($CQ16-$CR16-$CS16)*$CQ$61*1/$C16)+IF(DX16=0,0,($CU16-$CV16-$CW16)*$CU$61*1/$C16) -> 864776.0235 | DZ16: =D16-E16+(G16-H16-I16)*G$61+(K16-L16-M16)*K$61+(O16-P16-Q16)*O$61+(S16-T16-U16)*S$61+(W16-X16-Y16)*W$61+(AA16-AB16-AC16)*AA$61+(AE16-AF16-AG16)*AE$61+(AI16-AJ16-AK16)*AI$61+(AM16-AN16-AO16)*AM$61+(AQ16-AR16-AS16)*$AQ$61+(AU16-AV16-AW16)*$AU$61+(AY16-AZ16-BA16)*$AY$61+(BC16-BD16-BE16)*$BC$61+(BG16-BH16-BI16)*$BG$61+(BK16-BL16-BM16)*$BK$61+(BO16-BP16-BQ16)*$BO$61+(BS16-BT16-BU16)*$BS$61+(BW16-BX16-BY16)*$BW$61+(CA16-CB16-CC16)*$CA$61+(CE16-CF16-CG16)*$CE$61+(CI16-CJ16-CK16)*$CI$61+(CM16-CN16-CO16)*$CM$61+(CQ16-CR16-CS16)*$CQ$61+(CU16-CV16-CW16)*$CU$61 -> 25943280.71 | EA16: 0 | EB16: =(D16-E16)*CZ16+((G16-H16-(I16-J16))*G$61)*DA16+((K16-L16-(M16-N16))*K$61)*DB16+((O16-P16-(Q16-R16))*O$61)*DC16+((S16-T16-(U16-V16))*S$61)*DD16+((W16-X16-(Y16-Z16))*W$61)*DE16+((AA16-AB16-(AC16-AD16))*AA$61)*DF16+((AE16-AF16-(AG16-AH16))*AE$61)*DG16+((AI16-AJ16-(AK16-AL16))*AI$61)*DH16+((AM16-AN16-(AO16-AP16))*$AM$61)*DI16+((AQ16-AR16-(AS16-AT16))*$AQ$61)*DJ16+((AU16-AV16-(AW16-AX16))*$AU$61)*DK16+((AY16-AZ16-(BA16-BB16))*$AY$61)*DL16+((BC16-BD16-(BE16-BF16))*$BC$61)*DM16+((BG16-BH16-(BI16-BJ16))*$BG$61)*DN16+((BK16-BL16-(BM16-BN16))*$BK$61)*DO16+((BO16-BP16-(BQ16-BR16))*$BO$61)*DP16+((BS16-BT16-(BU16-BV16))*$BS$61)*DQ16+((BW16-BX16-(BY16-BZ16))*$BW$61)*DR16+((CA16-CB16-(CC16-CD16))*$CA$61)*DS16+((CE16-CF16-(CG16-CH16))*$CE$61)*DT16+((CI16-CJ16-(CK16-CL16))*$CI$61)*DU16+((CM16-CN16-(CO16-CP16))*$CM$61)*DV16+((CQ16-CR16-(CS16-CT16))*$CQ$61)*DW16+((CU16-CV16-(CW16-CX16))*$CU$61)*DX16 -> 13620792.51 | EC16: =(DZ16-EA16)*1/C16 -> 864776.0235 | ED16: =IF((1-($FC$2-$CY16)/$C16)>0,(1-($FC$2-$CY16)/$C16),0) -> 0.05221128913 | EE16: 0.1833333333 | EF16: 0.2166666667 | EG16: 0.25 | EH16: 0.2833333333 | EI16: 0.3166666667 | EJ16: 0.35 | EK16: 0.3833333333 | EL16: 0.4166666667 | EM16: 0.45 | EN16: 0.4833333333 | EO16: 0.5166666667 | EP16: 0.55 | EQ16: 0.5833333333 | ER16: 0.6166666667 | ES16: 0.65 | ET16: 0.6833333333 | EU16: 0.7166666667 | EV16: 0.75 | EW16: 0.7833333333 | EX16: 0.8166666667 | EY16: 0.85 | EZ16: 0.8833333333 | FA16: 0.9166666667 | FB16: 0.95 | FC16: =IF(ED16=0,0,($D16-$E16)*1/$C16)+IF(EE16=0,0,($G16-$H16-$I16)*$G$61*1/$C16)+IF(EF16=0,0,($K16-$L16-$M16)*$K$61*1/$C16)+IF(EG16=0,0,($O16-$P16-$Q16)*$O$61*1/$C16)+IF(EH16=0,0,($S16-$T16-$U16)*$S$61*1/$C16)+IF(EI16=0,0,($W16-$X16-$Y16)*$W$61*1/$C16)+IF(EJ16=0,0,($AA16-$AB16-$AC16)*$AA$61*1/$C16)+IF(EK16=0,0,($AE16-$AF16-$AG16)*$AE$61*1/$C16)+IF(EL16=0,0,($AI16-$AJ16-$AK16)*$AI$61*1/$C16)+IF(EM16=0,0,($AM16-$AN16-$AO16)*$AM$61*1/$C16)+IF(EN16=0,0,($AQ16-$AR16-$AS16)*$AQ$61*1/$C16)+IF(EO16=0,0,($AU16-$AV16-$AW16)*$AU$61*1/$C16)+IF(EP16=0,0,($AY16-$AZ16-$BA16)*$AY$61*1/$C16)+IF(EQ16=0,0,($BC16-$BD16-$BE16)*$BC$61*1/$C16)+IF(ER16=0,0,($BG16-$BH16-$BI16)*$BG$61*1/$C16)+IF(ES16=0,0,($BK16-$BL16-$BM16)*$BK$61*1/$C16)+IF(ET16=0,0,($BO16-$BP16-$BQ16)*$BO$61*1/$C16)+IF(EU16=0,0,($BS16-$BT16-$BU16)*$BS$61*1/$C16)+IF(EV16=0,0,($BW16-$BX16-$BY16)*$BW$61*1/$C16)+IF(EW16=0,0,($CA16-$CB16-$CC16)*$CA$61*1/$C16)+IF(EX16=0,0,($CE16-$CF16-$CG16)*$CE$61*1/$C16)+IF(EY16=0,0,($CI16-$CJ16-$CK16)*$CI$61*1/$C16)+IF(EZ16=0,0,($CM16-$CN16-$CO16)*$CM$61*1/$C16)+IF(FA16=0,0,($CQ16-$CR16-$CS16)*$CQ$61*1/$C16)+IF(FB16=0,0,($CU16-$CV16-$CW16)*$CU$61*1/$C16) -> 864776.0235 | FD16: =IF((1-($GC$2-$CY16)/$C16)>0,(1-($GC$2-$CY16)/$C16),0) -> 0.0188779558 | FE16: 0.15 | FF16: 0.1833333333 | FG16: 0.2166666667 | FH16: 0.25 | FI16: 0.2833333333 | FJ16: 0.3166666667 | FK16: 0.35 | FL16: 0.3833333333 | FM16: 0.4166666667 | FN16: 0.45 | FO16: 0.4833333333 | FP16: 0.5166666667 | FQ16: 0.55 | FR16: 0.5833333333 | FS16: 0.6166666667 | FT16: 0.65 | FU16: 0.6833333333 | FV16: 0.7166666667 | FW16: 0.75 | FX16: 0.7833333333 | FY16: 0.8166666667 | FZ16: 0.85 | GA16: 0.8833333333 | GB16: 0.9166666667 | GC16: =IF(FD16=0,0,($D16-$E16)*1/$C16)+IF(FE16=0,0,($G16-$H16-$I16)*$G$61*1/$C16)+IF(FF16=0,0,($K16-$L16-$M16)*$K$61*1/$C16)+IF(FG16=0,0,($O16-$P16-$Q16)*$O$61*1/$C16)+IF(FH16=0,0,($S16-$T16-$U16)*$S$61*1/$C16)+IF(FI16=0,0,($W16-$X16-$Y16)*$W$61*1/$C16)+IF(FJ16=0,0,($AA16-$AB16-$AC16)*$AA$61*1/$C16)+IF(FK16=0,0,($AE16-$AF16-$AG16)*$AE$61*1/$C16)+IF(FL16=0,0,($AI16-$AJ16-$AK16)*$AI$61*1/$C16)+IF(FM16=0,0,($AM16-$AN16-$AO16)*$AM$61*1/$C16)+IF(FN16=0,0,($AQ16-$AR16-$AS16)*$AQ$61*1/$C16)+IF(FO16=0,0,($AU16-$AV16-$AW16)*$AU$61*1/$C16)+IF(FP16=0,0,($AY16-$AZ16-$BA16)*$AY$61*1/$C16)+IF(FQ16=0,0,($BC16-$BD16-$BE16)*$BC$61*1/$C16)+IF(FR16=0,0,($BG16-$BH16-$BI16)*$BG$61*1/$C16)+IF(FS16=0,0,($BK16-$BL16-$BM16)*$BK$61*1/$C16)+IF(FT16=0,0,($BO16-$BP16-$BQ16)*$BO$61*1/$C16)+IF(FU16=0,0,($BS16-$BT16-$BU16)*$BS$61*1/$C16)+IF(FV16=0,0,($BW16-$BX16-$BY16)*$BW$61*1/$C16)+IF(FW16=0,0,($CA16-$CB16-$CC16)*$CA$61*1/$C16)+IF(FX16=0,0,($CE16-$CF16-$CG16)*$CE$61*1/$C16)+IF(FY16=0,0,($CI16-$CJ16-$CK16)*$CI$61*1/$C16)+IF(FZ16=0,0,($CM16-$CN16-$CO16)*$CM$61*1/$C16)+IF(GA16=0,0,($CQ16-$CR16-$CS16)*$CQ$61*1/$C16)+IF(GB16=0,0,($CU16-$CV16-$CW16)*$CU$61*1/$C16) -> 864776.0235 | GD16: =IF((1-($HC$2-$CY16)/$C16)>0,(1-($HC$2-$CY16)/$C16),0) -> 0 | GE16: 0.1166666667 | GF16: 0.15 | GG16: 0.1833333333 | GH16: 0.2166666667 | GI16: 0.25 | GJ16: 0.2833333333 | GK16: 0.3166666667 | GL16: 0.35 | GM16: 0.3833333333 | GN16: 0.4166666667 | GO16: 0.45 | GP16: 0.4833333333 | GQ16: 0.5166666667 | GR16: 0.55 | GS16: 0.5833333333 | GT16: 0.6166666667 | GU16: 0.65 | GV16: 0.6833333333 | GW16: 0.7166666667 | GX16: 0.75 | GY16: 0.7833333333 | GZ16: 0.8166666667 | HA16: 0.85 | HB16: 0.8833333333 | HC16: =IF(GD16=0,0,($D16-$E16)*1/$C16)+IF(GE16=0,0,($G16-$H16-$I16)*$G$61*1/$C16)+IF(GF16=0,0,($K16-$L16-$M16)*$K$61*1/$C16)+IF(GG16=0,0,($O16-$P16-$Q16)*$O$61*1/$C16)+IF(GH16=0,0,($S16-$T16-$U16)*$S$61*1/$C16)+IF(GI16=0,0,($W16-$X16-$Y16)*$W$61*1/$C16)+IF(GJ16=0,0,($AA16-$AB16-$AC16)*$AA$61*1/$C16)+IF(GK16=0,0,($AE16-$AF16-$AG16)*$AE$61*1/$C16)+IF(GL16=0,0,($AI16-$AJ16-$AK16)*$AI$61*1/$C16)+IF(GM16=0,0,($AM16-$AN16-$AO16)*$AM$61*1/$C16)+IF(GN16=0,0,($AQ16-$AR16-$AS16)*$AQ$61*1/$C16)+IF(GO16=0,0,($AU16-$AV16-$AW16)*$AU$61*1/$C16)+IF(GP16=0,0,($AY16-$AZ16-$BA16)*$AY$61*1/$C16)+IF(GQ16=0,0,($BC16-$BD16-$BE16)*$BC$61*1/$C16)+IF(GR16=0,0,($BG16-$BH16-$BI16)*$BG$61*1/$C16)+IF(GS16=0,0,($BK16-$BL16-$BM16)*$BK$61*1/$C16)+IF(GT16=0,0,($BO16-$BP16-$BQ16)*$BO$61*1/$C16)+IF(GU16=0,0,($BS16-$BT16-$BU16)*$BS$61*1/$C16)+IF(GV16=0,0,($BW16-$BX16-$BY16)*$BW$61*1/$C16)+IF(GW16=0,0,($CA16-$CB16-$CC16)*$CA$61*1/$C16)+IF(GX16=0,0,($CE16-$CF16-$CG16)*$CE$61*1/$C16)+IF(GY16=0,0,($CI16-$CJ16-$CK16)*$CI$61*1/$C16)+IF(GZ16=0,0,($CM16-$CN16-$CO16)*$CM$61*1/$C16)+IF(HA16=0,0,($CQ16-$CR16-$CS16)*$CQ$61*1/$C16)+IF(HB16=0,0,($CU16-$CV16-$CW16)*$CU$61*1/$C16) -> 648443.5183 | HD16: =IF((1-($IC$2-$CY16)/$C16)>0,(1-($IC$2-$CY16)/$C16),0) -> 0 | HE16: 0.08333333333 | HF16: 0.1166666667 | HG16: 0.15 | HH16: 0.1833333333 | HI16: 0.2166666667 | HJ16: 0.25 | HK16: 0.2833333333 | HL16: 0.3166666667 | HM16: 0.35 | HN16: 0.3833333333 | HO16: 0.4166666667 | HP16: 0.45 | HQ16: 0.4833333333 | HR16: 0.5166666667 | HS16: 0.55 | HT16: 0.5833333333 | HU16: 0.6166666667 | HV16: 0.65 | HW16: 0.6833333333 | HX16: 0.7166666667 | HY16: 0.75 | HZ16: 0.7833333333 | IA16: 0.8166666667 | IB16: 0.85 | IC16: =IF(HD16=0,0,($D16-$E16)*1/$C16)+IF(HE16=0,0,($G16-$H16-$I16)*$G$61*1/$C16)+IF(HF16=0,0,($K16-$L16-$M16)*$K$61*1/$C16)+IF(HG16=0,0,($O16-$P16-$Q16)*$O$61*1/$C16)+IF(HH16=0,0,($S16-$T16-$U16)*$S$61*1/$C16)+IF(HI16=0,0,($W16-$X16-$Y16)*$W$61*1/$C16)+IF(HJ16=0,0,($AA16-$AB16-$AC16)*$AA$61*1/$C16)+IF(HK16=0,0,($AE16-$AF16-$AG16)*$AE$61*1/$C16)+IF(HL16=0,0,($AI16-$AJ16-$AK16)*$AI$61*1/$C16)+IF(HM16=0,0,($AM16-$AN16-$AO16)*$AM$61*1/$C16)+IF(HN16=0,0,($AQ16-$AR16-$AS16)*$AQ$61*1/$C16)+IF(HO16=0,0,($AU16-$AV16-$AW16)*$AU$61*1/$C16)+IF(HP16=0,0,($AY16-$AZ16-$BA16)*$AY$61*1/$C16)+IF(HQ16=0,0,($BC16-$BD16-$BE16)*$BC$61*1/$C16)+IF(HR16=0,0,($BG16-$BH16-$BI16)*$BG$61*1/$C16)+IF(HS16=0,0,($BK16-$BL16-$BM16)*$BK$61*1/$C16)+IF(HT16=0,0,($BO16-$BP16-$BQ16)*$BO$61*1/$C16)+IF(HU16=0,0,($BS16-$BT16-$BU16)*$BS$61*1/$C16)+IF(HV16=0,0,($BW16-$BX16-$BY16)*$BW$61*1/$C16)+IF(HW16=0,0,($CA16-$CB16-$CC16)*$CA$61*1/$C16)+IF(HX16=0,0,($CE16-$CF16-$CG16)*$CE$61*1/$C16)+IF(HY16=0,0,($CI16-$CJ16-$CK16)*$CI$61*1/$C16)+IF(HZ16=0,0,($CM16-$CN16-$CO16)*$CM$61*1/$C16)+IF(IA16=0,0,($CQ16-$CR16-$CS16)*$CQ$61*1/$C16)+IF(IB16=0,0,($CU16-$CV16-$CW16)*$CU$61*1/$C16) -> 648443.5183 | IE16: 0 | IF16: =FC16-GC16 -> 0 | IG16: =GC16-HC16 -> 216332.5052 | IH16: =HC16-IC16 -> 0
B17: Subestaciones AT / MT | C17: 30 | D17: 33255150.39 | E17: 0 | F17: 26361854.02 | G17: 422069.56 | H17: 0 | I17: 0 | J17: 0 | K17: 214419 | L17: 0 | M17: 0 | N17: 0 | O17: 1670123 | P17: 0 | Q17: 0 | R17: 0 | S17: 1407324.76 | T17: 0 | U17: 0 | V17: 0 | W17: 3963079.69 | X17: 0 | Y17: 0 | Z17: 0 | AA17: 3151421.08 | AB17: 0 | AC17: 0 | AD17: 0 | AE17: 773583.14 | AF17: 0 | AG17: 0 | AH17: 0 | AI17: 1179975.59 | AJ17: 0 | AK17: 0 | AL17: 0 | AM17: 2735507.88 | AN17: 0 | AO17: 0 | AP17: 0 | AQ17: 72182.4 | AR17: 0 | AS17: 0 | AT17: 0 | AU17: 2536733.79 | AV17: 0 | AW17: 0 | AX17: 0 | AY17: 6260779.77 | AZ17: 0 | BA17: 0 | BB17: 0 | BC17: 6099150.95 | BD17: 0 | BE17: 0 | BF17: 0 | BG17: 4693863.29 | BH17: 0 | BI17: 0 | BJ17: 0 | BK17: 3280704.67 | BL17: 0 | BM17: 0 | BN17: 0 | BO17: 1604910.63 | BP17: 0 | BQ17: 0 | BR17: 0 | BS17: 6437676.03 | BT17: 0 | BU17: 0 | BV17: 0 | BW17: 4403266.78 | BX17: 0 | BY17: 0 | BZ17: 0 | CA17: 1347124.02 | CB17: 0 | CC17: 0 | CD17: 0 | CE17: 1431554.3 | CF17: 0 | CG17: 0 | CH17: 0 | CI17: 8500739.6 | CJ17: 3942.21 | CM17: 1162717.79 | CN17: 0 | CQ17: 728041.51 | CR17: 0 | CU17: 520125.26 | CV17: 0 | CY17: =IF(D17=0,0,2001-(D17-F17)*C17/D17) -> 1994.781448 | CZ17: =IF((1-($DY$2-$CY17)/$C17)>0,(1-($DY$2-$CY17)/$C17),0) -> 0 | DA17: =IF((1-($DY$2-G$2)/$C17)>0,(1-($DY$2-G$2)/$C17),0) -> 0.2166666667 | DB17: =IF((1-($DY$2-K$2)/$C17)>0,(1-($DY$2-K$2)/$C17),0) -> 0.25 | DC17: =IF((1-($DY$2-O$2)/$C17)>0,(1-($DY$2-O$2)/$C17),0) -> 0.2833333333 | DD17: =IF((1-($DY$2-S$2)/$C17)>0,(1-($DY$2-S$2)/$C17),0) -> 0.3166666667 | DE17: =IF((1-($DY$2-W$2)/$C17)>0,(1-($DY$2-W$2)/$C17),0) -> 0.35 | DF17: =IF((1-($DY$2-AA$2)/$C17)>0,(1-($DY$2-AA$2)/$C17),0) -> 0.3833333333 | DG17: =IF((1-($DY$2-AE$2)/$C17)>0,(1-($DY$2-AE$2)/$C17),0) -> 0.4166666667 | DH17: =IF((1-($DY$2-AI$2)/$C17)>0,(1-($DY$2-AI$2)/$C17),0) -> 0.45 | DI17: =IF((1-($DY$2-AM$2)/$C17)>0,(1-($DY$2-AM$2)/$C17),0) -> 0.4833333333 | DJ17: =IF((1-($DY$2-AQ$2)/$C17)>0,(1-($DY$2-AQ$2)/$C17),0) -> 0.5166666667 | DK17: =IF((1-($DY$2-AU$2)/$C17)>0,(1-($DY$2-AU$2)/$C17),0) -> 0.55 | DL17: =IF((1-($DY$2-AY$2)/$C17)>0,(1-($DY$2-AY$2)/$C17),0) -> 0.5833333333 | DM17: =IF((1-($DY$2-BC$2)/$C17)>0,(1-($DY$2-BC$2)/$C17),0) -> 0.6166666667 | DN17: =IF((1-($DY$2-BG$2)/$C17)>0,(1-($DY$2-BG$2)/$C17),0) -> 0.65 | DO17: =IF((1-($DY$2-BK$2)/$C17)>0,(1-($DY$2-BK$2)/$C17),0) -> 0.6833333333 | DP17: =IF((1-($DY$2-BO$2)/$C17)>0,(1-($DY$2-BO$2)/$C17),0) -> 0.7166666667 | DQ17: =IF((1-($DY$2-BS$2)/$C17)>0,(1-($DY$2-BS$2)/$C17),0) -> 0.75 | DR17: =IF((1-($DY$2-BW$2)/$C17)>0,(1-($DY$2-BW$2)/$C17),0) -> 0.7833333333 | DS17: =IF((1-($DY$2-CA$2)/$C17)>0,(1-($DY$2-CA$2)/$C17),0) -> 0.8166666667 | DT17: =IF((1-($DY$2-CE$2)/$C17)>0,(1-($DY$2-CE$2)/$C17),0) -> 0.85 | DU17: =IF((1-($DY$2-CI$2)/$C17)>0,(1-($DY$2-CI$2)/$C17),0) -> 0.8833333333 | DV17: 0.9166666667 | DW17: 0.95 | DX17: 0.9833333333 | DY17: 1886933.013 | DZ17: 89863140.78 | EA17: 33255150.39 | EB17: 36544411.69 | EC17: 1886933.013 | ED17: =IF((1-($FC$2-$CY17)/$C17)>0,(1-($FC$2-$CY17)/$C17),0) -> 0 | EE17: 0.1833333333 | EF17: 0.2166666667 | EG17: 0.25 | EH17: 0.2833333333 | EI17: 0.3166666667 | EJ17: 0.35 | EK17: 0.3833333333 | EL17: 0.4166666667 | EM17: 0.45 | EN17: 0.4833333333 | EO17: 0.5166666667 | EP17: 0.55 | EQ17: 0.5833333333 | ER17: 0.6166666667 | ES17: 0.65 | ET17: 0.6833333333 | EU17: 0.7166666667 | EV17: 0.75 | EW17: 0.7833333333 | EX17: 0.8166666667 | EY17: 0.85 | EZ17: 0.8833333333 | FA17: 0.9166666667 | FB17: 0.95 | FC17: 1886933.013 | FD17: =IF((1-($GC$2-$CY17)/$C17)>0,(1-($GC$2-$CY17)/$C17),0) -> 0 | FE17: 0.15 | FF17: 0.1833333333 | FG17: 0.2166666667 | FH17: 0.25 | FI17: 0.2833333333 | FJ17: 0.3166666667 | FK17: 0.35 | FL17: 0.3833333333 | FM17: 0.4166666667 | FN17: 0.45 | FO17: 0.4833333333 | FP17: 0.5166666667 | FQ17: 0.55 | FR17: 0.5833333333 | FS17: 0.6166666667 | FT17: 0.65 | FU17: 0.6833333333 | FV17: 0.7166666667 | FW17: 0.75 | FX17: 0.7833333333 | FY17: 0.8166666667 | FZ17: 0.85 | GA17: 0.8833333333 | GB17: 0.9166666667 | GC17: 1886933.013 | GD17: =IF((1-($HC$2-$CY17)/$C17)>0,(1-($HC$2-$CY17)/$C17),0) -> 0 | GE17: 0.1166666667 | GF17: 0.15 | GG17: 0.1833333333 | GH17: 0.2166666667 | GI17: 0.25 | GJ17: 0.2833333333 | GK17: 0.3166666667 | GL17: 0.35 | GM17: 0.3833333333 | GN17: 0.4166666667 | GO17: 0.45 | GP17: 0.4833333333 | GQ17: 0.5166666667 | GR17: 0.55 | GS17: 0.5833333333 | GT17: 0.6166666667 | GU17: 0.65 | GV17: 0.6833333333 | GW17: 0.7166666667 | GX17: 0.75 | GY17: 0.7833333333 | GZ17: 0.8166666667 | HA17: 0.85 | HB17: 0.8833333333 | HC17: 1886933.013 | HD17: =IF((1-($IC$2-$CY17)/$C17)>0,(1-($IC$2-$CY17)/$C17),0) -> 0 | HE17: 0.08333333333 | HF17: 0.1166666667 | HG17: 0.15 | HH17: 0.1833333333 | HI17: 0.2166666667 | HJ17: 0.25 | HK17: 0.2833333333 | HL17: 0.3166666667 | HM17: 0.35 | HN17: 0.3833333333 | HO17: 0.4166666667 | HP17: 0.45 | HQ17: 0.4833333333 | HR17: 0.5166666667 | HS17: 0.55 | HT17: 0.5833333333 | HU17: 0.6166666667 | HV17: 0.65 | HW17: 0.6833333333 | HX17: 0.7166666667 | HY17: 0.75 | HZ17: 0.7833333333 | IA17: 0.8166666667 | IB17: 0.85 | IC17: =IF(HD17=0,0,($D17-$E17)*1/$C17)+IF(HE17=0,0,($G17-$H17-$I17)*$G$61*1/$C17)+IF(HF17=0,0,($K17-$L17-$M17)*$K$61*1/$C17)+IF(HG17=0,0,($O17-$P17-$Q17)*$O$61*1/$C17)+IF(HH17=0,0,($S17-$T17-$U17)*$S$61*1/$C17)+IF(HI17=0,0,($W17-$X17-$Y17)*$W$61*1/$C17)+IF(HJ17=0,0,($AA17-$AB17-$AC17)*$AA$61*1/$C17)+IF(HK17=0,0,($AE17-$AF17-$AG17)*$AE$61*1/$C17)+IF(HL17=0,0,($AI17-$AJ17-$AK17)*$AI$61*1/$C17)+IF(HM17=0,0,($AM17-$AN17-$AO17)*$AM$61*1/$C17)+IF(HN17=0,0,($AQ17-$AR17-$AS17)*$AQ$61*1/$C17)+IF(HO17=0,0,($AU17-$AV17-$AW17)*$AU$61*1/$C17)+IF(HP17=0,0,($AY17-$AZ17-$BA17)*$AY$61*1/$C17)+IF(HQ17=0,0,($BC17-$BD17-$BE17)*$BC$61*1/$C17)+IF(HR17=0,0,($BG17-$BH17-$BI17)*$BG$61*1/$C17)+IF(HS17=0,0,($BK17-$BL17-$BM17)*$BK$61*1/$C17)+IF(HT17=0,0,($BO17-$BP17-$BQ17)*$BO$61*1/$C17)+IF(HU17=0,0,($BS17-$BT17-$BU17)*$BS$61*1/$C17)+IF(HV17=0,0,($BW17-$BX17-$BY17)*$BW$61*1/$C17)+IF(HW17=0,0,($CA17-$CB17-$CC17)*$CA$61*1/$C17)+IF(HX17=0,0,($CE17-$CF17-$CG17)*$CE$61*1/$C17)+IF(HY17=0,0,($CI17-$CJ17-$CK17)*$CI$61*1/$C17)+IF(HZ17=0,0,($CM17-$CN17-$CO17)*$CM$61*1/$C17)+IF(IA17=0,0,($CQ17-$CR17-$CS17)*$CQ$61*1/$C17)+IF(IB17=0,0,($CU17-$CV17-$CW17)*$CU$61*1/$C17) -> 1886933.013 | IE17: =DY17-FC17 -> 0 | IF17: 0 | IG17: 0 | IH17: 0
B18: Media tensión MT | CU18: 0 | CV18: 0 | FC18: 0 | GC18: 0 | HC18: 0 | IE18: 0 | IF18: 0 | IG18: 0 | IH18: 0
B19: Líneas aéreas de 34,5 kV | C19: 30 | D19: 692084.2112 | E19: 0 | F19: 397807.7584 | G19: 30478 | H19: 0 | I19: 0 | J19: 0 | K19: 139414 | L19: 0 | M19: 0 | N19: 0 | O19: 253789 | P19: 0 | Q19: 0 | R19: 0 | S19: 55582 | T19: 0 | U19: 0 | V19: 0 | W19: 32513.77 | X19: 0 | Y19: 0 | Z19: 0 | AA19: 14906.85 | AB19: 0 | AC19: 0 | AD19: 0 | AE19: 15193.42 | AF19: 0 | AG19: 0 | AH19: 0 | AI19: 0 | AJ19: 0 | AK19: 0 | AL19: 0 | AM19: 3417319.03 | AN19: 79201.52 | AO19: 0 | AP19: 0 | AQ19: 0 | AR19: 0 | AS19: 0 | AT19: 0 | AU19: 320133.99 | AV19: 0 | AW19: 0 | AX19: 0 | AY19: 924778.26 | AZ19: 0 | BA19: 0 | BB19: 0 | BC19: 159333.99 | BD19: 0 | BE19: 0 | BF19: 0 | BG19: 98166.04 | BH19: 0 | BI19: 0 | BJ19: 0 | BK19: 2186819.74 | BL19: 0 | BM19: 0 | BN19: 0 | BO19: 456030.11 | BP19: 0 | BQ19: 0 | BR19: 0 | BS19: 316595.87 | BT19: 0 | BU19: 0 | BV19: 0 | BW19: 132510.76 | BX19: 0 | BY19: 0 | BZ19: 0 | CA19: 108550.01 | CB19: 0 | CC19: 0 | CD19: 0 | CE19: 482280.01 | CF19: 0 | CG19: 0 | CH19: 0 | CI19: 1960175.48 | CJ19: 0 | CM19: 226738.74 | CN19: 917.81 | CQ19: 58749.82 | CR19: 0 | CU19: 1277917.28 | CV19: 5130.65 | CY19: =IF(D19=0,0,2001-(D19-F19)*C19/D19) -> 1988.243903 | CZ19: =IF((1-($DY$2-$CY19)/$C19)>0,(1-($DY$2-$CY19)/$C19),0) -> 0 | DA19: =IF((1-($DY$2-G$2)/$C19)>0,(1-($DY$2-G$2)/$C19),0) -> 0.2166666667 | DB19: =IF((1-($DY$2-K$2)/$C19)>0,(1-($DY$2-K$2)/$C19),0) -> 0.25 | DC19: =IF((1-($DY$2-O$2)/$C19)>0,(1-($DY$2-O$2)/$C19),0) -> 0.2833333333 | DD19: =IF((1-($DY$2-S$2)/$C19)>0,(1-($DY$2-S$2)/$C19),0) -> 0.3166666667 | DE19: =IF((1-($DY$2-W$2)/$C19)>0,(1-($DY$2-W$2)/$C19),0) -> 0.35 | DF19: =IF((1-($DY$2-AA$2)/$C19)>0,(1-($DY$2-AA$2)/$C19),0) -> 0.3833333333 | DG19: =IF((1-($DY$2-AE$2)/$C19)>0,(1-($DY$2-AE$2)/$C19),0) -> 0.4166666667 | DH19: =IF((1-($DY$2-AI$2)/$C19)>0,(1-($DY$2-AI$2)/$C19),0) -> 0.45 | DI19: =IF((1-($DY$2-AM$2)/$C19)>0,(1-($DY$2-AM$2)/$C19),0) -> 0.4833333333 | DJ19: =IF((1-($DY$2-AQ$2)/$C19)>0,(1-($DY$2-AQ$2)/$C19),0) -> 0.5166666667 | DK19: =IF((1-($DY$2-AU$2)/$C19)>0,(1-($DY$2-AU$2)/$C19),0) -> 0.55 | DL19: =IF((1-($DY$2-AY$2)/$C19)>0,(1-($DY$2-AY$2)/$C19),0) -> 0.5833333333 | DM19: =IF((1-($DY$2-BC$2)/$C19)>0,(1-($DY$2-BC$2)/$C19),0) -> 0.6166666667 | DN19: =IF((1-($DY$2-BG$2)/$C19)>0,(1-($DY$2-BG$2)/$C19),0) -> 0.65 | DO19: =IF((1-($DY$2-BK$2)/$C19)>0,(1-($DY$2-BK$2)/$C19),0) -> 0.6833333333 | DP19: =IF((1-($DY$2-BO$2)/$C19)>0,(1-($DY$2-BO$2)/$C19),0) -> 0.7166666667 | DQ19: =IF((1-($DY$2-BS$2)/$C19)>0,(1-($DY$2-BS$2)/$C19),0) -> 0.75 | DR19: =IF((1-($DY$2-BW$2)/$C19)>0,(1-($DY$2-BW$2)/$C19),0) -> 0.7833333333 | DS19: =IF((1-($DY$2-CA$2)/$C19)>0,(1-($DY$2-CA$2)/$C19),0) -> 0.8166666667 | DT19: =IF((1-($DY$2-CE$2)/$C19)>0,(1-($DY$2-CE$2)/$C19),0) -> 0.85 | DU19: =IF((1-($DY$2-CI$2)/$C19)>0,(1-($DY$2-CI$2)/$C19),0) -> 0.8833333333 | DV19: =IF((1-($DY$2-CM$2)/$C19)>0,(1-($DY$2-CM$2)/$C19),0) -> 0.9166666667 | DW19: =IF((1-($DY$2-CQ$2)/$C19)>0,(1-($DY$2-CQ$2)/$C19),0) -> 0.95 | DX19: =IF((1-($DY$2-CU$2)/$C19)>0,(1-($DY$2-CU$2)/$C19),0) -> 0.9833333333 | DY19: =IF(CZ19=0,0,($D19-$E19)*1/$C19)+IF(DA19=0,0,($G19-$H19-$I19)*$G$61*1/$C19)+IF(DB19=0,0,($K19-$L19-$M19)*$K$61*1/$C19)+IF(DC19=0,0,($O19-$P19-$Q19)*$O$61*1/$C19)+IF(DD19=0,0,($S19-$T19-$U19)*$S$61*1/$C19)+IF(DE19=0,0,($W19-$X19-$Y19)*$W$61*1/$C19)+IF(DF19=0,0,($AA19-$AB19-$AC19)*$AA$61*1/$C19)+IF(DG19=0,0,($AE19-$AF19-$AG19)*$AE$61*1/$C19)+IF(DH19=0,0,($AI19-$AJ19-$AK19)*$AI$61*1/$C19)+IF(DI19=0,0,($AM19-$AN19-$AO19)*$AM$61*1/$C19)+IF(DJ19=0,0,($AQ19-$AR19-$AS19)*$AQ$61*1/$C19)+IF(DK19=0,0,($AU19-$AV19-$AW19)*$AU$61*1/$C19)+IF(DL19=0,0,($AY19-$AZ19-$BA19)*$AY$61*1/$C19)+IF(DM19=0,0,($BC19-$BD19-$BE19)*$BC$61*1/$C19)+IF(DN19=0,0,($BG19-$BH19-$BI19)*$BG$61*1/$C19)+IF(DO19=0,0,($BK19-$BL19-$BM19)*$BK$61*1/$C19)+IF(DP19=0,0,($BO19-$BP19-$BQ19)*$BO$61*1/$C19)+IF(DQ19=0,0,($BS19-$BT19-$BU19)*$BS$61*1/$C19)+IF(DR19=0,0,($BW19-$BX19-$BY19)*$BW$61*1/$C19)+IF(DS19=0,0,($CA19-$CB19-$CC19)*$CA$61*1/$C19)+IF(DT19=0,0,($CE19-$CF19-$CG19)*$CE$61*1/$C19)+IF(DU19=0,0,($CI19-$CJ19-$CK19)*$CI$61*1/$C19)+IF(DV19=0,0,($CM19-$CN19-$CO19)*$CM$61*1/$C19)+IF(DW19=0,0,($CQ19-$CR19-$CS19)*$CQ$61*1/$C19)+IF(DX19=0,0,($CU19-$CV19-$CW19)*$CU$61*1/$C19) -> 363019.9279 | DZ19: =D19-E19+(G19-H19-I19)*G$61+(K19-L19-M19)*K$61+(O19-P19-Q19)*O$61+(S19-T19-U19)*S$61+(W19-X19-Y19)*W$61+(AA19-AB19-AC19)*AA$61+(AE19-AF19-AG19)*AE$61+(AI19-AJ19-AK19)*AI$61+(AM19-AN19-AO19)*AM$61+(AQ19-AR19-AS19)*$AQ$61+(AU19-AV19-AW19)*$AU$61+(AY19-AZ19-BA19)*$AY$61+(BC19-BD19-BE19)*$BC$61+(BG19-BH19-BI19)*$BG$61+(BK19-BL19-BM19)*$BK$61+(BO19-BP19-BQ19)*$BO$61+(BS19-BT19-BU19)*$BS$61+(BW19-BX19-BY19)*$BW$61+(CA19-CB19-CC19)*$CA$61+(CE19-CF19-CG19)*$CE$61+(CI19-CJ19-CK19)*$CI$61+(CM19-CN19-CO19)*$CM$61+(CQ19-CR19-CS19)*$CQ$61+(CU19-CV19-CW19)*$CU$61 -> 11582682.05 | EA19: 692084.2112 | EB19: =(D19-E19)*CZ19+((G19-H19-(I19-J19))*G$61)*DA19+((K19-L19-(M19-N19))*K$61)*DB19+((O19-P19-(Q19-R19))*O$61)*DC19+((S19-T19-(U19-V19))*S$61)*DD19+((W19-X19-(Y19-Z19))*W$61)*DE19+((AA19-AB19-(AC19-AD19))*AA$61)*DF19+((AE19-AF19-(AG19-AH19))*AE$61)*DG19+((AI19-AJ19-(AK19-AL19))*AI$61)*DH19+((AM19-AN19-(AO19-AP19))*$AM$61)*DI19+((AQ19-AR19-(AS19-AT19))*$AQ$61)*DJ19+((AU19-AV19-(AW19-AX19))*$AU$61)*DK19+((AY19-AZ19-(BA19-BB19))*$AY$61)*DL19+((BC19-BD19-(BE19-BF19))*$BC$61)*DM19+((BG19-BH19-(BI19-BJ19))*$BG$61)*DN19+((BK19-BL19-(BM19-BN19))*$BK$61)*DO19+((BO19-BP19-(BQ19-BR19))*$BO$61)*DP19+((BS19-BT19-(BU19-BV19))*$BS$61)*DQ19+((BW19-BX19-(BY19-BZ19))*$BW$61)*DR19+((CA19-CB19-(CC19-CD19))*$CA$61)*DS19+((CE19-CF19-(CG19-CH19))*$CE$61)*DT19+((CI19-CJ19-(CK19-CL19))*$CI$61)*DU19+((CM19-CN19-(CO19-CP19))*$CM$61)*DV19+((CQ19-CR19-(CS19-CT19))*$CQ$61)*DW19+((CU19-CV19-(CW19-CX19))*$CU$61)*DX19 -> 7469945.592 | EC19: =(DZ19-EA19)*1/C19 -> 363019.9279 | ED19: =IF((1-($FC$2-$CY19)/$C19)>0,(1-($FC$2-$CY19)/$C19),0) -> 0 | EE19: =IF((1-($FC$2-EE$2)/$C19)>0,(1-($FC$2-EE$2)/$C19),0) -> 0.1833333333 | EF19: 0.2166666667 | EG19: 0.25 | EH19: 0.2833333333 | EI19: 0.3166666667 | EJ19: 0.35 | EK19: 0.3833333333 | EL19: 0.4166666667 | EM19: 0.45 | EN19: 0.4833333333 | EO19: =IF((1-($FC$2-EO$2)/$C19)>0,(1-($FC$2-EO$2)/$C19),0) -> 0.5166666667 | EP19: 0.55 | EQ19: 0.5833333333 | ER19: 0.6166666667 | ES19: 0.65 | ET19: 0.6833333333 | EU19: 0.7166666667 | EV19: 0.75 | EW19: 0.7833333333 | EX19: 0.8166666667 | EY19: 0.85 | EZ19: 0.8833333333 | FA19: 0.9166666667 | FB19: 0.95 | FC19: =IF(ED19=0,0,($D19-$E19)*1/$C19)+IF(EE19=0,0,($G19-$H19-$I19)*$G$61*1/$C19)+IF(EF19=0,0,($K19-$L19-$M19)*$K$61*1/$C19)+IF(EG19=0,0,($O19-$P19-$Q19)*$O$61*1/$C19)+IF(EH19=0,0,($S19-$T19-$U19)*$S$61*1/$C19)+IF(EI19=0,0,($W19-$X19-$Y19)*$W$61*1/$C19)+IF(EJ19=0,0,($AA19-$AB19-$AC19)*$AA$61*1/$C19)+IF(EK19=0,0,($AE19-$AF19-$AG19)*$AE$61*1/$C19)+IF(EL19=0,0,($AI19-$AJ19-$AK19)*$AI$61*1/$C19)+IF(EM19=0,0,($AM19-$AN19-$AO19)*$AM$61*1/$C19)+IF(EN19=0,0,($AQ19-$AR19-$AS19)*$AQ$61*1/$C19)+IF(EO19=0,0,($AU19-$AV19-$AW19)*$AU$61*1/$C19)+IF(EP19=0,0,($AY19-$AZ19-$BA19)*$AY$61*1/$C19)+IF(EQ19=0,0,($BC19-$BD19-$BE19)*$BC$61*1/$C19)+IF(ER19=0,0,($BG19-$BH19-$BI19)*$BG$61*1/$C19)+IF(ES19=0,0,($BK19-$BL19-$BM19)*$BK$61*1/$C19)+IF(ET19=0,0,($BO19-$BP19-$BQ19)*$BO$61*1/$C19)+IF(EU19=0,0,($BS19-$BT19-$BU19)*$BS$61*1/$C19)+IF(EV19=0,0,($BW19-$BX19-$BY19)*$BW$61*1/$C19)+IF(EW19=0,0,($CA19-$CB19-$CC19)*$CA$61*1/$C19)+IF(EX19=0,0,($CE19-$CF19-$CG19)*$CE$61*1/$C19)+IF(EY19=0,0,($CI19-$CJ19-$CK19)*$CI$61*1/$C19)+IF(EZ19=0,0,($CM19-$CN19-$CO19)*$CM$61*1/$C19)+IF(FA19=0,0,($CQ19-$CR19-$CS19)*$CQ$61*1/$C19)+IF(FB19=0,0,($CU19-$CV19-$CW19)*$CU$61*1/$C19) -> 363019.9279 | FD19: =IF((1-($GC$2-$CY19)/$C19)>0,(1-($GC$2-$CY19)/$C19),0) -> 0 | FE19: =IF((1-($GC$2-FE$2)/$C19)>0,(1-($GC$2-FE$2)/$C19),0) -> 0.15 | FF19: 0.1833333333 | FG19: 0.2166666667 | FH19: 0.25 | FI19: 0.2833333333 | FJ19: 0.3166666667 | FK19: 0.35 | FL19: 0.3833333333 | FM19: 0.4166666667 | FN19: 0.45 | FO19: =IF((1-($GC$2-FO$2)/$C19)>0,(1-($GC$2-FO$2)/$C19),0) -> 0.4833333333 | FP19: 0.5166666667 | FQ19: 0.55 | FR19: 0.5833333333 | FS19: 0.6166666667 | FT19: 0.65 | FU19: 0.6833333333 | FV19: 0.7166666667 | FW19: 0.75 | FX19: 0.7833333333 | FY19: 0.8166666667 | FZ19: =IF((1-($GC$2-FZ$2)/$C19)>0,(1-($GC$2-FZ$2)/$C19),0) -> 0.85 | GA19: 0.8833333333 | GB19: 0.9166666667 | GC19: =IF(FD19=0,0,($D19-$E19)*1/$C19)+IF(FE19=0,0,($G19-$H19-$I19)*$G$61*1/$C19)+IF(FF19=0,0,($K19-$L19-$M19)*$K$61*1/$C19)+IF(FG19=0,0,($O19-$P19-$Q19)*$O$61*1/$C19)+IF(FH19=0,0,($S19-$T19-$U19)*$S$61*1/$C19)+IF(FI19=0,0,($W19-$X19-$Y19)*$W$61*1/$C19)+IF(FJ19=0,0,($AA19-$AB19-$AC19)*$AA$61*1/$C19)+IF(FK19=0,0,($AE19-$AF19-$AG19)*$AE$61*1/$C19)+IF(FL19=0,0,($AI19-$AJ19-$AK19)*$AI$61*1/$C19)+IF(FM19=0,0,($AM19-$AN19-$AO19)*$AM$61*1/$C19)+IF(FN19=0,0,($AQ19-$AR19-$AS19)*$AQ$61*1/$C19)+IF(FO19=0,0,($AU19-$AV19-$AW19)*$AU$61*1/$C19)+IF(FP19=0,0,($AY19-$AZ19-$BA19)*$AY$61*1/$C19)+IF(FQ19=0,0,($BC19-$BD19-$BE19)*$BC$61*1/$C19)+IF(FR19=0,0,($BG19-$BH19-$BI19)*$BG$61*1/$C19)+IF(FS19=0,0,($BK19-$BL19-$BM19)*$BK$61*1/$C19)+IF(FT19=0,0,($BO19-$BP19-$BQ19)*$BO$61*1/$C19)+IF(FU19=0,0,($BS19-$BT19-$BU19)*$BS$61*1/$C19)+IF(FV19=0,0,($BW19-$BX19-$BY19)*$BW$61*1/$C19)+IF(FW19=0,0,($CA19-$CB19-$CC19)*$CA$61*1/$C19)+IF(FX19=0,0,($CE19-$CF19-$CG19)*$CE$61*1/$C19)+IF(FY19=0,0,($CI19-$CJ19-$CK19)*$CI$61*1/$C19)+IF(FZ19=0,0,($CM19-$CN19-$CO19)*$CM$61*1/$C19)+IF(GA19=0,0,($CQ19-$CR19-$CS19)*$CQ$61*1/$C19)+IF(GB19=0,0,($CU19-$CV19-$CW19)*$CU$61*1/$C19) -> 363019.9279 | GD19: =IF((1-($HC$2-$CY19)/$C19)>0,(1-($HC$2-$CY19)/$C19),0) -> 0 | GE19: =IF((1-($HC$2-GE$2)/$C19)>0,(1-($HC$2-GE$2)/$C19),0) -> 0.1166666667 | GF19: 0.15 | GG19: 0.1833333333 | GH19: 0.2166666667 | GI19: 0.25 | GJ19: 0.2833333333 | GK19: 0.3166666667 | GL19: 0.35 | GM19: 0.3833333333 | GN19: 0.4166666667 | GO19: =IF((1-($HC$2-GO$2)/$C19)>0,(1-($HC$2-GO$2)/$C19),0) -> 0.45 | GP19: 0.4833333333 | GQ19: 0.5166666667 | GR19: 0.55 | GS19: 0.5833333333 | GT19: 0.6166666667 | GU19: 0.65 | GV19: 0.6833333333 | GW19: 0.7166666667 | GX19: 0.75 | GY19: 0.7833333333 | GZ19: =IF((1-($HC$2-GZ$2)/$C19)>0,(1-($HC$2-GZ$2)/$C19),0) -> 0.8166666667 | HA19: 0.85 | HB19: 0.8833333333 | HC19: =IF(GD19=0,0,($D19-$E19)*1/$C19)+IF(GE19=0,0,($G19-$H19-$I19)*$G$61*1/$C19)+IF(GF19=0,0,($K19-$L19-$M19)*$K$61*1/$C19)+IF(GG19=0,0,($O19-$P19-$Q19)*$O$61*1/$C19)+IF(GH19=0,0,($S19-$T19-$U19)*$S$61*1/$C19)+IF(GI19=0,0,($W19-$X19-$Y19)*$W$61*1/$C19)+IF(GJ19=0,0,($AA19-$AB19-$AC19)*$AA$61*1/$C19)+IF(GK19=0,0,($AE19-$AF19-$AG19)*$AE$61*1/$C19)+IF(GL19=0,0,($AI19-$AJ19-$AK19)*$AI$61*1/$C19)+IF(GM19=0,0,($AM19-$AN19-$AO19)*$AM$61*1/$C19)+IF(GN19=0,0,($AQ19-$AR19-$AS19)*$AQ$61*1/$C19)+IF(GO19=0,0,($AU19-$AV19-$AW19)*$AU$61*1/$C19)+IF(GP19=0,0,($AY19-$AZ19-$BA19)*$AY$61*1/$C19)+IF(GQ19=0,0,($BC19-$BD19-$BE19)*$BC$61*1/$C19)+IF(GR19=0,0,($BG19-$BH19-$BI19)*$BG$61*1/$C19)+IF(GS19=0,0,($BK19-$BL19-$BM19)*$BK$61*1/$C19)+IF(GT19=0,0,($BO19-$BP19-$BQ19)*$BO$61*1/$C19)+IF(GU19=0,0,($BS19-$BT19-$BU19)*$BS$61*1/$C19)+IF(GV19=0,0,($BW19-$BX19-$BY19)*$BW$61*1/$C19)+IF(GW19=0,0,($CA19-$CB19-$CC19)*$CA$61*1/$C19)+IF(GX19=0,0,($CE19-$CF19-$CG19)*$CE$61*1/$C19)+IF(GY19=0,0,($CI19-$CJ19-$CK19)*$CI$61*1/$C19)+IF(GZ19=0,0,($CM19-$CN19-$CO19)*$CM$61*1/$C19)+IF(HA19=0,0,($CQ19-$CR19-$CS19)*$CQ$61*1/$C19)+IF(HB19=0,0,($CU19-$CV19-$CW19)*$CU$61*1/$C19) -> 363019.9279 | HD19: =IF((1-($IC$2-$CY19)/$C19)>0,(1-($IC$2-$CY19)/$C19),0) -> 0 | HE19: =IF((1-($IC$2-HE$2)/$C19)>0,(1-($IC$2-HE$2)/$C19),0) -> 0.08333333333 | HF19: 0.1166666667 | HG19: 0.15 | HH19: 0.1833333333 | HI19: 0.2166666667 | HJ19: 0.25 | HK19: 0.2833333333 | HL19: 0.3166666667 | HM19: 0.35 | HN19: 0.3833333333 | HO19: =IF((1-($IC$2-HO$2)/$C19)>0,(1-($IC$2-HO$2)/$C19),0) -> 0.4166666667 | HP19: 0.45 | HQ19: 0.4833333333 | HR19: 0.5166666667 | HS19: 0.55 | HT19: 0.5833333333 | HU19: 0.6166666667 | HV19: 0.65 | HW19: 0.6833333333 | HX19: 0.7166666667 | HY19: 0.75 | HZ19: =IF((1-($IC$2-HZ$2)/$C19)>0,(1-($IC$2-HZ$2)/$C19),0) -> 0.7833333333 | IA19: 0.8166666667 | IB19: 0.85 | IC19: =IF(HD19=0,0,($D19-$E19)*1/$C19)+IF(HE19=0,0,($G19-$H19-$I19)*$G$61*1/$C19)+IF(HF19=0,0,($K19-$L19-$M19)*$K$61*1/$C19)+IF(HG19=0,0,($O19-$P19-$Q19)*$O$61*1/$C19)+IF(HH19=0,0,($S19-$T19-$U19)*$S$61*1/$C19)+IF(HI19=0,0,($W19-$X19-$Y19)*$W$61*1/$C19)+IF(HJ19=0,0,($AA19-$AB19-$AC19)*$AA$61*1/$C19)+IF(HK19=0,0,($AE19-$AF19-$AG19)*$AE$61*1/$C19)+IF(HL19=0,0,($AI19-$AJ19-$AK19)*$AI$61*1/$C19)+IF(HM19=0,0,($AM19-$AN19-$AO19)*$AM$61*1/$C19)+IF(HN19=0,0,($AQ19-$AR19-$AS19)*$AQ$61*1/$C19)+IF(HO19=0,0,($AU19-$AV19-$AW19)*$AU$61*1/$C19)+IF(HP19=0,0,($AY19-$AZ19-$BA19)*$AY$61*1/$C19)+IF(HQ19=0,0,($BC19-$BD19-$BE19)*$BC$61*1/$C19)+IF(HR19=0,0,($BG19-$BH19-$BI19)*$BG$61*1/$C19)+IF(HS19=0,0,($BK19-$BL19-$BM19)*$BK$61*1/$C19)+IF(HT19=0,0,($BO19-$BP19-$BQ19)*$BO$61*1/$C19)+IF(HU19=0,0,($BS19-$BT19-$BU19)*$BS$61*1/$C19)+IF(HV19=0,0,($BW19-$BX19-$BY19)*$BW$61*1/$C19)+IF(HW19=0,0,($CA19-$CB19-$CC19)*$CA$61*1/$C19)+IF(HX19=0,0,($CE19-$CF19-$CG19)*$CE$61*1/$C19)+IF(HY19=0,0,($CI19-$CJ19-$CK19)*$CI$61*1/$C19)+IF(HZ19=0,0,($CM19-$CN19-$CO19)*$CM$61*1/$C19)+IF(IA19=0,0,($CQ19-$CR19-$CS19)*$CQ$61*1/$C19)+IF(IB19=0,0,($CU19-$CV19-$CW19)*$CU$61*1/$C19) -> 363019.9279 | IE19: =DY19-FC19 -> 0 | IF19: =FC19-GC19 -> 0 | IG19: =GC19-HC19 -> 0 | IH19: =HC19-IC19 -> 0
A20: SISTEMA DE | B20: Líneas aéreas de 13,8 kV | C20: 30 | D20: 62372162.85 | E20: 0 | F20: 38881891.9 | G20: 3632836 | H20: 192075 | I20: 0 | J20: 0 | K20: 3516374 | L20: 223513 | M20: 0 | N20: 0 | O20: 2764750 | P20: 133522 | Q20: 0 | R20: 0 | S20: 3176076 | T20: 139240 | U20: 0 | V20: 0 | W20: 2394558.58 | X20: 0 | Y20: 0 | Z20: 0 | AA20: 3346697.35 | AB20: 0 | AC20: 0 | AD20: 0 | AE20: 2871061.16 | AF20: 3051.85 | AG20: 0 | AH20: 0 | AI20: 4743529.253 | AJ20: 184963.5475 | AK20: 0 | AL20: 0 | AM20: 5985.53 | AN20: 0 | AO20: 0 | AP20: 0 | AQ20: 5668890.88 | AR20: 97028.9 | AS20: 0 | AT20: 0 | AU20: 3804453.78 | AV20: 154557.59 | AW20: 0 | AX20: 0 | AY20: 11570438.61 | AZ20: 126.1 | BA20: 0 | BB20: 0 | BC20: 7224936.88 | BD20: 20551.96 | BE20: 0 | BF20: 0 | BG20: 12155470.86 | BH20: 84090.92 | BI20: 0 | BJ20: 0 | BK20: 20973588.56 | BL20: 111631.51 | BM20: 0 | BN20: 0 | BO20: 13372819.82 | BP20: 0 | BQ20: 0 | BR20: 0 | BS20: 5915961.73 | BT20: 50186.54 | BU20: 0 | BV20: 0 | BW20: 2668554.16 | BX20: 82251.14 | BY20: 0 | BZ20: 0 | CA20: 6610252.63 | CB20: 138571.23 | CC20: 0 | CD20: 0 | CE20: 6747473.49 | CF20: 57625.41 | CG20: 0 | CH20: 0 | CI20: 7917189.9 | CJ20: 49344.81 | CM20: 9373292.9 | CN20: 151737.3 | CQ20: 8794428.24 | CR20: 137984.39 | CU20: 14470421.45 | CV20: 179577.38 | CY20: 1989.70156 | CZ20: 0 | DA20: 0.2166666667 | DB20: 0.25 | DC20: 0.2833333333 | DD20: 0.3166666667 | DE20: 0.35 | DF20: 0.3833333333 | DG20: 0.4166666667 | DH20: 0.45 | DI20: 0.4833333333 | DJ20: 0.5166666667 | DK20: 0.55 | DL20: 0.5833333333 | DM20: 0.6166666667 | DN20: 0.65 | DO20: 0.6833333333 | DP20: 0.7166666667 | DQ20: 0.75 | DR20: 0.7833333333 | DS20: 0.8166666667 | DT20: 0.85 | DU20: 0.8833333333 | DV20: 0.9166666667 | DW20: 0.95 | DX20: 0.9833333333 | DY20: 4761101.963 | DZ20: 205205221.7 | EA20: 62372162.85 | EB20: 98750200.46 | EC20: 4761101.963 | ED20: 0 | EE20: 0.1833333333 | EF20: 0.2166666667 | EG20: 0.25 | EH20: 0.2833333333 | EI20: 0.3166666667 | EJ20: 0.35 | EK20: 0.3833333333 | EL20: 0.4166666667 | EM20: 0.45 | EN20: 0.4833333333 | EO20: 0.5166666667 | EP20: 0.55 | EQ20: 0.5833333333 | ER20: 0.6166666667 | ES20: 0.65 | ET20: 0.6833333333 | EU20: 0.7166666667 | EV20: 0.75 | EW20: 0.7833333333 | EX20: 0.8166666667 | EY20: 0.85 | EZ20: 0.8833333333 | FA20: 0.9166666667 | FB20: 0.95 | FC20: 4761101.963 | FD20: 0 | FE20: 0.15 | FF20: 0.1833333333 | FG20: 0.2166666667 | FH20: 0.25 | FI20: 0.2833333333 | FJ20: 0.3166666667 | FK20: 0.35 | FL20: 0.3833333333 | FM20: 0.4166666667 | FN20: 0.45 | FO20: 0.4833333333 | FP20: 0.5166666667 | FQ20: 0.55 | FR20: 0.5833333333 | FS20: 0.6166666667 | FT20: 0.65 | FU20: 0.6833333333 | FV20: 0.7166666667 | FW20: 0.75 | FX20: 0.7833333333 | FY20: 0.8166666667 | FZ20: 0.85 | GA20: 0.8833333333 | GB20: 0.9166666667 | GC20: 4761101.963 | GD20: 0 | GE20: 0.1166666667 | GF20: 0.15 | GG20: 0.1833333333 | GH20: 0.2166666667 | GI20: 0.25 | GJ20: 0.2833333333 | GK20: 0.3166666667 | GL20: 0.35 | GM20: 0.3833333333 | GN20: 0.4166666667 | GO20: 0.45 | GP20: 0.4833333333 | GQ20: 0.5166666667 | GR20: 0.55 | GS20: 0.5833333333 | GT20: 0.6166666667 | GU20: 0.65 | GV20: 0.6833333333 | GW20: 0.7166666667 | GX20: 0.75 | GY20: 0.7833333333 | GZ20: 0.8166666667 | HA20: 0.85 | HB20: 0.8833333333 | HC20: 4761101.963 | HD20: 0 | HE20: 0.08333333333 | HF20: 0.1166666667 | HG20: 0.15 | HH20: 0.1833333333 | HI20: 0.2166666667 | HJ20: 0.25 | HK20: 0.2833333333 | HL20: 0.3166666667 | HM20: 0.35 | HN20: 0.3833333333 | HO20: 0.4166666667 | HP20: 0.45 | HQ20: 0.4833333333 | HR20: 0.5166666667 | HS20: 0.55 | HT20: 0.5833333333 | HU20: 0.6166666667 | HV20: 0.65 | HW20: 0.6833333333 | HX20: 0.7166666667 | HY20: 0.75 | HZ20: 0.7833333333 | IA20: 0.8166666667 | IB20: 0.85 | IC20: 4761101.963 | IE20: 0 | IF20: 0 | IG20: 0 | IH20: 0
A21: DISTRIBUCION | B21: Líneas aéreas de otras tensiones | C21: 30 | D21: 4365824.598 | E21: 0 | F21: 1954035.296 | G21: 104263 | H21: 0 | I21: 0 | J21: 0 | K21: 0 | L21: 0 | M21: 0 | N21: 0 | O21: 153673 | P21: 0 | Q21: 0 | R21: 0 | S21: 199903.11 | T21: 0 | U21: 0 | V21: 0 | W21: 70769.02 | X21: 0 | Y21: 0 | Z21: 0 | AA21: 14679.63 | AB21: 0 | AC21: 0 | AD21: 0 | AE21: 13271.86 | AF21: 0 | AG21: 0 | AH21: 0 | AI21: 13356.68 | AJ21: 0 | AK21: 0 | AL21: 0 | AM21: 0 | AN21: 0 | AO21: 0 | AP21: 0 | AQ21: 27336.51 | AR21: 0 | AS21: 0 | AT21: 0 | AU21: 23750.55 | AV21: 2274.78 | AW21: 0 | AX21: 0 | AY21: 73295.86 | AZ21: 134866.63 | BA21: 0 | BB21: 0 | BC21: 48482.1 | BD21: 0 | BE21: 0 | BF21: 0 | BG21: 64261.08 | BH21: 3308.91 | BI21: 0 | BJ21: 0 | BK21: 304089.84 | BL21: 297.88 | BM21: 0 | BN21: 0 | BO21: 76961.07 | BP21: 0 | BQ21: 0 | BR21: 0 | BS21: 8731.63 | BT21: 0 | BU21: 0 | BV21: 0 | BW21: 0 | BX21: 0 | BY21: 0 | BZ21: 0 | CA21: 8738.6 | CB21: 0 | CC21: 0 | CD21: 0 | CE21: 7640.83 | CF21: 0 | CG21: 0 | CH21: 0 | CI21: 14555.18 | CJ21: 0 | CM21: 0 | CN21: 0 | CQ21: 2443.66 | CR21: 0 | CU21: 4974.51 | CV21: 0 | CY21: 1984.427259 | CZ21: 0 | DA21: 0.2166666667 | DB21: 0.25 | DC21: 0.2833333333 | DD21: 0.3166666667 | DE21: 0.35 | DF21: 0.3833333333 | DG21: 0.4166666667 | DH21: 0.45 | DI21: 0.4833333333 | DJ21: 0.5166666667 | DK21: 0.55 | DL21: 0.5833333333 | DM21: 0.6166666667 | DN21: 0.65 | DO21: 0.6833333333 | DP21: 0.7166666667 | DQ21: 0.75 | DR21: 0.7833333333 | DS21: 0.8166666667 | DT21: 0.85 | DU21: 0.8833333333 | DV21: 0.9166666667 | DW21: 0.95 | DX21: 0.9833333333 | DY21: 32775.69783 | DZ21: 5349095.533 | EA21: 4365824.598 | EB21: 476495.0347 | EC21: 32775.69783 | ED21: 0 | EE21: 0.1833333333 | EF21: 0.2166666667 | EG21: 0.25 | EH21: 0.2833333333 | EI21: 0.3166666667 | EJ21: 0.35 | EK21: 0.3833333333 | EL21: 0.4166666667 | EM21: 0.45 | EN21: 0.4833333333 | EO21: 0.5166666667 | EP21: 0.55 | EQ21: 0.5833333333 | ER21: 0.6166666667 | ES21: 0.65 | ET21: 0.6833333333 | EU21: 0.7166666667 | EV21: 0.75 | EW21: 0.7833333333 | EX21: 0.8166666667 | EY21: 0.85 | EZ21: 0.8833333333 | FA21: 0.9166666667 | FB21: 0.95 | FC21: 32775.69783 | FD21: 0 | FE21: 0.15 | FF21: 0.1833333333 | FG21: 0.2166666667 | FH21: 0.25 | FI21: 0.2833333333 | FJ21: 0.3166666667 | FK21: 0.35 | FL21: 0.3833333333 | FM21: 0.4166666667 | FN21: 0.45 | FO21: 0.4833333333 | FP21: 0.5166666667 | FQ21: 0.55 | FR21: 0.5833333333 | FS21: 0.6166666667 | FT21: 0.65 | FU21: 0.6833333333 | FV21: 0.7166666667 | FW21: 0.75 | FX21: 0.7833333333 | FY21: 0.8166666667 | FZ21: 0.85 | GA21: 0.8833333333 | GB21: 0.9166666667 | GC21: 32775.69783 | GD21: 0 | GE21: 0.1166666667 | GF21: 0.15 | GG21: 0.1833333333 | GH21: 0.2166666667 | GI21: 0.25 | GJ21: 0.2833333333 | GK21: 0.3166666667 | GL21: 0.35 | GM21: 0.3833333333 | GN21: 0.4166666667 | GO21: 0.45 | GP21: 0.4833333333 | GQ21: 0.5166666667 | GR21: 0.55 | GS21: 0.5833333333 | GT21: 0.6166666667 | GU21: 0.65 | GV21: 0.6833333333 | GW21: 0.7166666667 | GX21: 0.75 | GY21: 0.7833333333 | GZ21: 0.8166666667 | HA21: 0.85 | HB21: 0.8833333333 | HC21: 32775.69783 | HD21: 0 | HE21: 0.08333333333 | HF21: 0.1166666667 | HG21: 0.15 | HH21: 0.1833333333 | HI21: 0.2166666667 | HJ21: 0.25 | HK21: 0.2833333333 | HL21: 0.3166666667 | HM21: 0.35 | HN21: 0.3833333333 | HO21: 0.4166666667 | HP21: 0.45 | HQ21: 0.4833333333 | HR21: 0.5166666667 | HS21: 0.55 | HT21: 0.5833333333 | HU21: 0.6166666667 | HV21: 0.65 | HW21: 0.6833333333 | HX21: 0.7166666667 | HY21: 0.75 | HZ21: 0.7833333333 | IA21: 0.8166666667 | IB21: 0.85 | IC21: 32775.69783 | IE21: 0 | IF21: 0 | IG21: 0 | IH21: 0
B22: Líneas subterráneas de 34,5 kV | C22: 30 | D22: 865.0777711 | E22: 0 | F22: 838.4607933 | G22: 0 | H22: 0 | I22: 0 | J22: 0 | K22: 0 | L22: 0 | M22: 0 | N22: 0 | O22: 0 | P22: 0 | Q22: 0 | R22: 0 | S22: 0 | T22: 0 | U22: 0 | V22: 0 | W22: 0 | X22: 0 | Y22: 0 | Z22: 0 | AA22: 0 | AB22: 0 | AC22: 0 | AD22: 0 | AE22: 0 | AF22: 0 | AG22: 0 | AH22: 0 | AI22: 0 | AJ22: 0 | AK22: 0 | AL22: 0 | AM22: 2108970.73 | AN22: 467763.12 | AO22: 0 | AP22: 0 | AQ22: 0 | AR22: 0 | AS22: 0 | AT22: 0 | AU22: 0 | AV22: 0 | AW22: 0 | AX22: 0 | AY22: 0 | AZ22: 0 | BA22: 0 | BB22: 0 | BC22: 0 | BD22: 0 | BE22: 0 | BF22: 0 | BG22: 0 | BH22: 0 | BI22: 0 | BJ22: 0 | BK22: 0 | BL22: 0 | BM22: 0 | BN22: 0 | BO22: 0 | BP22: 0 | BQ22: 0 | BR22: 0 | BS22: 15936.14 | BT22: 0 | BU22: 0 | BV22: 0 | BW22: 1576550.35 | BX22: 0 | BY22: 0 | BZ22: 0 | CA22: 0 | CB22: 0 | CC22: 0 | CD22: 0 | CE22: 776972.95 | CF22: 0 | CG22: 0 | CH22: 0 | CI22: 3339.91 | CJ22: 0 | CM22: 0 | CN22: 0 | CQ22: 0 | CR22: 0 | CU22: 0 | CV22: 0 | CY22: 2000.076951 | CZ22: 0.1525650271 | DA22: 0.2166666667 | DB22: 0.25 | DC22: 0.2833333333 | DD22: 0.3166666667 | DE22: 0.35 | DF22: 0.3833333333 | DG22: 0.4166666667 | DH22: 0.45 | DI22: 0.4833333333 | DJ22: 0.5166666667 | DK22: 0.55 | DL22: 0.5833333333 | DM22: 0.6166666667 | DN22: 0.65 | DO22: 0.6833333333 | DP22: 0.7166666667 | DQ22: 0.75 | DR22: 0.7833333333 | DS22: 0.8166666667 | DT22: 0.85 | DU22: 0.8833333333 | DV22: 0.9166666667 | DW22: 0.95 | DX22: 0.9833333333 | DY22: 113720.0913 | DZ22: 3411602.738 | EA22: 0 | EB22: 2329486.271 | EC22: 113720.0913 | ED22: 0.1192316938 | EE22: 0.1833333333 | EF22: 0.2166666667 | EG22: 0.25 | EH22: 0.2833333333 | EI22: 0.3166666667 | EJ22: 0.35 | EK22: 0.3833333333 | EL22: 0.4166666667 | EM22: 0.45 | EN22: 0.4833333333 | EO22: 0.5166666667 | EP22: 0.55 | EQ22: 0.5833333333 | ER22: 0.6166666667 | ES22: 0.65 | ET22: 0.6833333333 | EU22: 0.7166666667 | EV22: 0.75 | EW22: 0.7833333333 | EX22: 0.8166666667 | EY22: 0.85 | EZ22: 0.8833333333 | FA22: 0.9166666667 | FB22: 0.95 | FC22: 113720.0913 | FD22: 0.08589836042 | FE22: 0.15 | FF22: 0.1833333333 | FG22: 0.2166666667 | FH22: 0.25 | FI22: 0.2833333333 | FJ22: 0.3166666667 | FK22: 0.35 | FL22: 0.3833333333 | FM22: 0.4166666667 | FN22: 0.45 | FO22: 0.4833333333 | FP22: 0.5166666667 | FQ22: 0.55 | FR22: 0.5833333333 | FS22: 0.6166666667 | FT22: 0.65 | FU22: 0.6833333333 | FV22: 0.7166666667 | FW22: 0.75 | FX22: 0.7833333333 | FY22: 0.8166666667 | FZ22: 0.85 | GA22: 0.8833333333 | GB22: 0.9166666667 | GC22: 113720.0913 | GD22: 0.05256502709 | GE22: 0.1166666667 | GF22: 0.15 | GG22: 0.1833333333 | GH22: 0.2166666667 | GI22: 0.25 | GJ22: 0.2833333333 | GK22: 0.3166666667 | GL22: 0.35 | GM22: 0.3833333333 | GN22: 0.4166666667 | GO22: 0.45 | GP22: 0.4833333333 | GQ22: 0.5166666667 | GR22: 0.55 | GS22: 0.5833333333 | GT22: 0.6166666667 | GU22: 0.65 | GV22: 0.6833333333 | GW22: 0.7166666667 | GX22: 0.75 | GY22: 0.7833333333 | GZ22: 0.8166666667 | HA22: 0.85 | HB22: 0.8833333333 | HC22: 113720.0913 | HD22: 0.01923169375 | HE22: 0.08333333333 | HF22: 0.1166666667 | HG22: 0.15 | HH22: 0.1833333333 | HI22: 0.2166666667 | HJ22: 0.25 | HK22: 0.2833333333 | HL22: 0.3166666667 | HM22: 0.35 | HN22: 0.3833333333 | HO22: 0.4166666667 | HP22: 0.45 | HQ22: 0.4833333333 | HR22: 0.5166666667 | HS22: 0.55 | HT22: 0.5833333333 | HU22: 0.6166666667 | HV22: 0.65 | HW22: 0.6833333333 | HX22: 0.7166666667 | HY22: 0.75 | HZ22: 0.7833333333 | IA22: 0.8166666667 | IB22: 0.85 | IC22: 113720.0913 | IE22: 0 | IF22: 0 | IG22: 0 | IH22: 0
B23: Líneas subterráneas de 13,8 kV | C23: 30 | D23: 38211312.28 | E23: 0 | F23: 29987870.26 | G23: 1113964 | H23: 480114 | I23: 0 | J23: 0 | K23: 1034914 | L23: 558639 | M23: 0 | N23: 0 | O23: 981083 | P23: 360985 | Q23: 0 | R23: 0 | S23: 671068.452 | T23: 186168 | U23: 0 | V23: 0 | W23: 1039064.49 | X23: 87338.29 | Y23: 0 | Z23: 0 | AA23: 2291952.05 | AB23: 0 | AC23: 0 | AD23: 0 | AE23: 1075939.56 | AF23: 0 | AG23: 0 | AH23: 0 | AI23: 1177311.508 | AJ23: 676034.5097 | AK23: 0 | AL23: 0 | AM23: 18552.68 | AN23: 2789.47 | AO23: 0 | AP23: 0 | AQ23: 1858594.62 | AR23: 187186.69 | AS23: 0 | AT23: 0 | AU23: 2191070.55 | AV23: 80912.78 | AW23: 0 | AX23: 0 | AY23: 7317353.78 | AZ23: 0 | BA23: 0 | BB23: 0 | BC23: 6534351.68 | BD23: 480771.43 | BE23: 0 | BF23: 0 | BG23: 12069265.27 | BH23: 1062510.89 | BI23: 0 | BJ23: 0 | BK23: 9407031.86 | BL23: 766001.96 | BM23: 0 | BN23: 0 | BO23: 7282466.08 | BP23: 0 | BQ23: 0 | BR23: 0 | BS23: 4784089.33 | BT23: 442182.34 | BU23: 0 | BV23: 0 | BW23: 6995018.47 | BX23: 428134.18 | BY23: 0 | BZ23: 0 | CA23: 8842448.47 | CB23: 515307.22 | CC23: 0 | CD23: 0 | CE23: 9989400.1 | CF23: 368208.78 | CG23: 0 | CH23: 0 | CI23: 7375302.86 | CJ23: 323321.45 | CM23: 4740335.56 | CN23: 248631.36 | CQ23: 4948288.06 | CR23: 293345.86 | CU23: 4956796.37 | CV23: 271345.47 | CY23: 1994.543711 | CZ23: 0 | DA23: 0.2166666667 | DB23: 0.25 | DC23: 0.2833333333 | DD23: 0.3166666667 | DE23: 0.35 | DF23: 0.3833333333 | DG23: 0.4166666667 | DH23: 0.45 | DI23: 0.4833333333 | DJ23: 0.5166666667 | DK23: 0.55 | DL23: 0.5833333333 | DM23: 0.6166666667 | DN23: 0.65 | DO23: 0.6833333333 | DP23: 0.7166666667 | DQ23: 0.75 | DR23: 0.7833333333 | DS23: 0.8166666667 | DT23: 0.85 | DU23: 0.8833333333 | DV23: 0.9166666667 | DW23: 0.95 | DX23: 0.9833333333 | DY23: 2974811.12 | DZ23: 127455645.9 | EA23: 38211312.28 | EB23: 65153580.44 | EC23: 2974811.12 | ED23: 0 | EE23: 0.1833333333 | EF23: 0.2166666667 | EG23: 0.25 | EH23: 0.2833333333 | EI23: 0.3166666667 | EJ23: 0.35 | EK23: 0.3833333333 | EL23: 0.4166666667 | EM23: 0.45 | EN23: 0.4833333333 | EO23: 0.5166666667 | EP23: 0.55 | EQ23: 0.5833333333 | ER23: 0.6166666667 | ES23: 0.65 | ET23: 0.6833333333 | EU23: 0.7166666667 | EV23: 0.75 | EW23: 0.7833333333 | EX23: 0.8166666667 | EY23: 0.85 | EZ23: 0.8833333333 | FA23: 0.9166666667 | FB23: 0.95 | FC23: 2974811.12 | FD23: 0 | FE23: 0.15 | FF23: 0.1833333333 | FG23: 0.2166666667 | FH23: 0.25 | FI23: 0.2833333333 | FJ23: 0.3166666667 | FK23: 0.35 | FL23: 0.3833333333 | FM23: 0.4166666667 | FN23: 0.45 | FO23: 0.4833333333 | FP23: 0.5166666667 | FQ23: 0.55 | FR23: 0.5833333333 | FS23: 0.6166666667 | FT23: 0.65 | FU23: 0.6833333333 | FV23: 0.7166666667 | FW23: 0.75 | FX23: 0.7833333333 | FY23: 0.8166666667 | FZ23: 0.85 | GA23: 0.8833333333 | GB23: 0.9166666667 | GC23: 2974811.12 | GD23: 0 | GE23: 0.1166666667 | GF23: 0.15 | GG23: 0.1833333333 | GH23: 0.2166666667 | GI23: 0.25 | GJ23: 0.2833333333 | GK23: 0.3166666667 | GL23: 0.35 | GM23: 0.3833333333 | GN23: 0.4166666667 | GO23: 0.45 | GP23: 0.4833333333 | GQ23: 0.5166666667 | GR23: 0.55 | GS23: 0.5833333333 | GT23: 0.6166666667 | GU23: 0.65 | GV23: 0.6833333333 | GW23: 0.7166666667 | GX23: 0.75 | GY23: 0.7833333333 | GZ23: 0.8166666667 | HA23: 0.85 | HB23: 0.8833333333 | HC23: 2974811.12 | HD23: 0 | HE23: 0.08333333333 | HF23: 0.1166666667 | HG23: 0.15 | HH23: 0.1833333333 | HI23: 0.2166666667 | HJ23: 0.25 | HK23: 0.2833333333 | HL23: 0.3166666667 | HM23: 0.35 | HN23: 0.3833333333 | HO23: 0.4166666667 | HP23: 0.45 | HQ23: 0.4833333333 | HR23: 0.5166666667 | HS23: 0.55 | HT23: 0.5833333333 | HU23: 0.6166666667 | HV23: 0.65 | HW23: 0.6833333333 | HX23: 0.7166666667 | HY23: 0.75 | HZ23: 0.7833333333 | IA23: 0.8166666667 | IB23: 0.85 | IC23: 2974811.12 | IE23: 0 | IF23: 0 | IG23: 0 | IH23: 0
B24: Líneas subterráneas de otras tensiones | C24: 30 | D24: 310463.4172 | E24: 0 | F24: 279712.3969 | G24: 53528.19 | H24: 0 | I24: 0 | J24: 0 | K24: 4288 | L24: 0 | M24: 0 | N24: 0 | O24: 132223 | P24: 0 | Q24: 0 | R24: 0 | S24: 68116.04 | T24: 51941 | U24: 0 | V24: 0 | W24: 53088.14 | X24: 0 | Y24: 0 | Z24: 0 | AA24: 15383.01 | AB24: 0 | AC24: 0 | AD24: 0 | AE24: 46372.66 | AF24: 0 | AG24: 0 | AH24: 0 | AI24: 13923.83 | AJ24: 0 | AK24: 0 | AL24: 0 | AM24: 0 | AN24: 0 | AO24: 0 | AP24: 0 | AQ24: 3498.03 | AR24: 0 | AS24: 0 | AT24: 0 | AU24: 62219.63 | AV24: 0 | AW24: 0 | AX24: 0 | AY24: 3665.86 | AZ24: 711890.18 | BA24: 0 | BB24: 0 | BC24: 9931.45 | BD24: 0 | BE24: 0 | BF24: 0 | BG24: 73.56 | BH24: 0 | BI24: 0 | BJ24: 0 | BK24: 0 | BL24: 0 | BM24: 0 | BN24: 0 | BO24: 6091.94 | BP24: 0 | BQ24: 0 | BR24: 0 | BS24: 3131.11 | BT24: 0 | BU24: 0 | BV24: 0 | BW24: 0 | BX24: 0 | BY24: 0 | BZ24: 0 | CA24: 1337.16 | CB24: 0 | CC24: 0 | CD24: 0 | CE24: 32141.14 | CF24: 0 | CG24: 0 | CH24: 0 | CI24: 5709.99 | CJ24: 0 | CM24: 489.06 | CN24: 0 | CQ24: 37782.73 | CR24: 0 | CU24: 0 | CV24: 0 | CY24: 1998.028537 | CZ24: 0.08428456098 | DA24: 0.2166666667 | DB24: 0.25 | DC24: 0.2833333333 | DD24: 0.3166666667 | DE24: 0.35 | DF24: 0.3833333333 | DG24: 0.4166666667 | DH24: 0.45 | DI24: 0.4833333333 | DJ24: 0.5166666667 | DK24: 0.55 | DL24: 0.5833333333 | DM24: 0.6166666667 | DN24: 0.65 | DO24: 0.6833333333 | DP24: 0.7166666667 | DQ24: 0.75 | DR24: 0.7833333333 | DS24: 0.8166666667 | DT24: 0.85 | DU24: 0.8833333333 | DV24: 0.9166666667 | DW24: 0.95 | DX24: 0.9833333333 | DY24: 4274.555213 | DZ24: 128236.6564 | EA24: 0 | EB24: -140967.0712 | EC24: 4274.555213 | ED24: 0.05095122765 | EE24: 0.1833333333 | EF24: 0.2166666667 | EG24: 0.25 | EH24: 0.2833333333 | EI24: 0.3166666667 | EJ24: 0.35 | EK24: 0.3833333333 | EL24: 0.4166666667 | EM24: 0.45 | EN24: 0.4833333333 | EO24: 0.5166666667 | EP24: 0.55 | EQ24: 0.5833333333 | ER24: 0.6166666667 | ES24: 0.65 | ET24: 0.6833333333 | EU24: 0.7166666667 | EV24: 0.75 | EW24: 0.7833333333 | EX24: 0.8166666667 | EY24: 0.85 | EZ24: 0.8833333333 | FA24: 0.9166666667 | FB24: 0.95 | FC24: 4274.555213 | FD24: 0.01761789432 | FE24: 0.15 | FF24: 0.1833333333 | FG24: 0.2166666667 | FH24: 0.25 | FI24: 0.2833333333 | FJ24: 0.3166666667 | FK24: 0.35 | FL24: 0.3833333333 | FM24: 0.4166666667 | FN24: 0.45 | FO24: 0.4833333333 | FP24: 0.5166666667 | FQ24: 0.55 | FR24: 0.5833333333 | FS24: 0.6166666667 | FT24: 0.65 | FU24: 0.6833333333 | FV24: 0.7166666667 | FW24: 0.75 | FX24: 0.7833333333 | FY24: 0.8166666667 | FZ24: 0.85 | GA24: 0.8833333333 | GB24: 0.9166666667 | GC24: 4274.555213 | GD24: 0 | GE24: 0.1166666667 | GF24: 0.15 | GG24: 0.1833333333 | GH24: 0.2166666667 | GI24: 0.25 | GJ24: 0.2833333333 | GK24: 0.3166666667 | GL24: 0.35 | GM24: 0.3833333333 | GN24: 0.4166666667 | GO24: 0.45 | GP24: 0.4833333333 | GQ24: 0.5166666667 | GR24: 0.55 | GS24: 0.5833333333 | GT24: 0.6166666667 | GU24: 0.65 | GV24: 0.6833333333 | GW24: 0.7166666667 | GX24: 0.75 | GY24: 0.7833333333 | GZ24: 0.8166666667 | HA24: 0.85 | HB24: 0.8833333333 | HC24: -6074.225361 | HD24: 0 | HE24: 0.08333333333 | HF24: 0.1166666667 | HG24: 0.15 | HH24: 0.1833333333 | HI24: 0.2166666667 | HJ24: 0.25 | HK24: 0.2833333333 | HL24: 0.3166666667 | HM24: 0.35 | HN24: 0.3833333333 | HO24: 0.4166666667 | HP24: 0.45 | HQ24: 0.4833333333 | HR24: 0.5166666667 | HS24: 0.55 | HT24: 0.5833333333 | HU24: 0.6166666667 | HV24: 0.65 | HW24: 0.6833333333 | HX24: 0.7166666667 | HY24: 0.75 | HZ24: 0.7833333333 | IA24: 0.8166666667 | IB24: 0.85 | IC24: -6074.225361 | IE24: 0 | IF24: 0 | IG24: 10348.78057 | IH24: 0
B25: Subestaciones 34,5 kV / MT | C25: 30 | D25: 233786.2683 | E25: 0 | F25: 203700.8747 | G25: 0 | H25: 0 | I25: 0 | J25: 0 | K25: 0 | L25: 0 | M25: 0 | N25: 0 | O25: 0 | P25: 0 | Q25: 0 | R25: 0 | S25: 0 | T25: 0 | U25: 0 | V25: 0 | W25: 0 | X25: 0 | Y25: 0 | Z25: 0 | AA25: 0 | AB25: 0 | AC25: 0 | AD25: 0 | AE25: 0 | AF25: 0 | AG25: 0 | AH25: 0 | AI25: 136345.25 | AJ25: 0 | AK25: 0 | AL25: 0 | AM25: 0 | AN25: 0 | AO25: 0 | AP25: 0 | AQ25: 0 | AR25: 0 | AS25: 0 | AT25: 0 | AU25: 0 | AV25: 0 | AW25: 0 | AX25: 0 | AY25: 0 | AZ25: 0 | BA25: 0 | BB25: 0 | BC25: 367068.01 | BD25: 0 | BE25: 0 | BF25: 0 | BG25: 78739.79 | BH25: 0 | BI25: 0 | BJ25: 0 | BK25: 0 | BL25: 0 | BM25: 0 | BN25: 0 | BO25: 0 | BP25: 0 | BQ25: 0 | BR25: 0 | BS25: 0 | BT25: 0 | BU25: 0 | BV25: 0 | BW25: 24791.58 | BX25: 0 | BY25: 0 | BZ25: 0 | CA25: 0 | CB25: 0 | CC25: 0 | CD25: 0 | CE25: 260116.95 | CF25: 0 | CG25: 0 | CH25: 0 | CI25: 6985.26 | CJ25: 0 | CM25: 13670.84 | CN25: 0 | CQ25: 0 | CR25: 0 | CU25: 0 | CV25: 0 | CY25: 1997.139372 | CZ25: 0.05464573398 | DA25: 0.2166666667 | DB25: 0.25 | DC25: 0.2833333333 | DD25: 0.3166666667 | DE25: 0.35 | DF25: 0.3833333333 | DG25: 0.4166666667 | DH25: 0.45 | DI25: 0.4833333333 | DJ25: 0.5166666667 | DK25: 0.55 | DL25: 0.5833333333 | DM25: 0.6166666667 | DN25: 0.65 | DO25: 0.6833333333 | DP25: 0.7166666667 | DQ25: 0.75 | DR25: 0.7833333333 | DS25: 0.8166666667 | DT25: 0.85 | DU25: 0.8833333333 | DV25: 0.9166666667 | DW25: 0.95 | DX25: 0.9833333333 | DY25: 33869.82571 | DZ25: 1016094.771 | EA25: 0 | EB25: 541945.4107 | EC25: 33869.82571 | ED25: 0.02131240065 | EE25: 0.1833333333 | EF25: 0.2166666667 | EG25: 0.25 | EH25: 0.2833333333 | EI25: 0.3166666667 | EJ25: 0.35 | EK25: 0.3833333333 | EL25: 0.4166666667 | EM25: 0.45 | EN25: 0.4833333333 | EO25: 0.5166666667 | EP25: 0.55 | EQ25: 0.5833333333 | ER25: 0.6166666667 | ES25: 0.65 | ET25: 0.6833333333 | EU25: 0.7166666667 | EV25: 0.75 | EW25: 0.7833333333 | EX25: 0.8166666667 | EY25: 0.85 | EZ25: 0.8833333333 | FA25: 0.9166666667 | FB25: 0.95 | FC25: 33869.82571 | FD25: 0 | FE25: 0.15 | FF25: 0.1833333333 | FG25: 0.2166666667 | FH25: 0.25 | FI25: 0.2833333333 | FJ25: 0.3166666667 | FK25: 0.35 | FL25: 0.3833333333 | FM25: 0.4166666667 | FN25: 0.45 | FO25: 0.4833333333 | FP25: 0.5166666667 | FQ25: 0.55 | FR25: 0.5833333333 | FS25: 0.6166666667 | FT25: 0.65 | FU25: 0.6833333333 | FV25: 0.7166666667 | FW25: 0.75 | FX25: 0.7833333333 | FY25: 0.8166666667 | FZ25: 0.85 | GA25: 0.8833333333 | GB25: 0.9166666667 | GC25: 26076.9501 | GD25: 0 | GE25: 0.1166666667 | GF25: 0.15 | GG25: 0.1833333333 | GH25: 0.2166666667 | GI25: 0.25 | GJ25: 0.2833333333 | GK25: 0.3166666667 | GL25: 0.35 | GM25: 0.3833333333 | GN25: 0.4166666667 | GO25: 0.45 | GP25: 0.4833333333 | GQ25: 0.5166666667 | GR25: 0.55 | GS25: 0.5833333333 | GT25: 0.6166666667 | GU25: 0.65 | GV25: 0.6833333333 | GW25: 0.7166666667 | GX25: 0.75 | GY25: 0.7833333333 | GZ25: 0.8166666667 | HA25: 0.85 | HB25: 0.8833333333 | HC25: 26076.9501 | HD25: 0 | HE25: 0.08333333333 | HF25: 0.1166666667 | HG25: 0.15 | HH25: 0.1833333333 | HI25: 0.2166666667 | HJ25: 0.25 | HK25: 0.2833333333 | HL25: 0.3166666667 | HM25: 0.35 | HN25: 0.3833333333 | HO25: 0.4166666667 | HP25: 0.45 | HQ25: 0.4833333333 | HR25: 0.5166666667 | HS25: 0.55 | HT25: 0.5833333333 | HU25: 0.6166666667 | HV25: 0.65 | HW25: 0.6833333333 | HX25: 0.7166666667 | HY25: 0.75 | HZ25: 0.7833333333 | IA25: 0.8166666667 | IB25: 0.85 | IC25: 26076.9501 | IE25: 0 | IF25: 7792.875611 | IG25: 0 | IH25: 0
B26: Subestaciones 13,8 kV / MT | C26: 30 | D26: 72865.72831 | E26: 0 | F26: 58276.91783 | G26: 0 | H26: 0 | I26: 0 | J26: 0 | K26: 0 | L26: 0 | M26: 0 | N26: 0 | O26: 0 | P26: 0 | Q26: 0 | R26: 0 | S26: 0 | T26: 0 | U26: 0 | V26: 0 | W26: 146353.22 | X26: 0 | Y26: 0 | Z26: 0 | AA26: 0 | AB26: 0 | AC26: 0 | AD26: 0 | AE26: 0 | AF26: 0 | AG26: 0 | AH26: 0 | AI26: 0 | AJ26: 0 | AK26: 0 | AL26: 0 | AM26: 61793.64 | AN26: 0 | AO26: 0 | AP26: 0 | AQ26: 0 | AR26: 0 | AS26: 0 | AT26: 0 | AU26: 0 | AV26: 0 | AW26: 0 | AX26: 0 | AY26: 0 | AZ26: 0 | BA26: 0 | BB26: 0 | BC26: 0 | BD26: 0 | BE26: 0 | BF26: 0 | BG26: 920834.4 | BH26: 0 | BI26: 0 | BJ26: 0 | BK26: 592244.66 | BL26: 0 | BM26: 0 | BN26: 0 | BO26: 140956.27 | BP26: 0 | BQ26: 0 | BR26: 0 | BS26: 72250.72 | BT26: 6922.58 | BU26: 0 | BV26: 0 | BW26: 0 | BX26: 0 | BY26: 0 | BZ26: 0 | CA26: 19041.28 | CB26: 0 | CC26: 0 | CD26: 0 | CE26: 1976460.63 | CF26: 0 | CG26: 0 | CH26: 0 | CI26: 28888.75 | CJ26: 0 | CM26: 343363.22 | CN26: 0 | CQ26: 62330.75 | CR26: 0 | CU26: 108945.2 | CV26: 0 | CY26: 1994.993551 | CZ26: 0 | DA26: 0.2166666667 | DB26: 0.25 | DC26: 0.2833333333 | DD26: 0.3166666667 | DE26: 0.35 | DF26: 0.3833333333 | DG26: 0.4166666667 | DH26: 0.45 | DI26: 0.4833333333 | DJ26: 0.5166666667 | DK26: 0.55 | DL26: 0.5833333333 | DM26: 0.6166666667 | DN26: 0.65 | DO26: 0.6833333333 | DP26: 0.7166666667 | DQ26: 0.75 | DR26: 0.7833333333 | DS26: 0.8166666667 | DT26: 0.85 | DU26: 0.8833333333 | DV26: 0.9166666667 | DW26: 0.95 | DX26: 0.9833333333 | DY26: 131585.6037 | DZ26: 4020433.838 | EA26: 72865.72831 | EB26: 3046117.724 | EC26: 131585.6037 | ED26: 0 | EE26: 0.1833333333 | EF26: 0.2166666667 | EG26: 0.25 | EH26: 0.2833333333 | EI26: 0.3166666667 | EJ26: 0.35 | EK26: 0.3833333333 | EL26: 0.4166666667 | EM26: 0.45 | EN26: 0.4833333333 | EO26: 0.5166666667 | EP26: 0.55 | EQ26: 0.5833333333 | ER26: 0.6166666667 | ES26: 0.65 | ET26: 0.6833333333 | EU26: 0.7166666667 | EV26: 0.75 | EW26: 0.7833333333 | EX26: 0.8166666667 | EY26: 0.85 | EZ26: 0.8833333333 | FA26: 0.9166666667 | FB26: 0.95 | FC26: 131585.6037 | FD26: 0 | FE26: 0.15 | FF26: 0.1833333333 | FG26: 0.2166666667 | FH26: 0.25 | FI26: 0.2833333333 | FJ26: 0.3166666667 | FK26: 0.35 | FL26: 0.3833333333 | FM26: 0.4166666667 | FN26: 0.45 | FO26: 0.4833333333 | FP26: 0.5166666667 | FQ26: 0.55 | FR26: 0.5833333333 | FS26: 0.6166666667 | FT26: 0.65 | FU26: 0.6833333333 | FV26: 0.7166666667 | FW26: 0.75 | FX26: 0.7833333333 | FY26: 0.8166666667 | FZ26: 0.85 | GA26: 0.8833333333 | GB26: 0.9166666667 | GC26: 131585.6037 | GD26: 0 | GE26: 0.1166666667 | GF26: 0.15 | GG26: 0.1833333333 | GH26: 0.2166666667 | GI26: 0.25 | GJ26: 0.2833333333 | GK26: 0.3166666667 | GL26: 0.35 | GM26: 0.3833333333 | GN26: 0.4166666667 | GO26: 0.45 | GP26: 0.4833333333 | GQ26: 0.5166666667 | GR26: 0.55 | GS26: 0.5833333333 | GT26: 0.6166666667 | GU26: 0.65 | GV26: 0.6833333333 | GW26: 0.7166666667 | GX26: 0.75 | GY26: 0.7833333333 | GZ26: 0.8166666667 | HA26: 0.85 | HB26: 0.8833333333 | HC26: 131585.6037 | HD26: 0 | HE26: 0.08333333333 | HF26: 0.1166666667 | HG26: 0.15 | HH26: 0.1833333333 | HI26: 0.2166666667 | HJ26: 0.25 | HK26: 0.2833333333 | HL26: 0.3166666667 | HM26: 0.35 | HN26: 0.3833333333 | HO26: 0.4166666667 | HP26: 0.45 | HQ26: 0.4833333333 | HR26: 0.5166666667 | HS26: 0.55 | HT26: 0.5833333333 | HU26: 0.6166666667 | HV26: 0.65 | HW26: 0.6833333333 | HX26: 0.7166666667 | HY26: 0.75 | HZ26: 0.7833333333 | IA26: 0.8166666667 | IB26: 0.85 | IC26: 131585.6037 | IE26: 0 | IF26: 0 | IG26: 0 | IH26: 0
B27: Otras subestaciones MT/MT | C27: 30 | D27: 5507953.129 | E27: 0 | F27: 2777253.262 | G27: 132054.28 | H27: 0 | I27: 0 | J27: 0 | K27: 0 | L27: 0 | M27: 0 | N27: 0 | O27: 950371 | P27: 0 | Q27: 0 | R27: 0 | S27: 32572.24 | T27: 0 | U27: 0 | V27: 0 | W27: 157247.1 | X27: 0 | Y27: 0 | Z27: 0 | AA27: 93225.55 | AB27: 0 | AC27: 0 | AD27: 0 | AE27: 0 | AF27: 0 | AG27: 0 | AH27: 0 | AI27: 0 | AJ27: 0 | AK27: 0 | AL27: 0 | AM27: 0 | AN27: 0 | AO27: 0 | AP27: 0 | AQ27: 64349.18 | AR27: 0 | AS27: 0 | AT27: 0 | AU27: 3089.09 | AV27: 0 | AW27: 0 | AX27: 0 | AY27: 4108.43 | AZ27: 0 | BA27: 0 | BB27: 0 | BC27: 0 | BD27: 0 | BE27: 0 | BF27: 0 | BG27: 40100.08 | BH27: 0 | BI27: 0 | BJ27: 0 | BK27: 0 | BL27: 0 | BM27: 0 | BN27: 0 | BO27: 0 | BP27: 0 | BQ27: 0 | BR27: 0 | BS27: 0 | BT27: 0 | BU27: 0 | BV27: 0 | BW27: 0 | BX27: 0 | BY27: 0 | BZ27: 0 | CA27: 0 | CB27: 0 | CC27: 0 | CD27: 0 | CE27: 18208.63 | CF27: 0 | CG27: 0 | CH27: 0 | CI27: 64887.16 | CJ27: 0 | CM27: 3742.33 | CN27: 0 | CQ27: 75988.06 | CR27: 0 | CU27: 173955.22 | CV27: 0 | CY27: 1986.12678 | CZ27: 0 | DA27: 0.2166666667 | DB27: 0.25 | DC27: 0.2833333333 | DD27: 0.3166666667 | DE27: 0.35 | DF27: 0.3833333333 | DG27: 0.4166666667 | DH27: 0.45 | DI27: 0.4833333333 | DJ27: 0.5166666667 | DK27: 0.55 | DL27: 0.5833333333 | DM27: 0.6166666667 | DN27: 0.65 | DO27: 0.6833333333 | DP27: 0.7166666667 | DQ27: 0.75 | DR27: 0.7833333333 | DS27: 0.8166666667 | DT27: 0.85 | DU27: 0.8833333333 | DV27: 0.9166666667 | DW27: 0.95 | DX27: 0.9833333333 | DY27: 55697.95789 | DZ27: 7178891.865 | EA27: 5507953.129 | EB27: 711150.5671 | EC27: 55697.95789 | ED27: 0 | EE27: 0.1833333333 | EF27: 0.2166666667 | EG27: 0.25 | EH27: 0.2833333333 | EI27: 0.3166666667 | EJ27: 0.35 | EK27: 0.3833333333 | EL27: 0.4166666667 | EM27: 0.45 | EN27: 0.4833333333 | EO27: 0.5166666667 | EP27: 0.55 | EQ27: 0.5833333333 | ER27: 0.6166666667 | ES27: 0.65 | ET27: 0.6833333333 | EU27: 0.7166666667 | EV27: 0.75 | EW27: 0.7833333333 | EX27: 0.8166666667 | EY27: 0.85 | EZ27: 0.8833333333 | FA27: 0.9166666667 | FB27: 0.95 | FC27: 55697.95789 | FD27: 0 | FE27: 0.15 | FF27: 0.1833333333 | FG27: 0.2166666667 | FH27: 0.25 | FI27: 0.2833333333 | FJ27: 0.3166666667 | FK27: 0.35 | FL27: 0.3833333333 | FM27: 0.4166666667 | FN27: 0.45 | FO27: 0.4833333333 | FP27: 0.5166666667 | FQ27: 0.55 | FR27: 0.5833333333 | FS27: 0.6166666667 | FT27: 0.65 | FU27: 0.6833333333 | FV27: 0.7166666667 | FW27: 0.75 | FX27: 0.7833333333 | FY27: 0.8166666667 | FZ27: 0.85 | GA27: 0.8833333333 | GB27: 0.9166666667 | GC27: 55697.95789 | GD27: 0 | GE27: 0.1166666667 | GF27: 0.15 | GG27: 0.1833333333 | GH27: 0.2166666667 | GI27: 0.25 | GJ27: 0.2833333333 | GK27: 0.3166666667 | GL27: 0.35 | GM27: 0.3833333333 | GN27: 0.4166666667 | GO27: 0.45 | GP27: 0.4833333333 | GQ27: 0.5166666667 | GR27: 0.55 | GS27: 0.5833333333 | GT27: 0.6166666667 | GU27: 0.65 | GV27: 0.6833333333 | GW27: 0.7166666667 | GX27: 0.75 | GY27: 0.7833333333 | GZ27: 0.8166666667 | HA27: 0.85 | HB27: 0.8833333333 | HC27: 55697.95789 | HD27: 0 | HE27: 0.08333333333 | HF27: 0.1166666667 | HG27: 0.15 | HH27: 0.1833333333 | HI27: 0.2166666667 | HJ27: 0.25 | HK27: 0.2833333333 | HL27: 0.3166666667 | HM27: 0.35 | HN27: 0.3833333333 | HO27: 0.4166666667 | HP27: 0.45 | HQ27: 0.4833333333 | HR27: 0.5166666667 | HS27: 0.55 | HT27: 0.5833333333 | HU27: 0.6166666667 | HV27: 0.65 | HW27: 0.6833333333 | HX27: 0.7166666667 | HY27: 0.75 | HZ27: 0.7833333333 | IA27: 0.8166666667 | IB27: 0.85 | IC27: 55697.95789 | IE27: 0 | IF27: 0 | IG27: 0 | IH27: 0
B28: Centros de reflexión MT | C28: 30 | D28: 0 | E28: 0 | F28: 0 | G28: 1146455 | H28: 0 | I28: 0 | J28: 0 | K28: 18409 | L28: 0 | M28: 0 | N28: 0 | O28: 409780 | P28: 0 | Q28: 0 | R28: 0 | S28: 0 | T28: 0 | U28: 0 | V28: 0 | W28: 192434.81 | X28: 0 | Y28: 0 | Z28: 0 | AA28: 0 | AB28: 0 | AC28: 0 | AD28: 0 | AE28: 0 | AF28: 0 | AG28: 0 | AH28: 0 | AI28: 0 | AJ28: 0 | AK28: 0 | AL28: 0 | AM28: 68323.21 | AN28: 0.78 | AO28: 0 | AP28: 0 | AQ28: 0 | AR28: 0 | AS28: 0 | AT28: 0 | AU28: 0 | AV28: 0 | AW28: 0 | AX28: 0 | AY28: 0 | AZ28: 0 | BA28: 0 | BB28: 0 | BC28: 0 | BD28: 0 | BE28: 0 | BF28: 0 | BG28: 0 | BH28: 0 | BI28: 0 | BJ28: 0 | BK28: 0 | BL28: 0 | BM28: 0 | BN28: 0 | BO28: 0 | BP28: 0 | BQ28: 0 | BR28: 0 | BS28: 0 | BT28: 0 | BU28: 0 | BV28: 0 | BW28: 0 | BX28: 0 | BY28: 0 | BZ28: 0 | CA28: 0 | CB28: 0 | CC28: 0 | CD28: 0 | CE28: 0 | CF28: 0 | CG28: 0 | CH28: 0 | CI28: 0 | CJ28: 0 | CM28: 0 | CN28: 0 | CQ28: 0 | CR28: 0 | CU28: 0 | CV28: 0 | CY28: 0 | CZ28: 0 | DA28: 0.2166666667 | DB28: 0.25 | DC28: 0.2833333333 | DD28: 0.3166666667 | DE28: 0.35 | DF28: 0.3833333333 | DG28: 0.4166666667 | DH28: 0.45 | DI28: 0.4833333333 | DJ28: 0.5166666667 | DK28: 0.55 | DL28: 0.5833333333 | DM28: 0.6166666667 | DN28: 0.65 | DO28: 0.6833333333 | DP28: 0.7166666667 | DQ28: 0.75 | DR28: 0.7833333333 | DS28: 0.8166666667 | DT28: 0.85 | DU28: 0.8833333333 | DV28: 0.9166666667 | DW28: 0.95 | DX28: 0.9833333333 | DY28: 55965.73645 | DZ28: 1678972.093 | EA28: 0 | EB28: 424970.7199 | EC28: 55965.73645 | ED28: 0 | EE28: 0.1833333333 | EF28: 0.2166666667 | EG28: 0.25 | EH28: 0.2833333333 | EI28: 0.3166666667 | EJ28: 0.35 | EK28: 0.3833333333 | EL28: 0.4166666667 | EM28: 0.45 | EN28: 0.4833333333 | EO28: 0.5166666667 | EP28: 0.55 | EQ28: 0.5833333333 | ER28: 0.6166666667 | ES28: 0.65 | ET28: 0.6833333333 | EU28: 0.7166666667 | EV28: 0.75 | EW28: 0.7833333333 | EX28: 0.8166666667 | EY28: 0.85 | EZ28: 0.8833333333 | FA28: 0.9166666667 | FB28: 0.95 | FC28: 55965.73645 | FD28: 0 | FE28: 0.15 | FF28: 0.1833333333 | FG28: 0.2166666667 | FH28: 0.25 | FI28: 0.2833333333 | FJ28: 0.3166666667 | FK28: 0.35 | FL28: 0.3833333333 | FM28: 0.4166666667 | FN28: 0.45 | FO28: 0.4833333333 | FP28: 0.5166666667 | FQ28: 0.55 | FR28: 0.5833333333 | FS28: 0.6166666667 | FT28: 0.65 | FU28: 0.6833333333 | FV28: 0.7166666667 | FW28: 0.75 | FX28: 0.7833333333 | FY28: 0.8166666667 | FZ28: 0.85 | GA28: 0.8833333333 | GB28: 0.9166666667 | GC28: 55965.73645 | GD28: 0 | GE28: 0.1166666667 | GF28: 0.15 | GG28: 0.1833333333 | GH28: 0.2166666667 | GI28: 0.25 | GJ28: 0.2833333333 | GK28: 0.3166666667 | GL28: 0.35 | GM28: 0.3833333333 | GN28: 0.4166666667 | GO28: 0.45 | GP28: 0.4833333333 | GQ28: 0.5166666667 | GR28: 0.55 | GS28: 0.5833333333 | GT28: 0.6166666667 | GU28: 0.65 | GV28: 0.6833333333 | GW28: 0.7166666667 | GX28: 0.75 | GY28: 0.7833333333 | GZ28: 0.8166666667 | HA28: 0.85 | HB28: 0.8833333333 | HC28: 55965.73645 | HD28: 0 | HE28: 0.08333333333 | HF28: 0.1166666667 | HG28: 0.15 | HH28: 0.1833333333 | HI28: 0.2166666667 | HJ28: 0.25 | HK28: 0.2833333333 | HL28: 0.3166666667 | HM28: 0.35 | HN28: 0.3833333333 | HO28: 0.4166666667 | HP28: 0.45 | HQ28: 0.4833333333 | HR28: 0.5166666667 | HS28: 0.55 | HT28: 0.5833333333 | HU28: 0.6166666667 | HV28: 0.65 | HW28: 0.6833333333 | HX28: 0.7166666667 | HY28: 0.75 | HZ28: 0.7833333333 | IA28: 0.8166666667 | IB28: 0.85 | IC28: 55965.73645 | IE28: 0 | IF28: 0 | IG28: 0 | IH28: 0
B29: Centro de transformación 34,5 kV / BT | C29: 30 | D29: 85540.35109 | E29: 0 | F29: 78216.89104 | G29: 3724 | H29: 0 | I29: 0 | J29: 0 | K29: 52281 | L29: 0 | M29: 0 | N29: 0 | O29: 8167 | P29: 0 | Q29: 0 | R29: 0 | S29: 84130.8 | T29: 0 | U29: 0 | V29: 0 | W29: 28309.42 | X29: 0 | Y29: 0 | Z29: 0 | AA29: 23600.67 | AB29: 0 | AC29: 0 | AD29: 0 | AE29: 16795.5 | AF29: 0 | AG29: 0 | AH29: 0 | AI29: 55350.16 | AJ29: 0 | AK29: 0 | AL29: 0 | AM29: 3100736.04 | AN29: 215313.69 | AO29: 0 | AP29: 0 | AQ29: 65911.15 | AR29: 0 | AS29: 0 | AT29: 0 | AU29: 39579.37 | AV29: 0 | AW29: 0 | AX29: 0 | AY29: 30008.37 | AZ29: 0 | BA29: 0 | BB29: 0 | BC29: 79840.58 | BD29: 0 | BE29: 0 | BF29: 0 | BG29: 100686.22 | BH29: 0 | BI29: 0 | BJ29: 0 | BK29: 116518.32 | BL29: 0 | BM29: 0 | BN29: 0 | BO29: 73779.48 | BP29: 0 | BQ29: 0 | BR29: 0 | BS29: 126858.13 | BT29: 0 | BU29: 0 | BV29: 0 | BW29: 45957.77 | BX29: 1191.95 | BY29: 0 | BZ29: 0 | CA29: 148079.59 | CB29: 2415.36 | CC29: 0 | CD29: 0 | CE29: 541072.53 | CF29: 0 | CG29: 0 | CH29: 0 | CI29: 245995.1 | CJ29: 0 | CM29: 104893.19 | CN29: 0 | CQ29: 76770.47 | CR29: 0 | CU29: 218284.04 | CV29: 636.17 | CY29: 1998.431577 | CZ29: 0.09771923473 | DA29: 0.2166666667 | DB29: 0.25 | DC29: 0.2833333333 | DD29: 0.3166666667 | DE29: 0.35 | DF29: 0.3833333333 | DG29: 0.4166666667 | DH29: 0.45 | DI29: 0.4833333333 | DJ29: 0.5166666667 | DK29: 0.55 | DL29: 0.5833333333 | DM29: 0.6166666667 | DN29: 0.65 | DO29: 0.6833333333 | DP29: 0.7166666667 | DQ29: 0.75 | DR29: 0.7833333333 | DS29: 0.8166666667 | DT29: 0.85 | DU29: 0.8833333333 | DV29: 0.9166666667 | DW29: 0.95 | DX29: 0.9833333333 | DY29: 146046.1475 | DZ29: 4381384.426 | EA29: 0 | EB29: 2637297.942 | EC29: 146046.1475 | ED29: 0.06438590139 | EE29: 0.1833333333 | EF29: 0.2166666667 | EG29: 0.25 | EH29: 0.2833333333 | EI29: 0.3166666667 | EJ29: 0.35 | EK29: 0.3833333333 | EL29: 0.4166666667 | EM29: 0.45 | EN29: 0.4833333333 | EO29: 0.5166666667 | EP29: 0.55 | EQ29: 0.5833333333 | ER29: 0.6166666667 | ES29: 0.65 | ET29: 0.6833333333 | EU29: 0.7166666667 | EV29: 0.75 | EW29: 0.7833333333 | EX29: 0.8166666667 | EY29: 0.85 | EZ29: 0.8833333333 | FA29: 0.9166666667 | FB29: 0.95 | FC29: 146046.1475 | FD29: 0.03105256806 | FE29: 0.15 | FF29: 0.1833333333 | FG29: 0.2166666667 | FH29: 0.25 | FI29: 0.2833333333 | FJ29: 0.3166666667 | FK29: 0.35 | FL29: 0.3833333333 | FM29: 0.4166666667 | FN29: 0.45 | FO29: 0.4833333333 | FP29: 0.5166666667 | FQ29: 0.55 | FR29: 0.5833333333 | FS29: 0.6166666667 | FT29: 0.65 | FU29: 0.6833333333 | FV29: 0.7166666667 | FW29: 0.75 | FX29: 0.7833333333 | FY29: 0.8166666667 | FZ29: 0.85 | GA29: 0.8833333333 | GB29: 0.9166666667 | GC29: 146046.1475 | GD29: 0 | GE29: 0.1166666667 | GF29: 0.15 | GG29: 0.1833333333 | GH29: 0.2166666667 | GI29: 0.25 | GJ29: 0.2833333333 | GK29: 0.3166666667 | GL29: 0.35 | GM29: 0.3833333333 | GN29: 0.4166666667 | GO29: 0.45 | GP29: 0.4833333333 | GQ29: 0.5166666667 | GR29: 0.55 | GS29: 0.5833333333 | GT29: 0.6166666667 | GU29: 0.65 | GV29: 0.6833333333 | GW29: 0.7166666667 | GX29: 0.75 | GY29: 0.7833333333 | GZ29: 0.8166666667 | HA29: 0.85 | HB29: 0.8833333333 | HC29: 143194.8025 | HD29: 0 | HE29: 0.08333333333 | HF29: 0.1166666667 | HG29: 0.15 | HH29: 0.1833333333 | HI29: 0.2166666667 | HJ29: 0.25 | HK29: 0.2833333333 | HL29: 0.3166666667 | HM29: 0.35 | HN29: 0.3833333333 | HO29: 0.4166666667 | HP29: 0.45 | HQ29: 0.4833333333 | HR29: 0.5166666667 | HS29: 0.55 | HT29: 0.5833333333 | HU29: 0.6166666667 | HV29: 0.65 | HW29: 0.6833333333 | HX29: 0.7166666667 | HY29: 0.75 | HZ29: 0.7833333333 | IA29: 0.8166666667 | IB29: 0.85 | IC29: 143194.8025 | IE29: 0 | IF29: 0 | IG29: 2851.345036 | IH29: 0
B30: Centro de transformación 13,8 kV / BT | C30: 30 | D30: 25131729.86 | E30: 0 | F30: 16210366.41 | G30: 2712538 | H30: 13843 | I30: 0 | J30: 0 | K30: 2268887 | L30: 0 | M30: 0 | N30: 0 | O30: 2792532 | P30: 32268 | Q30: 0 | R30: 0 | S30: 2869136.4 | T30: 0 | U30: 0 | V30: 0 | W30: 1427269.97 | X30: 17639.05 | Y30: 0 | Z30: 0 | AA30: 2156543.35 | AB30: 1668.33 | AC30: 0 | AD30: 0 | AE30: 2638767.063 | AF30: 0 | AG30: 0 | AH30: 0 | AI30: 5042917.2 | AJ30: 30202.22 | AK30: 0 | AL30: 0 | AM30: 71280.66 | AN30: 154.61 | AO30: 0 | AP30: 0 | AQ30: 2634132.51 | AR30: 107651.95 | AS30: 0 | AT30: 0 | AU30: 1340674.81 | AV30: 79753.91 | AW30: 0 | AX30: 0 | AY30: 4999175.07 | AZ30: 0 | BA30: 0 | BB30: 0 | BC30: 3901492.13 | BD30: 66541.17 | BE30: 0 | BF30: 0 | BG30: 6230766.72 | BH30: 0 | BI30: 0 | BJ30: 0 | BK30: 5770012.19 | BL30: 0 | BM30: 0 | BN30: 0 | BO30: 4591385.25 | BP30: 0 | BQ30: 0 | BR30: 0 | BS30: 3843974.51 | BT30: 53996.9 | BU30: 0 | BV30: 0 | BW30: 1855853.15 | BX30: 78427.58 | BY30: 0 | BZ30: 0 | CA30: 4779594.16 | CB30: 107975.65 | CC30: 0 | CD30: 0 | CE30: 4125590.72 | CF30: 99082.81 | CG30: 0 | CH30: 0 | CI30: 2787504.84 | CJ30: 33528.63 | CM30: 3618528.73 | CN30: 69511.76 | CQ30: 4199424.52 | CR30: 45711 | CU30: 5495682.04 | CV30: 84420.4 | CY30: 1990.350478 | CZ30: 0 | DA30: 0.2166666667 | DB30: 0.25 | DC30: 0.2833333333 | DD30: 0.3166666667 | DE30: 0.35 | DF30: 0.3833333333 | DG30: 0.4166666667 | DH30: 0.45 | DI30: 0.4833333333 | DJ30: 0.5166666667 | DK30: 0.55 | DL30: 0.5833333333 | DM30: 0.6166666667 | DN30: 0.65 | DO30: 0.6833333333 | DP30: 0.7166666667 | DQ30: 0.75 | DR30: 0.7833333333 | DS30: 0.8166666667 | DT30: 0.85 | DU30: 0.8833333333 | DV30: 0.9166666667 | DW30: 0.95 | DX30: 0.9833333333 | DY30: 2391476.558 | DZ30: 96876026.59 | EA30: 25131729.86 | EB30: 46438252.38 | EC30: 2391476.558 | ED30: 0 | EE30: 0.1833333333 | EF30: 0.2166666667 | EG30: 0.25 | EH30: 0.2833333333 | EI30: 0.3166666667 | EJ30: 0.35 | EK30: 0.3833333333 | EL30: 0.4166666667 | EM30: 0.45 | EN30: 0.4833333333 | EO30: 0.5166666667 | EP30: 0.55 | EQ30: 0.5833333333 | ER30: 0.6166666667 | ES30: 0.65 | ET30: 0.6833333333 | EU30: 0.7166666667 | EV30: 0.75 | EW30: 0.7833333333 | EX30: 0.8166666667 | EY30: 0.85 | EZ30: 0.8833333333 | FA30: 0.9166666667 | FB30: 0.95 | FC30: 2391476.558 | FD30: 0 | FE30: 0.15 | FF30: 0.1833333333 | FG30: 0.2166666667 | FH30: 0.25 | FI30: 0.2833333333 | FJ30: 0.3166666667 | FK30: 0.35 | FL30: 0.3833333333 | FM30: 0.4166666667 | FN30: 0.45 | FO30: 0.4833333333 | FP30: 0.5166666667 | FQ30: 0.55 | FR30: 0.5833333333 | FS30: 0.6166666667 | FT30: 0.65 | FU30: 0.6833333333 | FV30: 0.7166666667 | FW30: 0.75 | FX30: 0.7833333333 | FY30: 0.8166666667 | FZ30: 0.85 | GA30: 0.8833333333 | GB30: 0.9166666667 | GC30: 2391476.558 | GD30: 0 | GE30: 0.1166666667 | GF30: 0.15 | GG30: 0.1833333333 | GH30: 0.2166666667 | GI30: 0.25 | GJ30: 0.2833333333 | GK30: 0.3166666667 | GL30: 0.35 | GM30: 0.3833333333 | GN30: 0.4166666667 | GO30: 0.45 | GP30: 0.4833333333 | GQ30: 0.5166666667 | GR30: 0.55 | GS30: 0.5833333333 | GT30: 0.6166666667 | GU30: 0.65 | GV30: 0.6833333333 | GW30: 0.7166666667 | GX30: 0.75 | GY30: 0.7833333333 | GZ30: 0.8166666667 | HA30: 0.85 | HB30: 0.8833333333 | HC30: 2391476.558 | HD30: 0 | HE30: 0.08333333333 | HF30: 0.1166666667 | HG30: 0.15 | HH30: 0.1833333333 | HI30: 0.2166666667 | HJ30: 0.25 | HK30: 0.2833333333 | HL30: 0.3166666667 | HM30: 0.35 | HN30: 0.3833333333 | HO30: 0.4166666667 | HP30: 0.45 | HQ30: 0.4833333333 | HR30: 0.5166666667 | HS30: 0.55 | HT30: 0.5833333333 | HU30: 0.6166666667 | HV30: 0.65 | HW30: 0.6833333333 | HX30: 0.7166666667 | HY30: 0.75 | HZ30: 0.7833333333 | IA30: 0.8166666667 | IB30: 0.85 | IC30: 2391476.558 | IE30: 0 | IF30: 0 | IG30: 0 | IH30: 0
B31: Otros centros de transformación MT/BT | C31: 30 | D31: 582102.32 | E31: 0 | F31: 435439.7285 | G31: 49599 | H31: 0 | I31: 0 | J31: 0 | K31: 20580 | L31: 0 | M31: 0 | N31: 0 | O31: 44317 | P31: 0 | Q31: 0 | R31: 0 | S31: 26564.04 | T31: 0 | U31: 0 | V31: 0 | W31: 43097.97 | X31: 0 | Y31: 0 | Z31: 0 | AA31: 42340.3 | AB31: 0 | AC31: 0 | AD31: 0 | AE31: 34266.95 | AF31: 0 | AG31: 0 | AH31: 0 | AI31: 70301.35 | AJ31: 0 | AK31: 0 | AL31: 0 | AM31: 0 | AN31: 0 | AO31: 0 | AP31: 0 | AQ31: 86601.96 | AR31: 4950.47 | AS31: 0 | AT31: 0 | AU31: 82795.47 | AV31: 380.35 | AW31: 0 | AX31: 0 | AY31: 134268.62 | AZ31: 212936.49 | BA31: 0 | BB31: 0 | BC31: 14436.84 | BD31: 0 | BE31: 0 | BF31: 0 | BG31: 173148.49 | BH31: 0 | BI31: 0 | BJ31: 0 | BK31: 364115.51 | BL31: 0 | BM31: 0 | BN31: 0 | BO31: 319221.11 | BP31: 0 | BQ31: 0 | BR31: 0 | BS31: 90390.7 | BT31: 747.45 | BU31: 0 | BV31: 0 | BW31: 16296.41 | BX31: 0 | BY31: 0 | BZ31: 0 | CA31: 917025.4899 | CB31: 0 | CC31: 0 | CD31: 0 | CE31: 573063.07 | CF31: 3055.98 | CG31: 0 | CH31: 0 | CI31: 888370.86 | CJ31: 388.99 | CM31: 545847.2 | CN31: 1435.66 | CQ31: 599238.29 | CR31: 0 | CU31: 904152.65 | CV31: 0 | CY31: 1993.441401 | CZ31: 0 | DA31: 0.2166666667 | DB31: 0.25 | DC31: 0.2833333333 | DD31: 0.3166666667 | DE31: 0.35 | DF31: 0.3833333333 | DG31: 0.4166666667 | DH31: 0.45 | DI31: 0.4833333333 | DJ31: 0.5166666667 | DK31: 0.55 | DL31: 0.5833333333 | DM31: 0.6166666667 | DN31: 0.65 | DO31: 0.6833333333 | DP31: 0.7166666667 | DQ31: 0.75 | DR31: 0.7833333333 | DS31: 0.8166666667 | DT31: 0.85 | DU31: 0.8833333333 | DV31: 0.9166666667 | DW31: 0.95 | DX31: 0.9833333333 | DY31: 171860.5341 | DZ31: 5737918.342 | EA31: 582102.32 | EB31: 4271177.091 | EC31: 171860.5341 | ED31: 0 | EE31: 0.1833333333 | EF31: 0.2166666667 | EG31: 0.25 | EH31: 0.2833333333 | EI31: 0.3166666667 | EJ31: 0.35 | EK31: 0.3833333333 | EL31: 0.4166666667 | EM31: 0.45 | EN31: 0.4833333333 | EO31: 0.5166666667 | EP31: 0.55 | EQ31: 0.5833333333 | ER31: 0.6166666667 | ES31: 0.65 | ET31: 0.6833333333 | EU31: 0.7166666667 | EV31: 0.75 | EW31: 0.7833333333 | EX31: 0.8166666667 | EY31: 0.85 | EZ31: 0.8833333333 | FA31: 0.9166666667 | FB31: 0.95 | FC31: 171860.5341 | FD31: 0 | FE31: 0.15 | FF31: 0.1833333333 | FG31: 0.2166666667 | FH31: 0.25 | FI31: 0.2833333333 | FJ31: 0.3166666667 | FK31: 0.35 | FL31: 0.3833333333 | FM31: 0.4166666667 | FN31: 0.45 | FO31: 0.4833333333 | FP31: 0.5166666667 | FQ31: 0.55 | FR31: 0.5833333333 | FS31: 0.6166666667 | FT31: 0.65 | FU31: 0.6833333333 | FV31: 0.7166666667 | FW31: 0.75 | FX31: 0.7833333333 | FY31: 0.8166666667 | FZ31: 0.85 | GA31: 0.8833333333 | GB31: 0.9166666667 | GC31: 171860.5341 | GD31: 0 | GE31: 0.1166666667 | GF31: 0.15 | GG31: 0.1833333333 | GH31: 0.2166666667 | GI31: 0.25 | GJ31: 0.2833333333 | GK31: 0.3166666667 | GL31: 0.35 | GM31: 0.3833333333 | GN31: 0.4166666667 | GO31: 0.45 | GP31: 0.4833333333 | GQ31: 0.5166666667 | GR31: 0.55 | GS31: 0.5833333333 | GT31: 0.6166666667 | GU31: 0.65 | GV31: 0.6833333333 | GW31: 0.7166666667 | GX31: 0.75 | GY31: 0.7833333333 | GZ31: 0.8166666667 | HA31: 0.85 | HB31: 0.8833333333 | HC31: 171860.5341 | HD31: 0 | HE31: 0.08333333333 | HF31: 0.1166666667 | HG31: 0.15 | HH31: 0.1833333333 | HI31: 0.2166666667 | HJ31: 0.25 | HK31: 0.2833333333 | HL31: 0.3166666667 | HM31: 0.35 | HN31: 0.3833333333 | HO31: 0.4166666667 | HP31: 0.45 | HQ31: 0.4833333333 | HR31: 0.5166666667 | HS31: 0.55 | HT31: 0.5833333333 | HU31: 0.6166666667 | HV31: 0.65 | HW31: 0.6833333333 | HX31: 0.7166666667 | HY31: 0.75 | HZ31: 0.7833333333 | IA31: 0.8166666667 | IB31: 0.85 | IC31: 171860.5341 | IE31: 0 | IF31: 0 | IG31: 0 | IH31: 0
B32: Baja tensión BT (<600V) | CU32: 0 | CV32: 0 | FC32: 0 | GC32: 0 | HC32: 0 | IC32: 0 | IE32: 0 | IF32: 0 | IG32: 0 | IH32: 0
B33: Líneas aéreas BT | C33: 30 | D33: 236110.8508 | E33: 0 | F33: 223963.6465 | G33: 1782167 | H33: 0 | I33: 0 | J33: 0 | K33: 1438633 | L33: 0 | M33: 0 | N33: 0 | O33: 450884 | P33: 0 | Q33: 0 | R33: 0 | S33: 831027.6 | T33: 0 | U33: 0 | V33: 0 | W33: 1146625.14 | X33: 0 | Y33: 0 | Z33: 0 | AA33: 1790088.09 | AB33: 0 | AC33: 0 | AD33: 0 | AE33: 1323210.36 | AF33: 1068.74 | AG33: 0 | AH33: 0 | AI33: 2326449.385 | AJ33: 16827.01 | AK33: 0 | AL33: 0 | AM33: 1348039.26 | AN33: 5856.35 | AO33: 0 | AP33: 0 | AQ33: 1955066.42 | AR33: 4805.07 | AS33: 0 | AT33: 0 | AU33: 1518340.15 | AV33: 9761.77 | AW33: 0 | AX33: 0 | AY33: 1978615.09 | AZ33: 3229.97 | BA33: 0 | BB33: 0 | BC33: 1526151.13 | BD33: 278.72 | BE33: 0 | BF33: 0 | BG33: 1855661.54 | BH33: 9264.19 | BI33: 0 | BJ33: 0 | BK33: 1831350.14 | BL33: 11837.88 | BM33: 0 | BN33: 0 | BO33: 950419.31 | BP33: 0 | BQ33: 0 | BR33: 0 | BS33: 950872.66 | BT33: 0 | BU33: 0 | BV33: 0 | BW33: 394337.73 | BX33: 8947.73 | BY33: 0 | BZ33: 0 | CA33: 981436.0501 | CB33: 7526.37 | CC33: 0 | CD33: 0 | CE33: 1837888.27 | CF33: 1584.82 | CG33: 0 | CH33: 0 | CI33: 1071959.5 | CJ33: 2151.88 | CM33: 723778.35 | CN33: 5553.23 | CQ33: 546056.11 | CR33: 1156.84 | CU33: 854586.23 | CV33: 444.47 | CY33: =IF(D33=0,0,2001-(D33-F33)*C33/D33) -> 1999.456589 | CZ33: =IF((1-($DY$2-$CY33)/$C33)>0,(1-($DY$2-$CY33)/$C33),0) -> 0.1318862936 | DA33: =IF((1-($DY$2-G$2)/$C33)>0,(1-($DY$2-G$2)/$C33),0) -> 0.2166666667 | DB33: =IF((1-($DY$2-K$2)/$C33)>0,(1-($DY$2-K$2)/$C33),0) -> 0.25 | DC33: =IF((1-($DY$2-O$2)/$C33)>0,(1-($DY$2-O$2)/$C33),0) -> 0.2833333333 | DD33: =IF((1-($DY$2-S$2)/$C33)>0,(1-($DY$2-S$2)/$C33),0) -> 0.3166666667 | DE33: =IF((1-($DY$2-W$2)/$C33)>0,(1-($DY$2-W$2)/$C33),0) -> 0.35 | DF33: =IF((1-($DY$2-AA$2)/$C33)>0,(1-($DY$2-AA$2)/$C33),0) -> 0.3833333333 | DG33: =IF((1-($DY$2-AE$2)/$C33)>0,(1-($DY$2-AE$2)/$C33),0) -> 0.4166666667 | DH33: =IF((1-($DY$2-AI$2)/$C33)>0,(1-($DY$2-AI$2)/$C33),0) -> 0.45 | DI33: =IF((1-($DY$2-AM$2)/$C33)>0,(1-($DY$2-AM$2)/$C33),0) -> 0.4833333333 | DJ33: =IF((1-($DY$2-AQ$2)/$C33)>0,(1-($DY$2-AQ$2)/$C33),0) -> 0.5166666667 | DK33: =IF((1-($DY$2-AU$2)/$C33)>0,(1-($DY$2-AU$2)/$C33),0) -> 0.55 | DL33: =IF((1-($DY$2-AY$2)/$C33)>0,(1-($DY$2-AY$2)/$C33),0) -> 0.5833333333 | DM33: =IF((1-($DY$2-BC$2)/$C33)>0,(1-($DY$2-BC$2)/$C33),0) -> 0.6166666667 | DN33: =IF((1-($DY$2-BG$2)/$C33)>0,(1-($DY$2-BG$2)/$C33),0) -> 0.65 | DO33: =IF((1-($DY$2-BK$2)/$C33)>0,(1-($DY$2-BK$2)/$C33),0) -> 0.6833333333 | DP33: =IF((1-($DY$2-BO$2)/$C33)>0,(1-($DY$2-BO$2)/$C33),0) -> 0.7166666667 | DQ33: =IF((1-($DY$2-BS$2)/$C33)>0,(1-($DY$2-BS$2)/$C33),0) -> 0.75 | DR33: =IF((1-($DY$2-BW$2)/$C33)>0,(1-($DY$2-BW$2)/$C33),0) -> 0.7833333333 | DS33: =IF((1-($DY$2-CA$2)/$C33)>0,(1-($DY$2-CA$2)/$C33),0) -> 0.8166666667 | DT33: =IF((1-($DY$2-CE$2)/$C33)>0,(1-($DY$2-CE$2)/$C33),0) -> 0.85 | DU33: =IF((1-($DY$2-CI$2)/$C33)>0,(1-($DY$2-CI$2)/$C33),0) -> 0.8833333333 | DV33: =IF((1-($DY$2-CM$2)/$C33)>0,(1-($DY$2-CM$2)/$C33),0) -> 0.9166666667 | DW33: =IF((1-($DY$2-CQ$2)/$C33)>0,(1-($DY$2-CQ$2)/$C33),0) -> 0.95 | DX33: =IF((1-($DY$2-CU$2)/$C33)>0,(1-($DY$2-CU$2)/$C33),0) -> 0.9833333333 | DY33: =IF(CZ33=0,0,($D33-$E33)*1/$C33)+IF(DA33=0,0,($G33-$H33-$I33)*$G$61*1/$C33)+IF(DB33=0,0,($K33-$L33-$M33)*$K$61*1/$C33)+IF(DC33=0,0,($O33-$P33-$Q33)*$O$61*1/$C33)+IF(DD33=0,0,($S33-$T33-$U33)*$S$61*1/$C33)+IF(DE33=0,0,($W33-$X33-$Y33)*$W$61*1/$C33)+IF(DF33=0,0,($AA33-$AB33-$AC33)*$AA$61*1/$C33)+IF(DG33=0,0,($AE33-$AF33-$AG33)*$AE$61*1/$C33)+IF(DH33=0,0,($AI33-$AJ33-$AK33)*$AI$61*1/$C33)+IF(DI33=0,0,($AM33-$AN33-$AO33)*$AM$61*1/$C33)+IF(DJ33=0,0,($AQ33-$AR33-$AS33)*$AQ$61*1/$C33)+IF(DK33=0,0,($AU33-$AV33-$AW33)*$AU$61*1/$C33)+IF(DL33=0,0,($AY33-$AZ33-$BA33)*$AY$61*1/$C33)+IF(DM33=0,0,($BC33-$BD33-$BE33)*$BC$61*1/$C33)+IF(DN33=0,0,($BG33-$BH33-$BI33)*$BG$61*1/$C33)+IF(DO33=0,0,($BK33-$BL33-$BM33)*$BK$61*1/$C33)+IF(DP33=0,0,($BO33-$BP33-$BQ33)*$BO$61*1/$C33)+IF(DQ33=0,0,($BS33-$BT33-$BU33)*$BS$61*1/$C33)+IF(DR33=0,0,($BW33-$BX33-$BY33)*$BW$61*1/$C33)+IF(DS33=0,0,($CA33-$CB33-$CC33)*$CA$61*1/$C33)+IF(DT33=0,0,($CE33-$CF33-$CG33)*$CE$61*1/$C33)+IF(DU33=0,0,($CI33-$CJ33-$CK33)*$CI$61*1/$C33)+IF(DV33=0,0,($CM33-$CN33-$CO33)*$CM$61*1/$C33)+IF(DW33=0,0,($CQ33-$CR33-$CS33)*$CQ$61*1/$C33)+IF(DX33=0,0,($CU33-$CV33-$CW33)*$CU$61*1/$C33) -> 917118.6044 | DZ33: =D33-E33+(G33-H33-I33)*G$61+(K33-L33-M33)*K$61+(O33-P33-Q33)*O$61+(S33-T33-U33)*S$61+(W33-X33-Y33)*W$61+(AA33-AB33-AC33)*AA$61+(AE33-AF33-AG33)*AE$61+(AI33-AJ33-AK33)*AI$61+(AM33-AN33-AO33)*AM$61+(AQ33-AR33-AS33)*$AQ$61+(AU33-AV33-AW33)*$AU$61+(AY33-AZ33-BA33)*$AY$61+(BC33-BD33-BE33)*$BC$61+(BG33-BH33-BI33)*$BG$61+(BK33-BL33-BM33)*$BK$61+(BO33-BP33-BQ33)*$BO$61+(BS33-BT33-BU33)*$BS$61+(BW33-BX33-BY33)*$BW$61+(CA33-CB33-CC33)*$CA$61+(CE33-CF33-CG33)*$CE$61+(CI33-CJ33-CK33)*$CI$61+(CM33-CN33-CO33)*$CM$61+(CQ33-CR33-CS33)*$CQ$61+(CU33-CV33-CW33)*$CU$61 -> 27513558.13 | EA33: 0 | EB33: =(D33-E33)*CZ33+((G33-H33-(I33-J33))*G$61)*DA33+((K33-L33-(M33-N33))*K$61)*DB33+((O33-P33-(Q33-R33))*O$61)*DC33+((S33-T33-(U33-V33))*S$61)*DD33+((W33-X33-(Y33-Z33))*W$61)*DE33+((AA33-AB33-(AC33-AD33))*AA$61)*DF33+((AE33-AF33-(AG33-AH33))*AE$61)*DG33+((AI33-AJ33-(AK33-AL33))*AI$61)*DH33+((AM33-AN33-(AO33-AP33))*$AM$61)*DI33+((AQ33-AR33-(AS33-AT33))*$AQ$61)*DJ33+((AU33-AV33-(AW33-AX33))*$AU$61)*DK33+((AY33-AZ33-(BA33-BB33))*$AY$61)*DL33+((BC33-BD33-(BE33-BF33))*$BC$61)*DM33+((BG33-BH33-(BI33-BJ33))*$BG$61)*DN33+((BK33-BL33-(BM33-BN33))*$BK$61)*DO33+((BO33-BP33-(BQ33-BR33))*$BO$61)*DP33+((BS33-BT33-(BU33-BV33))*$BS$61)*DQ33+((BW33-BX33-(BY33-BZ33))*$BW$61)*DR33+((CA33-CB33-(CC33-CD33))*$CA$61)*DS33+((CE33-CF33-(CG33-CH33))*$CE$61)*DT33+((CI33-CJ33-(CK33-CL33))*$CI$61)*DU33+((CM33-CN33-(CO33-CP33))*$CM$61)*DV33+((CQ33-CR33-(CS33-CT33))*$CQ$61)*DW33+((CU33-CV33-(CW33-CX33))*$CU$61)*DX33 -> 15615520.7 | EC33: =(DZ33-EA33)*1/C33 -> 917118.6044 | ED33: =IF((1-($FC$2-$CY33)/$C33)>0,(1-($FC$2-$CY33)/$C33),0) -> 0.09855296028 | EE33: =IF((1-($FC$2-EE$2)/$C33)>0,(1-($FC$2-EE$2)/$C33),0) -> 0.1833333333 | EF33: 0.2166666667 | EG33: 0.25 | EH33: 0.2833333333 | EI33: 0.3166666667 | EJ33: 0.35 | EK33: 0.3833333333 | EL33: 0.4166666667 | EM33: 0.45 | EN33: 0.4833333333 | EO33: =IF((1-($FC$2-EO$2)/$C33)>0,(1-($FC$2-EO$2)/$C33),0) -> 0.5166666667 | EP33: 0.55 | EQ33: 0.5833333333 | ER33: 0.6166666667 | ES33: 0.65 | ET33: 0.6833333333 | EU33: 0.7166666667 | EV33: 0.75 | EW33: 0.7833333333 | EX33: 0.8166666667 | EY33: 0.85 | EZ33: 0.8833333333 | FA33: 0.9166666667 | FB33: 0.95 | FC33: =IF(ED33=0,0,($D33-$E33)*1/$C33)+IF(EE33=0,0,($G33-$H33-$I33)*$G$61*1/$C33)+IF(EF33=0,0,($K33-$L33-$M33)*$K$61*1/$C33)+IF(EG33=0,0,($O33-$P33-$Q33)*$O$61*1/$C33)+IF(EH33=0,0,($S33-$T33-$U33)*$S$61*1/$C33)+IF(EI33=0,0,($W33-$X33-$Y33)*$W$61*1/$C33)+IF(EJ33=0,0,($AA33-$AB33-$AC33)*$AA$61*1/$C33)+IF(EK33=0,0,($AE33-$AF33-$AG33)*$AE$61*1/$C33)+IF(EL33=0,0,($AI33-$AJ33-$AK33)*$AI$61*1/$C33)+IF(EM33=0,0,($AM33-$AN33-$AO33)*$AM$61*1/$C33)+IF(EN33=0,0,($AQ33-$AR33-$AS33)*$AQ$61*1/$C33)+IF(EO33=0,0,($AU33-$AV33-$AW33)*$AU$61*1/$C33)+IF(EP33=0,0,($AY33-$AZ33-$BA33)*$AY$61*1/$C33)+IF(EQ33=0,0,($BC33-$BD33-$BE33)*$BC$61*1/$C33)+IF(ER33=0,0,($BG33-$BH33-$BI33)*$BG$61*1/$C33)+IF(ES33=0,0,($BK33-$BL33-$BM33)*$BK$61*1/$C33)+IF(ET33=0,0,($BO33-$BP33-$BQ33)*$BO$61*1/$C33)+IF(EU33=0,0,($BS33-$BT33-$BU33)*$BS$61*1/$C33)+IF(EV33=0,0,($BW33-$BX33-$BY33)*$BW$61*1/$C33)+IF(EW33=0,0,($CA33-$CB33-$CC33)*$CA$61*1/$C33)+IF(EX33=0,0,($CE33-$CF33-$CG33)*$CE$61*1/$C33)+IF(EY33=0,0,($CI33-$CJ33-$CK33)*$CI$61*1/$C33)+IF(EZ33=0,0,($CM33-$CN33-$CO33)*$CM$61*1/$C33)+IF(FA33=0,0,($CQ33-$CR33-$CS33)*$CQ$61*1/$C33)+IF(FB33=0,0,($CU33-$CV33-$CW33)*$CU$61*1/$C33) -> 917118.6044 | FD33: =IF((1-($GC$2-$CY33)/$C33)>0,(1-($GC$2-$CY33)/$C33),0) -> 0.06521962695 | FE33: =IF((1-($GC$2-FE$2)/$C33)>0,(1-($GC$2-FE$2)/$C33),0) -> 0.15 | FF33: 0.1833333333 | FG33: 0.2166666667 | FH33: 0.25 | FI33: 0.2833333333 | FJ33: 0.3166666667 | FK33: 0.35 | FL33: 0.3833333333 | FM33: 0.4166666667 | FN33: 0.45 | FO33: =IF((1-($GC$2-FO$2)/$C33)>0,(1-($GC$2-FO$2)/$C33),0) -> 0.4833333333 | FP33: 0.5166666667 | FQ33: 0.55 | FR33: 0.5833333333 | FS33: 0.6166666667 | FT33: 0.65 | FU33: 0.6833333333 | FV33: 0.7166666667 | FW33: 0.75 | FX33: 0.7833333333 | FY33: 0.8166666667 | FZ33: =IF((1-($GC$2-FZ$2)/$C33)>0,(1-($GC$2-FZ$2)/$C33),0) -> 0.85 | GA33: 0.8833333333 | GB33: 0.9166666667 | GC33: =IF(FD33=0,0,($D33-$E33)*1/$C33)+IF(FE33=0,0,($G33-$H33-$I33)*$G$61*1/$C33)+IF(FF33=0,0,($K33-$L33-$M33)*$K$61*1/$C33)+IF(FG33=0,0,($O33-$P33-$Q33)*$O$61*1/$C33)+IF(FH33=0,0,($S33-$T33-$U33)*$S$61*1/$C33)+IF(FI33=0,0,($W33-$X33-$Y33)*$W$61*1/$C33)+IF(FJ33=0,0,($AA33-$AB33-$AC33)*$AA$61*1/$C33)+IF(FK33=0,0,($AE33-$AF33-$AG33)*$AE$61*1/$C33)+IF(FL33=0,0,($AI33-$AJ33-$AK33)*$AI$61*1/$C33)+IF(FM33=0,0,($AM33-$AN33-$AO33)*$AM$61*1/$C33)+IF(FN33=0,0,($AQ33-$AR33-$AS33)*$AQ$61*1/$C33)+IF(FO33=0,0,($AU33-$AV33-$AW33)*$AU$61*1/$C33)+IF(FP33=0,0,($AY33-$AZ33-$BA33)*$AY$61*1/$C33)+IF(FQ33=0,0,($BC33-$BD33-$BE33)*$BC$61*1/$C33)+IF(FR33=0,0,($BG33-$BH33-$BI33)*$BG$61*1/$C33)+IF(FS33=0,0,($BK33-$BL33-$BM33)*$BK$61*1/$C33)+IF(FT33=0,0,($BO33-$BP33-$BQ33)*$BO$61*1/$C33)+IF(FU33=0,0,($BS33-$BT33-$BU33)*$BS$61*1/$C33)+IF(FV33=0,0,($BW33-$BX33-$BY33)*$BW$61*1/$C33)+IF(FW33=0,0,($CA33-$CB33-$CC33)*$CA$61*1/$C33)+IF(FX33=0,0,($CE33-$CF33-$CG33)*$CE$61*1/$C33)+IF(FY33=0,0,($CI33-$CJ33-$CK33)*$CI$61*1/$C33)+IF(FZ33=0,0,($CM33-$CN33-$CO33)*$CM$61*1/$C33)+IF(GA33=0,0,($CQ33-$CR33-$CS33)*$CQ$61*1/$C33)+IF(GB33=0,0,($CU33-$CV33-$CW33)*$CU$61*1/$C33) -> 917118.6044 | GD33: =IF((1-($HC$2-$CY33)/$C33)>0,(1-($HC$2-$CY33)/$C33),0) -> 0.03188629362 | GE33: =IF((1-($HC$2-GE$2)/$C33)>0,(1-($HC$2-GE$2)/$C33),0) -> 0.1166666667 | GF33: 0.15 | GG33: 0.1833333333 | GH33: 0.2166666667 | GI33: 0.25 | GJ33: 0.2833333333 | GK33: 0.3166666667 | GL33: 0.35 | GM33: 0.3833333333 | GN33: 0.4166666667 | GO33: =IF((1-($HC$2-GO$2)/$C33)>0,(1-($HC$2-GO$2)/$C33),0) -> 0.45 | GP33: 0.4833333333 | GQ33: 0.5166666667 | GR33: 0.55 | GS33: 0.5833333333 | GT33: 0.6166666667 | GU33: 0.65 | GV33: 0.6833333333 | GW33: 0.7166666667 | GX33: 0.75 | GY33: 0.7833333333 | GZ33: =IF((1-($HC$2-GZ$2)/$C33)>0,(1-($HC$2-GZ$2)/$C33),0) -> 0.8166666667 | HA33: 0.85 | HB33: 0.8833333333 | HC33: =IF(GD33=0,0,($D33-$E33)*1/$C33)+IF(GE33=0,0,($G33-$H33-$I33)*$G$61*1/$C33)+IF(GF33=0,0,($K33-$L33-$M33)*$K$61*1/$C33)+IF(GG33=0,0,($O33-$P33-$Q33)*$O$61*1/$C33)+IF(GH33=0,0,($S33-$T33-$U33)*$S$61*1/$C33)+IF(GI33=0,0,($W33-$X33-$Y33)*$W$61*1/$C33)+IF(GJ33=0,0,($AA33-$AB33-$AC33)*$AA$61*1/$C33)+IF(GK33=0,0,($AE33-$AF33-$AG33)*$AE$61*1/$C33)+IF(GL33=0,0,($AI33-$AJ33-$AK33)*$AI$61*1/$C33)+IF(GM33=0,0,($AM33-$AN33-$AO33)*$AM$61*1/$C33)+IF(GN33=0,0,($AQ33-$AR33-$AS33)*$AQ$61*1/$C33)+IF(GO33=0,0,($AU33-$AV33-$AW33)*$AU$61*1/$C33)+IF(GP33=0,0,($AY33-$AZ33-$BA33)*$AY$61*1/$C33)+IF(GQ33=0,0,($BC33-$BD33-$BE33)*$BC$61*1/$C33)+IF(GR33=0,0,($BG33-$BH33-$BI33)*$BG$61*1/$C33)+IF(GS33=0,0,($BK33-$BL33-$BM33)*$BK$61*1/$C33)+IF(GT33=0,0,($BO33-$BP33-$BQ33)*$BO$61*1/$C33)+IF(GU33=0,0,($BS33-$BT33-$BU33)*$BS$61*1/$C33)+IF(GV33=0,0,($BW33-$BX33-$BY33)*$BW$61*1/$C33)+IF(GW33=0,0,($CA33-$CB33-$CC33)*$CA$61*1/$C33)+IF(GX33=0,0,($CE33-$CF33-$CG33)*$CE$61*1/$C33)+IF(GY33=0,0,($CI33-$CJ33-$CK33)*$CI$61*1/$C33)+IF(GZ33=0,0,($CM33-$CN33-$CO33)*$CM$61*1/$C33)+IF(HA33=0,0,($CQ33-$CR33-$CS33)*$CQ$61*1/$C33)+IF(HB33=0,0,($CU33-$CV33-$CW33)*$CU$61*1/$C33) -> 917118.6044 | HD33: =IF((1-($IC$2-$CY33)/$C33)>0,(1-($IC$2-$CY33)/$C33),0) -> 0 | HE33: =IF((1-($IC$2-HE$2)/$C33)>0,(1-($IC$2-HE$2)/$C33),0) -> 0.08333333333 | HF33: 0.1166666667 | HG33: 0.15 | HH33: 0.1833333333 | HI33: 0.2166666667 | HJ33: 0.25 | HK33: 0.2833333333 | HL33: 0.3166666667 | HM33: 0.35 | HN33: 0.3833333333 | HO33: =IF((1-($IC$2-HO$2)/$C33)>0,(1-($IC$2-HO$2)/$C33),0) -> 0.4166666667 | HP33: 0.45 | HQ33: 0.4833333333 | HR33: 0.5166666667 | HS33: 0.55 | HT33: 0.5833333333 | HU33: 0.6166666667 | HV33: 0.65 | HW33: 0.6833333333 | HX33: 0.7166666667 | HY33: 0.75 | HZ33: =IF((1-($IC$2-HZ$2)/$C33)>0,(1-($IC$2-HZ$2)/$C33),0) -> 0.7833333333 | IA33: 0.8166666667 | IB33: 0.85 | IC33: 909248.2427 | IE33: =DY33-FC33 -> 0 | IF33: =FC33-GC33 -> 0 | IG33: =GC33-HC33 -> 0 | IH33: =HC33-IC33 -> 7870.361693
B34: Líneas subterráneas BT | C34: 30 | D34: 537225.1924 | E34: 0 | F34: 518558.3904 | G34: 534308 | H34: 0 | I34: 0 | J34: 0 | K34: 820576 | L34: 0 | M34: 0 | N34: 0 | O34: 829880 | P34: 0 | Q34: 0 | R34: 0 | S34: 1027608 | T34: 295810 | U34: 0 | V34: 0 | W34: 203264.6 | X34: 0 | Y34: 0 | Z34: 0 | AA34: 1015855.5 | AB34: 0 | AC34: 0 | AD34: 0 | AE34: 414355.48 | AF34: 0 | AG34: 0 | AH34: 0 | AI34: 38670.46 | AJ34: 0 | AK34: 0 | AL34: 0 | AM34: 27751.72 | AN34: 19209.87 | AO34: 0 | AP34: 0 | AQ34: 4949.82 | AR34: 0 | AS34: 0 | AT34: 0 | AU34: 0 | AV34: 0 | AW34: 0 | AX34: 0 | AY34: 99615.81 | AZ34: 0 | BA34: 0 | BB34: 0 | BC34: 784458.42 | BD34: 16663.68 | BE34: 0 | BF34: 0 | BG34: 1529852.93 | BH34: 125535.92 | BI34: 0 | BJ34: 0 | BK34: 1110913.07 | BL34: 113308.21 | BM34: 0 | BN34: 0 | BO34: 665995.81 | BP34: 0 | BQ34: 0 | BR34: 0 | BS34: 426013.62 | BT34: 11398.82 | BU34: 0 | BV34: 0 | BW34: 1005394.02 | BX34: 80887.02 | BY34: 0 | BZ34: 0 | CA34: 2313328.38 | CB34: 161385.16 | CC34: 0 | CD34: 0 | CE34: 771530.49 | CF34: 41744.59 | CG34: 0 | CH34: 0 | CI34: 627799.29 | CJ34: 23359.16 | CM34: 935722.4 | CN34: 16117.78 | CQ34: 927617.25 | CR34: 28267.48 | CU34: 1570313.73 | CV34: 20545.17 | CY34: =IF(D34=0,0,2001-(D34-F34)*C34/D34) -> 1999.957599 | CZ34: =IF((1-($DY$2-$CY34)/$C34)>0,(1-($DY$2-$CY34)/$C34),0) -> 0.1485866344 | DA34: =IF((1-($DY$2-G$2)/$C34)>0,(1-($DY$2-G$2)/$C34),0) -> 0.2166666667 | DB34: =IF((1-($DY$2-K$2)/$C34)>0,(1-($DY$2-K$2)/$C34),0) -> 0.25 | DC34: =IF((1-($DY$2-O$2)/$C34)>0,(1-($DY$2-O$2)/$C34),0) -> 0.2833333333 | DD34: =IF((1-($DY$2-S$2)/$C34)>0,(1-($DY$2-S$2)/$C34),0) -> 0.3166666667 | DE34: =IF((1-($DY$2-W$2)/$C34)>0,(1-($DY$2-W$2)/$C34),0) -> 0.35 | DF34: =IF((1-($DY$2-AA$2)/$C34)>0,(1-($DY$2-AA$2)/$C34),0) -> 0.3833333333 | DG34: =IF((1-($DY$2-AE$2)/$C34)>0,(1-($DY$2-AE$2)/$C34),0) -> 0.4166666667 | DH34: =IF((1-($DY$2-AI$2)/$C34)>0,(1-($DY$2-AI$2)/$C34),0) -> 0.45 | DI34: =IF((1-($DY$2-AM$2)/$C34)>0,(1-($DY$2-AM$2)/$C34),0) -> 0.4833333333 | DJ34: =IF((1-($DY$2-AQ$2)/$C34)>0,(1-($DY$2-AQ$2)/$C34),0) -> 0.5166666667 | DK34: =IF((1-($DY$2-AU$2)/$C34)>0,(1-($DY$2-AU$2)/$C34),0) -> 0.55 | DL34: =IF((1-($DY$2-AY$2)/$C34)>0,(1-($DY$2-AY$2)/$C34),0) -> 0.5833333333 | DM34: =IF((1-($DY$2-BC$2)/$C34)>0,(1-($DY$2-BC$2)/$C34),0) -> 0.6166666667 | DN34: =IF((1-($DY$2-BG$2)/$C34)>0,(1-($DY$2-BG$2)/$C34),0) -> 0.65 | DO34: =IF((1-($DY$2-BK$2)/$C34)>0,(1-($DY$2-BK$2)/$C34),0) -> 0.6833333333 | DP34: =IF((1-($DY$2-BO$2)/$C34)>0,(1-($DY$2-BO$2)/$C34),0) -> 0.7166666667 | DQ34: =IF((1-($DY$2-BS$2)/$C34)>0,(1-($DY$2-BS$2)/$C34),0) -> 0.75 | DR34: =IF((1-($DY$2-BW$2)/$C34)>0,(1-($DY$2-BW$2)/$C34),0) -> 0.7833333333 | DS34: =IF((1-($DY$2-CA$2)/$C34)>0,(1-($DY$2-CA$2)/$C34),0) -> 0.8166666667 | DT34: =IF((1-($DY$2-CE$2)/$C34)>0,(1-($DY$2-CE$2)/$C34),0) -> 0.85 | DU34: =IF((1-($DY$2-CI$2)/$C34)>0,(1-($DY$2-CI$2)/$C34),0) -> 0.8833333333 | DV34: 0.9166666667 | DW34: 0.95 | DX34: 0.9833333333 | DY34: =IF(CZ34=0,0,($D34-$E34)*1/$C34)+IF(DA34=0,0,($G34-$H34-$I34)*$G$61*1/$C34)+IF(DB34=0,0,($K34-$L34-$M34)*$K$61*1/$C34)+IF(DC34=0,0,($O34-$P34-$Q34)*$O$61*1/$C34)+IF(DD34=0,0,($S34-$T34-$U34)*$S$61*1/$C34)+IF(DE34=0,0,($W34-$X34-$Y34)*$W$61*1/$C34)+IF(DF34=0,0,($AA34-$AB34-$AC34)*$AA$61*1/$C34)+IF(DG34=0,0,($AE34-$AF34-$AG34)*$AE$61*1/$C34)+IF(DH34=0,0,($AI34-$AJ34-$AK34)*$AI$61*1/$C34)+IF(DI34=0,0,($AM34-$AN34-$AO34)*$AM$61*1/$C34)+IF(DJ34=0,0,($AQ34-$AR34-$AS34)*$AQ$61*1/$C34)+IF(DK34=0,0,($AU34-$AV34-$AW34)*$AU$61*1/$C34)+IF(DL34=0,0,($AY34-$AZ34-$BA34)*$AY$61*1/$C34)+IF(DM34=0,0,($BC34-$BD34-$BE34)*$BC$61*1/$C34)+IF(DN34=0,0,($BG34-$BH34-$BI34)*$BG$61*1/$C34)+IF(DO34=0,0,($BK34-$BL34-$BM34)*$BK$61*1/$C34)+IF(DP34=0,0,($BO34-$BP34-$BQ34)*$BO$61*1/$C34)+IF(DQ34=0,0,($BS34-$BT34-$BU34)*$BS$61*1/$C34)+IF(DR34=0,0,($BW34-$BX34-$BY34)*$BW$61*1/$C34)+IF(DS34=0,0,($CA34-$CB34-$CC34)*$CA$61*1/$C34)+IF(DT34=0,0,($CE34-$CF34-$CG34)*$CE$61*1/$C34)+IF(DU34=0,0,($CI34-$CJ34-$CK34)*$CI$61*1/$C34)+IF(DV34=0,0,($CM34-$CN34-$CO34)*$CM$61*1/$C34)+IF(DW34=0,0,($CQ34-$CR34-$CS34)*$CQ$61*1/$C34)+IF(DX34=0,0,($CU34-$CV34-$CW34)*$CU$61*1/$C34) -> 515222.7345 | DZ34: =D34-E34+(G34-H34-I34)*G$61+(K34-L34-M34)*K$61+(O34-P34-Q34)*O$61+(S34-T34-U34)*S$61+(W34-X34-Y34)*W$61+(AA34-AB34-AC34)*AA$61+(AE34-AF34-AG34)*AE$61+(AI34-AJ34-AK34)*AI$61+(AM34-AN34-AO34)*AM$61+(AQ34-AR34-AS34)*$AQ$61+(AU34-AV34-AW34)*$AU$61+(AY34-AZ34-BA34)*$AY$61+(BC34-BD34-BE34)*$BC$61+(BG34-BH34-BI34)*$BG$61+(BK34-BL34-BM34)*$BK$61+(BO34-BP34-BQ34)*$BO$61+(BS34-BT34-BU34)*$BS$61+(BW34-BX34-BY34)*$BW$61+(CA34-CB34-CC34)*$CA$61+(CE34-CF34-CG34)*$CE$61+(CI34-CJ34-CK34)*$CI$61+(CM34-CN34-CO34)*$CM$61+(CQ34-CR34-CS34)*$CQ$61+(CU34-CV34-CW34)*$CU$61 -> 15456682.03 | EA34: 0 | EB34: =(D34-E34)*CZ34+((G34-H34-(I34-J34))*G$61)*DA34+((K34-L34-(M34-N34))*K$61)*DB34+((O34-P34-(Q34-R34))*O$61)*DC34+((S34-T34-(U34-V34))*S$61)*DD34+((W34-X34-(Y34-Z34))*W$61)*DE34+((AA34-AB34-(AC34-AD34))*AA$61)*DF34+((AE34-AF34-(AG34-AH34))*AE$61)*DG34+((AI34-AJ34-(AK34-AL34))*AI$61)*DH34+((AM34-AN34-(AO34-AP34))*$AM$61)*DI34+((AQ34-AR34-(AS34-AT34))*$AQ$61)*DJ34+((AU34-AV34-(AW34-AX34))*$AU$61)*DK34+((AY34-AZ34-(BA34-BB34))*$AY$61)*DL34+((BC34-BD34-(BE34-BF34))*$BC$61)*DM34+((BG34-BH34-(BI34-BJ34))*$BG$61)*DN34+((BK34-BL34-(BM34-BN34))*$BK$61)*DO34+((BO34-BP34-(BQ34-BR34))*$BO$61)*DP34+((BS34-BT34-(BU34-BV34))*$BS$61)*DQ34+((BW34-BX34-(BY34-BZ34))*$BW$61)*DR34+((CA34-CB34-(CC34-CD34))*$CA$61)*DS34+((CE34-CF34-(CG34-CH34))*$CE$61)*DT34+((CI34-CJ34-(CK34-CL34))*$CI$61)*DU34+((CM34-CN34-(CO34-CP34))*$CM$61)*DV34+((CQ34-CR34-(CS34-CT34))*$CQ$61)*DW34+((CU34-CV34-(CW34-CX34))*$CU$61)*DX34 -> 10057193.08 | EC34: =(DZ34-EA34)*1/C34 -> 515222.7345 | ED34: =IF((1-($FC$2-$CY34)/$C34)>0,(1-($FC$2-$CY34)/$C34),0) -> 0.115253301 | EE34: 0.1833333333 | EF34: 0.2166666667 | EG34: 0.25 | EH34: 0.2833333333 | EI34: 0.3166666667 | EJ34: 0.35 | EK34: 0.3833333333 | EL34: 0.4166666667 | EM34: 0.45 | EN34: 0.4833333333 | EO34: 0.5166666667 | EP34: 0.55 | EQ34: 0.5833333333 | ER34: 0.6166666667 | ES34: 0.65 | ET34: 0.6833333333 | EU34: 0.7166666667 | EV34: 0.75 | EW34: 0.7833333333 | EX34: 0.8166666667 | EY34: 0.85 | EZ34: 0.8833333333 | FA34: 0.9166666667 | FB34: 0.95 | FC34: =IF(ED34=0,0,($D34-$E34)*1/$C34)+IF(EE34=0,0,($G34-$H34-$I34)*$G$61*1/$C34)+IF(EF34=0,0,($K34-$L34-$M34)*$K$61*1/$C34)+IF(EG34=0,0,($O34-$P34-$Q34)*$O$61*1/$C34)+IF(EH34=0,0,($S34-$T34-$U34)*$S$61*1/$C34)+IF(EI34=0,0,($W34-$X34-$Y34)*$W$61*1/$C34)+IF(EJ34=0,0,($AA34-$AB34-$AC34)*$AA$61*1/$C34)+IF(EK34=0,0,($AE34-$AF34-$AG34)*$AE$61*1/$C34)+IF(EL34=0,0,($AI34-$AJ34-$AK34)*$AI$61*1/$C34)+IF(EM34=0,0,($AM34-$AN34-$AO34)*$AM$61*1/$C34)+IF(EN34=0,0,($AQ34-$AR34-$AS34)*$AQ$61*1/$C34)+IF(EO34=0,0,($AU34-$AV34-$AW34)*$AU$61*1/$C34)+IF(EP34=0,0,($AY34-$AZ34-$BA34)*$AY$61*1/$C34)+IF(EQ34=0,0,($BC34-$BD34-$BE34)*$BC$61*1/$C34)+IF(ER34=0,0,($BG34-$BH34-$BI34)*$BG$61*1/$C34)+IF(ES34=0,0,($BK34-$BL34-$BM34)*$BK$61*1/$C34)+IF(ET34=0,0,($BO34-$BP34-$BQ34)*$BO$61*1/$C34)+IF(EU34=0,0,($BS34-$BT34-$BU34)*$BS$61*1/$C34)+IF(EV34=0,0,($BW34-$BX34-$BY34)*$BW$61*1/$C34)+IF(EW34=0,0,($CA34-$CB34-$CC34)*$CA$61*1/$C34)+IF(EX34=0,0,($CE34-$CF34-$CG34)*$CE$61*1/$C34)+IF(EY34=0,0,($CI34-$CJ34-$CK34)*$CI$61*1/$C34)+IF(EZ34=0,0,($CM34-$CN34-$CO34)*$CM$61*1/$C34)+IF(FA34=0,0,($CQ34-$CR34-$CS34)*$CQ$61*1/$C34)+IF(FB34=0,0,($CU34-$CV34-$CW34)*$CU$61*1/$C34) -> 515222.7345 | FD34: =IF((1-($GC$2-$CY34)/$C34)>0,(1-($GC$2-$CY34)/$C34),0) -> 0.0819199677 | FE34: 0.15 | FF34: 0.1833333333 | FG34: 0.2166666667 | FH34: 0.25 | FI34: 0.2833333333 | FJ34: 0.3166666667 | FK34: 0.35 | FL34: 0.3833333333 | FM34: 0.4166666667 | FN34: 0.45 | FO34: 0.4833333333 | FP34: 0.5166666667 | FQ34: 0.55 | FR34: 0.5833333333 | FS34: 0.6166666667 | FT34: 0.65 | FU34: 0.6833333333 | FV34: 0.7166666667 | FW34: 0.75 | FX34: 0.7833333333 | FY34: 0.8166666667 | FZ34: 0.85 | GA34: 0.8833333333 | GB34: 0.9166666667 | GC34: =IF(FD34=0,0,($D34-$E34)*1/$C34)+IF(FE34=0,0,($G34-$H34-$I34)*$G$61*1/$C34)+IF(FF34=0,0,($K34-$L34-$M34)*$K$61*1/$C34)+IF(FG34=0,0,($O34-$P34-$Q34)*$O$61*1/$C34)+IF(FH34=0,0,($S34-$T34-$U34)*$S$61*1/$C34)+IF(FI34=0,0,($W34-$X34-$Y34)*$W$61*1/$C34)+IF(FJ34=0,0,($AA34-$AB34-$AC34)*$AA$61*1/$C34)+IF(FK34=0,0,($AE34-$AF34-$AG34)*$AE$61*1/$C34)+IF(FL34=0,0,($AI34-$AJ34-$AK34)*$AI$61*1/$C34)+IF(FM34=0,0,($AM34-$AN34-$AO34)*$AM$61*1/$C34)+IF(FN34=0,0,($AQ34-$AR34-$AS34)*$AQ$61*1/$C34)+IF(FO34=0,0,($AU34-$AV34-$AW34)*$AU$61*1/$C34)+IF(FP34=0,0,($AY34-$AZ34-$BA34)*$AY$61*1/$C34)+IF(FQ34=0,0,($BC34-$BD34-$BE34)*$BC$61*1/$C34)+IF(FR34=0,0,($BG34-$BH34-$BI34)*$BG$61*1/$C34)+IF(FS34=0,0,($BK34-$BL34-$BM34)*$BK$61*1/$C34)+IF(FT34=0,0,($BO34-$BP34-$BQ34)*$BO$61*1/$C34)+IF(FU34=0,0,($BS34-$BT34-$BU34)*$BS$61*1/$C34)+IF(FV34=0,0,($BW34-$BX34-$BY34)*$BW$61*1/$C34)+IF(FW34=0,0,($CA34-$CB34-$CC34)*$CA$61*1/$C34)+IF(FX34=0,0,($CE34-$CF34-$CG34)*$CE$61*1/$C34)+IF(FY34=0,0,($CI34-$CJ34-$CK34)*$CI$61*1/$C34)+IF(FZ34=0,0,($CM34-$CN34-$CO34)*$CM$61*1/$C34)+IF(GA34=0,0,($CQ34-$CR34-$CS34)*$CQ$61*1/$C34)+IF(GB34=0,0,($CU34-$CV34-$CW34)*$CU$61*1/$C34) -> 515222.7345 | GD34: =IF((1-($HC$2-$CY34)/$C34)>0,(1-($HC$2-$CY34)/$C34),0) -> 0.04858663437 | GE34: 0.1166666667 | GF34: 0.15 | GG34: 0.1833333333 | GH34: 0.2166666667 | GI34: 0.25 | GJ34: 0.2833333333 | GK34: 0.3166666667 | GL34: 0.35 | GM34: 0.3833333333 | GN34: 0.4166666667 | GO34: 0.45 | GP34: 0.4833333333 | GQ34: 0.5166666667 | GR34: 0.55 | GS34: 0.5833333333 | GT34: 0.6166666667 | GU34: 0.65 | GV34: 0.6833333333 | GW34: 0.7166666667 | GX34: 0.75 | GY34: 0.7833333333 | GZ34: 0.8166666667 | HA34: 0.85 | HB34: 0.8833333333 | HC34: =IF(GD34=0,0,($D34-$E34)*1/$C34)+IF(GE34=0,0,($G34-$H34-$I34)*$G$61*1/$C34)+IF(GF34=0,0,($K34-$L34-$M34)*$K$61*1/$C34)+IF(GG34=0,0,($O34-$P34-$Q34)*$O$61*1/$C34)+IF(GH34=0,0,($S34-$T34-$U34)*$S$61*1/$C34)+IF(GI34=0,0,($W34-$X34-$Y34)*$W$61*1/$C34)+IF(GJ34=0,0,($AA34-$AB34-$AC34)*$AA$61*1/$C34)+IF(GK34=0,0,($AE34-$AF34-$AG34)*$AE$61*1/$C34)+IF(GL34=0,0,($AI34-$AJ34-$AK34)*$AI$61*1/$C34)+IF(GM34=0,0,($AM34-$AN34-$AO34)*$AM$61*1/$C34)+IF(GN34=0,0,($AQ34-$AR34-$AS34)*$AQ$61*1/$C34)+IF(GO34=0,0,($AU34-$AV34-$AW34)*$AU$61*1/$C34)+IF(GP34=0,0,($AY34-$AZ34-$BA34)*$AY$61*1/$C34)+IF(GQ34=0,0,($BC34-$BD34-$BE34)*$BC$61*1/$C34)+IF(GR34=0,0,($BG34-$BH34-$BI34)*$BG$61*1/$C34)+IF(GS34=0,0,($BK34-$BL34-$BM34)*$BK$61*1/$C34)+IF(GT34=0,0,($BO34-$BP34-$BQ34)*$BO$61*1/$C34)+IF(GU34=0,0,($BS34-$BT34-$BU34)*$BS$61*1/$C34)+IF(GV34=0,0,($BW34-$BX34-$BY34)*$BW$61*1/$C34)+IF(GW34=0,0,($CA34-$CB34-$CC34)*$CA$61*1/$C34)+IF(GX34=0,0,($CE34-$CF34-$CG34)*$CE$61*1/$C34)+IF(GY34=0,0,($CI34-$CJ34-$CK34)*$CI$61*1/$C34)+IF(GZ34=0,0,($CM34-$CN34-$CO34)*$CM$61*1/$C34)+IF(HA34=0,0,($CQ34-$CR34-$CS34)*$CQ$61*1/$C34)+IF(HB34=0,0,($CU34-$CV34-$CW34)*$CU$61*1/$C34) -> 515222.7345 | HD34: =IF((1-($IC$2-$CY34)/$C34)>0,(1-($IC$2-$CY34)/$C34),0) -> 0.01525330103 | HE34: 0.08333333333 | HF34: 0.1166666667 | HG34: 0.15 | HH34: 0.1833333333 | HI34: 0.2166666667 | HJ34: 0.25 | HK34: 0.2833333333 | HL34: 0.3166666667 | HM34: 0.35 | HN34: 0.3833333333 | HO34: 0.4166666667 | HP34: 0.45 | HQ34: 0.4833333333 | HR34: 0.5166666667 | HS34: 0.55 | HT34: 0.5833333333 | HU34: 0.6166666667 | HV34: 0.65 | HW34: 0.6833333333 | HX34: 0.7166666667 | HY34: 0.75 | HZ34: 0.7833333333 | IA34: 0.8166666667 | IB34: 0.85 | IC34: 515222.7345 | IE34: =DY34-FC34 -> 0 | IF34: =FC34-GC34 -> 0 | IG34: =GC34-HC34 -> 0 | IH34: =HC34-IC34 -> 0
B35: Acometidas BT | C35: 30 | D35: 18043448.88 | E35: 0 | F35: 9331186.039 | G35: 2614412 | H35: 230284 | I35: 0 | J35: 0 | K35: 2242964 | L35: 442941 | M35: 0 | N35: 0 | O35: 1431877 | P35: 305350 | Q35: 0 | R35: 0 | S35: 1386283.2 | T35: 0 | U35: 0 | V35: 0 | W35: 1824018.95 | X35: 6234.91 | Y35: 0 | Z35: 0 | AA35: 1670519.71 | AB35: 0 | AC35: 0 | AD35: 0 | AE35: 2013268.162 | AF35: 0 | AG35: 0 | AH35: 0 | AI35: 3397582.584 | AJ35: 60938.20096 | AK35: 0 | AL35: 0 | AM35: 2667627.848 | AN35: 311054.49 | AO35: 0 | AP35: 0 | AQ35: 2671007.87 | AR35: 115637.59 | AS35: 0 | AT35: 0 | AU35: 2508547.34 | AV35: 169101.73 | AW35: 0 | AX35: 0 | AY35: 3518081.96 | AZ35: 69778.26 | BA35: 0 | BB35: 0 | BC35: 1415756.67 | BD35: 0 | BE35: 0 | BF35: 0 | BG35: 1960305.67 | BH35: 0 | BI35: 0 | BJ35: 0 | BK35: 1832333.97 | BL35: 0 | BM35: 0 | BN35: 0 | BO35: 1869131.97 | BP35: 0 | BQ35: 0 | BR35: 0 | BS35: 1291035.32 | BT35: 0 | BU35: 0 | BV35: 0 | BW35: 1618693.02 | BX35: 0 | BY35: 0 | BZ35: 0 | CA35: 1714750.82 | CB35: 0 | CC35: 0 | CD35: 0 | CE35: 2150902.68 | CF35: 29.21 | CG35: 0 | CH35: 0 | CI35: 2872554.49 | CJ35: 0 | CM35: 2606413.42 | CN35: 10.63 | CQ35: 3923711.92 | CR35: 79397.92 | CU35: 3333068.38 | CV35: 34464.12 | CY35: =IF(D35=0,0,2001-(D35-F35)*C35/D35) -> 1986.514527 | CZ35: =IF((1-($DY$2-$CY35)/$C35)>0,(1-($DY$2-$CY35)/$C35),0) -> 0 | DA35: =IF((1-($DY$2-G$2)/$C35)>0,(1-($DY$2-G$2)/$C35),0) -> 0.2166666667 | DB35: =IF((1-($DY$2-K$2)/$C35)>0,(1-($DY$2-K$2)/$C35),0) -> 0.25 | DC35: =IF((1-($DY$2-O$2)/$C35)>0,(1-($DY$2-O$2)/$C35),0) -> 0.2833333333 | DD35: =IF((1-($DY$2-S$2)/$C35)>0,(1-($DY$2-S$2)/$C35),0) -> 0.3166666667 | DE35: =IF((1-($DY$2-W$2)/$C35)>0,(1-($DY$2-W$2)/$C35),0) -> 0.35 | DF35: =IF((1-($DY$2-AA$2)/$C35)>0,(1-($DY$2-AA$2)/$C35),0) -> 0.3833333333 | DG35: =IF((1-($DY$2-AE$2)/$C35)>0,(1-($DY$2-AE$2)/$C35),0) -> 0.4166666667 | DH35: =IF((1-($DY$2-AI$2)/$C35)>0,(1-($DY$2-AI$2)/$C35),0) -> 0.45 | DI35: =IF((1-($DY$2-AM$2)/$C35)>0,(1-($DY$2-AM$2)/$C35),0) -> 0.4833333333 | DJ35: =IF((1-($DY$2-AQ$2)/$C35)>0,(1-($DY$2-AQ$2)/$C35),0) -> 0.5166666667 | DK35: =IF((1-($DY$2-AU$2)/$C35)>0,(1-($DY$2-AU$2)/$C35),0) -> 0.55 | DL35: =IF((1-($DY$2-AY$2)/$C35)>0,(1-($DY$2-AY$2)/$C35),0) -> 0.5833333333 | DM35: =IF((1-($DY$2-BC$2)/$C35)>0,(1-($DY$2-BC$2)/$C35),0) -> 0.6166666667 | DN35: =IF((1-($DY$2-BG$2)/$C35)>0,(1-($DY$2-BG$2)/$C35),0) -> 0.65 | DO35: =IF((1-($DY$2-BK$2)/$C35)>0,(1-($DY$2-BK$2)/$C35),0) -> 0.6833333333 | DP35: =IF((1-($DY$2-BO$2)/$C35)>0,(1-($DY$2-BO$2)/$C35),0) -> 0.7166666667 | DQ35: =IF((1-($DY$2-BS$2)/$C35)>0,(1-($DY$2-BS$2)/$C35),0) -> 0.75 | DR35: =IF((1-($DY$2-BW$2)/$C35)>0,(1-($DY$2-BW$2)/$C35),0) -> 0.7833333333 | DS35: =IF((1-($DY$2-CA$2)/$C35)>0,(1-($DY$2-CA$2)/$C35),0) -> 0.8166666667 | DT35: =IF((1-($DY$2-CE$2)/$C35)>0,(1-($DY$2-CE$2)/$C35),0) -> 0.85 | DU35: =IF((1-($DY$2-CI$2)/$C35)>0,(1-($DY$2-CI$2)/$C35),0) -> 0.8833333333 | DV35: 0.9166666667 | DW35: 0.95 | DX35: 0.9833333333 | DY35: =IF(CZ35=0,0,($D35-$E35)*1/$C35)+IF(DA35=0,0,($G35-$H35-$I35)*$G$61*1/$C35)+IF(DB35=0,0,($K35-$L35-$M35)*$K$61*1/$C35)+IF(DC35=0,0,($O35-$P35-$Q35)*$O$61*1/$C35)+IF(DD35=0,0,($S35-$T35-$U35)*$S$61*1/$C35)+IF(DE35=0,0,($W35-$X35-$Y35)*$W$61*1/$C35)+IF(DF35=0,0,($AA35-$AB35-$AC35)*$AA$61*1/$C35)+IF(DG35=0,0,($AE35-$AF35-$AG35)*$AE$61*1/$C35)+IF(DH35=0,0,($AI35-$AJ35-$AK35)*$AI$61*1/$C35)+IF(DI35=0,0,($AM35-$AN35-$AO35)*$AM$61*1/$C35)+IF(DJ35=0,0,($AQ35-$AR35-$AS35)*$AQ$61*1/$C35)+IF(DK35=0,0,($AU35-$AV35-$AW35)*$AU$61*1/$C35)+IF(DL35=0,0,($AY35-$AZ35-$BA35)*$AY$61*1/$C35)+IF(DM35=0,0,($BC35-$BD35-$BE35)*$BC$61*1/$C35)+IF(DN35=0,0,($BG35-$BH35-$BI35)*$BG$61*1/$C35)+IF(DO35=0,0,($BK35-$BL35-$BM35)*$BK$61*1/$C35)+IF(DP35=0,0,($BO35-$BP35-$BQ35)*$BO$61*1/$C35)+IF(DQ35=0,0,($BS35-$BT35-$BU35)*$BS$61*1/$C35)+IF(DR35=0,0,($BW35-$BX35-$BY35)*$BW$61*1/$C35)+IF(DS35=0,0,($CA35-$CB35-$CC35)*$CA$61*1/$C35)+IF(DT35=0,0,($CE35-$CF35-$CG35)*$CE$61*1/$C35)+IF(DU35=0,0,($CI35-$CJ35-$CK35)*$CI$61*1/$C35)+IF(DV35=0,0,($CM35-$CN35-$CO35)*$CM$61*1/$C35)+IF(DW35=0,0,($CQ35-$CR35-$CS35)*$CQ$61*1/$C35)+IF(DX35=0,0,($CU35-$CV35-$CW35)*$CU$61*1/$C35) -> 1535298.278 | DZ35: =D35-E35+(G35-H35-I35)*G$61+(K35-L35-M35)*K$61+(O35-P35-Q35)*O$61+(S35-T35-U35)*S$61+(W35-X35-Y35)*W$61+(AA35-AB35-AC35)*AA$61+(AE35-AF35-AG35)*AE$61+(AI35-AJ35-AK35)*AI$61+(AM35-AN35-AO35)*AM$61+(AQ35-AR35-AS35)*$AQ$61+(AU35-AV35-AW35)*$AU$61+(AY35-AZ35-BA35)*$AY$61+(BC35-BD35-BE35)*$BC$61+(BG35-BH35-BI35)*$BG$61+(BK35-BL35-BM35)*$BK$61+(BO35-BP35-BQ35)*$BO$61+(BS35-BT35-BU35)*$BS$61+(BW35-BX35-BY35)*$BW$61+(CA35-CB35-CC35)*$CA$61+(CE35-CF35-CG35)*$CE$61+(CI35-CJ35-CK35)*$CI$61+(CM35-CN35-CO35)*$CM$61+(CQ35-CR35-CS35)*$CQ$61+(CU35-CV35-CW35)*$CU$61 -> 64102397.23 | EA35: 18043448.88 | EB35: =(D35-E35)*CZ35+((G35-H35-(I35-J35))*G$61)*DA35+((K35-L35-(M35-N35))*K$61)*DB35+((O35-P35-(Q35-R35))*O$61)*DC35+((S35-T35-(U35-V35))*S$61)*DD35+((W35-X35-(Y35-Z35))*W$61)*DE35+((AA35-AB35-(AC35-AD35))*AA$61)*DF35+((AE35-AF35-(AG35-AH35))*AE$61)*DG35+((AI35-AJ35-(AK35-AL35))*AI$61)*DH35+((AM35-AN35-(AO35-AP35))*$AM$61)*DI35+((AQ35-AR35-(AS35-AT35))*$AQ$61)*DJ35+((AU35-AV35-(AW35-AX35))*$AU$61)*DK35+((AY35-AZ35-(BA35-BB35))*$AY$61)*DL35+((BC35-BD35-(BE35-BF35))*$BC$61)*DM35+((BG35-BH35-(BI35-BJ35))*$BG$61)*DN35+((BK35-BL35-(BM35-BN35))*$BK$61)*DO35+((BO35-BP35-(BQ35-BR35))*$BO$61)*DP35+((BS35-BT35-(BU35-BV35))*$BS$61)*DQ35+((BW35-BX35-(BY35-BZ35))*$BW$61)*DR35+((CA35-CB35-(CC35-CD35))*$CA$61)*DS35+((CE35-CF35-(CG35-CH35))*$CE$61)*DT35+((CI35-CJ35-(CK35-CL35))*$CI$61)*DU35+((CM35-CN35-(CO35-CP35))*$CM$61)*DV35+((CQ35-CR35-(CS35-CT35))*$CQ$61)*DW35+((CU35-CV35-(CW35-CX35))*$CU$61)*DX35 -> 29056816.49 | EC35: =(DZ35-EA35)*1/C35 -> 1535298.278 | ED35: =IF((1-($FC$2-$CY35)/$C35)>0,(1-($FC$2-$CY35)/$C35),0) -> 0 | EE35: 0.1833333333 | EF35: 0.2166666667 | EG35: 0.25 | EH35: 0.2833333333 | EI35: 0.3166666667 | EJ35: 0.35 | EK35: 0.3833333333 | EL35: 0.4166666667 | EM35: 0.45 | EN35: 0.4833333333 | EO35: 0.5166666667 | EP35: 0.55 | EQ35: 0.5833333333 | ER35: 0.6166666667 | ES35: 0.65 | ET35: 0.6833333333 | EU35: 0.7166666667 | EV35: 0.75 | EW35: 0.7833333333 | EX35: 0.8166666667 | EY35: 0.85 | EZ35: 0.8833333333 | FA35: 0.9166666667 | FB35: 0.95 | FC35: =IF(ED35=0,0,($D35-$E35)*1/$C35)+IF(EE35=0,0,($G35-$H35-$I35)*$G$61*1/$C35)+IF(EF35=0,0,($K35-$L35-$M35)*$K$61*1/$C35)+IF(EG35=0,0,($O35-$P35-$Q35)*$O$61*1/$C35)+IF(EH35=0,0,($S35-$T35-$U35)*$S$61*1/$C35)+IF(EI35=0,0,($W35-$X35-$Y35)*$W$61*1/$C35)+IF(EJ35=0,0,($AA35-$AB35-$AC35)*$AA$61*1/$C35)+IF(EK35=0,0,($AE35-$AF35-$AG35)*$AE$61*1/$C35)+IF(EL35=0,0,($AI35-$AJ35-$AK35)*$AI$61*1/$C35)+IF(EM35=0,0,($AM35-$AN35-$AO35)*$AM$61*1/$C35)+IF(EN35=0,0,($AQ35-$AR35-$AS35)*$AQ$61*1/$C35)+IF(EO35=0,0,($AU35-$AV35-$AW35)*$AU$61*1/$C35)+IF(EP35=0,0,($AY35-$AZ35-$BA35)*$AY$61*1/$C35)+IF(EQ35=0,0,($BC35-$BD35-$BE35)*$BC$61*1/$C35)+IF(ER35=0,0,($BG35-$BH35-$BI35)*$BG$61*1/$C35)+IF(ES35=0,0,($BK35-$BL35-$BM35)*$BK$61*1/$C35)+IF(ET35=0,0,($BO35-$BP35-$BQ35)*$BO$61*1/$C35)+IF(EU35=0,0,($BS35-$BT35-$BU35)*$BS$61*1/$C35)+IF(EV35=0,0,($BW35-$BX35-$BY35)*$BW$61*1/$C35)+IF(EW35=0,0,($CA35-$CB35-$CC35)*$CA$61*1/$C35)+IF(EX35=0,0,($CE35-$CF35-$CG35)*$CE$61*1/$C35)+IF(EY35=0,0,($CI35-$CJ35-$CK35)*$CI$61*1/$C35)+IF(EZ35=0,0,($CM35-$CN35-$CO35)*$CM$61*1/$C35)+IF(FA35=0,0,($CQ35-$CR35-$CS35)*$CQ$61*1/$C35)+IF(FB35=0,0,($CU35-$CV35-$CW35)*$CU$61*1/$C35) -> 1535298.278 | FD35: =IF((1-($GC$2-$CY35)/$C35)>0,(1-($GC$2-$CY35)/$C35),0) -> 0 | FE35: 0.15 | FF35: 0.1833333333 | FG35: 0.2166666667 | FH35: 0.25 | FI35: 0.2833333333 | FJ35: 0.3166666667 | FK35: 0.35 | FL35: 0.3833333333 | FM35: 0.4166666667 | FN35: 0.45 | FO35: 0.4833333333 | FP35: 0.5166666667 | FQ35: 0.55 | FR35: 0.5833333333 | FS35: 0.6166666667 | FT35: 0.65 | FU35: 0.6833333333 | FV35: 0.7166666667 | FW35: 0.75 | FX35: 0.7833333333 | FY35: 0.8166666667 | FZ35: 0.85 | GA35: 0.8833333333 | GB35: 0.9166666667 | GC35: =IF(FD35=0,0,($D35-$E35)*1/$C35)+IF(FE35=0,0,($G35-$H35-$I35)*$G$61*1/$C35)+IF(FF35=0,0,($K35-$L35-$M35)*$K$61*1/$C35)+IF(FG35=0,0,($O35-$P35-$Q35)*$O$61*1/$C35)+IF(FH35=0,0,($S35-$T35-$U35)*$S$61*1/$C35)+IF(FI35=0,0,($W35-$X35-$Y35)*$W$61*1/$C35)+IF(FJ35=0,0,($AA35-$AB35-$AC35)*$AA$61*1/$C35)+IF(FK35=0,0,($AE35-$AF35-$AG35)*$AE$61*1/$C35)+IF(FL35=0,0,($AI35-$AJ35-$AK35)*$AI$61*1/$C35)+IF(FM35=0,0,($AM35-$AN35-$AO35)*$AM$61*1/$C35)+IF(FN35=0,0,($AQ35-$AR35-$AS35)*$AQ$61*1/$C35)+IF(FO35=0,0,($AU35-$AV35-$AW35)*$AU$61*1/$C35)+IF(FP35=0,0,($AY35-$AZ35-$BA35)*$AY$61*1/$C35)+IF(FQ35=0,0,($BC35-$BD35-$BE35)*$BC$61*1/$C35)+IF(FR35=0,0,($BG35-$BH35-$BI35)*$BG$61*1/$C35)+IF(FS35=0,0,($BK35-$BL35-$BM35)*$BK$61*1/$C35)+IF(FT35=0,0,($BO35-$BP35-$BQ35)*$BO$61*1/$C35)+IF(FU35=0,0,($BS35-$BT35-$BU35)*$BS$61*1/$C35)+IF(FV35=0,0,($BW35-$BX35-$BY35)*$BW$61*1/$C35)+IF(FW35=0,0,($CA35-$CB35-$CC35)*$CA$61*1/$C35)+IF(FX35=0,0,($CE35-$CF35-$CG35)*$CE$61*1/$C35)+IF(FY35=0,0,($CI35-$CJ35-$CK35)*$CI$61*1/$C35)+IF(FZ35=0,0,($CM35-$CN35-$CO35)*$CM$61*1/$C35)+IF(GA35=0,0,($CQ35-$CR35-$CS35)*$CQ$61*1/$C35)+IF(GB35=0,0,($CU35-$CV35-$CW35)*$CU$61*1/$C35) -> 1535298.278 | GD35: =IF((1-($HC$2-$CY35)/$C35)>0,(1-($HC$2-$CY35)/$C35),0) -> 0 | GE35: 0.1166666667 | GF35: 0.15 | GG35: 0.1833333333 | GH35: 0.2166666667 | GI35: 0.25 | GJ35: 0.2833333333 | GK35: 0.3166666667 | GL35: 0.35 | GM35: 0.3833333333 | GN35: 0.4166666667 | GO35: 0.45 | GP35: 0.4833333333 | GQ35: 0.5166666667 | GR35: 0.55 | GS35: 0.5833333333 | GT35: 0.6166666667 | GU35: 0.65 | GV35: 0.6833333333 | GW35: 0.7166666667 | GX35: 0.75 | GY35: 0.7833333333 | GZ35: 0.8166666667 | HA35: 0.85 | HB35: 0.8833333333 | HC35: =IF(GD35=0,0,($D35-$E35)*1/$C35)+IF(GE35=0,0,($G35-$H35-$I35)*$G$61*1/$C35)+IF(GF35=0,0,($K35-$L35-$M35)*$K$61*1/$C35)+IF(GG35=0,0,($O35-$P35-$Q35)*$O$61*1/$C35)+IF(GH35=0,0,($S35-$T35-$U35)*$S$61*1/$C35)+IF(GI35=0,0,($W35-$X35-$Y35)*$W$61*1/$C35)+IF(GJ35=0,0,($AA35-$AB35-$AC35)*$AA$61*1/$C35)+IF(GK35=0,0,($AE35-$AF35-$AG35)*$AE$61*1/$C35)+IF(GL35=0,0,($AI35-$AJ35-$AK35)*$AI$61*1/$C35)+IF(GM35=0,0,($AM35-$AN35-$AO35)*$AM$61*1/$C35)+IF(GN35=0,0,($AQ35-$AR35-$AS35)*$AQ$61*1/$C35)+IF(GO35=0,0,($AU35-$AV35-$AW35)*$AU$61*1/$C35)+IF(GP35=0,0,($AY35-$AZ35-$BA35)*$AY$61*1/$C35)+IF(GQ35=0,0,($BC35-$BD35-$BE35)*$BC$61*1/$C35)+IF(GR35=0,0,($BG35-$BH35-$BI35)*$BG$61*1/$C35)+IF(GS35=0,0,($BK35-$BL35-$BM35)*$BK$61*1/$C35)+IF(GT35=0,0,($BO35-$BP35-$BQ35)*$BO$61*1/$C35)+IF(GU35=0,0,($BS35-$BT35-$BU35)*$BS$61*1/$C35)+IF(GV35=0,0,($BW35-$BX35-$BY35)*$BW$61*1/$C35)+IF(GW35=0,0,($CA35-$CB35-$CC35)*$CA$61*1/$C35)+IF(GX35=0,0,($CE35-$CF35-$CG35)*$CE$61*1/$C35)+IF(GY35=0,0,($CI35-$CJ35-$CK35)*$CI$61*1/$C35)+IF(GZ35=0,0,($CM35-$CN35-$CO35)*$CM$61*1/$C35)+IF(HA35=0,0,($CQ35-$CR35-$CS35)*$CQ$61*1/$C35)+IF(HB35=0,0,($CU35-$CV35-$CW35)*$CU$61*1/$C35) -> 1535298.278 | HD35: =IF((1-($IC$2-$CY35)/$C35)>0,(1-($IC$2-$CY35)/$C35),0) -> 0 | HE35: 0.08333333333 | HF35: 0.1166666667 | HG35: 0.15 | HH35: 0.1833333333 | HI35: 0.2166666667 | HJ35: 0.25 | HK35: 0.2833333333 | HL35: 0.3166666667 | HM35: 0.35 | HN35: 0.3833333333 | HO35: 0.4166666667 | HP35: 0.45 | HQ35: 0.4833333333 | HR35: 0.5166666667 | HS35: 0.55 | HT35: 0.5833333333 | HU35: 0.6166666667 | HV35: 0.65 | HW35: 0.6833333333 | HX35: 0.7166666667 | HY35: 0.75 | HZ35: 0.7833333333 | IA35: 0.8166666667 | IB35: 0.85 | IC35: 1535298.278 | IE35: =DY35-FC35 -> 0 | IF35: =FC35-GC35 -> 0 | IG35: =GC35-HC35 -> 0 | IH35: =HC35-IC35 -> 0
B36: Otros equipos del sistema de distribución | FC36: 0 | GC36: 0 | HC36: 0 | IC36: 0 | IE36: 0 | IF36: 0 | IG36: 0 | IH36: 0
B37: Otros equipos del sistema de Distribución | C37: 10 | D37: 419003.6486 | E37: 0 | F37: 47721.65246 | G37: 50996.05 | H37: 0 | I37: 0 | J37: 0 | K37: 0 | L37: 0 | M37: 0 | N37: 0 | O37: 0 | P37: 0 | Q37: 0 | R37: 0 | S37: 0 | T37: 0 | U37: 0 | V37: 0 | W37: 32333.32 | X37: 0 | Y37: 0 | Z37: 0 | AA37: 92602.96 | AB37: 0 | AC37: 0 | AD37: 0 | AE37: 57320.06 | AF37: 0 | AG37: 0 | AH37: 0 | AI37: 608397.24 | AJ37: 0 | AK37: 0 | AL37: 0 | AM37: 155566.77 | AN37: 5960.97 | AO37: 0 | AP37: 0 | AQ37: 91593.78 | AR37: 0 | AS37: 0 | AT37: 0 | AU37: 761499.12 | AV37: 0 | AW37: 0 | AX37: 0 | AY37: 279864.82 | AZ37: 0 | BA37: 0 | BB37: 0 | BC37: 47003.75 | BD37: 0 | BE37: 0 | BF37: 0 | BG37: 48039.09 | BH37: 0 | BI37: 0 | BJ37: 0 | BK37: 62116.02 | BL37: 0 | BM37: 0 | BN37: 0 | BO37: 46262.67 | BP37: 0 | BQ37: 0 | BR37: 0 | BS37: 505432.72 | BT37: 976.29 | BU37: 0 | BV37: 0 | BW37: 353159.95 | BX37: 2462.85 | BY37: 0 | BZ37: 0 | CA37: 2496707.47 | CB37: 2321.25 | CC37: 0 | CD37: 0 | CE37: 4549892.72 | CF37: 6994.68 | CG37: 0 | CH37: 0 | CI37: 4179355.1 | CJ37: 0 | CM37: 4339263.36 | CN37: 25742.23 | CQ37: 3970441.75 | CR37: 12097.68 | CU37: 2715067.06 | CV37: 9874.35 | CY37: =IF(D37=0,0,2001-(D37-F37)*C37/D37) -> 1992.138932 | CZ37: =IF((1-($DY$2-$CY37)/$C37)>0,(1-($DY$2-$CY37)/$C37),0) -> 0 | DA37: =IF((1-($DY$2-G$2)/$C37)>0,(1-($DY$2-G$2)/$C37),0) -> 0 | DB37: =IF((1-($DY$2-K$2)/$C37)>0,(1-($DY$2-K$2)/$C37),0) -> 0 | DC37: =IF((1-($DY$2-O$2)/$C37)>0,(1-($DY$2-O$2)/$C37),0) -> 0 | DD37: =IF((1-($DY$2-S$2)/$C37)>0,(1-($DY$2-S$2)/$C37),0) -> 0 | DE37: =IF((1-($DY$2-W$2)/$C37)>0,(1-($DY$2-W$2)/$C37),0) -> 0 | DF37: =IF((1-($DY$2-AA$2)/$C37)>0,(1-($DY$2-AA$2)/$C37),0) -> 0 | DG37: =IF((1-($DY$2-AE$2)/$C37)>0,(1-($DY$2-AE$2)/$C37),0) -> 0 | DH37: =IF((1-($DY$2-AI$2)/$C37)>0,(1-($DY$2-AI$2)/$C37),0) -> 0 | DI37: =IF((1-($DY$2-AM$2)/$C37)>0,(1-($DY$2-AM$2)/$C37),0) -> 0 | DJ37: =IF((1-($DY$2-AQ$2)/$C37)>0,(1-($DY$2-AQ$2)/$C37),0) -> 0 | DK37: =IF((1-($DY$2-AU$2)/$C37)>0,(1-($DY$2-AU$2)/$C37),0) -> 0 | DL37: =IF((1-($DY$2-AY$2)/$C37)>0,(1-($DY$2-AY$2)/$C37),0) -> 0 | DM37: =IF((1-($DY$2-BC$2)/$C37)>0,(1-($DY$2-BC$2)/$C37),0) -> 0 | DN37: =IF((1-($DY$2-BG$2)/$C37)>0,(1-($DY$2-BG$2)/$C37),0) -> 0 | DO37: =IF((1-($DY$2-BK$2)/$C37)>0,(1-($DY$2-BK$2)/$C37),0) -> 0.05 | DP37: =IF((1-($DY$2-BO$2)/$C37)>0,(1-($DY$2-BO$2)/$C37),0) -> 0.15 | DQ37: =IF((1-($DY$2-BS$2)/$C37)>0,(1-($DY$2-BS$2)/$C37),0) -> 0.25 | DR37: =IF((1-($DY$2-BW$2)/$C37)>0,(1-($DY$2-BW$2)/$C37),0) -> 0.35 | DS37: =IF((1-($DY$2-CA$2)/$C37)>0,(1-($DY$2-CA$2)/$C37),0) -> 0.45 | DT37: =IF((1-($DY$2-CE$2)/$C37)>0,(1-($DY$2-CE$2)/$C37),0) -> 0.55 | DU37: =IF((1-($DY$2-CI$2)/$C37)>0,(1-($DY$2-CI$2)/$C37),0) -> 0.65 | DV37: =IF((1-($DY$2-CM$2)/$C37)>0,(1-($DY$2-CM$2)/$C37),0) -> 0.75 | DW37: =IF((1-($DY$2-CQ$2)/$C37)>0,(1-($DY$2-CQ$2)/$C37),0) -> 0.85 | DX37: =IF((1-($DY$2-CU$2)/$C37)>0,(1-($DY$2-CU$2)/$C37),0) -> 0.95 | DY37: =IF(CZ37=0,0,($D37-$E37)*1/$C37)+IF(DA37=0,0,($G37-$H37-$I37)*$G$61*1/$C37)+IF(DB37=0,0,($K37-$L37-$M37)*$K$61*1/$C37)+IF(DC37=0,0,($O37-$P37-$Q37)*$O$61*1/$C37)+IF(DD37=0,0,($S37-$T37-$U37)*$S$61*1/$C37)+IF(DE37=0,0,($W37-$X37-$Y37)*$W$61*1/$C37)+IF(DF37=0,0,($AA37-$AB37-$AC37)*$AA$61*1/$C37)+IF(DG37=0,0,($AE37-$AF37-$AG37)*$AE$61*1/$C37)+IF(DH37=0,0,($AI37-$AJ37-$AK37)*$AI$61*1/$C37)+IF(DI37=0,0,($AM37-$AN37-$AO37)*$AM$61*1/$C37)+IF(DJ37=0,0,($AQ37-$AR37-$AS37)*$AQ$61*1/$C37)+IF(DK37=0,0,($AU37-$AV37-$AW37)*$AU$61*1/$C37)+IF(DL37=0,0,($AY37-$AZ37-$BA37)*$AY$61*1/$C37)+IF(DM37=0,0,($BC37-$BD37-$BE37)*$BC$61*1/$C37)+IF(DN37=0,0,($BG37-$BH37-$BI37)*$BG$61*1/$C37)+IF(DO37=0,0,($BK37-$BL37-$BM37)*$BK$61*1/$C37)+IF(DP37=0,0,($BO37-$BP37-$BQ37)*$BO$61*1/$C37)+IF(DQ37=0,0,($BS37-$BT37-$BU37)*$BS$61*1/$C37)+IF(DR37=0,0,($BW37-$BX37-$BY37)*$BW$61*1/$C37)+IF(DS37=0,0,($CA37-$CB37-$CC37)*$CA$61*1/$C37)+IF(DT37=0,0,($CE37-$CF37-$CG37)*$CE$61*1/$C37)+IF(DU37=0,0,($CI37-$CJ37-$CK37)*$CI$61*1/$C37)+IF(DV37=0,0,($CM37-$CN37-$CO37)*$CM$61*1/$C37)+IF(DW37=0,0,($CQ37-$CR37-$CS37)*$CQ$61*1/$C37)+IF(DX37=0,0,($CU37-$CV37-$CW37)*$CU$61*1/$C37) -> 2059974.911 | DZ37: =D37-E37+(G37-H37-I37)*G$61+(K37-L37-M37)*K$61+(O37-P37-Q37)*O$61+(S37-T37-U37)*S$61+(W37-X37-Y37)*W$61+(AA37-AB37-AC37)*AA$61+(AE37-AF37-AG37)*AE$61+(AI37-AJ37-AK37)*AI$61+(AM37-AN37-AO37)*AM$61+(AQ37-AR37-AS37)*$AQ$61+(AU37-AV37-AW37)*$AU$61+(AY37-AZ37-BA37)*$AY$61+(BC37-BD37-BE37)*$BC$61+(BG37-BH37-BI37)*$BG$61+(BK37-BL37-BM37)*$BK$61+(BO37-BP37-BQ37)*$BO$61+(BS37-BT37-BU37)*$BS$61+(BW37-BX37-BY37)*$BW$61+(CA37-CB37-CC37)*$CA$61+(CE37-CF37-CG37)*$CE$61+(CI37-CJ37-CK37)*$CI$61+(CM37-CN37-CO37)*$CM$61+(CQ37-CR37-CS37)*$CQ$61+(CU37-CV37-CW37)*$CU$61 -> 22884101.11 | EA37: 2284352.006 | EB37: =(D37-E37)*CZ37+((G37-H37-(I37-J37))*G$61)*DA37+((K37-L37-(M37-N37))*K$61)*DB37+((O37-P37-(Q37-R37))*O$61)*DC37+((S37-T37-(U37-V37))*S$61)*DD37+((W37-X37-(Y37-Z37))*W$61)*DE37+((AA37-AB37-(AC37-AD37))*AA$61)*DF37+((AE37-AF37-(AG37-AH37))*AE$61)*DG37+((AI37-AJ37-(AK37-AL37))*AI$61)*DH37+((AM37-AN37-(AO37-AP37))*$AM$61)*DI37+((AQ37-AR37-(AS37-AT37))*$AQ$61)*DJ37+((AU37-AV37-(AW37-AX37))*$AU$61)*DK37+((AY37-AZ37-(BA37-BB37))*$AY$61)*DL37+((BC37-BD37-(BE37-BF37))*$BC$61)*DM37+((BG37-BH37-(BI37-BJ37))*$BG$61)*DN37+((BK37-BL37-(BM37-BN37))*$BK$61)*DO37+((BO37-BP37-(BQ37-BR37))*$BO$61)*DP37+((BS37-BT37-(BU37-BV37))*$BS$61)*DQ37+((BW37-BX37-(BY37-BZ37))*$BW$61)*DR37+((CA37-CB37-(CC37-CD37))*$CA$61)*DS37+((CE37-CF37-(CG37-CH37))*$CE$61)*DT37+((CI37-CJ37-(CK37-CL37))*$CI$61)*DU37+((CM37-CN37-(CO37-CP37))*$CM$61)*DV37+((CQ37-CR37-(CS37-CT37))*$CQ$61)*DW37+((CU37-CV37-(CW37-CX37))*$CU$61)*DX37 -> 14046864.78 | EC37: =(DZ37-EA37)*1/C37 -> 2059974.911 | ED37: =IF((1-($FC$2-$CY37)/$C37)>0,(1-($FC$2-$CY37)/$C37),0) -> 0 | EE37: =IF((1-($FC$2-EE$2)/$C37)>0,(1-($FC$2-EE$2)/$C37),0) -> 0 | EF37: 0 | EG37: 0 | EH37: 0 | EI37: 0 | EJ37: 0 | EK37: 0 | EL37: 0 | EM37: 0 | EN37: 0 | EO37: =IF((1-($FC$2-EO$2)/$C37)>0,(1-($FC$2-EO$2)/$C37),0) -> 0 | EP37: 0 | EQ37: 0 | ER37: 0 | ES37: 0 | ET37: 0.05 | EU37: 0.15 | EV37: 0.25 | EW37: 0.35 | EX37: 0.45 | EY37: 0.55 | EZ37: 0.65 | FA37: 0.75 | FB37: 0.85 | FC37: =IF(ED37=0,0,($D37-$E37)*1/$C37)+IF(EE37=0,0,($G37-$H37-$I37)*$G$61*1/$C37)+IF(EF37=0,0,($K37-$L37-$M37)*$K$61*1/$C37)+IF(EG37=0,0,($O37-$P37-$Q37)*$O$61*1/$C37)+IF(EH37=0,0,($S37-$T37-$U37)*$S$61*1/$C37)+IF(EI37=0,0,($W37-$X37-$Y37)*$W$61*1/$C37)+IF(EJ37=0,0,($AA37-$AB37-$AC37)*$AA$61*1/$C37)+IF(EK37=0,0,($AE37-$AF37-$AG37)*$AE$61*1/$C37)+IF(EL37=0,0,($AI37-$AJ37-$AK37)*$AI$61*1/$C37)+IF(EM37=0,0,($AM37-$AN37-$AO37)*$AM$61*1/$C37)+IF(EN37=0,0,($AQ37-$AR37-$AS37)*$AQ$61*1/$C37)+IF(EO37=0,0,($AU37-$AV37-$AW37)*$AU$61*1/$C37)+IF(EP37=0,0,($AY37-$AZ37-$BA37)*$AY$61*1/$C37)+IF(EQ37=0,0,($BC37-$BD37-$BE37)*$BC$61*1/$C37)+IF(ER37=0,0,($BG37-$BH37-$BI37)*$BG$61*1/$C37)+IF(ES37=0,0,($BK37-$BL37-$BM37)*$BK$61*1/$C37)+IF(ET37=0,0,($BO37-$BP37-$BQ37)*$BO$61*1/$C37)+IF(EU37=0,0,($BS37-$BT37-$BU37)*$BS$61*1/$C37)+IF(EV37=0,0,($BW37-$BX37-$BY37)*$BW$61*1/$C37)+IF(EW37=0,0,($CA37-$CB37-$CC37)*$CA$61*1/$C37)+IF(EX37=0,0,($CE37-$CF37-$CG37)*$CE$61*1/$C37)+IF(EY37=0,0,($CI37-$CJ37-$CK37)*$CI$61*1/$C37)+IF(EZ37=0,0,($CM37-$CN37-$CO37)*$CM$61*1/$C37)+IF(FA37=0,0,($CQ37-$CR37-$CS37)*$CQ$61*1/$C37)+IF(FB37=0,0,($CU37-$CV37-$CW37)*$CU$61*1/$C37) -> 2054410.918 | FD37: =IF((1-($GC$2-$CY37)/$C37)>0,(1-($GC$2-$CY37)/$C37),0) -> 0 | FE37: =IF((1-($GC$2-FE$2)/$C37)>0,(1-($GC$2-FE$2)/$C37),0) -> 0 | FF37: 0 | FG37: 0 | FH37: 0 | FI37: 0 | FJ37: 0 | FK37: 0 | FL37: 0 | FM37: 0 | FN37: 0 | FO37: =IF((1-($GC$2-FO$2)/$C37)>0,(1-($GC$2-FO$2)/$C37),0) -> 0 | FP37: 0 | FQ37: 0 | FR37: 0 | FS37: 0 | FT37: 0 | FU37: 0.05 | FV37: 0.15 | FW37: 0.25 | FX37: 0.35 | FY37: 0.45 | FZ37: =IF((1-($GC$2-FZ$2)/$C37)>0,(1-($GC$2-FZ$2)/$C37),0) -> 0.55 | GA37: 0.65 | GB37: 0.75 | GC37: =IF(FD37=0,0,($D37-$E37)*1/$C37)+IF(FE37=0,0,($G37-$H37-$I37)*$G$61*1/$C37)+IF(FF37=0,0,($K37-$L37-$M37)*$K$61*1/$C37)+IF(FG37=0,0,($O37-$P37-$Q37)*$O$61*1/$C37)+IF(FH37=0,0,($S37-$T37-$U37)*$S$61*1/$C37)+IF(FI37=0,0,($W37-$X37-$Y37)*$W$61*1/$C37)+IF(FJ37=0,0,($AA37-$AB37-$AC37)*$AA$61*1/$C37)+IF(FK37=0,0,($AE37-$AF37-$AG37)*$AE$61*1/$C37)+IF(FL37=0,0,($AI37-$AJ37-$AK37)*$AI$61*1/$C37)+IF(FM37=0,0,($AM37-$AN37-$AO37)*$AM$61*1/$C37)+IF(FN37=0,0,($AQ37-$AR37-$AS37)*$AQ$61*1/$C37)+IF(FO37=0,0,($AU37-$AV37-$AW37)*$AU$61*1/$C37)+IF(FP37=0,0,($AY37-$AZ37-$BA37)*$AY$61*1/$C37)+IF(FQ37=0,0,($BC37-$BD37-$BE37)*$BC$61*1/$C37)+IF(FR37=0,0,($BG37-$BH37-$BI37)*$BG$61*1/$C37)+IF(FS37=0,0,($BK37-$BL37-$BM37)*$BK$61*1/$C37)+IF(FT37=0,0,($BO37-$BP37-$BQ37)*$BO$61*1/$C37)+IF(FU37=0,0,($BS37-$BT37-$BU37)*$BS$61*1/$C37)+IF(FV37=0,0,($BW37-$BX37-$BY37)*$BW$61*1/$C37)+IF(FW37=0,0,($CA37-$CB37-$CC37)*$CA$61*1/$C37)+IF(FX37=0,0,($CE37-$CF37-$CG37)*$CE$61*1/$C37)+IF(FY37=0,0,($CI37-$CJ37-$CK37)*$CI$61*1/$C37)+IF(FZ37=0,0,($CM37-$CN37-$CO37)*$CM$61*1/$C37)+IF(GA37=0,0,($CQ37-$CR37-$CS37)*$CQ$61*1/$C37)+IF(GB37=0,0,($CU37-$CV37-$CW37)*$CU$61*1/$C37) -> 2050385.766 | GD37: =IF((1-($HC$2-$CY37)/$C37)>0,(1-($HC$2-$CY37)/$C37),0) -> 0 | GE37: =IF((1-($HC$2-GE$2)/$C37)>0,(1-($HC$2-GE$2)/$C37),0) -> 0 | GF37: 0 | GG37: 0 | GH37: 0 | GI37: 0 | GJ37: 0 | GK37: 0 | GL37: 0 | GM37: 0 | GN37: 0 | GO37: =IF((1-($HC$2-GO$2)/$C37)>0,(1-($HC$2-GO$2)/$C37),0) -> 0 | GP37: 0 | GQ37: 0 | GR37: 0 | GS37: 0 | GT37: 0 | GU37: 0 | GV37: 0.05 | GW37: 0.15 | GX37: 0.25 | GY37: 0.35 | GZ37: =IF((1-($HC$2-GZ$2)/$C37)>0,(1-($HC$2-GZ$2)/$C37),0) -> 0.45 | HA37: 0.55 | HB37: 0.65 | HC37: =IF(GD37=0,0,($D37-$E37)*1/$C37)+IF(GE37=0,0,($G37-$H37-$I37)*$G$61*1/$C37)+IF(GF37=0,0,($K37-$L37-$M37)*$K$61*1/$C37)+IF(GG37=0,0,($O37-$P37-$Q37)*$O$61*1/$C37)+IF(GH37=0,0,($S37-$T37-$U37)*$S$61*1/$C37)+IF(GI37=0,0,($W37-$X37-$Y37)*$W$61*1/$C37)+IF(GJ37=0,0,($AA37-$AB37-$AC37)*$AA$61*1/$C37)+IF(GK37=0,0,($AE37-$AF37-$AG37)*$AE$61*1/$C37)+IF(GL37=0,0,($AI37-$AJ37-$AK37)*$AI$61*1/$C37)+IF(GM37=0,0,($AM37-$AN37-$AO37)*$AM$61*1/$C37)+IF(GN37=0,0,($AQ37-$AR37-$AS37)*$AQ$61*1/$C37)+IF(GO37=0,0,($AU37-$AV37-$AW37)*$AU$61*1/$C37)+IF(GP37=0,0,($AY37-$AZ37-$BA37)*$AY$61*1/$C37)+IF(GQ37=0,0,($BC37-$BD37-$BE37)*$BC$61*1/$C37)+IF(GR37=0,0,($BG37-$BH37-$BI37)*$BG$61*1/$C37)+IF(GS37=0,0,($BK37-$BL37-$BM37)*$BK$61*1/$C37)+IF(GT37=0,0,($BO37-$BP37-$BQ37)*$BO$61*1/$C37)+IF(GU37=0,0,($BS37-$BT37-$BU37)*$BS$61*1/$C37)+IF(GV37=0,0,($BW37-$BX37-$BY37)*$BW$61*1/$C37)+IF(GW37=0,0,($CA37-$CB37-$CC37)*$CA$61*1/$C37)+IF(GX37=0,0,($CE37-$CF37-$CG37)*$CE$61*1/$C37)+IF(GY37=0,0,($CI37-$CJ37-$CK37)*$CI$61*1/$C37)+IF(GZ37=0,0,($CM37-$CN37-$CO37)*$CM$61*1/$C37)+IF(HA37=0,0,($CQ37-$CR37-$CS37)*$CQ$61*1/$C37)+IF(HB37=0,0,($CU37-$CV37-$CW37)*$CU$61*1/$C37) -> 2005513.084 | HD37: =IF((1-($IC$2-$CY37)/$C37)>0,(1-($IC$2-$CY37)/$C37),0) -> 0 | HE37: =IF((1-($IC$2-HE$2)/$C37)>0,(1-($IC$2-HE$2)/$C37),0) -> 0 | HF37: 0 | HG37: 0 | HH37: 0 | HI37: 0 | HJ37: 0 | HK37: 0 | HL37: 0 | HM37: 0 | HN37: 0 | HO37: =IF((1-($IC$2-HO$2)/$C37)>0,(1-($IC$2-HO$2)/$C37),0) -> 0 | HP37: 0 | HQ37: 0 | HR37: 0 | HS37: 0 | HT37: 0 | HU37: 0 | HV37: 0 | HW37: 0.05 | HX37: 0.15 | HY37: 0.25 | HZ37: =IF((1-($IC$2-HZ$2)/$C37)>0,(1-($IC$2-HZ$2)/$C37),0) -> 0.35 | IA37: 0.45 | IB37: 0.55 | IC37: 1974156.837 | IE37: =DY37-FC37 -> 5563.992945 | IF37: =FC37-GC37 -> 4025.151912 | IG37: =GC37-HC37 -> 44872.68126 | IH37: =HC37-IC37 -> 31356.2478
B38: Equipos de transporte y carga | C38: 5 | D38: 91181.24899 | E38: 0 | F38: 88375.7564 | G38: 69500 | H38: 0 | I38: 0 | J38: 0 | K38: 54333 | L38: 0 | M38: 0 | N38: 0 | O38: 154614 | P38: 0 | Q38: 0 | R38: 0 | S38: 60572 | T38: 0 | U38: 0 | V38: 0 | W38: 0 | X38: 0 | Y38: 0 | Z38: 0 | AA38: 0 | AB38: 0 | AC38: 0 | AD38: 0 | AE38: 0 | AF38: 0 | AG38: 0 | AH38: 0 | AI38: 0 | AJ38: 0 | AK38: 0 | AL38: 0 | AM38: 0 | AN38: 0 | AO38: 0 | AP38: 0 | AQ38: 0 | AR38: 0 | AS38: 0 | AT38: 0 | AU38: 0 | AV38: 0 | AW38: 0 | AX38: 0 | AY38: 0 | AZ38: 0 | BA38: 0 | BB38: 0 | BC38: 0 | BD38: 0 | BE38: 0 | BF38: 0 | BG38: 0 | BH38: 0 | BI38: 0 | BJ38: 0 | BK38: 0 | BL38: 0 | BM38: 0 | BN38: 0 | BO38: 0 | BP38: 0 | BQ38: 0 | BR38: 0 | BS38: 0 | BT38: 0 | BU38: 0 | BV38: 0 | BW38: 0 | BX38: 0 | BY38: 0 | BZ38: 0 | CA38: 0 | CB38: 0 | CC38: 0 | CD38: 0 | CE38: 0 | CF38: 0 | CG38: 0 | CH38: 0 | CV38: 0 | CY38: 2000.846158 | CZ38: 0 | DA38: 0 | DB38: 0 | DC38: 0 | DD38: 0 | DE38: 0 | DF38: 0 | DG38: 0 | DH38: 0 | DI38: 0 | DJ38: 0 | DK38: 0 | DL38: 0 | DM38: 0 | DN38: 0 | DO38: 0 | DP38: 0 | DQ38: 0 | DR38: 0 | DS38: 0 | DT38: 0.1 | DU38: 0.3 | DV38: 0.5 | DW38: 0.7 | DX38: 0.9 | DY38: 0 | DZ38: 410167.86 | EA38: 410167.86 | EB38: 0 | EC38: 0 | ED38: 0 | EE38: 0 | EF38: 0 | EG38: 0 | EH38: 0 | EI38: 0 | EJ38: 0 | EK38: 0 | EL38: 0 | EM38: 0 | EN38: 0 | EO38: 0 | EP38: 0 | EQ38: 0 | ER38: 0 | ES38: 0 | ET38: 0 | EU38: 0 | EV38: 0 | EW38: 0 | EX38: 0 | EY38: 0.1 | EZ38: 0.3 | FA38: 0.5 | FB38: 0.7 | FC38: 0 | FD38: 0 | FE38: 0 | FF38: 0 | FG38: 0 | FH38: 0 | FI38: 0 | FJ38: 0 | FK38: 0 | FL38: 0 | FM38: 0 | FN38: 0 | FO38: 0 | FP38: 0 | FQ38: 0 | FR38: 0 | FS38: 0 | FT38: 0 | FU38: 0 | FV38: 0 | FW38: 0 | FX38: 0 | FY38: 0 | FZ38: 0.1 | GA38: 0.3 | GB38: 0.5 | GC38: 0 | GD38: 0 | GE38: 0 | GF38: 0 | GG38: 0 | GH38: 0 | GI38: 0 | GJ38: 0 | GK38: 0 | GL38: 0 | GM38: 0 | GN38: 0 | GO38: 0 | GP38: 0 | GQ38: 0 | GR38: 0 | GS38: 0 | GT38: 0 | GU38: 0 | GV38: 0 | GW38: 0 | GX38: 0 | GY38: 0 | GZ38: 0 | HA38: 0.1 | HB38: 0.3 | HC38: 0 | HD38: 0 | HE38: 0 | HF38: 0 | HG38: 0 | HH38: 0 | HI38: 0 | HJ38: 0 | HK38: 0 | HL38: 0 | HM38: 0 | HN38: 0 | HO38: 0 | HP38: 0 | HQ38: 0 | HR38: 0 | HS38: 0 | HT38: 0 | HU38: 0 | HV38: 0 | HW38: 0 | HX38: 0 | HY38: 0 | HZ38: 0 | IA38: 0 | IB38: 0.1 | IC38: 0 | IE38: 0 | IF38: 0 | IG38: 0 | IH38: 0
B39: Terrenos | C39: 1000 | D39: 62150.35974 | E39: 0 | F39: 62150.35974 | G39: 0 | H39: 0 | I39: 0 | J39: 0 | K39: 0 | L39: 0 | M39: 0 | N39: 0 | O39: 0 | P39: 0 | Q39: 0 | R39: 0 | S39: 0 | T39: 0 | U39: 0 | V39: 0 | W39: 0 | X39: 0 | Y39: 0 | Z39: 0 | AA39: 0 | AB39: 0 | AC39: 0 | AD39: 0 | AE39: 0 | AF39: 0 | AG39: 0 | AH39: 0 | AI39: 0 | AJ39: 0 | AK39: 0 | AL39: 0 | AM39: 0 | AN39: 0 | AO39: 0 | AP39: 0 | AQ39: 0 | AR39: 0 | AS39: 0 | AT39: 0 | AU39: 0 | AV39: 0 | AW39: 0 | AX39: 0 | AY39: 0 | AZ39: 0 | BA39: 0 | BB39: 0 | BC39: 0 | BD39: 0 | BE39: 0 | BF39: 0 | BG39: 0 | BH39: 0 | BI39: 0 | BJ39: 0 | BK39: 0 | BL39: 0 | BM39: 0 | BN39: 0 | BO39: 0 | BP39: 0 | BQ39: 0 | BR39: 0 | BS39: 0 | BT39: 0 | BU39: 0 | BV39: 0 | BW39: 0 | BX39: 0 | BY39: 0 | BZ39: 0 | CA39: 0 | CB39: 0 | CC39: 0 | CD39: 0 | CE39: 0 | CF39: 0 | CG39: 0 | CH39: 0 | CU39: 0 | CV39: 0 | CY39: 2001 | CZ39: 0.9755 | DA39: 0.9765 | DB39: 0.9775 | DC39: 0.9785 | DD39: 0.9795 | DE39: 0.9805 | DF39: 0.9815 | DG39: 0.9825 | DH39: 0.9835 | DI39: 0.9845 | DJ39: 0.9855 | DK39: 0.9865 | DL39: 0.9875 | DM39: 0.9885 | DN39: 0.9895 | DO39: 0.9905 | DP39: 0.9915 | DQ39: 0.9925 | DR39: 0.9935 | DS39: 0.9945 | DT39: 0.9955 | DU39: 0.9965 | DV39: 0.9975 | DW39: 0.9985 | DX39: 0.9995 | DY39: 62.15035974 | DZ39: 62150.35974 | EA39: 0 | EB39: 60627.67593 | EC39: 62.15035974 | ED39: 0.9745 | EE39: 0.9755 | EF39: 0.9765 | EG39: 0.9775 | EH39: 0.9785 | EI39: 0.9795 | EJ39: 0.9805 | EK39: 0.9815 | EL39: 0.9825 | EM39: 0.9835 | EN39: 0.9845 | EO39: 0.9855 | EP39: 0.9865 | EQ39: 0.9875 | ER39: 0.9885 | ES39: 0.9895 | ET39: 0.9905 | EU39: 0.9915 | EV39: 0.9925 | EW39: 0.9935 | EX39: 0.9945 | EY39: 0.9955 | EZ39: 0.9965 | FA39: 0.9975 | FB39: 0.9985 | FC39: 62.15035974 | FD39: 0.9735 | FE39: 0.9745 | FF39: 0.9755 | FG39: 0.9765 | FH39: 0.9775 | FI39: 0.9785 | FJ39: 0.9795 | FK39: 0.9805 | FL39: 0.9815 | FM39: 0.9825 | FN39: 0.9835 | FO39: 0.9845 | FP39: 0.9855 | FQ39: 0.9865 | FR39: 0.9875 | FS39: 0.9885 | FT39: 0.9895 | FU39: 0.9905 | FV39: 0.9915 | FW39: 0.9925 | FX39: 0.9935 | FY39: 0.9945 | FZ39: 0.9955 | GA39: 0.9965 | GB39: 0.9975 | GC39: 62.15035974 | GD39: 0.9725 | GE39: 0.9735 | GF39: 0.9745 | GG39: 0.9755 | GH39: 0.9765 | GI39: 0.9775 | GJ39: 0.9785 | GK39: 0.9795 | GL39: 0.9805 | GM39: 0.9815 | GN39: 0.9825 | GO39: 0.9835 | GP39: 0.9845 | GQ39: 0.9855 | GR39: 0.9865 | GS39: 0.9875 | GT39: 0.9885 | GU39: 0.9895 | GV39: 0.9905 | GW39: 0.9915 | GX39: 0.9925 | GY39: 0.9935 | GZ39: 0.9945 | HA39: 0.9955 | HB39: 0.9965 | HC39: 62.15035974 | HD39: 0.9715 | HE39: 0.9725 | HF39: 0.9735 | HG39: 0.9745 | HH39: 0.9755 | HI39: 0.9765 | HJ39: 0.9775 | HK39: 0.9785 | HL39: 0.9795 | HM39: 0.9805 | HN39: 0.9815 | HO39: 0.9825 | HP39: 0.9835 | HQ39: 0.9845 | HR39: 0.9855 | HS39: 0.9865 | HT39: 0.9875 | HU39: 0.9885 | HV39: 0.9895 | HW39: 0.9905 | HX39: 0.9915 | HY39: 0.9925 | HZ39: 0.9935 | IA39: 0.9945 | IB39: 0.9955 | IC39: 62.15035974 | IE39: 0 | IF39: 0 | IG39: 0 | IH39: 0
B40: Edificios y mejoras | C40: 40 | D40: 1977598.44 | E40: 0 | F40: 1916751.085 | G40: 18271 | H40: 0 | I40: 0 | J40: 0 | K40: 160233 | L40: 0 | M40: 0 | N40: 0 | O40: 35925 | P40: 0 | Q40: 0 | R40: 0 | S40: 83536.23 | T40: 0 | U40: 0 | V40: 0 | W40: 0 | X40: 0 | Y40: 0 | Z40: 0 | AA40: 0 | AB40: 0 | AC40: 0 | AD40: 0 | AE40: 0 | AF40: 0 | AG40: 0 | AH40: 0 | AI40: 0 | AJ40: 0 | AK40: 0 | AL40: 0 | AM40: 0 | AN40: 0 | AO40: 0 | AP40: 0 | AQ40: 0 | AR40: 0 | AS40: 0 | AT40: 0 | AU40: 0 | AV40: 0 | AW40: 0 | AX40: 0 | AY40: 0 | AZ40: 0 | BA40: 0 | BB40: 0 | BC40: 0 | BD40: 0 | BE40: 0 | BF40: 0 | BG40: 0 | BH40: 0 | BI40: 0 | BJ40: 0 | BK40: 0 | BL40: 0 | BM40: 0 | BN40: 0 | BO40: 0 | BP40: 0 | BQ40: 0 | BR40: 0 | BS40: 0 | BT40: 0 | BU40: 0 | BV40: 0 | BW40: 0 | BX40: 0 | BY40: 0 | BZ40: 0 | CA40: 0 | CB40: 0 | CC40: 0 | CD40: 0 | CE40: 0 | CF40: 0 | CG40: 0 | CH40: 0 | CV40: 0 | CY40: 1999.769268 | CZ40: 0.3567316938 | DA40: 0.4125 | DB40: 0.4375 | DC40: 0.4625 | DD40: 0.4875 | DE40: 0.5125 | DF40: 0.5375 | DG40: 0.5625 | DH40: 0.5875 | DI40: 0.6125 | DJ40: 0.6375 | DK40: 0.6625 | DL40: 0.6875 | DM40: 0.7125 | DN40: 0.7375 | DO40: 0.7625 | DP40: 0.7875 | DQ40: 0.8125 | DR40: 0.8375 | DS40: 0.8625 | DT40: 0.8875 | DU40: 0.9125 | DV40: 0.9375 | DW40: 0.9625 | DX40: 0.9875 | DY40: 56290.26838 | DZ40: 2251610.735 | EA40: 0 | EB40: 829626.6791 | EC40: 56290.26838 | ED40: 0.3317316938 | EE40: 0.3875 | EF40: 0.4125 | EG40: 0.4375 | EH40: 0.4625 | EI40: 0.4875 | EJ40: 0.5125 | EK40: 0.5375 | EL40: 0.5625 | EM40: 0.5875 | EN40: 0.6125 | EO40: 0.6375 | EP40: 0.6625 | EQ40: 0.6875 | ER40: 0.7125 | ES40: 0.7375 | ET40: 0.7625 | EU40: 0.7875 | EV40: 0.8125 | EW40: 0.8375 | EX40: 0.8625 | EY40: 0.8875 | EZ40: 0.9125 | FA40: 0.9375 | FB40: 0.9625 | FC40: 56290.26838 | FD40: 0.3067316938 | FE40: 0.3625 | FF40: 0.3875 | FG40: 0.4125 | FH40: 0.4375 | FI40: 0.4625 | FJ40: 0.4875 | FK40: 0.5125 | FL40: 0.5375 | FM40: 0.5625 | FN40: 0.5875 | FO40: 0.6125 | FP40: 0.6375 | FQ40: 0.6625 | FR40: 0.6875 | FS40: 0.7125 | FT40: 0.7375 | FU40: 0.7625 | FV40: 0.7875 | FW40: 0.8125 | FX40: 0.8375 | FY40: 0.8625 | FZ40: 0.8875 | GA40: 0.9125 | GB40: 0.9375 | GC40: 56290.26838 | GD40: 0.2817316938 | GE40: 0.3375 | GF40: 0.3625 | GG40: 0.3875 | GH40: 0.4125 | GI40: 0.4375 | GJ40: 0.4625 | GK40: 0.4875 | GL40: 0.5125 | GM40: 0.5375 | GN40: 0.5625 | GO40: 0.5875 | GP40: 0.6125 | GQ40: 0.6375 | GR40: 0.6625 | GS40: 0.6875 | GT40: 0.7125 | GU40: 0.7375 | GV40: 0.7625 | GW40: 0.7875 | GX40: 0.8125 | GY40: 0.8375 | GZ40: 0.8625 | HA40: 0.8875 | HB40: 0.9125 | HC40: 56290.26838 | HD40: 0.2567316938 | HE40: 0.3125 | HF40: 0.3375 | HG40: 0.3625 | HH40: 0.3875 | HI40: 0.4125 | HJ40: 0.4375 | HK40: 0.4625 | HL40: 0.4875 | HM40: 0.5125 | HN40: 0.5375 | HO40: 0.5625 | HP40: 0.5875 | HQ40: 0.6125 | HR40: 0.6375 | HS40: 0.6625 | HT40: 0.6875 | HU40: 0.7125 | HV40: 0.7375 | HW40: 0.7625 | HX40: 0.7875 | HY40: 0.8125 | HZ40: 0.8375 | IA40: 0.8625 | IB40: 0.8875 | IC40: 56290.26838 | IE40: 0 | IF40: 0 | IG40: 0 | IH40: 0
B41: Despachos de maniobra y SCADA | C41: 10 | D41: 0 | E41: 0 | F41: 0 | G41: 367074 | H41: 0 | I41: 0 | J41: 0 | K41: 197373 | L41: 0 | M41: 0 | N41: 0 | O41: 289814 | P41: 0 | Q41: 0 | R41: 0 | S41: 0 | T41: 0 | U41: 0 | V41: 0 | W41: 670306.23 | X41: 0 | Y41: 0 | Z41: 0 | AA41: 0 | AB41: 0 | AC41: 0 | AD41: 0 | AE41: 117338.7 | AF41: 0 | AG41: 0 | AH41: 0 | AI41: 3453882.81 | AJ41: 0 | AK41: 0 | AL41: 0 | AM41: 281793.6 | AN41: 0 | AO41: 0 | AP41: 0 | AQ41: 206232.2 | AR41: 0 | AS41: 0 | AT41: 0 | AU41: 0 | AV41: 0 | AW41: 0 | AX41: 0 | AY41: 226145.46 | AZ41: 0 | BA41: 0 | BB41: 0 | BC41: 1334510.33 | BD41: 0 | BE41: 0 | BF41: 0 | BG41: 1099767.12 | BH41: 31.77 | BI41: 0 | BJ41: 0 | BK41: 1086012.02 | BL41: 0 | BM41: 0 | BN41: 0 | BO41: 41282.66 | BP41: 0 | BQ41: 0 | BR41: 0 | BS41: 2066156.55 | BT41: 0 | BU41: 0 | BV41: 0 | BW41: 825218.19 | BX41: 7071.64 | BY41: 0 | BZ41: 0 | CA41: 863509.4998 | CB41: 8811.01 | CC41: 0 | CD41: 0 | CE41: 1531892.37 | CF41: 6913.56 | CG41: 0 | CH41: 0 | CI41: 3418326.47 | CJ41: 39388.74 | CM41: 2008577.38 | CN41: 6115.6 | CQ41: 2367369.6 | CR41: 0 | CU41: 6373315.55 | CV41: 19198.58 | CY41: 0 | CZ41: 0 | DA41: 0 | DB41: 0 | DC41: 0 | DD41: 0 | DE41: 0 | DF41: 0 | DG41: 0 | DH41: 0 | DI41: 0 | DJ41: 0 | DK41: 0 | DL41: 0 | DM41: 0 | DN41: 0 | DO41: 0.05 | DP41: 0.15 | DQ41: 0.25 | DR41: 0.35 | DS41: 0.45 | DT41: 0.55 | DU41: 0.65 | DV41: 0.75 | DW41: 0.85 | DX41: 0.95 | DY41: 1834252.086 | DZ41: 25340197.09 | EA41: 6997676.222 | EB41: 12409868.33 | EC41: 1834252.086 | ED41: 0 | EE41: 0 | EF41: 0 | EG41: 0 | EH41: 0 | EI41: 0 | EJ41: 0 | EK41: 0 | EL41: 0 | EM41: 0 | EN41: 0 | EO41: 0 | EP41: 0 | EQ41: 0 | ER41: 0 | ES41: 0 | ET41: 0.05 | EU41: 0.15 | EV41: 0.25 | EW41: 0.35 | EX41: 0.45 | EY41: 0.55 | EZ41: 0.65 | FA41: 0.75 | FB41: 0.85 | FC41: 1736973.426 | FD41: 0 | FE41: 0 | FF41: 0 | FG41: 0 | FH41: 0 | FI41: 0 | FJ41: 0 | FK41: 0 | FL41: 0 | FM41: 0 | FN41: 0 | FO41: 0 | FP41: 0 | FQ41: 0 | FR41: 0 | FS41: 0 | FT41: 0 | FU41: 0.05 | FV41: 0.15 | FW41: 0.25 | FX41: 0.35 | FY41: 0.45 | FZ41: 0.55 | GA41: 0.65 | GB41: 0.75 | GC41: 1733381.567 | GD41: 0 | GE41: 0 | GF41: 0 | GG41: 0 | GH41: 0 | GI41: 0 | GJ41: 0 | GK41: 0 | GL41: 0 | GM41: 0 | GN41: 0 | GO41: 0 | GP41: 0 | GQ41: 0 | GR41: 0 | GS41: 0 | GT41: 0 | GU41: 0 | GV41: 0.05 | GW41: 0.15 | GX41: 0.25 | GY41: 0.35 | GZ41: 0.45 | HA41: 0.55 | HB41: 0.65 | HC41: 1549591.692 | HD41: 0 | HE41: 0 | HF41: 0 | HG41: 0 | HH41: 0 | HI41: 0 | HJ41: 0 | HK41: 0 | HL41: 0 | HM41: 0 | HN41: 0 | HO41: 0 | HP41: 0 | HQ41: 0 | HR41: 0 | HS41: 0 | HT41: 0 | HU41: 0 | HV41: 0 | HW41: 0.05 | HX41: 0.15 | HY41: 0.25 | HZ41: 0.35 | IA41: 0.45 | IB41: 0.55 | IC41: 1476440.229 | IE41: 97278.66045 | IF41: 3591.858788 | IG41: 183789.8752 | IH41: 73151.46306
B42: Equipos de medición y control de la calidad del suministro | C42: 22 | D42: 0 | E42: 0 | F42: 0 | G42: 1217774 | H42: 0 | I42: 0 | J42: 0 | K42: 109648 | L42: 0 | M42: 0 | N42: 0 | O42: 20124 | P42: 0 | Q42: 0 | R42: 0 | S42: 101244 | T42: 0 | U42: 0 | V42: 0 | W42: 46928.19 | X42: 0 | Y42: 0 | Z42: 0 | AA42: 0 | AB42: 0 | AC42: 0 | AD42: 0 | AE42: 71043.37 | AF42: 0 | AG42: 0 | AH42: 0 | AI42: 38519.63 | AJ42: 0 | AK42: 0 | AL42: 0 | AM42: 60364.81 | AN42: 0 | AO42: 0 | AP42: 0 | AQ42: 88977.22 | AR42: 0 | AS42: 0 | AT42: 0 | AU42: 134285.39 | AV42: 0 | AW42: 0 | AX42: 0 | AY42: 52844.4 | AZ42: 5219.62 | BA42: 0 | BB42: 0 | BC42: 1007730.57 | BD42: 9346.52 | BE42: 0 | BF42: 0 | BG42: 2277399.6 | BH42: 778.16 | BI42: 0 | BJ42: 0 | BK42: 2299245.7 | BL42: 3960.19 | BM42: 0 | BN42: 0 | BO42: 1268334.07 | BP42: 0 | BQ42: 0 | BR42: 0 | BS42: 981212.57 | BT42: 2784.76 | BU42: 0 | BV42: 0 | BW42: 38068.93 | BX42: 0 | BY42: 0 | BZ42: 0 | CA42: 279697.04 | CB42: 0 | CC42: 0 | CD42: 0 | CE42: 217227.71 | CF42: 0 | CG42: 0 | CH42: 0 | CI42: 220673.3 | CJ42: 0 | CM42: 271625.56 | CN42: 0 | CQ42: 271744.85 | CR42: 0 | CU42: 393684.91 | CV42: 9150.63 | CY42: 0 | CZ42: 0 | DA42: 0 | DB42: 0 | DC42: 0.02272727273 | DD42: 0.06818181818 | DE42: 0.1136363636 | DF42: 0.1590909091 | DG42: 0.2045454545 | DH42: 0.25 | DI42: 0.2954545455 | DJ42: 0.3409090909 | DK42: 0.3863636364 | DL42: 0.4318181818 | DM42: 0.4772727273 | DN42: 0.5227272727 | DO42: 0.5681818182 | DP42: 0.6136363636 | DQ42: 0.6590909091 | DR42: 0.7045454545 | DS42: 0.75 | DT42: 0.7954545455 | DU42: 0.8409090909 | DV42: 0.8863636364 | DW42: 0.9318181818 | DX42: 0.9772727273 | DY42: 407608.8118 | DZ42: 10196343.64 | EA42: 1228949.776 | EB42: 5342753.597 | EC42: 407608.8118 | ED42: 0 | EE42: 0 | EF42: 0 | EG42: 0 | EH42: 0.02272727273 | EI42: 0.06818181818 | EJ42: 0.1136363636 | EK42: 0.1590909091 | EL42: 0.2045454545 | EM42: 0.25 | EN42: 0.2954545455 | EO42: 0.3409090909 | EP42: 0.3863636364 | EQ42: 0.4318181818 | ER42: 0.4772727273 | ES42: 0.5227272727 | ET42: 0.5681818182 | EU42: 0.6136363636 | EV42: 0.6590909091 | EW42: 0.7045454545 | EX42: 0.75 | EY42: 0.7954545455 | EZ42: 0.8409090909 | FA42: 0.8863636364 | FB42: 0.9318181818 | FC42: 406723.7588 | FD42: 0 | FE42: 0 | FF42: 0 | FG42: 0 | FH42: 0 | FI42: 0.02272727273 | FJ42: 0.06818181818 | FK42: 0.1136363636 | FL42: 0.1590909091 | FM42: 0.2045454545 | FN42: 0.25 | FO42: 0.2954545455 | FP42: 0.3409090909 | FQ42: 0.3863636364 | FR42: 0.4318181818 | FS42: 0.4772727273 | FT42: 0.5227272727 | FU42: 0.5681818182 | FV42: 0.6136363636 | FW42: 0.6590909091 | FX42: 0.7045454545 | FY42: 0.75 | FZ42: 0.7954545455 | GA42: 0.8409090909 | GB42: 0.8863636364 | GC42: 402505.1637 | GD42: 0 | GE42: 0 | GF42: 0 | GG42: 0 | GH42: 0 | GI42: 0 | GJ42: 0.02272727273 | GK42: 0.06818181818 | GL42: 0.1136363636 | GM42: 0.1590909091 | GN42: 0.2045454545 | GO42: 0.25 | GP42: 0.2954545455 | GQ42: 0.3409090909 | GR42: 0.3863636364 | GS42: 0.4318181818 | GT42: 0.4772727273 | GU42: 0.5227272727 | GV42: 0.5681818182 | GW42: 0.6136363636 | GX42: 0.6590909091 | GY42: 0.7045454545 | GZ42: 0.75 | HA42: 0.7954545455 | HB42: 0.8409090909 | HC42: 400855.9492 | HD42: 0 | HE42: 0 | HF42: 0 | HG42: 0 | HH42: 0 | HI42: 0 | HJ42: 0 | HK42: 0.02272727273 | HL42: 0.06818181818 | HM42: 0.1136363636 | HN42: 0.1590909091 | HO42: 0.2045454545 | HP42: 0.25 | HQ42: 0.2954545455 | HR42: 0.3409090909 | HS42: 0.3863636364 | HT42: 0.4318181818 | HU42: 0.4772727273 | HV42: 0.5227272727 | HW42: 0.5681818182 | HX42: 0.6136363636 | HY42: 0.6590909091 | HZ42: 0.7045454545 | IA42: 0.75 | IB42: 0.7954545455 | IC42: 400855.9492 | IE42: 885.0530633 | IF42: 4218.595082 | IG42: 1649.214476 | IH42: 0
B43: Equipos de computación | C43: 4 | D43: 527305.3021 | E43: 0 | F43: 511081.0111 | G43: 0 | H43: 0 | I43: 0 | J43: 0 | K43: 18875 | L43: 0 | M43: 0 | N43: 0 | O43: 187562 | P43: 0 | Q43: 0 | R43: 0 | S43: 85312 | T43: 0 | U43: 0 | V43: 0 | W43: 11490.15 | X43: 0 | Y43: 0 | Z43: 0 | AA43: 0 | AB43: 0 | AC43: 0 | AD43: 0 | AE43: 917.79 | AF43: 0 | AG43: 0 | AH43: 0 | AI43: 42982.07 | AJ43: 0 | AK43: 0 | AL43: 0 | AM43: 0 | AN43: 0 | AO43: 0 | AP43: 0 | AQ43: 0 | AR43: 0 | AS43: 0 | AT43: 0 | AU43: 0 | AV43: 0 | AW43: 0 | AX43: 0 | AY43: 0 | AZ43: 0 | BA43: 0 | BB43: 0 | BC43: 0 | BD43: 0 | BE43: 0 | BF43: 0 | BG43: 0 | BH43: 0 | BI43: 0 | BJ43: 0 | BK43: 0 | BL43: 0 | BM43: 0 | BN43: 0 | BO43: 0 | BP43: 0 | BQ43: 0 | BR43: 0 | BS43: 0 | BT43: 0 | BU43: 0 | BV43: 0 | BW43: 0 | BX43: 0 | BY43: 0 | BZ43: 0 | CA43: 0 | CB43: 0 | CC43: 0 | CD43: 0 | CE43: 0 | CF43: 0 | CG43: 0 | CH43: 0 | CI43: 0 | CM43: 0 | CQ43: 0 | CU43: 0 | CV43: 0 | CY43: 2000.876927 | CZ43: 0 | DA43: 0 | DB43: 0 | DC43: 0 | DD43: 0 | DE43: 0 | DF43: 0 | DG43: 0 | DH43: 0 | DI43: 0 | DJ43: 0 | DK43: 0 | DL43: 0 | DM43: 0 | DN43: 0 | DO43: 0 | DP43: 0 | DQ43: 0 | DR43: 0 | DS43: 0 | DT43: 0 | DU43: 0.125 | DV43: 0.375 | DW43: 0.625 | DX43: 0.875 | DY43: 0 | DZ43: 848781.2532 | EA43: 848781.2532 | EB43: 0 | EC43: 0 | ED43: 0 | EE43: 0 | EF43: 0 | EG43: 0 | EH43: 0 | EI43: 0 | EJ43: 0 | EK43: 0 | EL43: 0 | EM43: 0 | EN43: 0 | EO43: 0 | EP43: 0 | EQ43: 0 | ER43: 0 | ES43: 0 | ET43: 0 | EU43: 0 | EV43: 0 | EW43: 0 | EX43: 0 | EY43: 0 | EZ43: 0.125 | FA43: 0.375 | FB43: 0.625 | FC43: 0 | FD43: 0 | FE43: 0 | FF43: 0 | FG43: 0 | FH43: 0 | FI43: 0 | FJ43: 0 | FK43: 0 | FL43: 0 | FM43: 0 | FN43: 0 | FO43: 0 | FP43: 0 | FQ43: 0 | FR43: 0 | FS43: 0 | FT43: 0 | FU43: 0 | FV43: 0 | FW43: 0 | FX43: 0 | FY43: 0 | FZ43: 0 | GA43: 0.125 | GB43: 0.375 | GC43: 0 | GD43: 0 | GE43: 0 | GF43: 0 | GG43: 0 | GH43: 0 | GI43: 0 | GJ43: 0 | GK43: 0 | GL43: 0 | GM43: 0 | GN43: 0 | GO43: 0 | GP43: 0 | GQ43: 0 | GR43: 0 | GS43: 0 | GT43: 0 | GU43: 0 | GV43: 0 | GW43: 0 | GX43: 0 | GY43: 0 | GZ43: 0 | HA43: 0 | HB43: 0.125 | HC43: 0 | HD43: 0 | HE43: 0 | HF43: 0 | HG43: 0 | HH43: 0 | HI43: 0 | HJ43: 0 | HK43: 0 | HL43: 0 | HM43: 0 | HN43: 0 | HO43: 0 | HP43: 0 | HQ43: 0 | HR43: 0 | HS43: 0 | HT43: 0 | HU43: 0 | HV43: 0 | HW43: 0 | HX43: 0 | HY43: 0 | HZ43: 0 | IA43: 0 | IB43: 0 | IC43: 0 | IE43: 0 | IF43: 0 | IG43: 0 | IH43: 0
B44: Equipos de comunicaciones | C44: 8 | D44: 4896.612758 | E44: 0 | F44: 4660.165384 | G44: 102945 | H44: 0 | I44: 0 | J44: 0 | K44: 43378 | L44: 0 | M44: 0 | N44: 0 | O44: 41725.35 | P44: 0 | Q44: 0 | R44: 0 | S44: 177400.99 | T44: 0 | U44: 0 | V44: 0 | W44: 19333.39 | X44: 0 | Y44: 0 | Z44: 0 | AA44: 58875.6 | AB44: 0 | AC44: 0 | AD44: 0 | AE44: 106274.03 | AF44: 0 | AG44: 0 | AH44: 0 | AI44: 152534.25 | AJ44: 0 | AK44: 0 | AL44: 0 | AM44: 0 | AN44: 0 | AO44: 0 | AP44: 0 | AQ44: 0 | AR44: 0 | AS44: 0 | AT44: 0 | AU44: 0 | AV44: 0 | AW44: 0 | AX44: 0 | AY44: 0 | AZ44: 0 | BA44: 0 | BB44: 0 | BC44: 0 | BD44: 0 | BE44: 0 | BF44: 0 | BG44: 0 | BH44: 0 | BI44: 0 | BJ44: 0 | BK44: 0 | BL44: 0 | BM44: 0 | BN44: 0 | BO44: 0 | BP44: 0 | BQ44: 0 | BR44: 0 | BS44: 0 | BT44: 0 | BU44: 0 | BV44: 0 | BW44: 0 | BX44: 0 | BY44: 0 | BZ44: 0 | CA44: 0 | CB44: 0 | CC44: 0 | CD44: 0 | CE44: 0 | CF44: 0 | CG44: 0 | CH44: 0 | CV44: 0 | CY44: 2000.613696 | CZ44: 0 | DA44: 0 | DB44: 0 | DC44: 0 | DD44: 0 | DE44: 0 | DF44: 0 | DG44: 0 | DH44: 0 | DI44: 0 | DJ44: 0 | DK44: 0 | DL44: 0 | DM44: 0 | DN44: 0 | DO44: 0 | DP44: 0 | DQ44: 0.0625 | DR44: 0.1875 | DS44: 0.3125 | DT44: 0.4375 | DU44: 0.5625 | DV44: 0.6875 | DW44: 0.8125 | DX44: 0.9375 | DY44: 0 | DZ44: 623879.8314 | EA44: 623879.8314 | EB44: 0 | EC44: 0 | ED44: 0 | EE44: 0 | EF44: 0 | EG44: 0 | EH44: 0 | EI44: 0 | EJ44: 0 | EK44: 0 | EL44: 0 | EM44: 0 | EN44: 0 | EO44: 0 | EP44: 0 | EQ44: 0 | ER44: 0 | ES44: 0 | ET44: 0 | EU44: 0 | EV44: 0.0625 | EW44: 0.1875 | EX44: 0.3125 | EY44: 0.4375 | EZ44: 0.5625 | FA44: 0.6875 | FB44: 0.8125 | FC44: 0 | FD44: 0 | FE44: 0 | FF44: 0 | FG44: 0 | FH44: 0 | FI44: 0 | FJ44: 0 | FK44: 0 | FL44: 0 | FM44: 0 | FN44: 0 | FO44: 0 | FP44: 0 | FQ44: 0 | FR44: 0 | FS44: 0 | FT44: 0 | FU44: 0 | FV44: 0 | FW44: 0.0625 | FX44: 0.1875 | FY44: 0.3125 | FZ44: 0.4375 | GA44: 0.5625 | GB44: 0.6875 | GC44: 0 | GD44: 0 | GE44: 0 | GF44: 0 | GG44: 0 | GH44: 0 | GI44: 0 | GJ44: 0 | GK44: 0 | GL44: 0 | GM44: 0 | GN44: 0 | GO44: 0 | GP44: 0 | GQ44: 0 | GR44: 0 | GS44: 0 | GT44: 0 | GU44: 0 | GV44: 0 | GW44: 0 | GX44: 0.0625 | GY44: 0.1875 | GZ44: 0.3125 | HA44: 0.4375 | HB44: 0.5625 | HC44: 0 | HD44: 0 | HE44: 0 | HF44: 0 | HG44: 0 | HH44: 0 | HI44: 0 | HJ44: 0 | HK44: 0 | HL44: 0 | HM44: 0 | HN44: 0 | HO44: 0 | HP44: 0 | HQ44: 0 | HR44: 0 | HS44: 0 | HT44: 0 | HU44: 0 | HV44: 0 | HW44: 0 | HX44: 0 | HY44: 0.0625 | HZ44: 0.1875 | IA44: 0.3125 | IB44: 0.4375 | IC44: 0 | IE44: 0 | IF44: 0 | IG44: 0 | IH44: 0
B45: TOTAL SISTEMA DE DISTRIBUCIÓN | D45: =SUM(D14:D44) -> 206217578.1 | E45: =SUM(E14:E44) -> 0 | F45: 141777035.3 | G45: =SUM(G14:G44) -> 16424207.08 | H45: =SUM(H14:H44) -> 916316 | I45: 0 | J45: 0 | K45: =SUM(K14:K44) -> 15951346 | L45: =SUM(L14:L44) -> 1225093 | M45: =SUM(M14:M44) -> 0 | N45: =SUM(N14:N44) -> 0 | O45: =SUM(O14:O44) -> 13618725.35 | P45: =SUM(P14:P44) -> 832125 | Q45: =SUM(Q14:Q44) -> 0 | R45: =SUM(R14:R44) -> 0 | S45: =SUM(S14:S44) -> 12573647.84 | T45: =SUM(T14:T44) -> 673159 | U45: =SUM(U14:U44) -> 0 | V45: =SUM(V14:V44) -> 0 | W45: =SUM(W14:W44) -> 13734953.57 | X45: =SUM(X14:X44) -> 111212.25 | Y45: =SUM(Y14:Y44) -> 0 | Z45: =SUM(Z14:Z44) -> 0 | AA45: =SUM(AA14:AA44) -> 15826991.7 | AB45: =SUM(AB14:AB44) -> 1668.33 | AC45: =SUM(AC14:AC44) -> 0 | AD45: =SUM(AD14:AD44) -> 0 | AE45: =SUM(AE14:AE44) -> 11791736.08 | AF45: =SUM(AF14:AF44) -> 4120.59 | AG45: =SUM(AG14:AG44) -> 0 | AH45: =SUM(AH14:AH44) -> 0 | AI45: =SUM(AI14:AI44) -> 22626525.46 | AJ45: =SUM(AJ14:AJ44) -> 968965.4882 | AK45: =SUM(AK14:AK44) -> 0 | AL45: =SUM(AL14:AL44) -> 0 | AM45: =SUM(AM14:AM44) -> 16129613.41 | AN45: =SUM(AN14:AN44) -> 1107304.87 | AO45: =SUM(AO14:AO44) -> 0 | AP45: =SUM(AP14:AP44) -> 0 | AQ45: =SUM(AQ14:AQ44) -> 16112050.38 | AR45: =SUM(AR14:AR44) -> 517260.67 | AS45: =SUM(AS14:AS44) -> 0 | AT45: =SUM(AT14:AT44) -> 0 | AU45: =SUM(AU14:AU44) -> 15412639.65 | AV45: =SUM(AV14:AV44) -> 496742.91 | AW45: =SUM(AW14:AW44) -> 0 | AX45: =SUM(AX14:AX44) -> 0 | AY45: =SUM(AY14:AY44) -> 41940937.82 | AZ45: =SUM(AZ14:AZ44) -> 1138047.25 | BA45: =SUM(BA14:BA44) -> 0 | BB45: =SUM(BB14:BB44) -> 0 | BC45: =SUM(BC14:BC44) -> 38240684.7 | BD45: =SUM(BD14:BD44) -> 594153.48 | BE45: =SUM(BE14:BE44) -> 0 | BF45: =SUM(BF14:BF44) -> 0 | BG45: =SUM(BG14:BG44) -> 52908452.63 | BH45: =SUM(BH14:BH44) -> 1285520.76 | BI45: =SUM(BI14:BI44) -> 0 | BJ45: =SUM(BJ14:BJ44) -> 0 | BK45: =SUM(BK14:BK44) -> 51217096.27 | BL45: =SUM(BL14:BL44) -> 1007037.63 | BM45: =SUM(BM14:BM44) -> 0 | BN45: =SUM(BN14:BN44) -> 0 | BO45: =SUM(BO14:BO44) -> 36874476.07 | BP45: =SUM(BP14:BP44) -> 0 | BQ45: =SUM(BQ14:BQ44) -> 0 | BR45: =SUM(BR14:BR44) -> 0 | BS45: =SUM(BS14:BS44) -> 40396333.58 | BT45: =SUM(BT14:BT44) -> 569195.68 | BU45: =SUM(BU14:BU44) -> 0 | BV45: =SUM(BV14:BV44) -> 0 | BW45: =SUM(BW14:BW44) -> 22023804.82 | BX45: =SUM(BX14:BX44) -> 689374.09 | BY45: =SUM(BY14:BY44) -> 0 | BZ45: =SUM(BZ14:BZ44) -> 0 | CA45: =SUM(CA14:CA44) -> 32318413.43 | CB45: =SUM(CB14:CB44) -> 944313.25 | CC45: =SUM(CC14:CC44) -> 0 | CD45: =SUM(CD14:CD44) -> 0 | CE45: =SUM(CE14:CE44) -> 38032268.82 | CF45: =SUM(CF14:CF44) -> 585239.84 | CG45: =SUM(CG14:CG44) -> 0 | CH45: =SUM(CH14:CH44) -> 0 | CI45: 42194318.21 | CJ45: 475425.87 | CK45: 0 | CL45: 0 | CM45: 31019000.03 | CN45: 525773.36 | CO45: 0 | CP45: 0 | CQ45: 31595142.67 | CR45: 597961.17 | CS45: 0 | CT45: 0 | CU45: =SUM(CU14:CU44) -> 43389573.73 | CV45: =SUM(CV14:CV44) -> 634787.39 | CW45: =SUM(CW14:CW44) -> 0 | CX45: 0 | DY45: =SUM(DY14:DY44) -> 21896042.54 | DZ45: =SUM(DZ14:DZ44) -> 785045607.2 | EA45: =SUM(EA14:EA44) -> 208686553.1 | EB45: =SUM(EB14:EB44) -> 380336539.5 | EC45: =SUM(EC14:EC44) -> 21896042.54 | FC45: =SUM(FC14:FC44) -> 21792314.83 | GC45: =SUM(GC14:GC44) -> 21772686.35 | HC45: =SUM(HC14:HC44) -> 21312841.95 | IC45: =SUM(IC14:IC44) -> 21200463.87 | IE45: 103727.7065 | IF45: 19628.48139 | IG45: 459844.4017 | IH45: 112378.0725
A46: ALUMBRADO PÚBLICO | B46: Lámparas, accesorios y postes de alumbrado público | C46: 22 | D46: 9501020.871 | E46: 0 | F46: 6379536.702 | G46: 2296317 | H46: 28852 | I46: 0 | J46: 0 | K46: 2017106 | L46: 0 | M46: 0 | N46: 0 | O46: 1350182 | P46: 0 | Q46: 0 | R46: 0 | S46: 1164959.5 | T46: 357 | U46: 0 | V46: 0 | W46: 670144.91 | X46: 0 | Y46: 0 | Z46: 0 | AA46: 644019.64 | AB46: 0 | AC46: 0 | AD46: 0 | AE46: 641127.7 | AF46: 0 | AG46: 0 | AH46: 0 | AI46: 1046226.04 | AJ46: 0 | AK46: 0 | AL46: 0 | AM46: 742198.97 | AN46: 4219.71 | AO46: 0 | AP46: 0 | AQ46: 1095392.21 | AR46: 3105.14 | AS46: 0 | AT46: 0 | AU46: 1649504.87 | AV46: 2674.31 | AW46: 0 | AX46: 0 | AY46: 1816961.52 | AZ46: 4131.95 | BA46: 0 | BB46: 0 | BC46: 1318804.74 | BD46: 139.93 | BE46: 0 | BF46: 0 | BG46: 1630216.29 | BH46: 0 | BI46: 0 | BJ46: 0 | BK46: 4112953.57 | BL46: 0 | BM46: 0 | BN46: 0 | BO46: 2316725.18 | BP46: 0 | BQ46: 0 | BR46: 0 | BS46: 2007811.26 | BT46: 7650.72 | BU46: 0 | BV46: 0 | BW46: 1598913.03 | BX46: 11174.38 | BY46: 0 | BZ46: 0 | CA46: 9491098.01 | CB46: 12831.52 | CC46: 0 | CD46: 0 | CE46: 3726737.13 | CF46: 6521.84 | CG46: 0 | CH46: 0 | CI46: 4027906.73 | CJ46: 5621.07 | CM46: 5790550.18 | CN46: 29852.21 | CQ46: 5568673.34 | CR46: 18975.9 | CU46: 8240585.14 | CV46: 17290.5 | CY46: =IF(D46=0,0,2001-(D46-F46)*C46/D46) -> 1993.772077 | CZ46: =IF((1-($DY$2-$CY46)/$C46)>0,(1-($DY$2-$CY46)/$C46),0) -> 0 | DA46: =IF((1-($DY$2-G$2)/$C46)>0,(1-($DY$2-G$2)/$C46),0) -> 0 | DB46: =IF((1-($DY$2-K$2)/$C46)>0,(1-($DY$2-K$2)/$C46),0) -> 0 | DC46: =IF((1-($DY$2-O$2)/$C46)>0,(1-($DY$2-O$2)/$C46),0) -> 0.02272727273 | DD46: =IF((1-($DY$2-S$2)/$C46)>0,(1-($DY$2-S$2)/$C46),0) -> 0.06818181818 | DE46: =IF((1-($DY$2-W$2)/$C46)>0,(1-($DY$2-W$2)/$C46),0) -> 0.1136363636 | DF46: =IF((1-($DY$2-AA$2)/$C46)>0,(1-($DY$2-AA$2)/$C46),0) -> 0.1590909091 | DG46: =IF((1-($DY$2-AE$2)/$C46)>0,(1-($DY$2-AE$2)/$C46),0) -> 0.2045454545 | DH46: =IF((1-($DY$2-AI$2)/$C46)>0,(1-($DY$2-AI$2)/$C46),0) -> 0.25 | DI46: =IF((1-($DY$2-AM$2)/$C46)>0,(1-($DY$2-AM$2)/$C46),0) -> 0.2954545455 | DJ46: =IF((1-($DY$2-AQ$2)/$C46)>0,(1-($DY$2-AQ$2)/$C46),0) -> 0.3409090909 | DK46: =IF((1-($DY$2-AU$2)/$C46)>0,(1-($DY$2-AU$2)/$C46),0) -> 0.3863636364 | DL46: =IF((1-($DY$2-AY$2)/$C46)>0,(1-($DY$2-AY$2)/$C46),0) -> 0.4318181818 | DM46: =IF((1-($DY$2-BC$2)/$C46)>0,(1-($DY$2-BC$2)/$C46),0) -> 0.4772727273 | DN46: =IF((1-($DY$2-BG$2)/$C46)>0,(1-($DY$2-BG$2)/$C46),0) -> 0.5227272727 | DO46: =IF((1-($DY$2-BK$2)/$C46)>0,(1-($DY$2-BK$2)/$C46),0) -> 0.5681818182 | DP46: =IF((1-($DY$2-BO$2)/$C46)>0,(1-($DY$2-BO$2)/$C46),0) -> 0.6136363636 | DQ46: =IF((1-($DY$2-BS$2)/$C46)>0,(1-($DY$2-BS$2)/$C46),0) -> 0.6590909091 | DR46: =IF((1-($DY$2-BW$2)/$C46)>0,(1-($DY$2-BW$2)/$C46),0) -> 0.7045454545 | DS46: =IF((1-($DY$2-CA$2)/$C46)>0,(1-($DY$2-CA$2)/$C46),0) -> 0.75 | DT46: =IF((1-($DY$2-CE$2)/$C46)>0,(1-($DY$2-CE$2)/$C46),0) -> 0.7954545455 | DU46: =IF((1-($DY$2-CI$2)/$C46)>0,(1-($DY$2-CI$2)/$C46),0) -> 0.8409090909 | DV46: =IF((1-($DY$2-CM$2)/$C46)>0,(1-($DY$2-CM$2)/$C46),0) -> 0.8863636364 | DW46: =IF((1-($DY$2-CQ$2)/$C46)>0,(1-($DY$2-CQ$2)/$C46),0) -> 0.9318181818 | DX46: =IF((1-($DY$2-CU$2)/$C46)>0,(1-($DY$2-CU$2)/$C46),0) -> 0.9772727273 | DY46: =IF(CZ46=0,0,($D46-$E46)*1/$C46)+IF(DA46=0,0,($G46-$H46-$I46)*$G$62*1/$C46)+IF(DB46=0,0,($K46-$L46-$M46)*$K$62*1/$C46)+IF(DC46=0,0,($O46-$P46-$Q46)*$O$62*1/$C46)+IF(DD46=0,0,($S46-$T46-$U46)*$S$62*1/$C46)+IF(DE46=0,0,($W46-$X46-$Y46)*$W$62*1/$C46)+IF(DF46=0,0,($AA46-$AB46-$AC46)*$AA$62*1/$C46)+IF(DG46=0,0,($AE46-$AF46-$AG46)*$AE$62*1/$C46)+IF(DH46=0,0,($AI46-$AJ46-$AK46)*$AI$62*1/$C46)+IF(DI46=0,0,($AM46-$AN46-$AO46)*$AM$62*1/$C46)+IF(DJ46=0,0,($AQ46-$AR46-$AS46)*$AQ$62*1/$C46)+IF(DK46=0,0,($AU46-$AV46-$AW46)*$AU$62*1/$C46)+IF(DL46=0,0,($AY46-$AZ46-$BA46)*$AY$62*1/$C46)+IF(DM46=0,0,($BC46-$BD46-$BE46)*$BC$62*1/$C46)+IF(DN46=0,0,($BG46-$BH46-$BI46)*$BG$62*1/$C46)+IF(DO46=0,0,($BK46-$BL46-$BM46)*$BK$62*1/$C46)+IF(DP46=0,0,($BO46-$BP46-$BQ46)*$BO$62*1/$C46)+IF(DQ46=0,0,($BS46-$BT46-$BU46)*$BS$62*1/$C46)+IF(DR46=0,0,($BW46-$BX46-$BY46)*$BW$62*1/$C46)+IF(DS46=0,0,($CA46-$CB46-$CC46)*$CA$62*1/$C46)+IF(DT46=0,0,($CE46-$CF46-$CG46)*$CE$62*1/$C46)+IF(DU46=0,0,($CI46-$CJ46-$CK46)*$CI$62*1/$C46)+IF(DV46=0,0,($CM46-$CN46-$CO46)*$CM$62*1/$C46)+IF(DW46=0,0,($CQ46-$CR46-$CS46)*$CQ$62*1/$C46)+IF(DX46=0,0,($CU46-$CV46-$CW46)*$CU$62*1/$C46) -> 2509198.6 | DZ46: =D46-E46+(G46-H46-I46)*G$62+(K46-L46-M46)*K$62+(O46-P46-Q46)*O$62+(S46-T46-U46)*S$62+(W46-X46-Y46)*W$62+(AA46-AB46-AC46)*AA$62+(AE46-AF46-AG46)*AE$62+(AI46-AJ46-AK46)*AI$62+(AM46-AN46-AO46)*AM$62+(AQ46-AR46-AS46)*$AQ$62+(AU46-AV46-AW46)*$AU$62+(AY46-AZ46-BA46)*$AY$62+(BC46-BD46-BE46)*$BC$62+(BG46-BH46-BI46)*$BG$62+(BK46-BL46-BM46)*$BK$62+(BO46-BP46-BQ46)*$BO$62+(BS46-BT46-BU46)*$BS$62+(BW46-BX46-BY46)*$BW$62+(CA46-CB46-CC46)*$CA$62+(CE46-CF46-CG46)*$CE$62+(CI46-CJ46-CK46)*$CI$62+(CM46-CN46-CO46)*$CM$62+(CQ46-CR46-CS46)*$CQ$62+(CU46-CV46-CW46)*$CU$62 -> 68987961.08 | EA46: =IF(CZ46=0,D46-E46,0)+IF(DA46=0,(G46-H46-I46)*G$62,0)+IF(DB46=0,(K46-L46-M46)*K$62,0)+IF(DC46=0,(O46-P46-Q46)*O$62,0)+IF(DD46=0,(S46-T46-U46)*S$62,0)+IF(DE46=0,(W46-X46-Y46)*W$62,0)+IF(DF46=0,(AA46-AB46-AC46)*AA$62,0)+IF(DG46=0,(AE46-AF46-AG46)*AE$62,0)+IF(DH46=0,(AI46-AJ46-AK46)*AI$62,0)+IF(DI46=0,(AM46-AN46-AO46)*AM$62,0)+IF(DJ46=0,(AQ46-AR46-AS46)*$AQ$62,0)+IF(DK46=0,(AU46-AV46-AW46)*$AU$62,0)+IF(DL46=0,(AY46-AZ46-BA46)*$AY$62,0)++IF(DM46=0,(BC46-BD46-BE46)*$BC$62,0)+IF(DN46=0,(BG46-BH46-BI46)*$BG$62,0)+IF(DO46=0,(BK46-BL46-BM46)*$BK$62,0)+IF(DP46=0,(BO46-BP46-BQ46)*$BO$62,0)+IF(DQ46=0,(BS46-BT46-BU46)*$BS$62,0)+IF(DR46=0,(BW46-BX46-BY46)*$BW$62,0)+IF(DS46=0,(CA46-CB46-CC46)*$CA$62,0)+IF(DT46=0,(CE46-CF46-CG46)*$CE$62,0)+IF(DU46=0,(CI46-CJ46-CK46)*$CI$62,0)+IF(DV46=0,(CM46-CN46-CO46)*$CM$62,0)+IF(DW46=0,(CQ46-CR46-CS46)*$CQ$62,0)+IF(DX46=0,(CU46-CV46-CW46)*$CU$62,0) -> 13785591.87 | EB46: =(D46-E46)*CZ46+((G46-H46-(I46-J46))*G$62)*DA46+((K46-L46-(M46-N46))*K$62)*DB46+((O46-P46-(Q46-R46))*O$62)*DC46+((S46-T46-(U46-V46))*S$62)*DD46+((W46-X46-(Y46-Z46))*W$62)*DE46+((AA46-AB46-(AC46-AD46))*AA$62)*DF46+((AE46-AF46-(AG46-AH46))*AE$62)*DG46+((AI46-AJ46-(AK46-AL46))*AI$62)*DH46+((AM46-AN46-(AO46-AP46))*$AM$62)*DI46+((AQ46-AR46-(AS46-AT46))*$AQ$62)*DJ46+((AU46-AV46-(AW46-AX46))*$AU$62)*DK46+((AY46-AZ46-(BA46-BB46))*$AY$62)*DL46+((BC46-BD46-(BE46-BF46))*$BC$62)*DM46+((BG46-BH46-(BI46-BJ46))*$BG$62)*DN46+((BK46-BL46-(BM46-BN46))*$BK$62)*DO46+((BO46-BP46-(BQ46-BR46))*$BO$62)*DP46+((BS46-BT46-(BU46-BV46))*$BS$62)*DQ46+((BW46-BX46-(BY46-BZ46))*$BW$62)*DR46+((CA46-CB46-(CC46-CD46))*$CA$62)*DS46+((CE46-CF46-(CG46-CH46))*$CE$62)*DT46+((CI46-CJ46-(CK46-CL46))*$CI$62)*DU46+((CM46-CN46-(CO46-CP46))*$CM$62)*DV46+((CQ46-CR46-(CS46-CT46))*$CQ$62)*DW46+((CU46-CV46-(CW46-CX46))*$CU$62)*DX46 -> 38393711.88 | EC46: =(DZ46-EA46)*1/C46 -> 2509198.6 | ED46: =IF((1-($FC$2-$CY46)/$C46)>0,(1-($FC$2-$CY46)/$C46),0) -> 0 | EE46: =IF((1-($FC$2-EE$2)/$C46)>0,(1-($FC$2-EE$2)/$C46),0) -> 0 | EF46: 0 | EG46: 0 | EH46: 0.02272727273 | EI46: 0.06818181818 | EJ46: 0.1136363636 | EK46: 0.1590909091 | EL46: 0.2045454545 | EM46: 0.25 | EN46: 0.2954545455 | EO46: 0.3409090909 | EP46: 0.3863636364 | EQ46: 0.4318181818 | ER46: 0.4772727273 | ES46: 0.5227272727 | ET46: 0.5681818182 | EU46: 0.6136363636 | EV46: 0.6590909091 | EW46: 0.7045454545 | EX46: 0.75 | EY46: 0.7954545455 | EZ46: 0.8409090909 | FA46: 0.8863636364 | FB46: 0.9318181818 | FC46: =IF(ED46=0,0,($D46-$E46)*1/$C46)+IF(EE46=0,0,($G46-$H46-$I46)*$G$62*1/$C46)+IF(EF46=0,0,($K46-$L46-$M46)*$K$62*1/$C46)+IF(EG46=0,0,($O46-$P46-$Q46)*$O$62*1/$C46)+IF(EH46=0,0,($S46-$T46-$U46)*$S$62*1/$C46)+IF(EI46=0,0,($W46-$X46-$Y46)*$W$62*1/$C46)+IF(EJ46=0,0,($AA46-$AB46-$AC46)*$AA$62*1/$C46)+IF(EK46=0,0,($AE46-$AF46-$AG46)*$AE$62*1/$C46)+IF(EL46=0,0,($AI46-$AJ46-$AK46)*$AI$62*1/$C46)+IF(EM46=0,0,($AM46-$AN46-$AO46)*$AM$62*1/$C46)+IF(EN46=0,0,($AQ46-$AR46-$AS46)*$AQ$62*1/$C46)+IF(EO46=0,0,($AU46-$AV46-$AW46)*$AU$62*1/$C46)+IF(EP46=0,0,($AY46-$AZ46-$BA46)*$AY$62*1/$C46)+IF(EQ46=0,0,($BC46-$BD46-$BE46)*$BC$62*1/$C46)+IF(ER46=0,0,($BG46-$BH46-$BI46)*$BG$62*1/$C46)+IF(ES46=0,0,($BK46-$BL46-$BM46)*$BK$62*1/$C46)+IF(ET46=0,0,($BO46-$BP46-$BQ46)*$BO$62*1/$C46)+IF(EU46=0,0,($BS46-$BT46-$BU46)*$BS$62*1/$C46)+IF(EV46=0,0,($BW46-$BX46-$BY46)*$BW$62*1/$C46)+IF(EW46=0,0,($CA46-$CB46-$CC46)*$CA$62*1/$C46)+IF(EX46=0,0,($CE46-$CF46-$CG46)*$CE$62*1/$C46)+IF(EY46=0,0,($CI46-$CJ46-$CK46)*$CI$62*1/$C46)+IF(EZ46=0,0,($CM46-$CN46-$CO46)*$CM$62*1/$C46)+IF(FA46=0,0,($CQ46-$CR46-$CS46)*$CQ$62*1/$C46)+IF(FB46=0,0,($CU46-$CV46-$CW46)*$CU$62*1/$C46) -> 2447826.691 | FD46: =IF((1-($GC$2-$CY46)/$C46)>0,(1-($GC$2-$CY46)/$C46),0) -> 0 | FE46: =IF((1-($GC$2-FE$2)/$C46)>0,(1-($GC$2-FE$2)/$C46),0) -> 0 | FF46: 0 | FG46: 0 | FH46: 0 | FI46: 0.02272727273 | FJ46: 0.06818181818 | FK46: 0.1136363636 | FL46: 0.1590909091 | FM46: 0.2045454545 | FN46: 0.25 | FO46: 0.2954545455 | FP46: 0.3409090909 | FQ46: 0.3863636364 | FR46: 0.4318181818 | FS46: 0.4772727273 | FT46: 0.5227272727 | FU46: 0.5681818182 | FV46: 0.6136363636 | FW46: 0.6590909091 | FX46: 0.7045454545 | FY46: 0.75 | FZ46: =IF((1-($GC$2-FZ$2)/$C46)>0,(1-($GC$2-FZ$2)/$C46),0) -> 0.7954545455 | GA46: 0.8409090909 | GB46: 0.8863636364 | GC46: =IF(FD46=0,0,($D46-$E46)*1/$C46)+IF(FE46=0,0,($G46-$H46-$I46)*$G$62*1/$C46)+IF(FF46=0,0,($K46-$L46-$M46)*$K$62*1/$C46)+IF(FG46=0,0,($O46-$P46-$Q46)*$O$62*1/$C46)+IF(FH46=0,0,($S46-$T46-$U46)*$S$62*1/$C46)+IF(FI46=0,0,($W46-$X46-$Y46)*$W$62*1/$C46)+IF(FJ46=0,0,($AA46-$AB46-$AC46)*$AA$62*1/$C46)+IF(FK46=0,0,($AE46-$AF46-$AG46)*$AE$62*1/$C46)+IF(FL46=0,0,($AI46-$AJ46-$AK46)*$AI$62*1/$C46)+IF(FM46=0,0,($AM46-$AN46-$AO46)*$AM$62*1/$C46)+IF(FN46=0,0,($AQ46-$AR46-$AS46)*$AQ$62*1/$C46)+IF(FO46=0,0,($AU46-$AV46-$AW46)*$AU$62*1/$C46)+IF(FP46=0,0,($AY46-$AZ46-$BA46)*$AY$62*1/$C46)+IF(FQ46=0,0,($BC46-$BD46-$BE46)*$BC$62*1/$C46)+IF(FR46=0,0,($BG46-$BH46-$BI46)*$BG$62*1/$C46)+IF(FS46=0,0,($BK46-$BL46-$BM46)*$BK$62*1/$C46)+IF(FT46=0,0,($BO46-$BP46-$BQ46)*$BO$62*1/$C46)+IF(FU46=0,0,($BS46-$BT46-$BU46)*$BS$62*1/$C46)+IF(FV46=0,0,($BW46-$BX46-$BY46)*$BW$62*1/$C46)+IF(FW46=0,0,($CA46-$CB46-$CC46)*$CA$62*1/$C46)+IF(FX46=0,0,($CE46-$CF46-$CG46)*$CE$62*1/$C46)+IF(FY46=0,0,($CI46-$CJ46-$CK46)*$CI$62*1/$C46)+IF(FZ46=0,0,($CM46-$CN46-$CO46)*$CM$62*1/$C46)+IF(GA46=0,0,($CQ46-$CR46-$CS46)*$CQ$62*1/$C46)+IF(GB46=0,0,($CU46-$CV46-$CW46)*$CU$62*1/$C46) -> 2394890.214 | GD46: =IF((1-($HC$2-$CY46)/$C46)>0,(1-($HC$2-$CY46)/$C46),0) -> 0 | GE46: =IF((1-($HC$2-GE$2)/$C46)>0,(1-($HC$2-GE$2)/$C46),0) -> 0 | GF46: 0 | GG46: 0 | GH46: 0 | GI46: 0 | GJ46: 0.02272727273 | GK46: 0.06818181818 | GL46: 0.1136363636 | GM46: 0.1590909091 | GN46: 0.2045454545 | GO46: 0.25 | GP46: 0.2954545455 | GQ46: 0.3409090909 | GR46: 0.3863636364 | GS46: 0.4318181818 | GT46: 0.4772727273 | GU46: 0.5227272727 | GV46: 0.5681818182 | GW46: 0.6136363636 | GX46: 0.6590909091 | GY46: 0.7045454545 | GZ46: =IF((1-($HC$2-GZ$2)/$C46)>0,(1-($HC$2-GZ$2)/$C46),0) -> 0.75 | HA46: 0.7954545455 | HB46: 0.8409090909 | HC46: =IF(GD46=0,0,($D46-$E46)*1/$C46)+IF(GE46=0,0,($G46-$H46-$I46)*$G$62*1/$C46)+IF(GF46=0,0,($K46-$L46-$M46)*$K$62*1/$C46)+IF(GG46=0,0,($O46-$P46-$Q46)*$O$62*1/$C46)+IF(GH46=0,0,($S46-$T46-$U46)*$S$62*1/$C46)+IF(GI46=0,0,($W46-$X46-$Y46)*$W$62*1/$C46)+IF(GJ46=0,0,($AA46-$AB46-$AC46)*$AA$62*1/$C46)+IF(GK46=0,0,($AE46-$AF46-$AG46)*$AE$62*1/$C46)+IF(GL46=0,0,($AI46-$AJ46-$AK46)*$AI$62*1/$C46)+IF(GM46=0,0,($AM46-$AN46-$AO46)*$AM$62*1/$C46)+IF(GN46=0,0,($AQ46-$AR46-$AS46)*$AQ$62*1/$C46)+IF(GO46=0,0,($AU46-$AV46-$AW46)*$AU$62*1/$C46)+IF(GP46=0,0,($AY46-$AZ46-$BA46)*$AY$62*1/$C46)+IF(GQ46=0,0,($BC46-$BD46-$BE46)*$BC$62*1/$C46)+IF(GR46=0,0,($BG46-$BH46-$BI46)*$BG$62*1/$C46)+IF(GS46=0,0,($BK46-$BL46-$BM46)*$BK$62*1/$C46)+IF(GT46=0,0,($BO46-$BP46-$BQ46)*$BO$62*1/$C46)+IF(GU46=0,0,($BS46-$BT46-$BU46)*$BS$62*1/$C46)+IF(GV46=0,0,($BW46-$BX46-$BY46)*$BW$62*1/$C46)+IF(GW46=0,0,($CA46-$CB46-$CC46)*$CA$62*1/$C46)+IF(GX46=0,0,($CE46-$CF46-$CG46)*$CE$62*1/$C46)+IF(GY46=0,0,($CI46-$CJ46-$CK46)*$CI$62*1/$C46)+IF(GZ46=0,0,($CM46-$CN46-$CO46)*$CM$62*1/$C46)+IF(HA46=0,0,($CQ46-$CR46-$CS46)*$CQ$62*1/$C46)+IF(HB46=0,0,($CU46-$CV46-$CW46)*$CU$62*1/$C46) -> 2369893.422 | HD46: =IF((1-($IC$2-$CY46)/$C46)>0,(1-($IC$2-$CY46)/$C46),0) -> 0 | HE46: =IF((1-($IC$2-HE$2)/$C46)>0,(1-($IC$2-HE$2)/$C46),0) -> 0 | HF46: 0 | HG46: 0 | HH46: 0 | HI46: 0 | HJ46: 0 | HK46: 0.02272727273 | HL46: 0.06818181818 | HM46: 0.1136363636 | HN46: 0.1590909091 | HO46: 0.2045454545 | HP46: 0.25 | HQ46: 0.2954545455 | HR46: 0.3409090909 | HS46: 0.3863636364 | HT46: 0.4318181818 | HU46: 0.4772727273 | HV46: 0.5227272727 | HW46: 0.5681818182 | HX46: 0.6136363636 | HY46: 0.6590909091 | HZ46: =IF((1-($IC$2-HZ$2)/$C46)>0,(1-($IC$2-HZ$2)/$C46),0) -> 0.7045454545 | IA46: 0.75 | IB46: 0.7954545455 | IC46: =IF(HD46=0,0,($D46-$E46)*1/$C46)+IF(HE46=0,0,($G46-$H46-$I46)*$G$62*1/$C46)+IF(HF46=0,0,($K46-$L46-$M46)*$K$62*1/$C46)+IF(HG46=0,0,($O46-$P46-$Q46)*$O$62*1/$C46)+IF(HH46=0,0,($S46-$T46-$U46)*$S$62*1/$C46)+IF(HI46=0,0,($W46-$X46-$Y46)*$W$62*1/$C46)+IF(HJ46=0,0,($AA46-$AB46-$AC46)*$AA$62*1/$C46)+IF(HK46=0,0,($AE46-$AF46-$AG46)*$AE$62*1/$C46)+IF(HL46=0,0,($AI46-$AJ46-$AK46)*$AI$62*1/$C46)+IF(HM46=0,0,($AM46-$AN46-$AO46)*$AM$62*1/$C46)+IF(HN46=0,0,($AQ46-$AR46-$AS46)*$AQ$62*1/$C46)+IF(HO46=0,0,($AU46-$AV46-$AW46)*$AU$62*1/$C46)+IF(HP46=0,0,($AY46-$AZ46-$BA46)*$AY$62*1/$C46)+IF(HQ46=0,0,($BC46-$BD46-$BE46)*$BC$62*1/$C46)+IF(HR46=0,0,($BG46-$BH46-$BI46)*$BG$62*1/$C46)+IF(HS46=0,0,($BK46-$BL46-$BM46)*$BK$62*1/$C46)+IF(HT46=0,0,($BO46-$BP46-$BQ46)*$BO$62*1/$C46)+IF(HU46=0,0,($BS46-$BT46-$BU46)*$BS$62*1/$C46)+IF(HV46=0,0,($BW46-$BX46-$BY46)*$BW$62*1/$C46)+IF(HW46=0,0,($CA46-$CB46-$CC46)*$CA$62*1/$C46)+IF(HX46=0,0,($CE46-$CF46-$CG46)*$CE$62*1/$C46)+IF(HY46=0,0,($CI46-$CJ46-$CK46)*$CI$62*1/$C46)+IF(HZ46=0,0,($CM46-$CN46-$CO46)*$CM$62*1/$C46)+IF(IA46=0,0,($CQ46-$CR46-$CS46)*$CQ$62*1/$C46)+IF(IB46=0,0,($CU46-$CV46-$CW46)*$CU$62*1/$C46) -> 2344523.351 | IE46: 61371.90909 | IF46: 52936.47727 | IG46: 24996.79225 | IH46: 25370.07096
B47: TOTAL ALUMBRADO PÚBLICO | D47: =D46 -> 9501020.871 | E47: =E46 -> 0 | F47: 6379536.702 | G47: 2296317 | H47: =H46 -> 28852 | I47: 0 | J47: 0 | K47: 2017106 | L47: =L46 -> 0 | M47: 0 | N47: 0 | O47: 1350182 | P47: 0 | Q47: 0 | R47: 0 | S47: 1164959.5 | T47: 357 | U47: 0 | V47: 0 | W47: 670144.91 | X47: 0 | Y47: 0 | Z47: 0 | AA47: 644019.64 | AB47: 0 | AC47: 0 | AD47: 0 | AE47: 641127.7 | AF47: 0 | AG47: 0 | AH47: 0 | AI47: 1046226.04 | AJ47: 0 | AK47: 0 | AL47: 0 | AM47: 742198.97 | AN47: 4219.71 | AO47: 0 | AP47: 0 | AQ47: 1095392.21 | AR47: 3105.14 | AS47: 0 | AT47: 0 | AU47: 1649504.87 | AV47: 2674.31 | AW47: 0 | AX47: 0 | AY47: 1816961.52 | AZ47: 4131.95 | BA47: 0 | BB47: 0 | BC47: 1318804.74 | BD47: 139.93 | BE47: 0 | BF47: 0 | BG47: 1630216.29 | BH47: 0 | BI47: 0 | BJ47: 0 | BK47: 4112953.57 | BL47: 0 | BM47: 0 | BN47: 0 | BO47: 2316725.18 | BP47: 0 | BQ47: 0 | BR47: 0 | BS47: 2007811.26 | BT47: 7650.72 | BU47: 0 | BV47: 0 | BW47: 1598913.03 | BX47: =BX46 -> 11174.38 | BY47: 0 | BZ47: 0 | CA47: 9491098.01 | CB47: 12831.52 | CC47: 0 | CD47: 0 | CE47: 3726737.13 | CF47: 6521.84 | CG47: 0 | CH47: 0 | CI47: 4027906.73 | CJ47: 5621.07 | CK47: 0 | CL47: 0 | CM47: 5790550.18 | CN47: 29852.21 | CO47: 0 | CP47: 0 | CQ47: 5568673.34 | CR47: 18975.9 | CS47: 0 | CT47: 0 | CU47: =CU46 -> 8240585.14 | CV47: =CV46 -> 17290.5 | CW47: 0 | CX47: 0 | DY47: =DY46 -> 2509198.6 | DZ47: =DZ46 -> 68987961.08 | EA47: =EA46 -> 13785591.87 | EB47: =EB46 -> 38393711.88 | EC47: =EC46 -> 2509198.6 | FC47: =FC46 -> 2447826.691 | GC47: =GC46 -> 2394890.214 | HC47: =HC46 -> 2369893.422 | IC47: =IC46 -> 2344523.351 | IE47: 61371.90909 | IF47: 52936.47727 | IG47: 24996.79225 | IH47: 25370.07096
